Workbook

Sheet Welcome Sheet
C1: ='Welcome Sheet'!E71 -> A | D1: ='Welcome Sheet'!F71 -> B | E1: ='Welcome Sheet'!H71 -> 0 | F1: ='Welcome Sheet'!I71 -> 0 | G1: ='Welcome Sheet'!J71 -> 0 | H1: ='Welcome Sheet'!K71 -> F | I1: =G71 -> 0
A2: Welcome to the Landlord's Energy Rating tool (LER)
A3: Version 1.14b
A4: The landlord's energy Rating (LER) is being developed by the Better Buildings Partnership as an industry-standard output format for rating the energy performance of landlord's services in multi-tenanted buildings. This workbook helps you to collect the information required to produce an LER and calculates a DRAFT LER certificate.
A6: The tool collects data on energy supplies purchased by the landlord, energy passed through to tenants and, if known and for completeness, energy purchased by tenants.
B8: Navigation Guide
B9: This workbook is navigated using a navigation bar at the top of each screen. Three to seven worksheets will need to be completed depending on the services and energy supplies in the building.
B10: Input data sheets are labelled A to F; completion of the required data on these worksheets will allow an LER certificate to be generated.
B11: Answer the questions in the table below then click on the "Update navigation bar" button. This will change the colours of the arrows to indicate whether each sheet requires completion
B12: Worksheets requiring completion will be coloured blue. Worksheets that do not need to be completed are greyed out.
B15: Does the building use more than 3 main energy types? (excluding on site renewables): | F15: <Select>
B16: Does the building include on-site renewables? | F16: <Select>
B17: Are any tenants counterparty to their own utility supplies? | F17: <Select>
B18: Are separable energy uses present in the building? | F18: <Select>
B19: Are any adjustments required to the landlord's energy use to correctly reflect in LER scope landlord services provision? | F19: <Select>
B29: Data Input sheets: Overview
C31: Welcome Sheet | D31: A - General Information | E31: B - Landlord Supplies | F31: B1 - Tenant Energy Supplies | G31: C - Additional Energy Data | H31: D - Separables | I31: E - Additions and Subtractions | J31: F - Data for Benchmarking
B32: Purpose | C32: Tool introduction and to customise sheet navigation for building being assessed | D32: Use this sheet to enter general information about the building | E32: Use this sheet to define the supplies for which the Landlord is counterparty and the scope of the Landlord's services to the tenant | F32: Use this sheet to define the supplies for which the tenant is counterparty. Aggregated data for all tenants should be entered into this sheet, if available. | G32: Use this sheet to enter any additional energy supplies to which the landlord is counterparty, or for any on-site renewables | H32: Use this sheet to detail exceptional energy uses to be excluded from the building's rated energy consumption and/or floor area | I32: Use this sheet to enter adjustments (subtractions or additions) to reflect the full energy used within the scope of the LER (eg 'passed-through energy' and 'tenant supplements') | J32: Use this sheet to record further information about the building, to allow an accurate benchmark to be calculated for the LER
B33: How the sheet works | C33: Using the questionnaire the navigation tool bar will update to reflect the sheets that should be populated. | D33: This is a data input tab only | E33: This is a data input tab only | F33: This is a data input tab only | G33: This is a data input tab only | H33: This is primarily a data input tab. It includes two tables which show the impact of separables input on rated consumption and rated floor area. | I33: The energy purchased by the landlord may not mirror the Landlord Energy Rating scope . This sheet allows users to make adjustments to add and subtract from purchased energy until the desired scope is reached. A summary table is included which shows the impact of the adjustments on rated consumption. | J33: This sheet allows users to identify the main heating fuel and also to provide information on how different spaces/tenancies in the building are used throughout the assessment period. Each space with a different period of use during the year or different hours of use are entered as individual "functional spaces".
B34: Key fields | C34: - Questionnaire fields | D34: - Building details - Assessor details - Managing agent information - Floor area in NLA | E34: - Energy consumption data for which landlord is counterparty (please note energy data should be aggregated by fuel type) - Extent of landlord services - Uses of passed-through energy for 'tenant supplements' | F34: - Energy consumption data for which Tenant is counterparty (please note Energy data should be aggregated by fuel type) - Description of Tenant supplements to landlord services using Energy for which Tenant is counterparty | G34: - Energy consumption data on further energy supplies (please note energy data should be aggregated by fuel type) - Energy generation data and description for on-site renewable energy sources (please note energy data should be aggregated by fuel type) | H34: - If separables are present then the appropriate fields in the separable energy use table must be completed. Depending on the type of separable, this could lead to an adjustment of both rated energy consumption and rated floor area, or only one of these. | I34: - For each addition or subtraction it is necessary to include: * A description * An allocated meter type * An allocated fuel type * The consumption * The period of consumption * Data quality details | J34: - Main heating fuel should be identified - Spaces in the building that have different hours of use or void periods during the assessment period should be identified.
C36: Key to cell colour coding
C37: Table header
C38: Inputs
C39: Input - dropdown
C40: Output
C41: Red border - essential field
B43: DEFINITION OF TERMS
B45: Separables | C45: See Sheet D
B46: Landlord services in LER scope | C46: All energy used in common parts, dedicated car parks and external lighting plus all energy used in tenant demises for HVAC and HWS to the standard of the BCO spec e.g. excluding central catering.
B47: "Counterparty to" | C47: This is a contracted form of "counterparty to the supply contract" - e.g. the entity who is legally responsible for the supply contract.
B48: Passed-through energy | C48: In many multi-let buildings, the landlord is counterparty to all the energy supply contracts. Some of these energy supplies are 'passed-through' directly to the tenants without being transformed e.g. to HVAC services and the landlord recharges each tenant for the energy they receive in this way through the service charge, increasingly on the basis of sub-metering, especially for electricity supplies. The LER can often be calculated where this 'passed through' energy is sub-metered.
B49: "Actual" and "Estimated" | C49: Actual means data from measured floor plans, asset registers, physical meter readings and other formal, verifiable sources, Estimated means energy supplier estimated readings, or other approximations made by the user.
B50: BCO Specification | C50: This refers to the specification for serviced offices as defined by the British Council for Offices (BCO) which can be found here: http://www.bco.org.uk/research/bcoguide/
B66: =OR(F15="Yes",F16="Yes") -> FALSE | H66: `
B67: =F17="Yes" -> FALSE
B68: =F18="Yes" -> FALSE
B69: =F19="Yes" -> FALSE
E71: A | F71: B | G71: =IF(B67=TRUE,"B1",0) -> 0 | H71: =IF(B66=TRUE,"C",0) -> 0 | I71: =IF(B68=TRUE,"D",0) -> 0 | J71: =IF(B69=TRUE, "E",0) -> 0 | K71: F | L71: Correct?
B72: Basic data only | E72: A | F72: B | K72: F | L72: =IF(AND(E72=$E$71,F72=$F$71,H72=$H$71,I72=$I$71,J72=$J$71,K72=$K$71),"Yes","") -> Yes
B73: Energy/Renewables only | E73: A | F73: B | H73: C | K73: F
B74: Sub metering only | E74: A | F74: B | I74: D | K74: F
B75: Separables only | E75: A | F75: B | J75: E | K75: F
B76: Energy/renewables and Sub metering | E76: A | F76: B | H76: C | I76: D | K76: F
B77: Energy/renewables and Separables | E77: A | F77: B | H77: C | J77: E | K77: F
B78: Sub metering and Separables | E78: A | F78: B | I78: D | J78: E | K78: F
B79: Energy/renewables, sub-metering and separables | E79: A | F79: B | H79: C | I79: D | J79: E | K79: F

Sheet A - General Information
C1: ='Welcome Sheet'!E71 -> A | D1: ='Welcome Sheet'!F71 -> B | E1: ='Welcome Sheet'!H71 -> 0 | F1: ='Welcome Sheet'!I71 -> 0 | G1: ='Welcome Sheet'!J71 -> 0 | H1: ='Welcome Sheet'!K71 -> F | I1: ='Welcome Sheet'!G71 -> 0
C8: Input Sheet A: Core Information Use this sheet to enter general building information
C9: General Information
D11: Name of building | H11: Date Completed
D12: Number of storeys above ground | H12: Issue date
D13: Number of storeys below ground | H13: Assessor Name
A14: 102 | D14: Building Address | H14: Assessor's employer | K14: The name of the managing agents or company
A15: 103 | D15: City | H15: Assessor Number | K15: The name of the individual who prepared the landlord's services statement
A16: 105 | D16: Postcode | F16: =IF(ISBLANK(E16),"",Benchmarks!G112) ->  | H16: Assessor's Telephone | K16: Telephone contact for individual who prepared the landlord's services statement
H17: Assessor's Email
A18: 106 | D18: Landlord's Name | H18: Accreditation Scheme | K18: Email contact for individual who prepared the statement
D19: Street
D20: Town / City | H20: Managing agent
D21: Postcode | H21: Managing agent representative
D22: Landlord's Telephone | H22: Contact email
A23: 112 | D23: Landlord's Email | H23: Contact telephone | K23: The name of the Landlord as defined in the Tenant's lease
A25: 120 | D25: Year Building Completed | H25: Last year's LER rating (decimal stars) | K25: The name of the property for the tenancy
D26: Building Location | H26: LER rating two years ago (decimal stars)
D28: Gross Internal Area (GIA) | H28: Net Lettable Area (NLA)
D29: GIA Units | E29: m2 | H29: NLA Units | I29: m2
D30: Source of GIA Data | H30: Source of NLA Data
D31: Description of data source | H31: Description of data source
A32: 135 | K32: Basic Building type - Currently only Offices are supported.
C34: Additional Building Information
D36: Year of Refurbishment | H36: Year of Most Recent Fit out
D38: Extra Notes on Building
G40: =IF(F37='F - Functional spaces'!F178,0,IF(F37='F - Functional spaces'!F179,#REF!,#REF!*'A - General Information'!#REF!)) -> 0
D43: Feedback on this sheet
D45: Were the data entry fields clearly defined? | F45: <Select>
D46: Was the required data readily available? | F46: <Select>
D48: Please provide any further comments or suggestions in the space below. (300 characters max) | I48: =300-LEN(D49)&" characters left" -> 300 characters left
W78: DEC Data checker
V80: Electricity | W80: Energy Supply A | X80: Energy Supply B | AA80: Energy Supply C | AB80: Energy Supply D | AC80: Renewable A | AD80: Renewable B | AE80: Renewable C
V81: =#REF!-#REF! ->  | W81: =#REF!-#REF! ->  | X81: =#REF!-#REF! ->  | AA81: ='C - Additional Energy Data'!I16-'C - Additional Energy Data'!I15 -> 0 | AB81: ='C - Additional Energy Data'!K16-'C - Additional Energy Data'!K15 -> 0 | AC81: ='C - Additional Energy Data'!G38-'C - Additional Energy Data'!G37 -> 0 | AD81: ='C - Additional Energy Data'!I38-'C - Additional Energy Data'!I37 -> 0 | AE81: ='C - Additional Energy Data'!K38-'C - Additional Energy Data'!K37 -> 0 | AF81: Length
W82: =#REF!-#REF! ->  | X82: =IF(#REF!="",0,#REF!-#REF!) ->  | AA82: =IF('C - Additional Energy Data'!I15="",0,'C - Additional Energy Data'!I15-#REF!) -> 0 | AB82: =IF('C - Additional Energy Data'!K15="",0,'C - Additional Energy Data'!K15-#REF!) -> 0 | AC82: =IF('C - Additional Energy Data'!G37="",0,'C - Additional Energy Data'!G37-'A - General Information'!#REF!) -> 0 | AD82: =IF('C - Additional Energy Data'!I37="",0,'C - Additional Energy Data'!I37-'A - General Information'!#REF!) -> 0 | AE82: =IF('C - Additional Energy Data'!K37="",0,'C - Additional Energy Data'!K37-'A - General Information'!#REF!) -> 0 | AF82: Start date
W83: =#REF!-#REF! ->  | X83: =IF(#REF!="",0,#REF!-#REF!) ->  | AA83: =IF('C - Additional Energy Data'!I16="",0,'C - Additional Energy Data'!I16-#REF!) -> 0 | AB83: =IF('C - Additional Energy Data'!K16="",0,'C - Additional Energy Data'!K16-#REF!) -> 0 | AC83: =IF('C - Additional Energy Data'!G38="",0,'C - Additional Energy Data'!G38-'A - General Information'!#REF!) -> 0 | AD83: =IF('C - Additional Energy Data'!I38="",0,'C - Additional Energy Data'!I38-'A - General Information'!#REF!) -> 0 | AE83: =IF('C - Additional Energy Data'!K38="",0,'C - Additional Energy Data'!K38-'A - General Information'!#REF!) -> 0 | AF83: End date
V85: =IF(V81<350,1,0) ->  | W85: =IF(W81<350,1,0) ->  | X85: =IF(X81=0,0,IF(X81<334,1,0)) ->  | AA85: =IF(AA81=0,0,IF(AA81<334,1,0)) -> 0 | AB85: =IF(AB81=0,0,IF(AB81<334,1,0)) -> 0 | AC85: =IF(AC81=0,0,IF(AC81<334,1,0)) -> 0 | AD85: =IF(AD81=0,0,IF(AD81<334,1,0)) -> 0 | AE85: =IF(AE81=0,0,IF(AE81<334,1,0)) -> 0 | AF85: Length - short
V86: =IF(V81>380,1,0) ->  | W86: =IF(W81>396,1,0) ->  | X86: =IF(X81>396,1,0) ->  | AA86: =IF(AA81>396,1,0) -> 0 | AB86: =IF(AB81>396,1,0) -> 0 | AC86: =IF(AC81>380,1,0) -> 0 | AD86: =IF(AD81>380,1,0) -> 0 | AE86: =IF(AE81>380,1,0) -> 0 | AF86: Length - long
W87: =IF(AND(W82>=0,W82<=31),0,1) ->  | X87: =IF(AND(X82>=0,X82<=31),0,1) ->  | AA87: =#N/A ->  | AB87: =#N/A ->  | AC87: =#N/A ->  | AD87: =#N/A ->  | AE87: =#N/A ->  | AF87: Start date
W88: =IF(AND(W83>=0,W83<=31),0,1) ->  | X88: =IF(AND(X83>=0,X83<=31),0,1) ->  | AA88: =#N/A ->  | AB88: =#N/A ->  | AC88: =#N/A ->  | AD88: =#N/A ->  | AE88: =#N/A ->  | AF88: End date
W90: =IF(W85=1,"Consumption period too short",IF(W86=1,"Consumption period too long",0)) ->  | X90: =IF(X85=1,"Consumption period too short",IF(X86=1,"Consumption period too long",0)) ->  | AA90: =IF(AA85=1,"Consumption period too short",IF(AA86=1,"Consumption period too long",0)) -> 0 | AB90: =IF(AB85=1,"Consumption period too short",IF(AB86=1,"Consumption period too long",0)) -> 0 | AC90: =IF(AC85=1,"Consumption period too short",IF(AC86=1,"Consumption period too long",0)) -> 0 | AD90: =IF(AD85=1,"Consumption period too short",IF(AD86=1,"Consumption period too long",0)) -> 0 | AE90: =IF(AE85=1,"Consumption period too short",IF(AE86=1,"Consumption period too long",0)) -> 0 | AF90: Length
W91: =IF(W87=1, "Start date not within 31 days",0) ->  | X91: =IF(X87=1, "Start date not within 31 days",0) ->  | AA91: =IF(AA87=1, "Start date not within 31 days",0) ->  | AB91: =IF(AB87=1, "Start date not within 31 days",0) ->  | AC91: =IF(AC87=1, "Start date not within 31 days",0) ->  | AD91: =IF(AD87=1, "Start date not within 31 days",0) ->  | AE91: =IF(AE87=1, "Start date not within 31 days",0) ->  | AF91: Start date
V92: =SUM(V85:V91) ->  | W92: =IF(W88=1, "End date not within 31 days",0) ->  | X92: =IF(X88=1, "End date not within 31 days",0) ->  | AA92: =IF(AA88=1, "End date not within 31 days",0) ->  | AB92: =IF(AB88=1, "End date not within 31 days",0) ->  | AC92: =IF(AC88=1, "End date not within 31 days",0) ->  | AD92: =IF(AD88=1, "End date not within 31 days",0) ->  | AE92: =IF(AE88=1, "End date not within 31 days",0) ->  | AF92: End date
W94: =IF(ISTEXT(W90),W90,IF(ISTEXT(W91),W91,IF(ISTEXT(W92),W92,""))) ->  | X94: =IF(ISTEXT(X90),X90,IF(ISTEXT(X91),X91,IF(ISTEXT(X92),X92,""))) ->  | AA94: =IF(ISTEXT(AA90),AA90,IF(ISTEXT(AA91),AA91,IF(ISTEXT(AA92),AA92,""))) ->  | AB94: =IF(ISTEXT(AB90),AB90,IF(ISTEXT(AB91),AB91,IF(ISTEXT(AB92),AB92,""))) ->  | AC94: =IF(ISTEXT(AC90),AC90,IF(ISTEXT(AC91),AC91,IF(ISTEXT(AC92),AC92,""))) ->  | AD94: =IF(ISTEXT(AD90),AD90,IF(ISTEXT(AD91),AD91,IF(ISTEXT(AD92),AD92,""))) ->  | AE94: =IF(ISTEXT(AE90),AE90,IF(ISTEXT(AE91),AE91,IF(ISTEXT(AE92),AE92,""))) ->  | AF94: Summary
W96: =IF(SUM(W85:W88)>1,1,0) ->  | X96: =IF(SUM(X85:X88)>1,1,0) ->  | AA96: =IF(SUM(AA85:AA88)>1,1,0) ->  | AB96: =IF(SUM(AB85:AB88)>1,1,0) ->  | AC96: =IF(SUM(AC85:AC88)>1,1,0) ->  | AD96: =IF(SUM(AD85:AD88)>1,1,0) ->  | AE96: =IF(SUM(AE85:AE88)>1,1,0) ->  | AF96: Overall
W97: ="No - Check " & W80 -> No - Check Energy Supply A | X97: ="No - Check " & X80 -> No - Check Energy Supply B | AA97: ="No - Check " & AA80 -> No - Check Energy Supply C | AB97: ="No - Check " & AB80 -> No - Check Energy Supply D | AC97: ="No - Check " & AC80 -> No - Check Renewable A | AD97: ="No - Check " & AD80 -> No - Check Renewable B | AE97: ="No - Check " & AE80 -> No - Check Renewable C

Sheet B- Landlord's services
C1: ='Welcome Sheet'!E71 -> A | D1: ='Welcome Sheet'!F71 -> B | E1: ='Welcome Sheet'!H71 -> 0 | F1: ='Welcome Sheet'!I71 -> 0 | G1: ='Welcome Sheet'!J71 -> 0 | H1: ='Welcome Sheet'!K71 -> F | I1: ='Welcome Sheet'!G71 -> 0
A2: B
C7: Input Sheet B: Landlord's supplies Use this sheet to define the supplies for which the landlord is counterparty and the scope of the landlord's services to tenants
C8: Annual energy usage - all supplies to which the landlord is counterparty This should include separable energy uses - this consumptioon will be subtracted later.
E10: Electricity | G10: Natural Gas | I10: Further Energy Supply A
D11: Energy Supply | E11: Mains Electricity | G11: Natural Gas
D12: Description (Optional)
D13: Unit | E13: kWh | G13: kWh
D14: Period Start
D15: Period End
D16: Total Consumption
D17: Adjust consumption to 365 days? | E17: <Select> | G17: <Select> | I17: <Select>
D18: Source of Data | E18: <Select> | G18: <Select> | I18: <Select>
D19: Annual Usage (kWh) | E19: =IF(E16=0,0,IF(E17="Yes",E16*(365/(E15-E14)), E16)*HLOOKUP(E13,ConvTab,VLOOKUP(E11,ConvTabRow,2,FALSE),FALSE)) -> 0 | G19: =IF(G16=0,0,IF(G17="Yes",G16*(365/(G15-G14)), G16)*HLOOKUP(G13,ConvTab,VLOOKUP(G11,ConvTabRow,2,FALSE),FALSE)) -> 0 | I19: =IF(I16=0,0,IF(I17="Yes",I16*(365/(I15-I14)), I16)*HLOOKUP(I13,ConvTab,VLOOKUP(I11,ConvTabRow,2,FALSE),FALSE)) -> 0
D20: kWh / m2 NLA | E20: =VLOOKUP(E11,EnergyTable,'Energy calcs'!$G$14,FALSE) ->  | G20: =VLOOKUP(G11,EnergyTable,'Energy calcs'!$G$14,FALSE) ->  | I20: =VLOOKUP(I11,EnergyTable,'Energy calcs'!$G$14,FALSE) -> 
D21: kg CO2 / m2 NLA | E21: =VLOOKUP(E11,EnergyTable,'Energy calcs'!$K$14,FALSE) ->  | G21: =VLOOKUP(G11,EnergyTable,'Energy calcs'!$K$14,FALSE) ->  | I21: =VLOOKUP(I11,EnergyTable,'Energy calcs'!$K$14,FALSE) -> 
D22: Do dates meet LER alignment standards? | E22: =IF(OR(E14="",E15=""),"Not applicable",IF((365-(E15-E14))>31,"No - data Period too short",IF((365-(E15-E14))<-31,"No-Data period too long",IF(ABS(E14-ElecStDat)>31,"No - Start date varies by >31 days",IF(ABS(E15-ElecEndDate)>31,"No - End date varies by >31 days","Yes"))))) -> Not applicable | G22: =IF(OR(G14="",G15=""),"Not applicable",IF((365-(G15-G14))>31,"No - data Period too short",IF((365-(G15-G14))<-31,"No-Data period too long",IF(ABS(G14-ElecStDat)>31,"No - Start date varies by >31 days",IF(ABS(G15-ElecEndDate)>31,"No - End date varies by >31 days","Yes"))))) -> Not applicable | I22: =IF(OR(I14="",I15=""),"Not applicable",IF((365-(I15-I14))>31,"No - data Period too short",IF((365-(I15-I14))<-31,"No-Data period too long",IF(ABS(I14-ElecStDat)>31,"No - Start date varies by >31 days",IF(ABS(I15-ElecEndDate)>31,"No - End date varies by >31 days","Yes"))))) -> Not applicable
D23: Source data quality | E23: =VLOOKUP(E18,QAFuelConsTable,2,FALSE) -> N/A | G23: =VLOOKUP(G18,QAFuelConsTable,2,FALSE) -> N/A | I23: =VLOOKUP(I18,QAFuelConsTable,2,FALSE) -> N/A
D24: Consumption figure range check | E24: =IF(E17="Yes",ABS(E19-E16*HLOOKUP(E13,ConvTab,VLOOKUP(E11,ConvTabRow,2,FALSE),FALSE)),0) -> 0 | G24: =IF(G17="Yes",ABS(G19-G16*HLOOKUP(G13,ConvTab,VLOOKUP(G11,ConvTabRow,2,FALSE),FALSE)),0) -> 0 | I24: =IF(I17="Yes",ABS(I19-I16*HLOOKUP(I13,ConvTab,VLOOKUP(I11,ConvTabRow,2,FALSE),FALSE)),0) -> 0
C25: User specified carbon factor (kg CO2 /kWh)
D26: Default Carbon Factor | E26: =IF(ISBLANK(E11)," ",VLOOKUP(E11,FuelsTable,3,FALSE)) -> 0.55 | G26: =IF(ISBLANK(G11)," ",VLOOKUP(G11,FuelsTable,3,FALSE)) -> 0.194 | I26: =IF(ISBLANK(I11)," ",VLOOKUP(I11,FuelsTable,3,FALSE)) -> 
D27: Do dates meet LER quality standards? | E27: =IF(OR(E14="",E15=""),"Not applicable",IF((365-(E15-E14))>7,"No - data Period too short",IF((365-(E15-E14))<-7,"No-Data period too long","Yes"))) -> Not applicable | G27: =IF(OR(G14="",G15=""),"Not applicable",IF((365-(G15-G14))>7,"No - data Period too short",IF((365-(G15-G14))<-7,"No-Data period too long","Yes"))) -> Not applicable | I27: =IF(OR(I14="",I15=""),"Not applicable",IF((365-(I15-I14))>7,"No - data Period too short",IF((365-(I15-I14))<-7,"No-Data period too long","Yes"))) -> Not applicable
D28: Description of data source
D29: Number of meters included in this supply:
C31: Extent of Landlord's Energy Services Note: any energy used by separable energy uses will be discounted from the LER. Answer these drop-down questions as if separable energy uses were not present
E33: What energy is the landlord counterparty to in this building? | G33: <Select>
E34: Does this building have landlord's services energy metering? | G34: <Select>
D35: Does the landlord provide HVAC to tenant demises? | E35: Yes
D37: Landlord HVAC to Common Parts | E37: <Select> | H37: Energy for Lifts & Escalators | I37: <Select>
D38: Landlord HVAC to Tenant Demises | E38: <Select> | H38: Energy for external lighting | I38: <Select>
D39: Tenant use of passed-through energy for HVAC | E39: <Select> | G39: If 'Other' HVAC selected in cell E38, describe here
D40: Tenant use of passed-through energy for HWS | E40: <Select>
D42: Number of indoor car parking spaces | H42: Number of outdoor car parking spaces
D46: Feedback on this sheet
D48: Were the data entry fields clearly defined? | F48: <Select>
D49: Was the required data readily available? | F49: <Select>
D51: Please provide any further comments or suggestions in the space below. (300 characters max) | I51: =300-LEN(D52)&" characters left" -> 300 characters left

Sheet Pass-through user guidance
B1: ='Welcome Sheet'!D71 -> 0 | C1: ='Welcome Sheet'!E71 -> A | D1: ='Welcome Sheet'!G71 -> 0 | E1: ='Welcome Sheet'!H71 -> 0 | F1: ='Welcome Sheet'!I71 -> 0 | G1: ='Welcome Sheet'!J71 -> 0 | H1: ='Welcome Sheet'!F71 -> B
C7: Tool data entry overview and definitions
C9: Definition of "Passed through" energy
C11: In order for the tool to correctly calculate the energy use which falls within the scope of the LER assessment, it is necessary to distiguish between energy supplies to which the tenants are
C12: counterparty, and energy for which the landlord is the counterparty, but that is passed on to the tenants for use in their demises (for any end use). The written definition of passed through energy and
C13: a graphical representation are provided below.
C15: Passed-through energy | D15: In many multi-let buildings, the landlord is counterparty to all the energy supply contracts. Some of these energy supplies are 'passed-through' directly to the tenants without being transformed e.g. to HVAC services and the landlord recharges each tenant for the energy they receive in this way through the service charge, increasingly on the basis of sub-metering, especially for electricity supplies. The LER can often be calculated where this 'passed through' energy is sub-metered.
C47: Tool data entry overview
C49: The flow chart below is a simplified representation of the possible energy and servicing arrangements in a building with both tenant and landlord counterparty energy supplies
C50: The primary purpose of this schematic is to clarify the energy uses which are considered inside or outside LER scope, and show how "passed-through" energy is important in
C51: determining the energy used for end uses within the LER scope.
C53: It also identifies the circumstances where subtractions or additions will be required in the tool in order to generate a complete LER assessment.
C55: Landlord counterparty energy is considered "in scope" by default, whereas tenant counterparty energy is considered "out of scope" by default. Hence "pass through" energy supplied to the building via
C56: landlord counterparty meters which is transferred to the tenant's demises as energy (e.g. electricity or gas) should be deducted from the LER total.
C57: Some of this energy may be used by the tenant to deliver services which are within the LER scope (e.g. HVAC or HWS). Where this is the case additions should be made to reflect this energy use.
C59: Passed-through energy | D59: In many multi-let buildings, the landlord is counterparty to all the energy supply contracts. Some of these energy supplies are 'passed-through' directly to the tenants without being transformed e.g. to HVAC services and the landlord recharges each tenant for the energy they receive in this way through the service charge, increasingly on the basis of sub-metering, especially for electricity supplies. The LER can often be calculated where this 'passed through' energy is sub-metered.

Sheet B1- Tenant energy supplies
C1: ='Welcome Sheet'!E71 -> A | D1: ='Welcome Sheet'!F71 -> B | E1: ='Welcome Sheet'!H71 -> 0 | F1: ='Welcome Sheet'!I71 -> 0 | G1: ='Welcome Sheet'!J71 -> 0 | H1: ='Welcome Sheet'!K71 -> F | I1: ='Welcome Sheet'!G71 -> 0
A2: B
C7: Input Sheet B1: Tenant energy supplies Use this sheet to define the supplies for which the tenant is counterparty. Aggregated data for all tenants should be entered on this sheet.
C8: Annual energy usage - All supplies purchased directly from utility companies to which tenants are counterparty (if known)
E10: Tenant electricity meters | G10: Tenant energy supply 1 | I10: Tenant energy supply 2
D11: Energy Supply | E11: Mains Electricity
D12: Description (Optional)
D13: Unit | E13: kWh
D14: Period Start
D15: Period End
D16: Total Consumption
D17: Adjust consumption to 365 days? | E17: <Select> | G17: <Select> | I17: <Select>
D18: Source of Data | E18: <Select> | G18: <Select> | I18: <Select>
D19: Annual Usage (kWh) | E19: =IF(E16=0,0,IF(E17="Yes",E16*(365/(E15-E14)), E16)*HLOOKUP(E13,ConvTab,VLOOKUP(E11,ConvTabRow,2,FALSE),FALSE)) -> 0 | G19: =IF(G16=0,0,IF(G17="Yes",G16*(365/(G15-G14)), G16)*HLOOKUP(G13,ConvTab,VLOOKUP(G11,ConvTabRow,2,FALSE),FALSE)) -> 0 | I19: =IF(I16=0,0,IF(I17="Yes",I16*(365/(I15-I14)), I16)*HLOOKUP(I13,ConvTab,VLOOKUP(I11,ConvTabRow,2,FALSE),FALSE)) -> 0
D20: kWh / m2 NLA | E20: =VLOOKUP(E11,EnergyTable,'Energy calcs'!$G$14,FALSE) ->  | G20: =VLOOKUP(G11,EnergyTable,'Energy calcs'!$G$14,FALSE) ->  | I20: =VLOOKUP(I11,EnergyTable,'Energy calcs'!$G$14,FALSE) -> 
D21: kg CO2 / m2 NLA | E21: =VLOOKUP(E11,EnergyTable,'Energy calcs'!$K$14,FALSE) ->  | G21: =VLOOKUP(G11,EnergyTable,'Energy calcs'!$K$14,FALSE) ->  | I21: =VLOOKUP(I11,EnergyTable,'Energy calcs'!$K$14,FALSE) -> 
D22: Do dates meet LER alignment standards? | E22: =IF(OR(E14="",E15=""),"Not applicable",IF((365-(E15-E14))>31,"No - data Period too short",IF((365-(E15-E14))<-31,"No-Data period too long",IF(ABS(E14-ElecStDat)>31,"No - Start date varies by >31 days",IF(ABS(E15-ElecEndDate)>31,"No - End date varies by >31 days","Yes"))))) -> Not applicable | G22: =IF(OR(G14="",G15=""),"Not applicable",IF((365-(G15-G14))>31,"No - data Period too short",IF((365-(G15-G14))<-31,"No-Data period too long",IF(ABS(G14-ElecStDat)>31,"No - Start date varies by >31 days",IF(ABS(G15-ElecEndDate)>31,"No - End date varies by >31 days","Yes"))))) -> Not applicable | I22: =IF(OR(I14="",I15=""),"Not applicable",IF((365-(I15-I14))>31,"No - data Period too short",IF((365-(I15-I14))<-31,"No-Data period too long",IF(ABS(I14-ElecStDat)>31,"No - Start date varies by >31 days",IF(ABS(I15-ElecEndDate)>31,"No - End date varies by >31 days","Yes"))))) -> Not applicable
D23: Source data quality | E23: =VLOOKUP(E18,QAFuelConsTable,2,FALSE) -> N/A | G23: =VLOOKUP(G18,QAFuelConsTable,2,FALSE) -> N/A | I23: =VLOOKUP(I18,QAFuelConsTable,2,FALSE) -> N/A
D24: Consumption figure range check | E24: =IF(E11="<Select>","",IF((E19/#REF!)<=VLOOKUP(E11,#REF!,15,FALSE),"Value appears low",IF(E19/#REF!>=VLOOKUP(E11,#REF!,16,FALSE),"Value appears high","Within normal limits"))) ->  | G24: =IF(G11="<Select>","",IF((G19/#REF!)<=VLOOKUP(G11,#REF!,15,FALSE),"Value appears low",IF(G19/#REF!>=VLOOKUP(G11,#REF!,16,FALSE),"Value appears high","Within normal limits"))) ->  | I24: =IF(I11="<Select>","",IF((I19/#REF!)<=VLOOKUP(I11,#REF!,15,FALSE),"Value appears low",IF(I19/#REF!>=VLOOKUP(I11,#REF!,16,FALSE),"Value appears high","Within normal limits"))) -> 
C25: User specified carbon factor (kg CO2 /kWh)
D26: Default Carbon Factor | E26: =IF(ISBLANK(E11)," ",VLOOKUP(E11,FuelsTable,3,FALSE)) -> 0.55 | G26: =IF(ISBLANK(G11)," ",VLOOKUP(G11,FuelsTable,3,FALSE)) ->  | I26: =IF(ISBLANK(I11)," ",VLOOKUP(I11,FuelsTable,3,FALSE)) -> 
D27: Description of data source
D28: Number of meters included in this supply:
C30: Description of tenant supplement of landlords services using energy to which tenants are counterparty
A31: Yes | G31: Please provide any further comments about the tenant supplements in the box below
D32: Tenant supplement to landlords HVAC services | E32: <Select>
D34: Tenant supplement to landlords HWS services | E34: <Select>
D38: Feedback on this sheet
D40: Were the data entry fields clearly defined? | F40: <Select>
D41: Was the required data readily available? | F41: <Select>
D43: Please provide any further comments or suggestions in the space below. (300 characters max) | I43: =300-LEN(D44)&" characters left" -> 300 characters left

Sheet C - Additional Energy Data
C1: ='Welcome Sheet'!E71 -> A | D1: ='Welcome Sheet'!F71 -> B | E1: ='Welcome Sheet'!H71 -> 0 | F1: ='Welcome Sheet'!I71 -> 0 | G1: ='Welcome Sheet'!J71 -> 0 | H1: ='Welcome Sheet'!K71 -> F | I1: ='Welcome Sheet'!G71 -> 0
D8: Input Sheet C: Additional Energy Data Use this sheet to enter any additional energy supplies to which the Landlord is counterparty, or provided by on-site renewables
D9: Additional Energy Data
G11: Further Energy Supply B | I11: Further Energy Supply C | K11: Further Energy Supply D
F12: Energy Supply
F13: Description
F14: Units
F15: Period Start
F16: Period End
F17: Total Consumption
F18: Adjust consumption to 365 days? | G18: <Select> | I18: <Select> | K18: <Select>
F19: Source of Data | G19: <Select> | I19: <Select> | K19: <Select>
F20: Annual Usage (kWh) | G20: =IF(ISBLANK(G17)," ",IF(G18="Yes",G17*(365/(G16-G15)), G17)*HLOOKUP(G14,ConvTab,VLOOKUP(G12,ConvTabRow,2,FALSE),FALSE)) ->  | I20: =IF(ISBLANK(I17)," ",IF(I18="Yes",I17*(365/(I16-I15)), I17)*HLOOKUP(I14,ConvTab,VLOOKUP(I12,ConvTabRow,2,FALSE),FALSE)) ->  | K20: =IF(ISBLANK(K17)," ",IF(K18="Yes",K17*(365/(K16-K15)), K17)*HLOOKUP(K14,ConvTab,VLOOKUP(K12,ConvTabRow,2,FALSE),FALSE)) -> 
F21: kWh / m2 NLA | G21: =VLOOKUP(G12,EnergyTable,'Energy calcs'!$G$14,FALSE) ->  | I21: =VLOOKUP(I12,EnergyTable,'Energy calcs'!$G$14,FALSE) ->  | K21: =VLOOKUP(K12,EnergyTable,'Energy calcs'!$G$14,FALSE) -> 
F22: kg CO2 / m2 NLA | G22: =VLOOKUP(G12,EnergyTable,'Energy calcs'!$K$14,FALSE) ->  | I22: =VLOOKUP(I12,EnergyTable,'Energy calcs'!$K$14,FALSE) ->  | K22: =VLOOKUP(K12,EnergyTable,'Energy calcs'!$K$14,FALSE) -> 
F23: Do dates meet LER alignment standards? | G23: =IF(OR(G15="",G16=""),"Not applicable",IF((365-(G16-G15))>31,"No - data Period too short",IF((365-(G16-G15))<-31,"No-Data period too long",IF(ABS(G15-ElecStDat)>31,"No - Start date varies by >31 days",IF(ABS(G16-ElecEndDate)>31,"No - End date varies by >31 days","Yes"))))) -> Not applicable | I23: =IF(OR(I15="",I16=""),"Not applicable",IF((365-(I16-I15))>31,"No - data Period too short",IF((365-(I16-I15))<-31,"No-Data period too long",IF(ABS(I15-ElecStDat)>31,"No - Start date varies by >31 days",IF(ABS(I16-ElecEndDate)>31,"No - End date varies by >31 days","Yes"))))) -> Not applicable | K23: =IF(OR(K15="",K16=""),"Not applicable",IF((365-(K16-K15))>31,"No - data Period too short",IF((365-(K16-K15))<-31,"No-Data period too long",IF(ABS(K15-ElecStDat)>31,"No - Start date varies by >31 days",IF(ABS(K16-ElecEndDate)>31,"No - End date varies by >31 days","Yes"))))) -> Not applicable
F24: Source data quality | G24: =VLOOKUP(G19,QAFuelConsTable,2,FALSE) -> N/A | I24: =VLOOKUP(I19,QAFuelConsTable,2,FALSE) -> N/A | K24: =VLOOKUP(K19,QAFuelConsTable,2,FALSE) -> N/A
F25: Consumption figure range check | G25: =IF(G18="Yes",ABS(G20-G17*HLOOKUP(G14,ConvTab,VLOOKUP(G12,ConvTabRow,2,FALSE),FALSE)),0) -> 0 | I25: =IF(I18="Yes",ABS(I20-I17*HLOOKUP(I14,ConvTab,VLOOKUP(I12,ConvTabRow,2,FALSE),FALSE)),0) -> 0 | K25: =IF(K18="Yes",ABS(K20-K17*HLOOKUP(K14,ConvTab,VLOOKUP(K12,ConvTabRow,2,FALSE),FALSE)),0) -> 0
F26: User specified carbon factor (kg CO2 /kWh) | G26: 0.4
F27: Default Carbon Factor | G27: =IF(ISBLANK(G12)," ",VLOOKUP(G12,FuelsTable,3,FALSE)) ->  | I27: =IF(ISBLANK(I12)," ",VLOOKUP(I12,FuelsTable,3,FALSE)) ->  | K27: =IF(ISBLANK(K12)," ",VLOOKUP(K12,FuelsTable,3,FALSE)) -> 
F28: Do dates meet LER quality standards? | G28: =IF(OR(G15="",G16=""),"Not applicable",IF((365-(G16-G15))>7,"No - data Period too short",IF((365-(G16-G15))<-7,"No-Data period too long","Yes"))) -> Not applicable | I28: =IF(OR(I15="",I16=""),"Not applicable",IF((365-(I16-I15))>7,"No - data Period too short",IF((365-(I16-I15))<-7,"No-Data period too long","Yes"))) -> Not applicable | K28: =IF(OR(K15="",K16=""),"Not applicable",IF((365-(K16-K15))>7,"No - data Period too short",IF((365-(K16-K15))<-7,"No-Data period too long","Yes"))) -> Not applicable
F29: Description of data source
F30: Number of meters included in this supply:
D32: On-site Renewable Generation
G34: Renewable A | I34: Renewable B | K34: Renewable C
F35: Renewable Type | G35: <Select> | I35: <Select> | K35: <Select>
F36: Displaced Fuel Type | G36: <Select> | I36: <Select> | K36: <Select>
F37: Period Start
F38: Period End
F39: Total Generation (kWh)
F40: Adjust consumption to 365 days? | G40: <Select> | I40: <Select> | K40: <Select>
F41: Annual Generation (kWh) | G41: =IF(ISBLANK(G39),"",IF(G40="Yes",G39*(365/(G38-G37)),G39)) ->  | I41: =IF(ISBLANK(I39),"",IF(I40="Yes",I39*(365/(I38-I37)),I39)) ->  | K41: =IF(ISBLANK(K39),"",IF(K40="Yes",K39*(365/(K38-K37)),K39)) -> 
F42: Source of Data | G42: <Select> | I42: <Select> | K42: <Select>
F43: Source data quality | I43: =VLOOKUP(I42,QAFuelConsTable,2,FALSE) -> N/A | K43: =VLOOKUP(K42,QAFuelConsTable,2,FALSE) -> N/A
F44: Annual CO2 savings (t). | G44: =IF(G36="<Select>",0,#REF!) -> 0 | I44: =IF(I36="<Select>",0,#REF!) -> 0 | K44: =IF(K36="<Select>",0,#REF!) -> 0
F45: kWh / m2 | G45: =G41/NLA ->  | I45: =I41/NLA ->  | K45: =K41/NLA -> 
F46: kg CO2 / m2 | G46: =IF(G44=0,0,G44/'A - General Information'!#REF!*1000) -> 0 | I46: =IF(I44=0,0,I44/'A - General Information'!#REF!*1000) -> 0 | K46: =IF(K44=0,0,K44/'A - General Information'!#REF!*1000) -> 0
F47: Do dates meet LER alignment standards? | G47: =IF(OR(G37="",G38=""),"Not applicable",IF((365-(G38-G37))>31,"No - data Period too short",IF((365-(G38-G37))<-31,"No-Data period too long",IF(ABS(G37-ElecStDat)>31,"No - Start date varies by >31 days",IF(ABS(G38-ElecEndDate)>31,"No - End date varies by >31 days","Yes"))))) -> Not applicable | I47: =IF(OR(I37="",I38=""),"Not applicable",IF((365-(I38-I37))>31,"No - data Period too short",IF((365-(I38-I37))<-31,"No-Data period too long",IF(ABS(I37-ElecStDat)>31,"No - Start date varies by >31 days",IF(ABS(I38-ElecEndDate)>31,"No - End date varies by >31 days","Yes"))))) -> Not applicable | K47: =IF(OR(K37="",K38=""),"Not applicable",IF((365-(K38-K37))>31,"No - data Period too short",IF((365-(K38-K37))<-31,"No-Data period too long",IF(ABS(K37-ElecStDat)>31,"No - Start date varies by >31 days",IF(ABS(K38-ElecEndDate)>31,"No - End date varies by >31 days","Yes"))))) -> Not applicable
F48: Description of data source
F49: Number of meters included in this supply:
Q52: HIDDEN ROWS UNDER HERE FOR LISTS ETC
E53: Feedback on this sheet
R54: HIDDEN LIST DATA BELOW THIS LINE:
E55: Were the data entry fields clearly defined? | H55: <Select> | AE55: <Select>
E56: Was the required data readily available? | H56: <Select> | S56: <Select> | T56: <Select> | Y56: <Select> | AE56: Supplier Meter | AF56: Satisfactory
Q57: ='A - General Information'!#REF! ->  | R57: 1 | S57: =#REF! ->  | T57: <Select> | U57: kWh | Y57: 2000 | AB57: 2000-01-01 | AC57: 2000-12-31 | AE57: Supplier Delivery | AF57: Requires verification
E58: Please provide any further comments or suggestions in the space below. (300 characters max) | L58: =300-LEN(G59)&" characters left" -> 300 characters left | R58: 2 | S58: =#REF! ->  | T58: <Select> | U58: kWh | V58: m3 | W58: cuft | Y58: 2001 | AB58: 2001-01-01 | AC58: 2001-12-31 | AE58: Supplier Estimate | AF58: Requires verification
R59: 3 | S59: =#REF! ->  | T59: <Select> | U59: kWh | V59: litres | W59: tonnes | Y59: 2002 | AB59: 2002-01-01 | AC59: 2002-12-31 | AE59: Supplier Invoice | AF59: Requires verification
R60: 4 | S60: =#REF! ->  | T60: <Select> | U60: kWh | V60: litres | Y60: 2003 | AB60: 2003-01-01 | AC60: 2003-12-31 | AE60: Landlord Meter | AF60: Requires verification
R61: 5 | S61: =#REF! ->  | T61: <Select> | U61: kWh | V61: tonnes | Y61: 2004 | AB61: 2004-01-01 | AC61: 2004-12-31 | AE61: Landlord Delivery | AF61: Requires verification
R62: 6 | S62: =#REF! ->  | T62: <Select> | U62: kWh | V62: m3 | W62: cuft | X62: tonnes | Y62: 2005 | AB62: 2005-01-01 | AC62: 2005-12-31 | AE62: Landlord Estimate | AF62: Requires verification
R63: 7 | S63: =#REF! ->  | T63: <Select> | U63: kWh | V63: m3 | W63: cuft | Y63: 2006 | AB63: 2006-01-01 | AC63: 2006-12-31 | AE63: Accredited Assessor Estimate | AF63: Satisfactory
R64: 8 | S64: =#REF! ->  | T64: <Select> | U64: kWh | V64: tonnes | Y64: 2007 | AB64: 2007-01-01 | AC64: 2007-12-31 | AE64: Other | AF64: Requires verification
R65: 9 | S65: =#REF! ->  | T65: <Select> | U65: kWh | V65: tonnes | Y65: 2008 | AB65: 2008-01-01 | AC65: 2008-12-31
R66: 10 | S66: =#REF! ->  | T66: <Select> | U66: kWh | V66: litres | W66: tonnes | Y66: 2009 | AB66: 2009-01-01 | AC66: 2009-12-31
R67: 11 | S67: =#REF! ->  | T67: <Select> | U67: kWh | V67: litres | W67: tonnes | Y67: 2010 | AB67: 2010-01-01 | AC67: 2010-12-31
R68: 12 | S68: =#REF! ->  | T68: <Select> | U68: kWh | Y68: 2011 | AB68: 2011-01-01 | AC68: 2011-12-31 | AF68: kWh / m2 | AL68: kg CO2 / m2
R69: 13 | S69: =#REF! ->  | T69: <Select> | U69: kWh | Y69: 2012 | AB69: 2012-01-01 | AC69: 2012-12-31 | AE69: Year | AF69: ='A - General Information'!#REF! ->  | AG69: ='A - General Information'!#REF! ->  | AH69: ='A - General Information'!#REF! ->  | AI69: =I12 -> 0 | AJ69: =K12 -> 0 | AK69: Fuel & Thermal | AL69: =AF69 ->  | AM69: =AG69 ->  | AN69: =AH69 ->  | AO69: =AI69 -> 0 | AP69: =AJ69 -> 0 | AQ69: Fuel & Thermal | AR69: Total | AS69: Renewables
R70: 14 | S70: =IF(ISBLANK(#REF!),"",#REF!) ->  | T70: <Select> | U70: kWh | Y70: 2013 | AB70: 2013-01-01 | AC70: 2013-12-31 | AE70: =#REF! ->  | AF70: =IF(#REF!<1,0,IF(#REF!="",0,#REF!/#REF!)) ->  | AG70: =IF(#REF!<1,0,IF(#REF!="",0,#REF!*#REF!/#REF!)) ->  | AH70: =IF(#REF!<1,0,IF(#REF!="",0,#REF!*#REF!/#REF!)) ->  | AI70: =IF(#REF!<1,0,IF(#REF!="",0,#REF!*#REF!/#REF!)) ->  | AJ70: =IF(#REF!<1,0,IF(#REF!="",0,#REF!*#REF!/#REF!)) ->  | AK70: =SUM(AG70:AJ70)-AK78 ->  | AL70: =IF(AF70=0,0,AF70*#REF!) ->  | AM70: =IF(AG70=0,0,AG70*#REF!) ->  | AN70: =IF(AH70=0,0,AH70*#REF!) ->  | AO70: =IF(AI70=0,0,AI70*#REF!) ->  | AP70: =IF(AJ70=0,0,AJ70*#REF!) ->  | AQ70: =SUM(AM70:AP70)-AQ78 ->  | AR70: =SUM(AL70:AP70) -> 
R71: 15 | S71: =IF(ISBLANK(#REF!),"",#REF!) ->  | T71: <Select> | U71: kWh | Y71: 2014 | AB71: 2014-01-01 | AC71: 2014-12-31 | AE71: =#REF! ->  | AF71: =IF(#REF!="",0,#REF!/#REF!) ->  | AG71: =IF(#REF!="",0,#REF!*#REF!/#REF!) ->  | AH71: =IF(#REF!="",0,#REF!*#REF!/#REF!) ->  | AI71: =IF(#REF!="",0,#REF!*#REF!/#REF!) ->  | AJ71: =IF(#REF!="",0,#REF!*#REF!/#REF!) ->  | AK71: =SUM(AG71:AJ71)-AK79 ->  | AL71: =IF(AF71=0,0,AF71*#REF!) ->  | AM71: =IF(AG71=0,0,AG71*#REF!) ->  | AN71: =IF(AH71=0,0,AH71*#REF!) ->  | AO71: =IF(AI71=0,0,AI71*#REF!) ->  | AP71: =IF(AJ71=0,0,AJ71*#REF!) ->  | AQ71: =SUM(AM71:AP71)-AQ79 ->  | AR71: =SUM(AL71:AP71) -> 
R72: 16 | S72: =IF(ISBLANK(#REF!),"",#REF!) ->  | T72: <Select> | U72: kWh | Y72: 2015 | AB72: 2015-01-01 | AC72: 2015-12-31 | AE72: =#REF! ->  | AF72: =IF(#REF!="",0,#REF!/#REF!) ->  | AG72: =IF(#REF!="",0,#REF!*#REF!/#REF!) ->  | AH72: =IF(#REF!="",0,#REF!*#REF!/#REF!) ->  | AI72: =IF(#REF!="",0,#REF!*#REF!/#REF!) ->  | AJ72: =IF(#REF!="",0,#REF!*#REF!/#REF!) ->  | AK72: =SUM(AG72:AJ72)-AK80 ->  | AL72: =IF(AF72=0,0,AF72*#REF!) ->  | AM72: =IF(AG72=0,0,AG72*#REF!) ->  | AN72: =IF(AH72=0,0,AH72*#REF!) ->  | AO72: =IF(AI72=0,0,AI72*#REF!) ->  | AP72: =IF(AJ72=0,0,AJ72*#REF!) ->  | AQ72: =SUM(AM72:AP72)-AQ80 ->  | AR72: =SUM(AL72:AP72) -> 
R73: 17 | S73: =IF(ISBLANK(#REF!),"",#REF!) ->  | T73: <Select> | U73: kWh | Y73: 2016 | AB73: 2016-01-01 | AC73: 2016-12-31 | AE73: =#REF! ->  | AF73: =IF(#REF!="",0,#REF!/#REF!) ->  | AG73: =IF(#REF!="",0,#REF!*#REF!/#REF!) ->  | AH73: =IF(#REF!="",0,#REF!*#REF!/#REF!) ->  | AI73: =IF(#REF!="",0,#REF!*#REF!/#REF!) ->  | AJ73: =IF(#REF!="",0,#REF!*#REF!/#REF!) ->  | AK73: =SUM(AG73:AJ73)-AK81 ->  | AL73: =IF(AF73=0,0,AF73*#REF!) ->  | AM73: =IF(AG73=0,0,AG73*#REF!) ->  | AN73: =IF(AH73=0,0,AH73*#REF!) ->  | AO73: =IF(AI73=0,0,AI73*#REF!) ->  | AP73: =IF(AJ73=0,0,AJ73*#REF!) ->  | AQ73: =SUM(AM73:AP73)-AQ81 ->  | AR73: =SUM(AL73:AP73) -> 
R74: 18 | S74: =IF(ISBLANK(#REF!),"",#REF!) ->  | T74: <Select> | U74: kWh | Y74: 2017 | AB74: 2017-01-01 | AC74: 2017-12-31 | AE74: =#REF! ->  | AF74: =IF(#REF!="",0,#REF!/#REF!) ->  | AG74: =IF(#REF!="",0,#REF!*#REF!/#REF!) ->  | AH74: =IF(#REF!="",0,#REF!*#REF!/#REF!) ->  | AI74: =IF(#REF!="",0,#REF!*#REF!/#REF!) ->  | AJ74: =IF(#REF!="",0,#REF!*#REF!/#REF!) ->  | AK74: =SUM(AG74:AJ74)-AK82 ->  | AL74: =IF(AF74=0,0,AF74*#REF!) ->  | AM74: =IF(AG74=0,0,AG74*#REF!) ->  | AN74: =IF(AH74=0,0,AH74*#REF!) ->  | AO74: =IF(AI74=0,0,AI74*#REF!) ->  | AP74: =IF(AJ74=0,0,AJ74*#REF!) ->  | AQ74: =SUM(AM74:AP74)-AQ82 ->  | AR74: =SUM(AL74:AP74) -> 
R75: 19 | S75: =IF(ISBLANK(#REF!),"",#REF!) ->  | T75: <Select> | U75: kWh | Y75: 2018 | AB75: 2018-01-01 | AC75: 2018-12-31
R76: 20 | S76: =IF(ISBLANK(#REF!),"",#REF!) ->  | T76: <Select> | U76: kWh | Y76: 2019 | AB76: 2019-01-01 | AC76: 2019-12-31
R77: 21 | S77: =IF(ISBLANK(#REF!),"",#REF!) ->  | T77: <Select> | U77: kWh | Y77: 2020 | AB77: 2020-01-01 | AC77: 2020-12-31 | AG77: District Electricity (kWh) | AK77: Total | AL77: District Electricity (kWh) | AQ77: Total
R78: 22 | S78: =IF(ISBLANK(#REF!),"",#REF!) ->  | T78: <Select> | U78: kWh | AE78: =AE70 ->  | AG78: =IF($AG$69=$AG$77,AG70,0) ->  | AH78: =IF($AH$69=$AG$77,AH70,0) ->  | AI78: =IF($AI$69=$AG$77,AI70,0) -> 0 | AJ78: =IF($AJ$69=$AG$77,AJ70,0) -> 0 | AK78: =SUM(AG78:AJ78) ->  | AM78: =IF($AM$69=$AG$77,AM70,0) ->  | AN78: =IF($AN$69=$AG$77,AN70,0) ->  | AO78: =IF($AO$69=$AG$77,AO70,0) -> 0 | AP78: =IF($AP$69=$AG$77,AP70,0) -> 0 | AQ78: =SUM(AM78:AP78) -> 
R79: 23 | S79: =IF(ISBLANK(#REF!),"",#REF!) ->  | T79: <Select> | U79: kWh | AE79: =AE71 ->  | AG79: =IF($AG$69=$AG$77,AG71,0) ->  | AH79: =IF($AH$69=$AG$77,AH71,0) ->  | AI79: =IF($AI$69=$AG$77,AI71,0) -> 0 | AJ79: =IF($AJ$69=$AG$77,AJ71,0) -> 0 | AK79: =SUM(AG79:AJ79) ->  | AM79: =IF($AM$69=$AG$77,AM71,0) ->  | AN79: =IF($AN$69=$AG$77,AN71,0) ->  | AO79: =IF($AO$69=$AG$77,AO71,0) -> 0 | AP79: =IF($AP$69=$AG$77,AP71,0) -> 0 | AQ79: =SUM(AM79:AP79) -> 
R80: 24 | S80: =IF(ISBLANK(#REF!),"",#REF!) ->  | T80: <Select> | U80: kWh | AE80: =AE72 ->  | AG80: =IF($AG$69=$AG$77,AG72,0) ->  | AH80: =IF($AH$69=$AG$77,AH72,0) ->  | AI80: =IF($AI$69=$AG$77,AI72,0) -> 0 | AJ80: =IF($AJ$69=$AG$77,AJ72,0) -> 0 | AK80: =SUM(AG80:AJ80) ->  | AM80: =IF($AM$69=$AG$77,AM72,0) ->  | AN80: =IF($AN$69=$AG$77,AN72,0) ->  | AO80: =IF($AO$69=$AG$77,AO72,0) -> 0 | AP80: =IF($AP$69=$AG$77,AP72,0) -> 0 | AQ80: =SUM(AM80:AP80) -> 
R81: 25 | S81: =IF(ISBLANK(#REF!),"",#REF!) ->  | T81: <Select> | U81: kWh | AE81: =AE73 ->  | AG81: =IF($AG$69=$AG$77,AG73,0) ->  | AH81: =IF($AH$69=$AG$77,AH73,0) ->  | AI81: =IF($AI$69=$AG$77,AI73,0) -> 0 | AJ81: =IF($AJ$69=$AG$77,AJ73,0) -> 0 | AK81: =SUM(AG81:AJ81) ->  | AM81: =IF($AM$69=$AG$77,AM73,0) ->  | AN81: =IF($AN$69=$AG$77,AN73,0) ->  | AO81: =IF($AO$69=$AG$77,AO73,0) -> 0 | AP81: =IF($AP$69=$AG$77,AP73,0) -> 0 | AQ81: =SUM(AM81:AP81) -> 
R82: 26 | S82: =IF(ISBLANK(#REF!),"",#REF!) ->  | T82: <Select> | U82: kWh | AE82: =AE74 ->  | AG82: =IF($AG$69=$AG$77,AG74,0) ->  | AH82: =IF($AH$69=$AG$77,AH74,0) ->  | AI82: =IF($AI$69=$AG$77,AI74,0) -> 0 | AJ82: =IF($AJ$69=$AG$77,AJ74,0) -> 0 | AK82: =SUM(AG82:AJ82) ->  | AM82: =IF($AM$69=$AG$77,AM74,0) ->  | AN82: =IF($AN$69=$AG$77,AN74,0) ->  | AO82: =IF($AO$69=$AG$77,AO74,0) -> 0 | AP82: =IF($AP$69=$AG$77,AP74,0) -> 0 | AQ82: =SUM(AM82:AP82) -> 
R83: 27 | S83: =IF(ISBLANK(#REF!),"",#REF!) ->  | T83: <Select> | U83: kWh
R84: 28 | S84: =IF(ISBLANK(#REF!),"",#REF!) ->  | T84: <Select> | U84: kWh | Y84: Degree days lookup | AD84: Offsets
R85: 29 | T85: <Select> | U85: kWh | AD85: 1 | AE85: 2 | AF85: 3 | AG85: All
R86: 30 | S86: =IF(ISBLANK(#REF!),"",#REF!) ->  | T86: <Select> | U86: kWh | Z86: ='A - General Information'!#REF! ->  | AC86: Offsite Renewables | AD86: =IF(#REF!=AC86,#REF!,0) ->  | AE86: =IF(#REF!=AC86,#REF!,0) ->  | AF86: =IF(#REF!=AC86,#REF!,0) ->  | AG86: =SUM(AD86:AF86) -> 
X87: =YEAR(#REF!) ->  | Y87: =#REF! ->  | Z87: =HLOOKUP($Z$86,#REF!,2,FALSE) ->  | AC87: Green Tariff | AD87: =IF(#REF!=AC87,#REF!,0) ->  | AE87: =IF(#REF!=AC87,#REF!,0) ->  | AF87: =IF(#REF!=AC87,#REF!,0) ->  | AG87: =SUM(AD87:AF87) -> 
X88: =YEAR(#REF!) ->  | Y88: =#REF! ->  | Z88: =HLOOKUP($Z$86,#REF!,3,FALSE) ->  | AC88: Carbon Credits | AD88: =IF(#REF!=AC88,#REF!,0) ->  | AE88: =IF(#REF!=AC88,#REF!,0) ->  | AF88: =IF(#REF!=AC88,#REF!,0) ->  | AG88: =SUM(AD88:AF88) -> 
X89: =YEAR(#REF!) ->  | Y89: =#REF! ->  | Z89: =HLOOKUP($Z$86,#REF!,4,FALSE) -> 
X90: =YEAR(#REF!) ->  | Y90: =#REF! ->  | Z90: =HLOOKUP($Z$86,#REF!,5,FALSE) ->  | AC90: Offsite Renewables | AD90: =IF(#REF!=AC90,#REF!,"") ->  | AE90: =IF(#REF!=AC90,#REF!,"") ->  | AF90: =IF(#REF!=AC90,#REF!,"") ->  | AG90: =AD90 & AE90& AF90 -> 
R91: Renewables | X91: =YEAR(#REF!) ->  | Y91: =#REF! ->  | Z91: =HLOOKUP($Z$86,#REF!,6,FALSE) ->  | AC91: Green Tariff | AD91: =IF(#REF!=AC91,#REF!,"") ->  | AE91: =IF(#REF!=AC91,#REF!,"") ->  | AF91: =IF(#REF!=AC91,#REF!,"") ->  | AG91: =AD91 & AE91& AF91 -> 
R92: <Select> | Y92: =#REF! ->  | Z92: =HLOOKUP($Z$86,#REF!,7,FALSE) ->  | AC92: Carbon Credits | AD92: =IF(#REF!=AC92,#REF!,"") ->  | AE92: =IF(#REF!=AC92,#REF!,"") ->  | AF92: =IF(#REF!=AC92,#REF!,"") ->  | AG92: =AD92 & AE92& AF92 -> 
R93: Photovoltaics | S93: RES Electricity | Y93: =#REF! ->  | Z93: =HLOOKUP($Z$86,#REF!,8,FALSE) -> 
R94: Wind Turbine | S94: RES Electricity | Y94: =#REF! ->  | Z94: =HLOOKUP($Z$86,#REF!,9,FALSE) -> 
R95: Hydroelectric | S95: RES Electricity | Y95: =#REF! ->  | Z95: =HLOOKUP($Z$86,#REF!,10,FALSE) -> 
R96: Solar Thermal | S96: RES Thermal | Y96: =#REF! ->  | Z96: =HLOOKUP($Z$86,#REF!,11,FALSE) -> 
R97: Site-produced Biofuels | S97: RES Thermal | Y97: =#REF! ->  | Z97: =HLOOKUP($Z$86,#REF!,12,FALSE) -> 
R98: Other | Y98: =#REF! ->  | Z98: =HLOOKUP($Z$86,#REF!,13,FALSE) -> 
R103: Accredited offsets
R104: <Select> | T104: <Select> | U104: 1
R105: Offsite Renewables | T105: m2 | U105: 2 | X105: <Select> | Y105: <Select> | AA105: Elec start | AB105: ='A - General Information'!#REF! -> 
R106: Green Tariff | T106: ft2 | U106: 3 | X106: Administration | Y106: Head Office | AA106: Elec end | AB106: ='A - General Information'!#REF! -> 
R107: Carbon Credits | U107: 4 | X107: Financial Services | Y107: Local Office
R108: <Select> | U108: 5 | X108: Information Technology | Y108: Business Centre
R109: Yes | U109: 6 | X109: Other | Y109: Data Centre
R110: No | U110: 7 | Y110: Other
U111: 8
U112: 9
R113: <Select> | U113: 10
R114: ='A - General Information'!#REF! -> 
R115: =IF('A - General Information'!#REF!='A - General Information'!#REF!, "", 'A - General Information'!#REF!) -> 
R116: =IF('A - General Information'!#REF!='A - General Information'!#REF!, "", 'A - General Information'!#REF!) -> 
R117: =IF(I12="<Select>", "", I12) -> 0
R118: =IF(K12="<Select>", "", K12) -> 0

Sheet D - Separable Energy Uses
C1: ='Welcome Sheet'!E71 -> A | D1: ='Welcome Sheet'!F71 -> B | E1: ='Welcome Sheet'!H71 -> 0 | F1: ='Welcome Sheet'!I71 -> 0 | G1: ='Welcome Sheet'!J71 -> 0 | H1: ='Welcome Sheet'!K71 -> F | I1: ='Welcome Sheet'!G71 -> 0
D8: Input Sheet D: Separable energy uses: Use this sheet to detail exceptional energy uses to be excluded from the landlord's counterparty energy use and floor area
E11: Energy summary | L11: Floor area summary
E13: Energy Supply | F13: Energy for which landlord is counterparty (kWh) | G13: Deductions: Separables (Annual kWh) | H13: Landlord energy net of separables (Annual kWh) | L13: Description | O13: Area (m2)
A14: =E14 -> Not in Use | E14: =IF(Lookups!AE18="Scroll up","Not in Use", Lookups!AE18) -> Not in Use | F14: =IF(ISNA(VLOOKUP(E14,EnergyTable,'Energy calcs'!$E$14,FALSE)),0,VLOOKUP(E14,EnergyTable,'Energy calcs'!$E$14,FALSE)) -> 0 | G14: =AB111 -> 0 | H14: =IF(F14>=G14,F14-G14,"Error - negative value") -> 0 | L14: Building GIA (m2) | O14: =GIA -> 0
A15: Not in Use | E15: =IF(Lookups!AE19="Scroll up","Not in Use", Lookups!AE19) -> Not in Use | F15: =IF(ISNA(VLOOKUP(E15,EnergyTable,'Energy calcs'!$E$14,FALSE)),0,VLOOKUP(E15,EnergyTable,'Energy calcs'!$E$14,FALSE)) -> 0 | G15: =AB113 -> 0 | H15: 0 | L15: Building NLA (Total) (m2) | O15: =NLA -> 0
A16: Not in Use | E16: =IF(Lookups!AE20="Scroll up","Not in Use", Lookups!AE20) -> Not in Use | F16: =IF(ISNA(VLOOKUP(E16,EnergyTable,'Energy calcs'!$E$14,FALSE)),0,VLOOKUP(E16,EnergyTable,'Energy calcs'!$E$14,FALSE)) -> 0 | G16: =AB115 -> 0 | H16: 0 | L16: Deductions for separables (m2) | O16: =O15-O17 -> 0
A17: Not in Use | E17: =IF(Lookups!AE21="Scroll up","Not in Use", Lookups!AE21) -> Not in Use | F17: =IF(ISNA(VLOOKUP(E17,EnergyTable,'Energy calcs'!$E$14,FALSE)),0,VLOOKUP(E17,EnergyTable,'Energy calcs'!$E$14,FALSE)) -> 0 | G17: =AB117 -> 0 | H17: 0 | L17: NLA net of separables (m2) | O17: =NetNLA -> 0
A18: Not in Use | E18: =IF(Lookups!AE22="Scroll up","Not in Use", Lookups!AE22) -> Not in Use | F18: =IF(ISNA(VLOOKUP(E18,EnergyTable,'Energy calcs'!$E$14,FALSE)),0,VLOOKUP(E18,EnergyTable,'Energy calcs'!$E$14,FALSE)) -> 0 | G18: =AB119 -> 0 | H18: 0
A19: Not in Use | E19: =IF(Lookups!AE23="Scroll up","Not in Use", Lookups!AE23) -> Not in Use | F19: =IF(ISNA(VLOOKUP(E19,EnergyTable,'Energy calcs'!$E$14,FALSE)),0,VLOOKUP(E19,EnergyTable,'Energy calcs'!$E$14,FALSE)) -> 0 | G19: =AB121 -> 0 | H19: 0
A20: Not in Use | E20: =IF(Lookups!AE24="Scroll up","Not in Use", Lookups!AE24) -> Not in Use | F20: =IF(ISNA(VLOOKUP(E20,EnergyTable,'Energy calcs'!$E$14,FALSE)),0,VLOOKUP(E20,EnergyTable,'Energy calcs'!$E$14,FALSE)) -> 0 | G20: =AB122 -> 0 | H20: =IF(F20>=G20,F20-G20,"Error - negative value") -> 0
A21: Not in Use | E21: =IF(Lookups!AE25="Scroll up","Not in Use", Lookups!AE25) -> Not in Use | F21: =IF(ISNA(VLOOKUP(E21,EnergyTable,'Energy calcs'!$E$14,FALSE)),0,VLOOKUP(E21,EnergyTable,'Energy calcs'!$E$14,FALSE)) -> 0 | G21: 0 | H21: 0
E30: Separable energy use data table
E32: Separable ID | F32: Description | G32: NLA occupied by the separable (m2) | H32: Fuel | I32: Unit | J32: Period Start | K32: Period End | L32: Total Consumption | M32: Adjust consumption to 365 days? | N32: Source of Data | O32: Annual Usage (kWh) | P32: Do dates meet alignment standards? | Q32: Do dates meet LER quality standards? | R32: Data quality indicator | S32: User comments | T32: Estimated pro rata kWh
O33: =IF(ISERROR(IF(M33="Yes",L33*(365/(K33-J33)), L33)*HLOOKUP(I33,ConvTab,VLOOKUP(H33,ConvTabRow,2,FALSE),FALSE)),"",IF(M33="Yes",L33*(365/(K33-J33)), L33)*HLOOKUP(I33,ConvTab,VLOOKUP(H33,ConvTabRow,2,FALSE),FALSE)) ->  | P33: =IF(OR(J33="",K33=""),"Not applicable",IF((365-(K33-J33))>31,"No - data Period too short",IF((365-(K33-J33))<-31,"No-Data period too long",IF(ABS(J33-ElecStDat)>31,"No - Start date varies by >31 days",IF(ABS(K33-ElecEndDate)>31,"No - End date varies by >31 days","Yes"))))) -> Not applicable | Q33: =IF(OR(J33="",K33=""),"Not applicable",IF((365-(K33-J33))>7,"No - data Period too short",IF((365-(K33-J33))<-7,"No-Data period too long","Yes"))) -> Not applicable | R33: =IF(ISERROR(VLOOKUP(N33,QAFuelConsTable,2,FALSE)),"",VLOOKUP(N33,QAFuelConsTable,2,FALSE)) ->  | T33: =IF(M33="Yes",ABS(O33-L33*HLOOKUP(I33,ConvTab,VLOOKUP(H33,ConvTabRow,2,FALSE),FALSE)),0) -> 0
P34: Not applicable | Q34: =IF(OR(J34="",K34=""),"Not applicable",IF((365-(K34-J34))>7,"No - data Period too short",IF((365-(K34-J34))<-7,"No-Data period too long","Yes"))) -> Not applicable | T34: 0
P35: =IF(OR(J35="",K35=""),"Not applicable",IF((365-(K35-J35))>31,"No - data Period too short",IF((365-(K35-J35))<-31,"No-Data period too long",IF(ABS(J35-ElecStDat)>31,"No - Start date varies by >31 days",IF(ABS(K35-ElecEndDate)>31,"No - End date varies by >31 days","Yes"))))) -> Not applicable | Q35: Not applicable | T35: 0
O36: =IF(ISERROR(IF(M36="Yes",L36*(365/(K36-J36)), L36)*HLOOKUP(I36,ConvTab,VLOOKUP(H36,ConvTabRow,2,FALSE),FALSE)),"",IF(M36="Yes",L36*(365/(K36-J36)), L36)*HLOOKUP(I36,ConvTab,VLOOKUP(H36,ConvTabRow,2,FALSE),FALSE)) ->  | P36: Not applicable | Q36: Not applicable | T36: 0
P37: Not applicable | Q37: Not applicable | T37: 0
P38: Not applicable | Q38: Not applicable | T38: 0
P39: Not applicable | Q39: Not applicable | T39: 0
P40: Not applicable | Q40: Not applicable | T40: 0
P41: Not applicable | Q41: Not applicable | T41: 0
P42: Not applicable | Q42: Not applicable | T42: 0
E44: USER GUIDANCE: How to enter separable energy uses in the tool
E46: Separables relate to uses which can be excluded from the assessment. These uses are not within the scope of the Landlord Energy Rating. Uses are excluded either because they are exceptional
E47: (eg a telephone mast or regional server room) or because the use is open to the public (cafe or retail facilities, for instance). The table above is where this information is input into the tool.
E48: The reporting of a separable can result in either an amendment of rated floor area, an amendment in the rated consumption or both. The scenarios where this could arise are as follows:
E49: - Adjustment in both – A public access facility, such as a gym, where the gym is included in the NLA. In this instance the area and consumption should be excluded.
E50: - Adjustment in rated area – An exceptional use, which is located in tenant demises such as a regional server room. In this instance the energy consumption may already be removed by
E51: virtue of it being part of the passed-through energy supply to a tenant (using the “additions and subtractions” tab), the tool therefore only requires the net lettable area to be amended.
E52: - Adjustment in rated consumption – An exceptional use, which has no net lettable area footprint such as a telephone mast. In this instance the energy consumption should be removed
E53: but there should be no rated area adjustment.”
E54: A separable energy use may consume more than one type of energy (e.g. a trading floor may use gas for heating and electricity for small power)
E55: Each separable energy use is assigned an ID. This allows the tool to avoid double counting the floor area if more than one fuel is assigned to one separable energy use.
E56: An example is shown in the red bordered table below. In this case the café has a floor area of 200m2 and is served by gas and electricity. The tool will deduct 200m2 from the building's NLA, 10,000 kWh from the
E57: landlord counterparty electricity consumption and 110,000kWh from the landlord counterparty natural gas consumption to account for the catering. The tool will also deduct 1,000kWh of electricity from the landlord's services
E58: for the Mobile phone mast, but will not deduct any floor area for this.
E69: Feedback on this sheet
E71: Were the data entry fields clearly defined? | G71: <Select>
E72: Was the required data readily available? | G72: <Select>
E74: Please provide any further comments or suggestions in the space below. (300 characters max) | N74: =300-LEN(E75)&" characters left" -> 300 characters left
G89: Separable Energy Use 1 | I89: Separable Energy Use 2 | K89: Separable Energy Use 3
F90: User entered description | G90: Public café
F91: Separable energy type
F92: Energy type 1 | G92: Mains Electricity
F93: Energy consumed 1 (kWh) | G93: 1000
F94: Energy type 2 | G94: Natural Gas
F95: Energy consumed type 2 (kWh) | G95: 1000
F96: Energy type 3 | G96: Biomass
F97: Energy consumed type 3 (kWh)
F98: Floor area (if deducted from NLA, m2) | G98: 150
F99: Deduct from rated floor area? | G99: Yes | I99: No | K99: Yes
F100: Data source (floor area) | G100: From spec or legal | I100: <Select> | K100: <Select>
F101: QA status (floor area) | G101: =VLOOKUP(G100,QAFlATable,3,FALSE) ->  | I101: =VLOOKUP(I100,QAFlATable,3,FALSE) -> N/A | K101: =VLOOKUP(K100,QAFlATable,3,FALSE) -> N/A
F102: Data source (energy consumption) | G102: Metered for 350-380 days | I102: <Select> | K102: <Select>
F103: Source data quality | G103: =VLOOKUP(G102,QAFuelConsTable,2,FALSE) ->  | I103: =VLOOKUP(I102,QAFuelConsTable,2,FALSE) -> N/A | K103: =VLOOKUP(K102,QAFuelConsTable,2,FALSE) -> N/A
AA110: =$H$32 -> Fuel | AB110: =$O$32 -> Annual Usage (kWh)
AA111: =E14 -> Not in Use | AB111: =IF(ISERROR(DSUM(SepTable, AB110,AA110:AA111)),0,DSUM(SepTable, AB110,AA110:AA111)) -> 0
AA112: =$H$32 -> Fuel | AB112: =$O$32 -> Annual Usage (kWh)
AA113: =E15 -> Not in Use | AB113: =IF(ISERROR(DSUM(SepTable, AB112,AA112:AA113)),0,DSUM(SepTable, AB112,AA112:AA113)) -> 0
AA114: =$H$32 -> Fuel | AB114: =$O$32 -> Annual Usage (kWh)
AA115: =E16 -> Not in Use | AB115: =IF(ISERROR(DSUM(SepTable, AB114,AA114:AA115)),0,DSUM(SepTable, AB114,AA114:AA115)) -> 0
AA116: =$H$32 -> Fuel | AB116: =$O$32 -> Annual Usage (kWh)
AA117: =E17 -> Not in Use | AB117: =IF(ISERROR(DSUM(SepTable, AB116,AA116:AA117)),0,DSUM(SepTable, AB116,AA116:AA117)) -> 0
AA118: =$H$32 -> Fuel | AB118: =$O$32 -> Annual Usage (kWh)
AA119: =E18 -> Not in Use | AB119: =IF(ISERROR(DSUM(SepTable, AB118,AA118:AA119)),0,DSUM(SepTable, AB118,AA118:AA119)) -> 0
AA120: =$H$32 -> Fuel | AB120: =$O$32 -> Annual Usage (kWh)
AA121: =E19 -> Not in Use | AB121: =IF(ISERROR(DSUM(SepTable, AB120,AA120:AA121)),0,DSUM(SepTable, AB120,AA120:AA121)) -> 0

Sheet E - Additions and subtractions
C1: ='Welcome Sheet'!E71 -> A | D1: ='Welcome Sheet'!F71 -> B | E1: ='Welcome Sheet'!H71 -> 0 | F1: ='Welcome Sheet'!I71 -> 0 | G1: ='Welcome Sheet'!J71 -> 0 | H1: ='Welcome Sheet'!K71 -> F | I1: ='Welcome Sheet'!G71 -> 0
C7: Input Sheet E: Adjustments to energy supplies for which landlord is counterparty, to reflect LER scope Use this sheet to enter adjustments (subtractions and additions) to reflect the full amount of energy used within the scope of the LER.
D10: Building Energy Summary
E11: Landlord energy (Energy to which landlord is counterparty) | H11: Tenant energy (Energy to which the tenant is counterparty)
D12: Energy Supply | E12: Landlord energy net of separables (kWh/yr.) | F12: Landlord energy passed through to tenants (kWh/yr.) | G12: Tenant supplement (kWh/yr.) | H12: Tenant's energy supplies (kWh/yr.) | J12: Additions to LER scope (tenant direct supplement, kWh/yr.) | L12: Total adjustment to landlord energy (kWh/yr.) | N12: Estimated additions (assessor or default, kWhe) | P12: Energy consumption used for calculation of LER (kWh/yr.)
A13: =D13 -> Not in Use | D13: =IF(Lookups!AE18="Scroll up","Not in Use", Lookups!AE18) -> Not in Use | E13: =VLOOKUP(D13,'D - Separable Energy Uses'!$E$14:$H$19,4,FALSE) -> 0 | F13: =AE123 -> 0 | G13: =AJ123+AO123 -> 0 | H13: =IF(ISNA(VLOOKUP('D - Separable Energy Uses'!E14,TEnTable,'Energy calcs'!$E$14,FALSE)),0,VLOOKUP('D - Separable Energy Uses'!E14,TEnTable,'Energy calcs'!$E$14,FALSE)) -> 0 | J13: =AS123 -> 0 | L13: =-F13+G13+J13 -> 0 | N13: =SUM(T54:T73) -> 0 | P13: =IF(E13-F13+G13+J13<0,"Error - negative value",E13-F13+G13+J13)+N13 -> 0
A14: Not in Use | D14: =IF(Lookups!AE19="Scroll up","Not in Use", Lookups!AE19) -> Not in Use | E14: =VLOOKUP(D14,'D - Separable Energy Uses'!$E$14:$H$19,4,FALSE) -> 0 | F14: =AE124 -> 0 | G14: 0 | H14: =IF(ISNA(VLOOKUP('D - Separable Energy Uses'!E15,TEnTable,'Energy calcs'!$E$14,FALSE)),0,VLOOKUP('D - Separable Energy Uses'!E15,TEnTable,'Energy calcs'!$E$14,FALSE)) -> 0 | J14: 0 | L14: 0 | N14: 0 | P14: =IF(E14-F14+G14+J14<0,"Error - negative value",E14-F14+G14+J14) -> 0
A15: Not in Use | D15: =IF(Lookups!AE20="Scroll up","Not in Use", Lookups!AE20) -> Not in Use | E15: =VLOOKUP(D15,'D - Separable Energy Uses'!$E$14:$H$19,4,FALSE) -> 0 | F15: 0 | G15: 0 | H15: =IF(ISNA(VLOOKUP('D - Separable Energy Uses'!E16,TEnTable,'Energy calcs'!$E$14,FALSE)),0,VLOOKUP('D - Separable Energy Uses'!E16,TEnTable,'Energy calcs'!$E$14,FALSE)) -> 0 | J15: 0 | L15: 0 | N15: =-H15+I15+L15 -> 0 | P15: 0
A16: Not in Use | D16: =IF(Lookups!AE21="Scroll up","Not in Use", Lookups!AE21) -> Not in Use | E16: =VLOOKUP(D16,'D - Separable Energy Uses'!$E$14:$H$19,4,FALSE) -> 0 | F16: 0 | G16: 0 | H16: =IF(ISNA(VLOOKUP('D - Separable Energy Uses'!E17,TEnTable,'Energy calcs'!$E$14,FALSE)),0,VLOOKUP('D - Separable Energy Uses'!E17,TEnTable,'Energy calcs'!$E$14,FALSE)) -> 0 | J16: 0 | L16: 0 | N16: 0 | P16: 0
A17: Not in Use | D17: =IF(Lookups!AE22="Scroll up","Not in Use", Lookups!AE22) -> Not in Use | E17: =VLOOKUP(D17,'D - Separable Energy Uses'!$E$14:$H$19,4,FALSE) -> 0 | F17: 0 | G17: 0 | H17: =IF(ISNA(VLOOKUP('D - Separable Energy Uses'!E18,TEnTable,'Energy calcs'!$E$14,FALSE)),0,VLOOKUP('D - Separable Energy Uses'!E18,TEnTable,'Energy calcs'!$E$14,FALSE)) -> 0 | J17: 0 | L17: 0 | N17: 0 | P17: 0
A18: Not in Use | D18: =IF(Lookups!AE23="Scroll up","Not in Use", Lookups!AE23) -> Not in Use | E18: =VLOOKUP(D18,'D - Separable Energy Uses'!$E$14:$H$19,4,FALSE) -> 0 | F18: 0 | G18: 0 | H18: =IF(ISNA(VLOOKUP('D - Separable Energy Uses'!E19,TEnTable,'Energy calcs'!$E$14,FALSE)),0,VLOOKUP('D - Separable Energy Uses'!E19,TEnTable,'Energy calcs'!$E$14,FALSE)) -> 0 | J18: 0 | L18: 0 | N18: 0 | P18: 0
A19: Not in Use | D19: =IF(Lookups!AE24="Scroll up","Not in Use", Lookups!AE24) -> Not in Use | E19: =VLOOKUP(D19,'D - Separable Energy Uses'!$E$14:$H$19,4,FALSE) -> 0 | F19: 0 | G19: 0 | H19: =IF(ISNA(VLOOKUP('D - Separable Energy Uses'!E22,TEnTable,'Energy calcs'!$E$14,FALSE)),0,VLOOKUP('D - Separable Energy Uses'!E22,TEnTable,'Energy calcs'!$E$14,FALSE)) -> 0 | J19: 0 | L19: 0 | N19: 0 | P19: 0
A20: Not in Use | D20: =IF(Lookups!AE25="Scroll up","Not in Use", Lookups!AE25) -> Not in Use | E20: =VLOOKUP(D20,'D - Separable Energy Uses'!$E$14:$H$19,4,FALSE) -> 0 | F20: 0 | G20: 0 | H20: =IF(ISNA(VLOOKUP('D - Separable Energy Uses'!E23,TEnTable,'Energy calcs'!$E$14,FALSE)),0,VLOOKUP('D - Separable Energy Uses'!E23,TEnTable,'Energy calcs'!$E$14,FALSE)) -> 0 | J20: 0 | L20: 0 | N20: 0 | P20: 0
D27: Table 1: Subtractions - landlord sub-metering of energy passed through to tenants (NB Additions should be entered in separate table below this one)
D28: Enter ALL energy passed through to tenants (e.g. sub-metered tenant usage of electricity) - see Welcome sheet for definition of passed-through
D29: Sub meter name or description of energy use | E29: Energy type | F29: Fuel | G29: Unit | H29: Floor area affected (m2) | I29: Period Start | J29: Period End | K29: Total Consumption | L29: Normalise to 365 days? | M29: Source of Data | N29: Annual usage subtracted from LER (kWh) | O29: Do dates meet alignment standards? | P29: Do dates meet LER quality standards? | Q29: User comments | X29: Source data quality | AA29: estimated pro rata kWh
E30: Landlord - passed through | N30: =IF(ISERROR(IF(L30="Yes",K30*(365/(J30-I30)), K30)*HLOOKUP(G30,ConvTab,VLOOKUP(F30,ConvTabRow,2,FALSE),FALSE)),"",IF(L30="Yes",K30*(365/(J30-I30)), K30)*HLOOKUP(G30,ConvTab,VLOOKUP(F30,ConvTabRow,2,FALSE),FALSE)) ->  | O30: =IF(OR(I30="",J30=""),"Not applicable",IF((365-(J30-I30))>31,"No - data Period too short",IF((365-(J30-I30))<-31,"No-Data period too long",IF(ABS(I30-ElecStDat)>31,"No - Start date varies by >31 days",IF(ABS(J30-ElecEndDate)>31,"No - End date varies by >31 days","Yes"))))) -> Not applicable | P30: =IF(OR(I30="",J30=""),"Not applicable",IF((365-(J30-I30))>7,"No - data Period too short",IF((365-(J30-I30))<-7,"No-Data period too long","Yes"))) -> Not applicable | X30: =IF(ISERROR(VLOOKUP(M30,QAFuelConsTable,2,FALSE)),"",VLOOKUP(M30,QAFuelConsTable,2,FALSE)) ->  | AA30: =IF(L30="Yes",ABS(N30-K30*HLOOKUP(G30,ConvTab,VLOOKUP(F30,ConvTabRow,2,FALSE),FALSE)),0) -> 0
E31: Landlord - passed through | O31: Not applicable | P31: =IF(OR(I31="",J31=""),"Not applicable",IF((365-(J31-I31))>7,"No - data Period too short",IF((365-(J31-I31))<-7,"No-Data period too long","Yes"))) -> Not applicable | AA31: 0
E32: Landlord - passed through | O32: Not applicable | P32: Not applicable | AA32: 0
E33: Landlord - passed through | O33: Not applicable | P33: Not applicable | AA33: 0
E34: Landlord - passed through | O34: Not applicable | P34: Not applicable | AA34: 0
E35: Landlord - passed through | O35: Not applicable | P35: Not applicable | AA35: 0
E36: Landlord - passed through | O36: Not applicable | P36: Not applicable | AA36: 0
E37: Landlord - passed through | O37: Not applicable | P37: Not applicable | AA37: 0
E38: Landlord - passed through | O38: Not applicable | P38: Not applicable | AA38: 0
E39: Landlord - passed through | O39: Not applicable | P39: Not applicable | AA39: 0
E40: Landlord - passed through | O40: Not applicable | P40: Not applicable | AA40: 0
E41: Landlord - passed through | O41: Not applicable | P41: Not applicable | AA41: 0
E42: Landlord - passed through | O42: Not applicable | P42: Not applicable | AA42: 0
E43: Landlord - passed through | O43: Not applicable | P43: Not applicable | AA43: 0
E44: Landlord - passed through | O44: Not applicable | P44: Not applicable | AA44: 0
E45: Landlord - passed through | O45: Not applicable | P45: Not applicable | AA45: 0
E46: Landlord - passed through | O46: Not applicable | P46: Not applicable | AA46: 0
E47: Landlord - passed through | O47: Not applicable | P47: Not applicable | AA47: 0
E48: Landlord - passed through | O48: Not applicable | P48: Not applicable | AA48: 0
E49: Landlord - passed through | O49: Not applicable | P49: Not applicable | AA49: 0
D51: Table 2: Additions - energy purchased by tenant (from landlord or directly from utility) which falls within LER scope (i.e. tenant HVAC energy use)
D52: Enter any tenant supplements i.e. energy purchased by tenant from landlord or directly and used for services in LER scope
D53: Sub meter name or description of energy use | E53: Energy type | F53: What is the energy used for? | G53: Fuel | H53: Floor area affected (m2) | I53: Unit | J53: Period Start | K53: Period End | L53: Total Consumption | M53: Adjust consumption to 365 days? | N53: Source of Data | O53: Default value, metered, or Professional estimate? | P53: Professional estimate (kWhe/m2) | Q53: Default value (kWhe/m2) | R53: Metered value (kWhe/m2) | S53: Metered annual usage added to LER (kWh) | T53: Estimated annual usage added to LER (kWhe) | U53: Do dates meet alignment standards? | V53: Do dates meet LER quality standards? | W53: User comments | X53: Source data quality | AA53: Estimated pro rata kWh
N54: =IF(ISBLANK(O54),"",IF(O54="Default","Estimated",IF(O54="Professional estimate","Prof. Est","Actual"))) ->  | Q54: =IF(ISERROR(VLOOKUP(F54,Lookups!$AU$98:$AV$113,2,FALSE)*VLOOKUP(F54,Lookups!$AU$98:$AW$113,3,FALSE)),"",VLOOKUP(F54,Lookups!$AU$98:$AV$113,2,FALSE)*VLOOKUP(F54,Lookups!$AU$98:$AW$113,3,FALSE)) ->  | R54: =IF(ISERROR((S54/H54)*VLOOKUP(G54,Lookups!$J$97:$K$113,2,FALSE)),"",(S54/H54)*VLOOKUP(G54,Lookups!$J$97:$K$113,2,FALSE)) ->  | S54: =IF(NOT(N54="Actual"),"",IF(ISBLANK(O54),"",IF(ISERROR(IF(M54="Yes",L54*(365/(K54-J54)),L54)*HLOOKUP(I54,ConvTab,VLOOKUP(G54,ConvTabRow,2,FALSE),FALSE)),"",IF(M54="Yes",L54*(365/(K54-J54)),L54)*HLOOKUP(I54,ConvTab,VLOOKUP(G54,ConvTabRow,2,FALSE),FALSE)))) ->  | T54: =IF(ISERROR(IF(N54="Actual","",IF(N54="Prof. Est",P54*H54,Q54*H54))),"",IF(N54="Actual","",IF(N54="Prof. Est",P54*H54,Q54*H54))) ->  | U54: =IF(OR(J54="",K54=""),"Not applicable",IF((365-(K54-J54))>31,"No - data Period too short",IF((365-(K54-J54))<-31,"No-Data period too long",IF(ABS(J54-ElecStDat)>31,"No - Start date varies by >31 days",IF(ABS(K54-ElecEndDate)>31,"No - End date varies by >31 days","Yes"))))) -> Not applicable | V54: =IF(OR(J54="",K54=""),"Not applicable",IF((365-(K54-J54))>7,"No - data Period too short",IF((365-(K54-J54))<-7,"No-Data period too long","Yes"))) -> Not applicable | X54: =IF(ISERROR(VLOOKUP(N54,QAFuelConsTable,2,FALSE)),"",VLOOKUP(N54,QAFuelConsTable,2,FALSE)) ->  | AA54: =IF(M54="Yes",ABS(S54-L54*HLOOKUP(I54,ConvTab,VLOOKUP(G54,ConvTabRow,2,FALSE),FALSE)),0) -> 0
N55: =IF(ISBLANK(O55),"",IF(O55="Default","Estimated",IF(O55="Professional estimate","Prof. Est","Actual"))) ->  | Q55: =IF(ISERROR(VLOOKUP(F55,Lookups!$AU$98:$AV$113,2,FALSE)*VLOOKUP(F55,Lookups!$AU$98:$AW$113,3,FALSE)),"",VLOOKUP(F55,Lookups!$AU$98:$AV$113,2,FALSE)*VLOOKUP(F55,Lookups!$AU$98:$AW$113,3,FALSE)) ->  | R55: =IF(ISERROR((S55/H55)*VLOOKUP(G55,Lookups!$J$97:$K$113,2,FALSE)),"",(S55/H55)*VLOOKUP(G55,Lookups!$J$97:$K$113,2,FALSE)) ->  | U55: Not applicable | V55: =IF(OR(J55="",K55=""),"Not applicable",IF((365-(K55-J55))>7,"No - data Period too short",IF((365-(K55-J55))<-7,"No-Data period too long","Yes"))) -> Not applicable | AA55: 0
Q56: =IF(ISERROR(VLOOKUP(F56,Lookups!$AU$98:$AV$113,2,FALSE)*VLOOKUP(F56,Lookups!$AU$98:$AW$113,3,FALSE)),"",VLOOKUP(F56,Lookups!$AU$98:$AV$113,2,FALSE)*VLOOKUP(F56,Lookups!$AU$98:$AW$113,3,FALSE)) ->  | R56: =IF(ISERROR((S56/H56)*VLOOKUP(G56,Lookups!$J$97:$K$113,2,FALSE)),"",(S56/H56)*VLOOKUP(G56,Lookups!$J$97:$K$113,2,FALSE)) ->  | U56: Not applicable | V56: Not applicable | AA56: 0
Q57: =IF(ISERROR(VLOOKUP(F57,Lookups!$AU$98:$AV$113,2,FALSE)*VLOOKUP(F57,Lookups!$AU$98:$AW$113,3,FALSE)),"",VLOOKUP(F57,Lookups!$AU$98:$AV$113,2,FALSE)*VLOOKUP(F57,Lookups!$AU$98:$AW$113,3,FALSE)) ->  | R57: =IF(ISERROR((S57/H57)*VLOOKUP(G57,Lookups!$J$97:$K$113,2,FALSE)),"",(S57/H57)*VLOOKUP(G57,Lookups!$J$97:$K$113,2,FALSE)) ->  | U57: Not applicable | V57: Not applicable | AA57: 0
Q58: =IF(ISERROR(VLOOKUP(F58,Lookups!$AU$98:$AV$113,2,FALSE)*VLOOKUP(F58,Lookups!$AU$98:$AW$113,3,FALSE)),"",VLOOKUP(F58,Lookups!$AU$98:$AV$113,2,FALSE)*VLOOKUP(F58,Lookups!$AU$98:$AW$113,3,FALSE)) ->  | R58: =IF(ISERROR((S58/H58)*VLOOKUP(G58,Lookups!$J$97:$K$113,2,FALSE)),"",(S58/H58)*VLOOKUP(G58,Lookups!$J$97:$K$113,2,FALSE)) ->  | U58: Not applicable | V58: Not applicable | AA58: 0
Q59: =IF(ISERROR(VLOOKUP(F59,Lookups!$AU$98:$AV$113,2,FALSE)*VLOOKUP(F59,Lookups!$AU$98:$AW$113,3,FALSE)),"",VLOOKUP(F59,Lookups!$AU$98:$AV$113,2,FALSE)*VLOOKUP(F59,Lookups!$AU$98:$AW$113,3,FALSE)) ->  | R59: =IF(ISERROR((S59/H59)*VLOOKUP(G59,Lookups!$J$97:$K$113,2,FALSE)),"",(S59/H59)*VLOOKUP(G59,Lookups!$J$97:$K$113,2,FALSE)) ->  | U59: Not applicable | V59: Not applicable | AA59: 0
Q60: =IF(ISERROR(VLOOKUP(F60,Lookups!$AU$98:$AV$113,2,FALSE)*VLOOKUP(F60,Lookups!$AU$98:$AW$113,3,FALSE)),"",VLOOKUP(F60,Lookups!$AU$98:$AV$113,2,FALSE)*VLOOKUP(F60,Lookups!$AU$98:$AW$113,3,FALSE)) ->  | R60: =IF(ISERROR((S60/H60)*VLOOKUP(G60,Lookups!$J$97:$K$113,2,FALSE)),"",(S60/H60)*VLOOKUP(G60,Lookups!$J$97:$K$113,2,FALSE)) ->  | U60: Not applicable | V60: Not applicable | AA60: 0
Q61: =IF(ISERROR(VLOOKUP(F61,Lookups!$AU$98:$AV$113,2,FALSE)*VLOOKUP(F61,Lookups!$AU$98:$AW$113,3,FALSE)),"",VLOOKUP(F61,Lookups!$AU$98:$AV$113,2,FALSE)*VLOOKUP(F61,Lookups!$AU$98:$AW$113,3,FALSE)) ->  | R61: =IF(ISERROR((S61/H61)*VLOOKUP(G61,Lookups!$J$97:$K$113,2,FALSE)),"",(S61/H61)*VLOOKUP(G61,Lookups!$J$97:$K$113,2,FALSE)) ->  | U61: Not applicable | V61: Not applicable | AA61: 0
Q62: =IF(ISERROR(VLOOKUP(F62,Lookups!$AU$98:$AV$113,2,FALSE)*VLOOKUP(F62,Lookups!$AU$98:$AW$113,3,FALSE)),"",VLOOKUP(F62,Lookups!$AU$98:$AV$113,2,FALSE)*VLOOKUP(F62,Lookups!$AU$98:$AW$113,3,FALSE)) ->  | R62: =IF(ISERROR((S62/H62)*VLOOKUP(G62,Lookups!$J$97:$K$113,2,FALSE)),"",(S62/H62)*VLOOKUP(G62,Lookups!$J$97:$K$113,2,FALSE)) ->  | U62: Not applicable | V62: Not applicable | AA62: 0
Q63: =IF(ISERROR(VLOOKUP(F63,Lookups!$AU$98:$AV$113,2,FALSE)*VLOOKUP(F63,Lookups!$AU$98:$AW$113,3,FALSE)),"",VLOOKUP(F63,Lookups!$AU$98:$AV$113,2,FALSE)*VLOOKUP(F63,Lookups!$AU$98:$AW$113,3,FALSE)) ->  | R63: =IF(ISERROR((S63/H63)*VLOOKUP(G63,Lookups!$J$97:$K$113,2,FALSE)),"",(S63/H63)*VLOOKUP(G63,Lookups!$J$97:$K$113,2,FALSE)) ->  | U63: Not applicable | V63: Not applicable | AA63: 0
Q64: =IF(ISERROR(VLOOKUP(F64,Lookups!$AU$98:$AV$113,2,FALSE)*VLOOKUP(F64,Lookups!$AU$98:$AW$113,3,FALSE)),"",VLOOKUP(F64,Lookups!$AU$98:$AV$113,2,FALSE)*VLOOKUP(F64,Lookups!$AU$98:$AW$113,3,FALSE)) ->  | R64: =IF(ISERROR((S64/H64)*VLOOKUP(G64,Lookups!$J$97:$K$113,2,FALSE)),"",(S64/H64)*VLOOKUP(G64,Lookups!$J$97:$K$113,2,FALSE)) ->  | U64: Not applicable | V64: Not applicable | AA64: 0
Q65: =IF(ISERROR(VLOOKUP(F65,Lookups!$AU$98:$AV$113,2,FALSE)*VLOOKUP(F65,Lookups!$AU$98:$AW$113,3,FALSE)),"",VLOOKUP(F65,Lookups!$AU$98:$AV$113,2,FALSE)*VLOOKUP(F65,Lookups!$AU$98:$AW$113,3,FALSE)) ->  | R65: =IF(ISERROR((S65/H65)*VLOOKUP(G65,Lookups!$J$97:$K$113,2,FALSE)),"",(S65/H65)*VLOOKUP(G65,Lookups!$J$97:$K$113,2,FALSE)) ->  | U65: Not applicable | V65: Not applicable | AA65: 0
Q66: =IF(ISERROR(VLOOKUP(F66,Lookups!$AU$98:$AV$113,2,FALSE)*VLOOKUP(F66,Lookups!$AU$98:$AW$113,3,FALSE)),"",VLOOKUP(F66,Lookups!$AU$98:$AV$113,2,FALSE)*VLOOKUP(F66,Lookups!$AU$98:$AW$113,3,FALSE)) ->  | R66: =IF(ISERROR((S66/H66)*VLOOKUP(G66,Lookups!$J$97:$K$113,2,FALSE)),"",(S66/H66)*VLOOKUP(G66,Lookups!$J$97:$K$113,2,FALSE)) ->  | U66: Not applicable | V66: Not applicable | AA66: 0
Q67: =IF(ISERROR(VLOOKUP(F67,Lookups!$AU$98:$AV$113,2,FALSE)*VLOOKUP(F67,Lookups!$AU$98:$AW$113,3,FALSE)),"",VLOOKUP(F67,Lookups!$AU$98:$AV$113,2,FALSE)*VLOOKUP(F67,Lookups!$AU$98:$AW$113,3,FALSE)) ->  | R67: =IF(ISERROR((S67/H67)*VLOOKUP(G67,Lookups!$J$97:$K$113,2,FALSE)),"",(S67/H67)*VLOOKUP(G67,Lookups!$J$97:$K$113,2,FALSE)) ->  | U67: Not applicable | V67: Not applicable | AA67: 0
Q68: =IF(ISERROR(VLOOKUP(F68,Lookups!$AU$98:$AV$113,2,FALSE)*VLOOKUP(F68,Lookups!$AU$98:$AW$113,3,FALSE)),"",VLOOKUP(F68,Lookups!$AU$98:$AV$113,2,FALSE)*VLOOKUP(F68,Lookups!$AU$98:$AW$113,3,FALSE)) ->  | R68: =IF(ISERROR((S68/H68)*VLOOKUP(G68,Lookups!$J$97:$K$113,2,FALSE)),"",(S68/H68)*VLOOKUP(G68,Lookups!$J$97:$K$113,2,FALSE)) ->  | U68: Not applicable | V68: Not applicable | AA68: 0
Q69: =IF(ISERROR(VLOOKUP(F69,Lookups!$AU$98:$AV$113,2,FALSE)*VLOOKUP(F69,Lookups!$AU$98:$AW$113,3,FALSE)),"",VLOOKUP(F69,Lookups!$AU$98:$AV$113,2,FALSE)*VLOOKUP(F69,Lookups!$AU$98:$AW$113,3,FALSE)) ->  | R69: =IF(ISERROR((S69/H69)*VLOOKUP(G69,Lookups!$J$97:$K$113,2,FALSE)),"",(S69/H69)*VLOOKUP(G69,Lookups!$J$97:$K$113,2,FALSE)) ->  | U69: Not applicable | V69: Not applicable | AA69: 0
Q70: =IF(ISERROR(VLOOKUP(F70,Lookups!$AU$98:$AV$113,2,FALSE)*VLOOKUP(F70,Lookups!$AU$98:$AW$113,3,FALSE)),"",VLOOKUP(F70,Lookups!$AU$98:$AV$113,2,FALSE)*VLOOKUP(F70,Lookups!$AU$98:$AW$113,3,FALSE)) ->  | R70: =IF(ISERROR((S70/H70)*VLOOKUP(G70,Lookups!$J$97:$K$113,2,FALSE)),"",(S70/H70)*VLOOKUP(G70,Lookups!$J$97:$K$113,2,FALSE)) ->  | U70: Not applicable | V70: Not applicable | AA70: 0
Q71: =IF(ISERROR(VLOOKUP(F71,Lookups!$AU$98:$AV$113,2,FALSE)*VLOOKUP(F71,Lookups!$AU$98:$AW$113,3,FALSE)),"",VLOOKUP(F71,Lookups!$AU$98:$AV$113,2,FALSE)*VLOOKUP(F71,Lookups!$AU$98:$AW$113,3,FALSE)) ->  | R71: =IF(ISERROR((S71/H71)*VLOOKUP(G71,Lookups!$J$97:$K$113,2,FALSE)),"",(S71/H71)*VLOOKUP(G71,Lookups!$J$97:$K$113,2,FALSE)) ->  | U71: Not applicable | V71: Not applicable | AA71: 0
Q72: =IF(ISERROR(VLOOKUP(F72,Lookups!$AU$98:$AV$113,2,FALSE)*VLOOKUP(F72,Lookups!$AU$98:$AW$113,3,FALSE)),"",VLOOKUP(F72,Lookups!$AU$98:$AV$113,2,FALSE)*VLOOKUP(F72,Lookups!$AU$98:$AW$113,3,FALSE)) ->  | R72: =IF(ISERROR((S72/H72)*VLOOKUP(G72,Lookups!$J$97:$K$113,2,FALSE)),"",(S72/H72)*VLOOKUP(G72,Lookups!$J$97:$K$113,2,FALSE)) ->  | U72: Not applicable | V72: Not applicable | AA72: 0
N73: =IF(ISBLANK(O73),"",IF(O73="Default","Estimated",IF(O73="Professional estimate","Prof. Est","Actual"))) ->  | Q73: =IF(ISERROR(VLOOKUP(F73,Lookups!$AU$98:$AV$113,2,FALSE)*VLOOKUP(F73,Lookups!$AU$98:$AW$113,3,FALSE)),"",VLOOKUP(F73,Lookups!$AU$98:$AV$113,2,FALSE)*VLOOKUP(F73,Lookups!$AU$98:$AW$113,3,FALSE)) ->  | R73: =IF(ISERROR((S73/H73)*VLOOKUP(G73,Lookups!$J$97:$K$113,2,FALSE)),"",(S73/H73)*VLOOKUP(G73,Lookups!$J$97:$K$113,2,FALSE)) ->  | U73: Not applicable | V73: Not applicable | AA73: 0
D75: USER GUIDANCE: Additions and Subtractions:
D76: The energy purchased by the landlord may not mirror the landlord energy rating scope (see definition on Welcome Page). Adjustments are therefore required to add and subtract from purchased
D77: energy. This ensures landlords are not penalised where they supply energy to tenants for their own use, such as small power and lighting in tenant demises (a subtraction). It also allows the
D78: landlord energy rating to account for those buildings where tenants locally supplement the HVAC systems (an addition). The table above is where this information is input into the tool. Where
D79: the same addition or subtraction applies to multiple tenants these values can be aggregated to a single line entry.
D86: Feedback on this sheet
D88: Were the data entry fields clearly defined? | F88: <Select>
D89: Was the required data readily available? | F89: <Select>
D91: Please provide any further comments or suggestions in the space below. (300 characters max) | L91: =300-LEN(D92)&" characters left" -> 300 characters left
AC122: Total landlord sub-meters | AG122: Landlord - passed through additions | AP122: Tenant utility additions | AW122: Estimated totals kWhe
AC123: =$G$53 -> Fuel | AD123: =N29 -> Annual usage subtracted from LER (kWh) | AE123: =AD124 -> 0 | AG123: =$E$53 -> Energy type | AH123: =$G$53 -> Fuel | AI123: =S53 -> Metered annual usage added to LER (kWh) | AJ123: =AI124 -> 0 | AP123: =$E$53 -> Energy type | AQ123: =$G$53 -> Fuel | AR123: =AI123 -> Metered annual usage added to LER (kWh) | AS123: =AR124 -> 0 | AW123: Professional estimate | AX123: =SUMIF(N54:N73,"=Prof. Est", T54:T73) -> 0
AC124: =Lookups!$AE$18 -> Scroll up | AD124: =IF(ISERROR(DSUM(SubtEnergyTable, AC123,AC123:AC124)),0,DSUM(SubtEnergyTable, AD123,AC123:AC124)) -> 0 | AE124: =AD126 -> 0 | AG124: =Lookups!$AU$89 -> Landlord - passed through | AH124: =Lookups!$AE$18 -> Scroll up | AI124: =IF(ISERROR(DSUM(AddEnergyTable, AI123,AG123:AH124)),0,DSUM(AddEnergyTable, AI123,AG123:AH124)) -> 0 | AJ124: =AI126 -> 0 | AP124: =Lookups!$AU$90 -> Tenant - HVAC only | AQ124: =Lookups!$AE$18 -> Scroll up | AR124: =IF(ISERROR(DSUM(AddEnergyTable, AR123,AP123:AQ125)),0,DSUM(AddEnergyTable, AR123,AP123:AQ125)) -> 0 | AS124: =AR127 -> 0 | AW124: Default estimate | AX124: =SUMIF(N54:N73,"=Estimated", T54:T73) -> 0
AC125: =$G$53 -> Fuel | AD125: =$AD$123 -> Annual usage subtracted from LER (kWh) | AE125: =AD128 -> 0 | AG125: =$E$53 -> Energy type | AH125: =$G$53 -> Fuel | AI125: =AI123 -> Metered annual usage added to LER (kWh) | AJ125: =AI128 -> 0 | AP125: =Lookups!$AU$91 -> Tenant - mixed | AQ125: =AQ124 -> Scroll up | AS125: =AR130 -> 0
AC126: =Lookups!$AE$19 -> Scroll up | AD126: =IF(ISERROR(DSUM(SubtEnergyTable, AC125,AC125:AC126)),0,DSUM(SubtEnergyTable, AD125,AC125:AC126)) -> 0 | AE126: =AD130 -> 0 | AG126: =Lookups!$AU$89 -> Landlord - passed through | AH126: =Lookups!$AE$19 -> Scroll up | AI126: =IF(ISERROR(DSUM(AddEnergyTable, AI125,AG125:AH126)),0,DSUM(AddEnergyTable, AI125,AG125:AH126)) -> 0 | AJ126: =AI130 -> 0 | AP126: =$E$53 -> Energy type | AQ126: =$G$53 -> Fuel | AR126: =AR123 -> Metered annual usage added to LER (kWh) | AS126: =AR133 -> 0
AC127: =$G$53 -> Fuel | AD127: =$AD$123 -> Annual usage subtracted from LER (kWh) | AE127: =AD132 -> 0 | AG127: =$E$53 -> Energy type | AH127: =$G$53 -> Fuel | AI127: =AI125 -> Metered annual usage added to LER (kWh) | AJ127: =AI132 -> 0 | AP127: =Lookups!$AU$90 -> Tenant - HVAC only | AQ127: =Lookups!$AE$19 -> Scroll up | AR127: =IF(ISERROR(DSUM(AddEnergyTable, AR126,AP126:AQ128)),0,DSUM(AddEnergyTable, AR126,AP126:AQ128)) -> 0 | AS127: =AR136 -> 0
AC128: =Lookups!$AE$20 -> Scroll up | AD128: =IF(ISERROR(DSUM(SubtEnergyTable, AC127,AC127:AC128)),0,DSUM(SubtEnergyTable, AD127,AC127:AC128)) -> 0 | AE128: =AD134 -> 0 | AG128: =Lookups!$AU$89 -> Landlord - passed through | AH128: =Lookups!$AE$20 -> Scroll up | AI128: =IF(ISERROR(DSUM(AddEnergyTable, AI127,AG127:AH128)),0,DSUM(AddEnergyTable, AI127,AG127:AH128)) -> 0 | AJ128: =AI134 -> 0 | AP128: =Lookups!$AU$91 -> Tenant - mixed | AQ128: =AQ127 -> Scroll up | AS128: =AR139 -> 0
AC129: =$G$53 -> Fuel | AD129: =$AD$123 -> Annual usage subtracted from LER (kWh) | AE129: =AD136 -> 0 | AG129: =$E$53 -> Energy type | AH129: =$G$53 -> Fuel | AI129: =AI127 -> Metered annual usage added to LER (kWh) | AJ129: =AI136 -> 0 | AP129: =$E$53 -> Energy type | AQ129: =$G$53 -> Fuel | AR129: =AR123 -> Metered annual usage added to LER (kWh) | AS129: =AR142 -> 0
AC130: =Lookups!$AE$21 -> Scroll up | AD130: =IF(ISERROR(DSUM(SubtEnergyTable, AC129,AC129:AC130)),0,DSUM(SubtEnergyTable, AD129,AC129:AC130)) -> 0 | AE130: =AD138 -> 0 | AG130: =Lookups!$AU$89 -> Landlord - passed through | AH130: =Lookups!$AE$21 -> Scroll up | AI130: =IF(ISERROR(DSUM(AddEnergyTable, AI129,AG129:AH130)),0,DSUM(AddEnergyTable, AI129,AG129:AH130)) -> 0 | AJ130: =AI138 -> 0 | AP130: =Lookups!$AU$90 -> Tenant - HVAC only | AQ130: =Lookups!$AE$20 -> Scroll up | AR130: =IF(ISERROR(DSUM(AddEnergyTable, AR129,AP129:AQ131)),0,DSUM(AddEnergyTable, AR129,AP129:AQ131)) -> 0 | AS130: =AR145 -> 0
AC131: =$G$53 -> Fuel | AD131: =$AD$123 -> Annual usage subtracted from LER (kWh) | AG131: =$E$53 -> Energy type | AH131: =$G$53 -> Fuel | AI131: =AI129 -> Metered annual usage added to LER (kWh) | AP131: =Lookups!$AU$91 -> Tenant - mixed | AQ131: =AQ130 -> Scroll up
AC132: =Lookups!$AE$22 -> Scroll up | AD132: =IF(ISERROR(DSUM(SubtEnergyTable, AC131,AC131:AC132)),0,DSUM(SubtEnergyTable, AD131,AC131:AC132)) -> 0 | AG132: =Lookups!$AU$89 -> Landlord - passed through | AH132: =Lookups!$AE$22 -> Scroll up | AI132: =IF(ISERROR(DSUM(AddEnergyTable, AI131,AG131:AH132)),0,DSUM(AddEnergyTable, AI131,AG131:AH132)) -> 0 | AP132: =$E$53 -> Energy type | AQ132: =$G$53 -> Fuel | AR132: =AR123 -> Metered annual usage added to LER (kWh)
AC133: =$G$53 -> Fuel | AD133: =$AD$123 -> Annual usage subtracted from LER (kWh) | AG133: =$E$53 -> Energy type | AH133: =$G$53 -> Fuel | AI133: =AI131 -> Metered annual usage added to LER (kWh) | AP133: =Lookups!$AU$90 -> Tenant - HVAC only | AQ133: =Lookups!$AE$21 -> Scroll up | AR133: =IF(ISERROR(DSUM(AddEnergyTable, AR132,AP132:AQ134)),0,DSUM(AddEnergyTable, AR132,AP132:AQ134)) -> 0
AC134: =Lookups!$AE$23 -> Scroll up | AD134: =IF(ISERROR(DSUM(SubtEnergyTable, AC133,AC133:AC134)),0,DSUM(SubtEnergyTable, AD133,AC133:AC134)) -> 0 | AG134: =Lookups!$AU$89 -> Landlord - passed through | AH134: =Lookups!$AE$23 -> Scroll up | AI134: =IF(ISERROR(DSUM(AddEnergyTable, AI133,AG133:AH134)),0,DSUM(AddEnergyTable, AI133,AG133:AH134)) -> 0 | AP134: =Lookups!$AU$91 -> Tenant - mixed | AQ134: =AQ133 -> Scroll up
AC135: =$G$53 -> Fuel | AD135: =$AD$123 -> Annual usage subtracted from LER (kWh) | AG135: =$E$53 -> Energy type | AH135: =$G$53 -> Fuel | AI135: =AI133 -> Metered annual usage added to LER (kWh) | AP135: =$E$53 -> Energy type | AQ135: =$G$53 -> Fuel | AR135: =AR123 -> Metered annual usage added to LER (kWh)
AC136: =Lookups!$AE$24 -> Scroll up | AD136: =IF(ISERROR(DSUM(SubtEnergyTable, AC135,AC135:AC136)),0,DSUM(SubtEnergyTable, AD135,AC135:AC136)) -> 0 | AG136: =Lookups!$AU$89 -> Landlord - passed through | AH136: =Lookups!$AE$24 -> Scroll up | AI136: =IF(ISERROR(DSUM(AddEnergyTable, AI135,AG135:AH136)),0,DSUM(AddEnergyTable, AI135,AG135:AH136)) -> 0 | AP136: =Lookups!$AU$90 -> Tenant - HVAC only | AQ136: =Lookups!$AE$22 -> Scroll up | AR136: =IF(ISERROR(DSUM(AddEnergyTable, AR135,AP135:AQ137)),0,DSUM(AddEnergyTable, AR135,AP135:AQ137)) -> 0
AC137: =$G$53 -> Fuel | AD137: =$AD$123 -> Annual usage subtracted from LER (kWh) | AG137: =$E$53 -> Energy type | AH137: =$G$53 -> Fuel | AI137: =AI135 -> Metered annual usage added to LER (kWh) | AP137: =Lookups!$AU$91 -> Tenant - mixed | AQ137: =AQ136 -> Scroll up
AC138: =Lookups!$AE$25 -> Scroll up | AD138: =IF(ISERROR(DSUM(SubtEnergyTable, AC137,AC137:AC138)),0,DSUM(SubtEnergyTable, AD137,AC137:AC138)) -> 0 | AG138: =Lookups!$AU$89 -> Landlord - passed through | AH138: =Lookups!$AE$25 -> Scroll up | AI138: =IF(ISERROR(DSUM(AddEnergyTable, AI137,AG137:AH138)),0,DSUM(AddEnergyTable, AI137,AG137:AH138)) -> 0 | AP138: =$E$53 -> Energy type | AQ138: =$G$53 -> Fuel | AR138: =AR123 -> Metered annual usage added to LER (kWh)
AC139: =$G$53 -> Fuel | AD139: =$AD$123 -> Annual usage subtracted from LER (kWh) | AG139: =$E$53 -> Energy type | AH139: =$G$53 -> Fuel | AI139: =AI137 -> Metered annual usage added to LER (kWh) | AP139: =Lookups!$AU$90 -> Tenant - HVAC only | AQ139: =Lookups!$AE$23 -> Scroll up | AR139: =IF(ISERROR(DSUM(AddEnergyTable, AR138,AP138:AQ140)),0,DSUM(AddEnergyTable, AR138,AP138:AQ140)) -> 0
AC140: =Lookups!$AE$26 -> Scroll up | AD140: =IF(ISERROR(DSUM(SubtEnergyTable, AC139,AC139:AC140)),0,DSUM(SubtEnergyTable, AD139,AC139:AC140)) -> 0 | AG140: =Lookups!$AU$89 -> Landlord - passed through | AH140: =Lookups!$AE$26 -> Scroll up | AI140: =IF(ISERROR(DSUM(AddEnergyTable, AI139,AG139:AH140)),0,DSUM(AddEnergyTable, AI139,AG139:AH140)) -> 0 | AP140: =Lookups!$AU$91 -> Tenant - mixed | AQ140: =AQ139 -> Scroll up
AP141: =$E$53 -> Energy type | AQ141: =$G$53 -> Fuel | AR141: =AR123 -> Metered annual usage added to LER (kWh)
AP142: =Lookups!$AU$90 -> Tenant - HVAC only | AQ142: =Lookups!$AE$24 -> Scroll up | AR142: =IF(ISERROR(DSUM(AddEnergyTable, AR141,AP141:AQ143)),0,DSUM(AddEnergyTable, AR141,AP141:AQ143)) -> 0
AP143: =Lookups!$AU$91 -> Tenant - mixed | AQ143: =AQ142 -> Scroll up
AP144: =$E$53 -> Energy type | AQ144: =$G$53 -> Fuel | AR144: =AR129 -> Metered annual usage added to LER (kWh)
AP145: =Lookups!$AU$90 -> Tenant - HVAC only | AQ145: =Lookups!$AE$25 -> Scroll up | AR145: =IF(ISERROR(DSUM(AddEnergyTable, AR144,AP144:AQ146)),0,DSUM(AddEnergyTable, AR144,AP144:AQ146)) -> 0
AP146: =Lookups!$AU$91 -> Tenant - mixed | AQ146: =AQ145 -> Scroll up
AP147: =$E$53 -> Energy type | AQ147: =$G$53 -> Fuel | AR147: =AR123 -> Metered annual usage added to LER (kWh)
AP148: =Lookups!$AU$90 -> Tenant - HVAC only | AQ148: =Lookups!$AE$26 -> Scroll up | AR148: =IF(ISERROR(DSUM(AddEnergyTable, AR147,AP147:AQ149)),0,DSUM(AddEnergyTable, AR147,AP147:AQ149)) -> 0
AP149: =Lookups!$AU$91 -> Tenant - mixed | AQ149: =AQ148 -> Scroll up
AO155: Additions - for "don't know" situation
AP158: =F53 -> What is the energy used for? | AQ158: =H53 -> Floor area affected (m2) | AZ158: =$E$53 -> Energy type | BA158: =$G$53 -> Fuel | BB158: =$S$53 -> Metered annual usage added to LER (kWh)
AP159: =Lookups!AU98 -> DHW - Hand basins in WC's only | AQ159: =IF(ISERROR(DSUM(AddEnergyTable, AQ158,AP158:AP159)),0,DSUM(AddEnergyTable, AQ158,AP158:AP159)) -> 0 | AZ159: =Lookups!$BC$89 -> Tenant - HVAC only | BA159: =Lookups!$Q$18 -> Scroll up | BB159: =IF(ISERROR(DSUM(AddEnergyTable, BB158,AZ158:BA159)),0,DSUM(AddEnergyTable, BB158,AZ158:BA159)) -> 0
AP160: =$AP$158 -> What is the energy used for? | AQ160: =$AQ$158 -> Floor area affected (m2) | AZ160: =$E$53 -> Energy type | BA160: =$G$53 -> Fuel | BB160: =$S$53 -> Metered annual usage added to LER (kWh)
AP161: =Lookups!AU99 -> DHW - Hand basins and showers | AQ161: =IF(ISERROR(DSUM(AddEnergyTable, AQ160,AP160:AP161)),0,DSUM(AddEnergyTable, AQ160,AP160:AP161)) -> 0 | AZ161: =Lookups!$BC$89 -> Tenant - HVAC only | BA161: =Lookups!$Q$19 -> Scroll up | BB161: =IF(ISERROR(DSUM(AddEnergyTable, BB160,AZ160:BA161)),0,DSUM(AddEnergyTable, BB160,AZ160:BA161)) -> 0
AP162: =$AP$158 -> What is the energy used for? | AQ162: =$AQ$158 -> Floor area affected (m2) | AZ162: =$E$53 -> Energy type | BA162: =$G$53 -> Fuel | BB162: =$S$53 -> Metered annual usage added to LER (kWh)
AP163: =Lookups!AU100 -> DHW - Hand basins and kitchenettes | AQ163: =IF(ISERROR(DSUM(AddEnergyTable, AQ162,AP162:AP163)),0,DSUM(AddEnergyTable, AQ162,AP162:AP163)) -> 0 | AZ163: =Lookups!$BC$89 -> Tenant - HVAC only | BA163: =Lookups!$Q$20 -> Scroll up | BB163: =IF(ISERROR(DSUM(AddEnergyTable, BB162,AZ162:BA163)),0,DSUM(AddEnergyTable, BB162,AZ162:BA163)) -> 0
AP164: =$AP$158 -> What is the energy used for? | AQ164: =$AQ$158 -> Floor area affected (m2) | AZ164: =$E$53 -> Energy type | BA164: =$G$53 -> Fuel | BB164: =$S$53 -> Metered annual usage added to LER (kWh)
AP165: =Lookups!AU101 -> DHW - Hand basins, kitchenettes & showers | AQ165: =IF(ISERROR(DSUM(AddEnergyTable, AQ164,AP164:AP165)),0,DSUM(AddEnergyTable, AQ164,AP164:AP165)) -> 0 | AZ165: =Lookups!$BC$89 -> Tenant - HVAC only | BA165: =Lookups!$Q$21 -> Scroll up | BB165: =IF(ISERROR(DSUM(AddEnergyTable, BB164,AZ164:BA165)),0,DSUM(AddEnergyTable, BB164,AZ164:BA165)) -> 0
AP166: =$AP$158 -> What is the energy used for? | AQ166: =$AQ$158 -> Floor area affected (m2) | AZ166: =$E$53 -> Energy type | BA166: =$G$53 -> Fuel | BB166: =$S$53 -> Metered annual usage added to LER (kWh)
AP167: =Lookups!AU102 -> DHW - Catering | AQ167: =IF(ISERROR(DSUM(AddEnergyTable, AQ166,AP166:AP167)),0,DSUM(AddEnergyTable, AQ166,AP166:AP167)) -> 0 | AZ167: =Lookups!$BC$89 -> Tenant - HVAC only | BA167: =Lookups!$Q$22 -> Scroll up | BB167: =IF(ISERROR(DSUM(AddEnergyTable, BB166,AZ166:BA167)),0,DSUM(AddEnergyTable, BB166,AZ166:BA167)) -> 0
AP168: =$AP$158 -> What is the energy used for? | AQ168: =$AQ$158 -> Floor area affected (m2) | AZ168: =$E$53 -> Energy type | BA168: =$G$53 -> Fuel | BB168: =$S$53 -> Metered annual usage added to LER (kWh)
AP169: =Lookups!AU103 -> DHW - Catering & WC's | AQ169: =IF(ISERROR(DSUM(AddEnergyTable, AQ168,AP168:AP169)),0,DSUM(AddEnergyTable, AQ168,AP168:AP169)) -> 0 | AZ169: =Lookups!$BC$89 -> Tenant - HVAC only | BA169: =Lookups!$Q$23 -> Scroll up | BB169: =IF(ISERROR(DSUM(AddEnergyTable, BB168,AZ168:BA169)),0,DSUM(AddEnergyTable, BB168,AZ168:BA169)) -> 0
AP170: =$AP$158 -> What is the energy used for? | AQ170: =$AQ$158 -> Floor area affected (m2)
AP171: =Lookups!AU104 -> DHW - Catering, WC's & showers | AQ171: =IF(ISERROR(DSUM(AddEnergyTable, AQ170,AP170:AP171)),0,DSUM(AddEnergyTable, AQ170,AP170:AP171)) -> 0 | AZ171: =$E$53 -> Energy type | BA171: =$G$53 -> Fuel | BB171: =$S$53 -> Metered annual usage added to LER (kWh)
AP172: =$AP$158 -> What is the energy used for? | AQ172: =$AQ$158 -> Floor area affected (m2) | AZ172: =Lookups!$BC$91 -> Tenant - mived | BA172: =Lookups!$Q$18 -> Scroll up | BB172: =IF(ISERROR(DSUM(AddEnergyTable, BB171,AZ171:BA172)),0,DSUM(AddEnergyTable, BB171,AZ171:BA172)) -> 0
AP173: =Lookups!AU105 -> Fan coil units (no reheat) | AQ173: =IF(ISERROR(DSUM(AddEnergyTable, AQ172,AP172:AP173)),0,DSUM(AddEnergyTable, AQ172,AP172:AP173)) -> 0 | AZ173: =$E$53 -> Energy type | BA173: =$G$53 -> Fuel | BB173: =$S$53 -> Metered annual usage added to LER (kWh)
AP174: =$AP$158 -> What is the energy used for? | AQ174: =$AQ$158 -> Floor area affected (m2) | AZ174: =Lookups!$BC$91 -> Tenant - mived | BA174: =Lookups!$Q$19 -> Scroll up | BB174: =IF(ISERROR(DSUM(AddEnergyTable, BB173,AZ173:BA174)),0,DSUM(AddEnergyTable, BB173,AZ173:BA174)) -> 0
AP175: =Lookups!AU106 -> Fan coil units with terminal reheat | AQ175: =IF(ISERROR(DSUM(AddEnergyTable, AQ174,AP174:AP175)),0,DSUM(AddEnergyTable, AQ174,AP174:AP175)) -> 0 | AZ175: =$E$53 -> Energy type | BA175: =$G$53 -> Fuel | BB175: =$S$53 -> Metered annual usage added to LER (kWh)
AP176: =$AP$158 -> What is the energy used for? | AQ176: =$AQ$158 -> Floor area affected (m2) | AZ176: =Lookups!$BC$91 -> Tenant - mived | BA176: =Lookups!$Q$20 -> Scroll up | BB176: =IF(ISERROR(DSUM(AddEnergyTable, BB175,AZ175:BA176)),0,DSUM(AddEnergyTable, BB175,AZ175:BA176)) -> 0
AP177: =Lookups!AU107 -> Perimeter heating (Electric) | AQ177: =IF(ISERROR(DSUM(AddEnergyTable, AQ176,AP176:AP177)),0,DSUM(AddEnergyTable, AQ176,AP176:AP177)) -> 0 | AZ177: =$E$53 -> Energy type | BA177: =$G$53 -> Fuel | BB177: =$S$53 -> Metered annual usage added to LER (kWh)
AP178: =$AP$158 -> What is the energy used for? | AQ178: =$AQ$158 -> Floor area affected (m2) | AZ178: =Lookups!$BC$91 -> Tenant - mived | BA178: =Lookups!$Q$21 -> Scroll up | BB178: =IF(ISERROR(DSUM(AddEnergyTable, BB177,AZ177:BA178)),0,DSUM(AddEnergyTable, BB177,AZ177:BA178)) -> 0
AP179: =Lookups!AU108 -> Perimeter heating (Gas) | AQ179: =IF(ISERROR(DSUM(AddEnergyTable, AQ178,AP178:AP179)),0,DSUM(AddEnergyTable, AQ178,AP178:AP179)) -> 0 | AZ179: =$E$53 -> Energy type | BA179: =$G$53 -> Fuel | BB179: =$S$53 -> Metered annual usage added to LER (kWh)
AP180: =$AP$158 -> What is the energy used for? | AQ180: =$AQ$158 -> Floor area affected (m2) | AZ180: =Lookups!$BC$91 -> Tenant - mived | BA180: =Lookups!$Q$22 -> Scroll up | BB180: =IF(ISERROR(DSUM(AddEnergyTable, BB179,AZ179:BA180)),0,DSUM(AddEnergyTable, BB179,AZ179:BA180)) -> 0
AP181: =Lookups!AU109 -> On floor AHU's | AQ181: =IF(ISERROR(DSUM(AddEnergyTable, AQ180,AP180:AP181)),0,DSUM(AddEnergyTable, AQ180,AP180:AP181)) -> 0 | AZ181: =$E$53 -> Energy type | BA181: =$G$53 -> Fuel | BB181: =$S$53 -> Metered annual usage added to LER (kWh)
AZ182: =Lookups!$BC$91 -> Tenant - mived | BA182: =Lookups!$Q$23 -> Scroll up | BB182: =IF(ISERROR(DSUM(AddEnergyTable, BB181,AZ181:BA182)),0,DSUM(AddEnergyTable, BB181,AZ181:BA182)) -> 0
AV201: Electricity | AX201: Energy supply A | BA201: Energy supply B
AS202: Fuel / energy type | AV202: Mains Electricity | AX202: =IF(Lookups!Q19="Scroll up","",Lookups!Q19) ->  | BA202: ='C - Additional Energy Data'!K12 -> 0
AV204: Tenant meters - HVAC only | AX204: Tenant meters - HVAC only | BA204: Tenant meters - HVAC only
AS205: Unit | AV205: kWh | AX205: kWh | BA205: kWh
AS206: Period Start
AS207: Period End
AS208: Total Consumption
AS209: Normalise to 365 days? | AV209: Yes | AX209: Yes | BA209: Yes
AS210: Source of Data | AV210: <Select> | AX210: <Select> | BA210: <Select>
AS211: Annual Usage (kWh) | AV211: =IF(AV209="Yes",AV208*(365/(AV207-AV206)), AV208) ->  | AX211: =IF(AX209="Yes",AX208*(365/(AX207-AX206)), AX208) ->  | BA211: =IF(BA209="Yes",BA208*(365/(BA207-BA206)), BA208) -> 
AV213: Tenant meters - non HVAC only | AX213: Tenant meters - non HVAC only | BA213: Tenant meters - non HVAC only
AS214: Unit | AV214: kWh | AX214: kWh | BA214: kWh
AS215: Period Start
AS216: Period End
AS217: Total Consumption
AS218: Normalise to 365 days? | AV218: Yes | AX218: Yes | BA218: Yes
AS219: Source of Data | AV219: <Select> | AX219: <Select> | BA219: <Select>
AS220: Annual Usage (kWh) | AV220: =IF(AV218="Yes",AV217*(365/(AV216-AV215)), AV217) ->  | AX220: =IF(AX218="Yes",AX217*(365/(AX216-AX215)), AX217) ->  | BA220: =IF(BA218="Yes",BA217*(365/(BA216-BA215)), BA217) -> 
AV222: Tenant meters - mixed use | AX222: Tenant meters - mixed use | BA222: Tenant meters - mixed use
AS223: Unit | AV223: kWh | AX223: kWh | BA223: kWh
AS224: Period Start
AS225: Period End
AS226: Total Consumption
AS227: Normalise to 365 days? | AV227: Yes | AX227: Yes | BA227: Yes
AS228: Source of Data | AV228: <Select> | AX228: <Select> | BA228: <Select>
AS229: Annual Usage (kWh) | AV229: =IF(AV227="Yes",AV226*(365/(AV225-AV224)), AV226) ->  | AX229: =IF(AX227="Yes",AX226*(365/(AX225-AX224)), AX226) ->  | BA229: =IF(BA227="Yes",BA226*(365/(BA225-BA224)), BA226) -> 
AV232: Energy supply C | AX232: Energy supply D | BA232: Energy supply E
AS233: Fuel / energy type | AV233: ='C - Additional Energy Data'!G12:G12 -> 0 | AX233: ='C - Additional Energy Data'!I12:I12 -> 0 | BA233: ='C - Additional Energy Data'!K35 -> <Select>
AV235: Tenant meters - HVAC only | AX235: Tenant meters - HVAC only | BA235: Tenant meters - HVAC only
AS236: Unit | AV236: kWh | AX236: kWh | BA236: kWh
AS237: Period Start
AS238: Period End
AS239: Total Consumption
AS240: Normalise to 365 days? | AV240: Yes | AX240: Yes | BA240: Yes
AS241: Source of Data | AV241: <Select> | AX241: <Select> | BA241: <Select>
AS242: Annual Usage (kWh) | AV242: =IF(AV240="Yes",AV239*(365/(AV238-AV237)), AV239) ->  | AX242: =IF(AX240="Yes",AX239*(365/(AX238-AX237)), AX239) ->  | BA242: =IF(BA240="Yes",BA239*(365/(BA238-BA237)), BA239) -> 
AV244: Tenant meters - non HVAC only | AX244: Tenant meters - non HVAC only | BA244: Tenant meters - non HVAC only
AS245: Unit | AV245: kWh | AX245: kWh | BA245: kWh
AS246: Period Start
AS247: Period End
AS248: Total Consumption
AS249: Normalise to 365 days? | AV249: Yes | AX249: Yes | BA249: Yes
AS250: Source of Data | AV250: <Select> | AX250: <Select> | BA250: <Select>
AS251: Annual Usage (kWh) | AV251: =IF(AV249="Yes",AV248*(365/(AV247-AV246)), AV248) ->  | AX251: =IF(AX249="Yes",AX248*(365/(AX247-AX246)), AX248) ->  | BA251: =IF(BA249="Yes",BA248*(365/(BA247-BA246)), BA248) -> 
AV253: Tenant meters - mixed use | AX253: Tenant meters - mixed use | BA253: Tenant meters - mixed use
AS254: Unit | AV254: kWh | AX254: kWh | BA254: kWh
AS255: Period Start
AS256: Period End
AS257: Total Consumption
AS258: Normalise to 365 days? | AV258: Yes | AX258: Yes | BA258: Yes
AS259: Source of Data | AV259: <Select> | AX259: <Select> | BA259: <Select>
AS260: Annual Usage (kWh) | AV260: =IF(AV258="Yes",AV257*(365/(AV256-AV255)), AV257) ->  | AX260: =IF(AX258="Yes",AX257*(365/(AX256-AX255)), AX257) ->  | BA260: =IF(BA258="Yes",BA257*(365/(BA256-BA255)), BA257) -> 

Sheet F - Functional spaces
C1: ='Welcome Sheet'!E71 -> A | D1: ='Welcome Sheet'!F71 -> B | E1: ='Welcome Sheet'!H71 -> 0 | F1: ='Welcome Sheet'!I71 -> 0 | G1: ='Welcome Sheet'!J71 -> 0
C8: Input Sheet F: Data for Benchmarking Use this sheet to record further information about the building, to allow an accurate benchmark to be calculated for the LER.
A10: ` | C10: Main Heating Fuel
G12: Select main heating fuel for benchmarking purposes
C14: Functional spaces
D17: Building Summary
D19: Building GIA (m2) | F19: =GIA -> 0
D20: Building NLA (Total) (m2) | F20: =NLA -> 0
E21: Deductions for separables (m2) | F21: =F20-F22 -> 0
D22: NLA net of separables (m2) | F22: =NetNLA -> 0
E23: NLA assigned to functional spaces (m2) | F23: =SUM(F28:F47) -> 0 | G23: Turns green when values match
F24: =IF(F23>F22, "WARNING: NLA entered below exceeds available building area. Please review data before proceeding","") -> 
D25: Functional spaces data input
H26: Operational Hours of Use | I26: Extra hours of service | J26: Voids
D27: No. | E27: Name | F27: Area (m2) | G27: Source data | H27: hrs./week | I27: hrs./annum | J27: Weeks/year
D28: 1
D29: 2
D30: 3
D31: 4
D32: 5
D33: 6
D34: 7
D35: 8
D36: 9
D37: 10
D38: 11
D39: 12
D40: 13
D41: 14
D42: 15
D43: 16
D44: 17
D45: 18
D46: 19
D47: 20
D48: TOTAL | F48: =SUM(F28:F47) -> 0
D49: TOTAL functional spaces NLA (to match NLA net of separables above) | F49: =SUM(F28:F47) -> 0
D51: USER GUIDANCE: Functional Spaces:
D53: To benchmark the building it must be clear how much of the building was void and also how intensively the building was used during the assessment period . To do this the building is split into
D54: functional spaces. The table above is where this information is input into the tool.
D56: Functional spaces allow the tool to calculate the effects of vacancies and differing hours of use across the total area. At a minimum, areas should be treated differently where there is a significant change in
D57: period of occupation through a year or hours of use in the typical week. For a full assessment, each floor and tenancy should be separately identified. For the purpose of this initial study, each area with
D58: the same hours of occupancy and void weeks should be treated as the same functional space.
D80: Feedback on this sheet
D82: Were the data entry fields clearly defined? | F82: <Select>
D83: Was the required data readily available? | F83: <Select>
D85: Please provide any further comments or suggestions in the space below. (300 characters max) | J85: =300-LEN(D86)&" characters left" -> 300 characters left
S91: <Select> | T91: <Select>
N92: <Select> | O92: <Select> | Q92: <Select> | R92: <Select> | S92: Same As Contracted | T92: Same As Contracted
N93: None | O93: Not included | Q93: No Services Provided | R93: No Services Provided | S93: 0.2083333333 | T93: 0.5
N94: From Electric Boiler | O94: Included | Q94: Constant Operation | R94: Constant Operation | S94: 0.2291666667 | T94: 0.5208333333
N95: From Heating Boiler | Q95: 0.2083333333 | R95: 0.5 | S95: 0.25 | T95: 0.5416666667
N96: From Independent Boiler | Q96: 0.2291666667 | R96: 0.5208333333 | S96: 0.2708333333 | T96: 0.5625
Q97: 0.25 | R97: 0.5416666667 | S97: 0.2916666667 | T97: 0.5833333333
N98: <Select> | Q98: 0.2708333333 | R98: 0.5625 | S98: 0.3125 | T98: 0.6041666667
N99: Heating Only | O99: <Select unit> | Q99: 0.2916666667 | R99: 0.5833333333 | S99: 0.3333333333 | T99: 0.625
N100: Heating and Mech Vent | O100: m2 | Q100: 0.3125 | R100: 0.6041666667 | S100: 0.3541666667 | T100: 0.6458333333
N101: Full Air Conditioning | O101: ft2 | Q101: 0.3333333333 | R101: 0.625 | S101: 0.375 | T101: 0.6666666667
N102: None | Q102: 0.3541666667 | R102: 0.6458333333 | S102: 0.3958333333 | T102: 0.6875
Q103: 0.375 | R103: 0.6666666667 | S103: 0.4166666667 | T103: 0.7083333333
Q104: 0.3958333333 | R104: 0.6875 | S104: 0.4375 | T104: 0.7291666667
Q105: 0.4166666667 | R105: 0.7083333333 | S105: 0.4583333333 | T105: 0.75
N106: <select> | Q106: 0.4375 | R106: 0.7291666667 | S106: 0.4791666667 | T106: 0.7708333333
N107: Tenant | Q107: 0.4583333333 | R107: 0.75 | S107: 0.5 | T107: 0.7916666667
N108: Public | Q108: 0.4791666667 | R108: 0.7708333333 | S108: 0.5208333333 | T108: 0.8125
Q109: 0.5 | R109: 0.7916666667 | S109: 0.5416666667 | T109: 0.8333333333
Q110: 0.5208333333 | R110: 0.8125 | S110: 0.5625 | T110: 0.8541666667
Q111: 0.5416666667 | R111: 0.8333333333 | S111: 0.5833333333 | T111: 0.875
Q112: 0.5625 | R112: 0.8541666667 | S112: 0.6041666667 | T112: 0.8958333333
Q113: 0.5833333333 | R113: 0.875 | S113: 0.625 | T113: 0.9166666667
Q114: 0.6041666667 | R114: 0.8958333333 | S114: 0.6458333333 | T114: 0.9375
Q115: 0.625 | R115: 0.9166666667 | S115: 0.6666666667 | T115: 0.9583333333
Q116: 0.6458333333 | R116: 0.9375 | S116: 0.6875 | T116: 0.9791666667
Q117: 0.6666666667 | R117: 0.9583333333 | S117: 0.7083333333 | T117: 1
Q118: 0.6875 | R118: 0.9791666667 | S118: 0.7291666667 | T118: 1.020833333
Q119: 0.7083333333 | R119: 1 | S119: 0.75 | T119: 1.041666667
Q120: 0.7291666667 | R120: 1.020833333 | S120: 0.7708333333 | T120: 1.0625
Q121: 0.75 | R121: 1.041666667 | S121: 0.7916666667 | T121: 1.083333333
Q122: 0.7708333333 | R122: 1.0625 | S122: 0.8125 | T122: 1.104166667
Q123: 0.7916666667 | R123: 1.083333333 | S123: 0.8333333333 | T123: 1.125
Q124: 0.8125 | R124: 1.104166667 | S124: 0.8541666667 | T124: 1.145833333
Q125: 0.8333333333 | R125: 1.125 | S125: 0.875 | T125: 1.166666667
Q126: 0.8541666667 | R126: 1.145833333 | S126: 0.8958333333 | T126: 1.1875
Q127: 0.875 | R127: 1.166666667 | S127: 0.9166666667 | T127: 1.208333333
Q128: 0.8958333333 | R128: 1.1875 | S128: 0.9375 | T128: 1.229166667
Q129: 0.9166666667 | R129: 1.208333333 | S129: 0.9583333333 | T129: 1.25
Q130: 0.9375 | R130: 1.229166667 | S130: 0.9791666667 | T130: 1.270833333
Q131: 0.9583333333 | R131: 1.25 | S131: 1 | T131: 1.291666667
Q132: 0.9791666667 | R132: 1.270833333 | S132: 0.02083333333 | T132: 1.3125
R133: 1.291666667 | S133: 1.041666667 | T133: 1.333333333
Q134: 0.02083333333 | R134: 1.3125 | S134: 0.0625 | T134: 1.354166667
Q135: 0.04166666667 | R135: 1.333333333 | S135: 0.08333333333 | T135: 1.375
Q136: 0.0625 | R136: 1.354166667 | S136: 0.1041666667 | T136: 1.395833333
Q137: 0.08333333333 | R137: 1.375 | S137: 0.125 | T137: 1.416666667
Q138: 0.1041666667 | R138: 1.395833333 | S138: 0.1458333333 | T138: 1.4375 | Z138: <Select>
Q139: 0.125 | R139: 1.416666667 | S139: 0.1666666667 | T139: 1.458333333 | Z139: Administration
Q140: 0.1458333333 | R140: 1.4375 | S140: 0.1875 | T140: 1.479166667 | Z140: Financial Services
Q141: 0.1666666667 | R141: 1.458333333 | Z141: Information Technology
Q142: 0.1875 | R142: 1.479166667 | Z142: Other

Sheet Pre-certificate
C1: ='Welcome Sheet'!E71 -> A | D1: ='Welcome Sheet'!F71 -> B | E1: ='Welcome Sheet'!H71 -> 0 | F1: ='Welcome Sheet'!I71 -> 0 | G1: ='Welcome Sheet'!J71 -> 0 | H1: ='Welcome Sheet'!K71 -> F | I1: ='Welcome Sheet'!G71 -> 0
C7: Landlord's Energy Rating for Offices
C9: This is an extract of key parameters entered throughout the LER tool and a summary of key outputs from the calculations carried out to determine the LER rating.
C10: Where required, further information on the values presented can be obtained by clickinig on the cell containing the data.
C14: General building information
C16: Building Name | D16: ='A - General Information'!E11 -> 0 | F16: Building Owner | H16: ='A - General Information'!E18 -> 0 | K16: Assessment Software | L16: ="LER rating tool " &'Welcome Sheet'!A3 -> LER rating tool Version 1.14b
C17: Building Address | D17: ='A - General Information'!E14&", "&'A - General Information'!E15 -> , | F17: Building owner's address | H17: ='A - General Information'!E19&", "&'A - General Information'!E20&", "&'A - General Information'!E21 -> , , | K17: Assessor name | L17: ='A - General Information'!I13 -> 0
C18: Certificate Number | D18: Draft | F18: Managing agent | H18: ='A - General Information'!I20 -> 0 | K18: Assessor's employer name | L18: ='A - General Information'!I14 -> 0
C19: No. floors below ground | D19: ='A - General Information'!E13 -> 0 | F19: Managing agent representative | H19: ='A - General Information'!I21 -> 0 | K19: End date of assessment year | L19: =Benchmarks!E73 -> 
C20: No. floors above ground | D20: ='A - General Information'!E12 -> 0 | F20: Contact email | H20: ='A - General Information'!I22 -> 0 | K20: Valid until
C21: Year of initial completion | D21: ='A - General Information'!E25 -> 0 | F21: Contact telephone | H21: ='A - General Information'!I23 -> 0 | K21: Certificate status | L21: provisional
C22: Year of last major alteration | D22: ='A - General Information'!I36 -> 0 | K22: Certificate quality | L22: =Lookups!BO24 -> All Actual
C29: Energy and carbon summary
C31: Compliance with LER quality standards
C33: Does LER assessment permit a valid rating? | G33: =IF(H33=FALSE,"No - see below", "Yes - valid rating") -> Yes - valid rating | H33: =AND(H34="",H36="",H37="",H38="",H40="") -> TRUE
C34: Does any metered energy data fail quality standards? | G34: =IF(SUM(Lookups!AP43,Lookups!BD69,Lookups!AT43)>0, "YES", "No") -> No | H34: =IF(G34="YES", "Check metered data for compliance with 365 +/- 7 day period","") -> 
C35: Does any metered energy data fail synchronicity standards? | G35: =IF(SUM(Lookups!AQ43,Lookups!AU43,Lookups!BE69)>0, "YES", "No") -> No | H35: =IF(G35="YES", "Check metered data for compliance with 365 +/- 31 day synchronicity with mains electricity","") -> 
C36: Percentage of landlord's utility data using estimated or pro-rated data (in kWhe) (landlord utility supplies): | G36: =IF(ISERROR(Lookups!AM37),0, Lookups!AM37) -> 0 | H36: =IF(G36>0.05, "LER Score invalid - >5% estimated utility data","") -> 
C37: Tenant supplement estimations: professional | G37: =IF(ISERROR('E - Additions and subtractions'!AX123/'Pre-certificate'!$E$94),0, 'E - Additions and subtractions'!AX123/'Pre-certificate'!$E$94) -> 0 | H37: =IF(G37>0.25,"LER Score invalid - estimate limit exceeded","") -> 
C38: Tenant supplement estimations: default | G38: =IF(ISERROR('E - Additions and subtractions'!AX124/'Pre-certificate'!$E$94),0, 'E - Additions and subtractions'!AX124/'Pre-certificate'!$E$94) -> 0 | H38: =IF(G38>0.1, "LER rating invalid - estimate limit exceeded","") -> 
C39: Total pro-rata estimation (landlord, separable, additions & subtractions) | G39: =IF(ISERROR((SUM(Lookups!AN30+Lookups!AY29+Lookups!BI59)/'Pre-certificate'!E68)/'Pre-certificate'!F94),0,(SUM(Lookups!AN30+Lookups!AY29+Lookups!BI59)/'Pre-certificate'!E68)/'Pre-certificate'!F94) -> 0
C40: Total estimation - supplements | G40: =SUM(G37:G39) -> 0 | H40: =IF(G40>0.25,"LER Score invalid - estimate limit exceeded","") -> 
C42: Energy supplies and adjustments | L42: Renewable energy sources and exports
C44: Energy Supply (main heating fuel in red bold) | D44: Landlord counterparty energy meters (kWh/yr.) | E44: Deductions: Separables (kWh/yr.) | F44: Additions: Tenant supplements - Tenant counterparty or landlord counterparty energy (kWh/yr.) | G44: Deductions: landlord counterparty energy carriers passed through to tenant (kWh/yr.) | H44: Additions: Estimated (default or assessor) (kWhe/yr) | I44: Energy consumption in LER scope (kWh/yr.) | J44: Energy consumption in LER scope (kWh/m2 NLA/yr.) | L44: Energy Type | M44: Energy supplied/exported (kWh/yr.)
C45: =IF(Lookups!AE18="Scroll up","Not in Use", Lookups!AE18) -> Not in Use | D45: =IF(ISNA(VLOOKUP(C45,EnergyTable,'Energy calcs'!$E$14,FALSE)),0,VLOOKUP(C45,EnergyTable,'Energy calcs'!$E$14,FALSE)) -> 0 | E45: ='D - Separable Energy Uses'!G14 -> 0 | F45: =SUM('E - Additions and subtractions'!G13,'E - Additions and subtractions'!J13:K13) -> 0 | G45: ='E - Additions and subtractions'!F13 -> 0 | H45: ='E - Additions and subtractions'!N13 -> 0 | I45: ='E - Additions and subtractions'!P13 -> 0 | J45: =I45/NLA ->  | L45: ='Energy calcs'!B23 -> Exported Electricity | M45: =-'Energy calcs'!E23 -> 0
C46: =IF(Lookups!AE19="Scroll up","Not in Use", Lookups!AE19) -> Not in Use | D46: =IF(ISNA(VLOOKUP(C46,EnergyTable,'Energy calcs'!$E$14,FALSE)),0,VLOOKUP(C46,EnergyTable,'Energy calcs'!$E$14,FALSE)) -> 0 | E46: ='D - Separable Energy Uses'!G15 -> 0 | F46: =SUM('E - Additions and subtractions'!G14,'E - Additions and subtractions'!J14:K14) -> 0 | G46: ='E - Additions and subtractions'!F14 -> 0 | H46: ='E - Additions and subtractions'!N14 -> 0 | I46: ='E - Additions and subtractions'!P14 -> 0 | L46: ='Energy calcs'!B41 -> Exported Heat | M46: =-'Energy calcs'!E41 -> 0
C47: =IF(Lookups!AE20="Scroll up","Not in Use", Lookups!AE20) -> Not in Use | D47: =IF(ISNA(VLOOKUP(C47,EnergyTable,'Energy calcs'!$E$14,FALSE)),0,VLOOKUP(C47,EnergyTable,'Energy calcs'!$E$14,FALSE)) -> 0 | E47: ='D - Separable Energy Uses'!G16 -> 0 | F47: =SUM('E - Additions and subtractions'!G15,'E - Additions and subtractions'!J15:K15) -> 0 | G47: ='E - Additions and subtractions'!F15 -> 0 | H47: ='E - Additions and subtractions'!N15 -> 0 | I47: ='E - Additions and subtractions'!P15 -> 0 | L47: =IF(ISBLANK('C - Additional Energy Data'!G35),"",'C - Additional Energy Data'!G35) -> <Select> | M47: =IF('C - Additional Energy Data'!G41=0,"",'C - Additional Energy Data'!G41) -> 
C48: =IF(Lookups!AE21="Scroll up","Not in Use", Lookups!AE21) -> Not in Use | D48: =IF(ISNA(VLOOKUP(C48,EnergyTable,'Energy calcs'!$E$14,FALSE)),0,VLOOKUP(C48,EnergyTable,'Energy calcs'!$E$14,FALSE)) -> 0 | E48: ='D - Separable Energy Uses'!G17 -> 0 | F48: =SUM('E - Additions and subtractions'!G16,'E - Additions and subtractions'!J16:K16) -> 0 | G48: ='E - Additions and subtractions'!F16 -> 0 | H48: ='E - Additions and subtractions'!N16 -> 0 | I48: ='E - Additions and subtractions'!P16 -> 0 | L48: =IF(ISBLANK('C - Additional Energy Data'!I35),"",'C - Additional Energy Data'!I35) -> <Select> | M48: =IF('C - Additional Energy Data'!I41=0,"",'C - Additional Energy Data'!I41) -> 
C49: =IF(Lookups!AE22="Scroll up","Not in Use", Lookups!AE22) -> Not in Use | D49: =IF(ISNA(VLOOKUP(C49,EnergyTable,'Energy calcs'!$E$14,FALSE)),0,VLOOKUP(C49,EnergyTable,'Energy calcs'!$E$14,FALSE)) -> 0 | E49: ='D - Separable Energy Uses'!G18 -> 0 | F49: =SUM('E - Additions and subtractions'!G17,'E - Additions and subtractions'!J17:K17) -> 0 | G49: ='E - Additions and subtractions'!F17 -> 0 | H49: ='E - Additions and subtractions'!N17 -> 0 | I49: ='E - Additions and subtractions'!P17 -> 0 | L49: =IF(ISBLANK('C - Additional Energy Data'!K35),"",'C - Additional Energy Data'!K35) -> <Select> | M49: =IF('C - Additional Energy Data'!K41=0,"",'C - Additional Energy Data'!K41) -> 
C50: =IF(Lookups!AE23="Scroll up","Not in Use", Lookups!AE23) -> Not in Use | D50: =IF(ISNA(VLOOKUP(C50,EnergyTable,'Energy calcs'!$E$14,FALSE)),0,VLOOKUP(C50,EnergyTable,'Energy calcs'!$E$14,FALSE)) -> 0 | E50: ='D - Separable Energy Uses'!G19 -> 0 | F50: =SUM('E - Additions and subtractions'!G18,'E - Additions and subtractions'!J18:K18) -> 0 | G50: ='E - Additions and subtractions'!F18 -> 0 | H50: ='E - Additions and subtractions'!N18 -> 0 | I50: ='E - Additions and subtractions'!P18 -> 0
C51: =IF(Lookups!AE24="Scroll up","Not in Use", Lookups!AE24) -> Not in Use | D51: =IF(ISNA(VLOOKUP(C51,EnergyTable,'Energy calcs'!$E$14,FALSE)),0,VLOOKUP(C51,EnergyTable,'Energy calcs'!$E$14,FALSE)) -> 0 | E51: ='D - Separable Energy Uses'!G20 -> 0 | F51: =SUM('E - Additions and subtractions'!G19,'E - Additions and subtractions'!J19:K19) -> 0 | G51: ='E - Additions and subtractions'!F19 -> 0 | H51: ='E - Additions and subtractions'!N19 -> 0 | I51: ='E - Additions and subtractions'!P19 -> 0
C52: =IF(Lookups!AE25="Scroll up","Not in Use", Lookups!AE25) -> Not in Use | D52: =IF(ISNA(VLOOKUP(C52,EnergyTable,'Energy calcs'!$E$14,FALSE)),0,VLOOKUP(C52,EnergyTable,'Energy calcs'!$E$14,FALSE)) -> 0 | E52: ='D - Separable Energy Uses'!G21 -> 0 | F52: =SUM('E - Additions and subtractions'!G20,'E - Additions and subtractions'!J20:K20) -> 0 | G52: ='E - Additions and subtractions'!F20 -> 0 | H52: ='E - Additions and subtractions'!N20 -> 0 | I52: ='E - Additions and subtractions'!P20 -> 0
C54: Carbon emissions summary
C55: Carbon emission factors for different fuels are taken from the Government's methodology for the calculation of DECs
D57: Annual carbon emissions - Landlord counterparty (tCO2/annum) | F57: Annual carbon emissions - LER scope (tCO2/annum)
C58: =C88 -> Electricity* | D58: ='Energy calcs'!J25/1000 -> 0 | F58: ='Energy calcs'!Z25/1000 -> 0
C59: =C89 -> Heat Fuels | D59: ='Energy calcs'!J47/1000 -> 0 | F59: ='Energy calcs'!Z47/1000 -> 0
C60: Heat* | D60: ='Energy calcs'!J48/1000 -> 0 | F60: ='Energy calcs'!Z48/1000 -> 0
C61: Total | D61: =SUM(D58:E60) -> 0 | F61: =SUM(F58:G60) -> 0
C62: * Negative values indicate net exports
C63: If the building uses district heating/cooling, waste heat, other fuel or other thermal supplies, these are assumed to have the same carbon emissions as natural gas.
C66: Benchmarking data | G66: Floor area and servicing
H67: m2 | I67: Landlord HVAC service | K67: Tenant counterparty HVAC energy supplement to landlords services | L67: Passed through tenants HVAC supplement to landlords services | M67: Tenant counterparty HWS energy supplement to landlords services | N67: Passed through tenants HWS supplement to landlords services
C68: Rated Area for LER (NLA(o)) | E68: =RatedArea ->  | F68: m2 | G68: NLA | H68: =NLA -> 0 | I68: ='B- Landlord''s services '!E38 -> <Select> | K68: ='B1- Tenant energy supplies'!E32 -> <Select> | L68: ='B- Landlord''s services '!E39 -> <Select> | M68: ='B1- Tenant energy supplies'!E34 -> <Select> | N68: ='B- Landlord''s services '!E40 -> <Select>
C69: Average hours of service per week | E69: =Benchmarks!Q49 ->  | F69: hours | G69: GIA | H69: =IF(GIA="","not known", GIA) -> not known
C70: Void Factor | E70: =Benchmarks!L51 ->  | G70: Common parts | H70: =IF(ISERROR(H69-H68),"not known",H69-H68) -> not known | I70: ='B- Landlord''s services '!E37 -> <Select>
C71: Standard benchmark | E71: 105 | F71: kWhe/m2/year | G71: Separable areas | H71: =Benchmarks!I18-NetNLA -> 0
C72: Void area and hours of use adjustment | E72: =Benchmarks!W51 ->  | F72: kWhe/m2/year
C73: Heating DD adjustment | E73: =Benchmarks!F104 ->  | F73: kWhe/m2/year
C74: Cooling DD adjustment | E74: =Benchmarks!BB99 ->  | F74: kWhe/m2/year
C75: Adjusted benchmark | E75: =SUM(E71:E74) ->  | F75: kWhe/m2/year
C79: LER rating
C81: This Year | D81: Last year | E81: 2 years ago
C82: =ROUNDDOWN('Energy calcs'!C6,1)&" Stars" ->  | D82: ='A - General Information'!I25 -> 0 | E82: ='A - General Information'!I26 -> 0
C84: In LER scope energy and electricity equivalent Summary
D86: LER total | E86: LER total | F86: LER total normalised
C87: Units | D87: kWh/yr. | E87: kWhe/yr. | F87: kWhe/m2 NLA(o)/yr.
C88: Electricity* | D88: ='Energy calcs'!V25 -> 0 | E88: ='Energy calcs'!W25 -> 0 | F88: ='Energy calcs'!X25 -> 
C89: Heat Fuels | D89: ='Energy calcs'!V47 -> 0 | E89: ='Energy calcs'!W47 -> 0 | F89: ='Energy calcs'!X47 -> 
C90: Heat* | D90: ='Energy calcs'!V48 -> 0 | E90: ='Energy calcs'!W48 -> 0 | F90: ='Energy calcs'!X48 -> 
C91: On-site RES electricity | D91: ='Energy calcs'!V63 -> 0
C92: On-site RES heat | D92: ='Energy calcs'!V64 -> 0
C93: On-site RES Fuel | D93: ='Energy calcs'!V65 -> 0
C94: Total | E94: =SUM(E88:E90) -> 0 | F94: =SUM(F88:F90) -> 
C95: * Negative values indicate net exports

Sheet LER Certificate
C1: ='Welcome Sheet'!E71 -> A | D1: ='Welcome Sheet'!F71 -> B | E1: ='Welcome Sheet'!H71 -> 0 | F1: ='Welcome Sheet'!I71 -> 0 | G1: ='Welcome Sheet'!J71 -> 0 | H1: ='Welcome Sheet'!K71 -> F | I1: ='Welcome Sheet'!G71 -> 0 | S1: =IF('Pre-certificate'!G33="No - see below","Yes","") -> 
B7: LER Certificate
B9: This sheet presents the LER rating for this building along with relevant supporting information from the input data and calculations.
B10: The LER rating is expressed as a value of zero to seven stars. Seven stars is the highest at this time and represents a building with net zero imported energy use
B11: Zero stars is the poorest score and indicates that the energy efficiency of landlord services provision is equal to or greater than double the benchmark for this building.
B12: A rating of three and a half stars indicated that the energy efficiency of the landlord services provision is equal to that of the benchmark for the building.
C22: Landlord's Energy Rating for Offices
C25: Building Name | D25: ='A - General Information'!E11 -> 0 | F25: Photo
C26: Building Address | D26: ='A - General Information'!E14&", "&'A - General Information'!E15 -> ,
C27: Certificate Number | D27: Draft
C28: No. floors above ground | D28: ='A - General Information'!E12 -> 0
C29: Year of initial completion | D29: ='A - General Information'!E25 -> 0
C30: Year of last major alteration | D30: ='A - General Information'!I36 -> 0
D37: Decimal | E37: Full | F37: Empty
C38: Rating | D38: ='Energy calcs'!C6 ->  | E38: =MROUND(D38-0.25,0.5) ->  | F38: 0
C41: This Year | D41: Last year | E41: 2 years ago
C42: =ROUNDDOWN(D38,1)&" Stars" ->  | D42: ='A - General Information'!I25 -> 0 | E42: ='A - General Information'!I26 -> 0
C44: Building NLA | D44: =NLA -> 0 | F44: Main heating Fuel | G44: ='F - Functional spaces'!H12 -> 0
C45: Rated Area for LER | D45: =RatedArea ->  | F45: Building Environment | G45: ='B- Landlord''s services '!E37 -> <Select>
C46: Hours of service per week | D46: =Benchmarks!Q49 ->  | F46: Void Factor | G46: =Benchmarks!L51 -> 
D50: LER total | E50: LER total | F50: LER total normalised | G50: LER scope carbon emissions
C51: Units | D51: kWh/yr | E51: kWhe/yr | F51: kWhe/m2 NLA(o)/yr | G51: tCO2/yr
C52: Electricity | D52: ='Energy calcs'!E25 -> 0 | E52: ='Energy calcs'!W25 -> 0 | F52: ='Energy calcs'!X25 ->  | G52: ='Pre-certificate'!F58 -> 0
C53: Heat Fuels | D53: ='Energy calcs'!E47 -> 0 | E53: ='Energy calcs'!W47 -> 0 | F53: ='Energy calcs'!X47 ->  | G53: ='Pre-certificate'!F59 -> 0
C54: Heat | D54: ='Energy calcs'!E48 -> 0 | E54: ='Energy calcs'!W48 -> 0 | F54: ='Energy calcs'!X48 ->  | G54: ='Pre-certificate'!F60 -> 0
C55: On-site RES electricity | D55: ='Energy calcs'!E63 -> 0
C56: On-site RES heat | D56: ='Energy calcs'!E64 -> 0
C57: On-site RES Fuel | D57: ='Energy calcs'!E65 -> 0
C58: Total | E58: =SUM(E52:E54) -> 0 | F58: =SUM(F52:F54) ->  | G58: =SUM(G52:G54) -> 0
C62: Building Owner | E62: ='A - General Information'!I18 -> 0
C63: Building owner's address | E63: ='A - General Information'!E19&", "&'A - General Information'!E21 -> ,
C64: Assessment Software | E64: ="LER rating tool " &'Welcome Sheet'!A3 -> LER rating tool Version 1.14b
C65: Assessor name | E65: ='A - General Information'!I13 -> 0
C66: Employer name | E66: ='A - General Information'!I14 -> 0
C67: End date of assessment year | E67: =Benchmarks!E73 -> 
C68: Valid until | E68: =IF(ISBLANK(IssDate),"Issue date not specified", IssDate+365) -> Issue date not specified
C69: Certificate status | E69: provisional
C70: Certificate quality | E70: =Lookups!BO24 -> All Actual

Sheet Data export (hidden)
DZ2: kWh | EA2: kWh | EB2: kWh | EC2: kWh | ED2: kWh | EE2: kWh | EF2: kWhe | EG2: kWhe | EH2: kWhe | EI2: kWhe/m2 | EJ2: kWhe/m2 | EK2: kWhe/m2 | EL2: tCO2/yr | EM2: tCO2/yr | EN2: tCO2/yr | EO2: tCO2/yr | EP2: tCO2/yr | EQ2: tCO2/yr | ER2: tCO2/yr | ES2: tCO2/yr
B3: 1 | C3: 2 | D3: 3 | E3: 4 | F3: 5 | G3: 6 | H3: 7 | I3: 8 | J3: 9 | K3: 10 | L3: 11 | M3: 12 | N3: 13 | O3: 14 | P3: 15 | Q3: 16 | R3: 17 | S3: 18 | T3: 19 | U3: 20 | V3: 21 | W3: 22 | X3: 23 | Y3: 24 | Z3: 25 | AA3: 26 | AB3: 27 | AC3: 28 | AD3: 29 | AE3: 30 | AF3: 31 | AG3: 32 | AH3: 33 | AI3: 34 | AJ3: 35 | AK3: 36 | AL3: 37 | AM3: 38 | AN3: 39 | AO3: 40 | AP3: 41 | AQ3: 42 | AR3: 43 | AS3: 44 | AT3: 45 | AU3: 46 | AV3: 47 | AW3: 48 | AX3: 49 | AY3: 50 | AZ3: 51 | BA3: 52 | BB3: 53 | BC3: 54 | BD3: 55 | BE3: 56 | BF3: 57 | BG3: 58 | BH3: 59 | BI3: 60 | BJ3: 61 | BK3: 62 | BL3: 63 | BM3: 64 | BN3: 65 | BO3: 66 | BP3: 67 | BQ3: 68 | BR3: 69 | BS3: 70 | BT3: 71 | BU3: 72 | BV3: 73 | BW3: 74 | BX3: 75 | BY3: 76 | BZ3: 77 | CA3: 78 | CB3: 79 | CC3: 80 | CD3: 81 | CE3: 82 | CF3: 83 | CG3: 84 | CH3: 85 | CI3: 86 | CJ3: 87 | CK3: 88 | CL3: 89 | CM3: 90 | CN3: 91 | CO3: 92 | CP3: 93 | CQ3: 94 | CR3: 95 | CS3: 95 | CT3: 96 | CU3: 97 | CV3: 98 | CW3: 99 | CX3: 100 | CY3: 101 | CZ3: 102 | DA3: 103 | DB3: 104 | DC3: 105 | DD3: 106 | DE3: 107 | DF3: 108 | DG3: 109 | DH3: 110 | DI3: 111 | DJ3: 112 | DK3: 113 | DL3: 114 | DM3: 115 | DN3: 116 | DO3: 117 | DP3: 118 | DQ3: 119 | DR3: 120 | DS3: 121 | DT3: 122 | DU3: 123 | DV3: 124 | DW3: 125 | DX3: 126 | DY3: 127 | DZ3: 128 | EA3: 129 | EB3: 130 | EC3: 131 | ED3: 132 | EE3: 133 | EF3: 134 | EG3: 135 | EH3: 136 | EI3: 137 | EJ3: 138 | EK3: 139 | EL3: 140 | EM3: 141 | EN3: 142 | EO3: 143 | EP3: 144 | EQ3: 145 | ER3: 146 | ES3: 147 | ET3: 148 | EU3: 149 | EV3: 150 | EW3: 151 | EX3: 152 | EY3: 153 | EZ3: 154 | FA3: 155 | FB3: 156 | FC3: 157 | FD3: 158 | FE3: 159 | FF3: 160 | FG3: 161 | FH3: 162 | FI3: 163 | FJ3: 164 | FK3: 165 | FL3: 166 | FM3: 167 | FN3: 168 | FO3: 169 | FP3: 170 | FQ3: 171 | FR3: 172 | FS3: 173 | FT3: 174 | FU3: 175 | FV3: 176 | FW3: 177 | FX3: 178 | FY3: 179 | FZ3: 180 | GA3: 181 | GB3: 182 | GC3: 183 | GD3: 184 | GE3: 185 | GF3: 186 | GG3: 187 | GH3: 188 | GI3: 189 | GJ3: 190 | GK3: 191 | GL3: 192 | GM3: 193 | GN3: 194 | GO3: 195 | GP3: 196 | GQ3: 197 | GR3: 198 | GS3: 199 | GT3: 200 | GU3: 201 | GV3: 202 | GW3: 203 | GX3: 204 | GY3: 205 | GZ3: 206 | HA3: 207 | HB3: 208
A4: Sheet | B4: =RIGHT(LEFT((formula_text(B7)),4),2) -> A | C4: =RIGHT(LEFT((formula_text(C7)),4),2) -> A | D4: A | E4: A | F4: A | H4: A | I4: A | J4: A | K4: A | L4: A | M4: A | N4: A | O4: A | P4: IA | Q4: A | R4: A | S4: A | T4: A | U4: A | V4: A | W4: A | Y4: A | Z4: A | AA4: A | AB4: A | AC4: A | AD4: A | AE4: A | AF4: A | AG4: A | AH4: A | AI4: A | AK4: A | AL4: A | AM4: A | AN4: A | AO4: A | AP4: A | AQ4: B- | AR4: B- | AS4: B- | AV4: B- | AW4: B- | AX4: B- | AY4: B- | AZ4: B- | BA4: B- | BB4: B1 | BC4: =RIGHT(LEFT((formula_text(BC7)),4),2) ->  | BD4: D | BE4: D | BF4: D | BG4: E | BH4: E | BI4: E | BJ4: E | BK4: E | BL4: E | BM4: E | BN4: D | BO4: D | BP4: =RIGHT(LEFT((formula_text(BP7)),4),2) -> D | BQ4: E | BR4: E | BS4: E | BT4: E | BU4: E | BV4: E | BW4: E | BX4: D | BY4: D | BZ4: D | CA4: E | CB4: E | CC4: E | CD4: E | CE4: E | CF4: E | CG4: E | CH4: D | CI4: D | CJ4: D | CK4: E | CL4: E | CM4: E | CN4: E | CO4: E | CP4: E | CQ4: E | CR4: =RIGHT(LEFT((formula_text(CR7)),4),2) ->  | CS4: =RIGHT(LEFT((formula_text(CS7)),5),2) ->  | CT4: =RIGHT(LEFT((formula_text(CT7)),4),2) ->  | DC4: =RIGHT(LEFT((formula_text(DC7)),4),2) ->  | DE4: =RIGHT(LEFT((formula_text(DE7)),4),2) ->  | DF4: =RIGHT(LEFT((formula_text(DF7)),4),2) ->  | DH4: Pr | DI4: Pr | DJ4: Pr | DN4: Pr | DT4: Pr | DW4: Pr | DX4: Pr | DY4: Pr | DZ4: Pr | EA4: Pr | EB4: Pr | EC4: Pr | ED4: Pr | EE4: Pr | EF4: Pr | EG4: Pr | EH4: Pr | EI4: Pr | EJ4: Pr | EK4: Pr | EL4: =RIGHT(LEFT((formula_text(EL7)),4),2) -> Pr | EM4: Pr | EN4: Pr | EO4: Pr | EP4: Pr | EQ4: Pr | ER4: Pr | ES4: Pr | ET4: A | EU4: A | EV4: A | EW4: B- | EX4: B- | EY4: B- | EZ4: B1 | FA4: B1 | FB4: B1 | FC4: C | FD4: C | FE4: C | FF4: D | FG4: D | FH4: D | FI4: =RIGHT(LEFT((formula_text(FI7)),4),2) -> E | FJ4: E | FK4: E | FL4: F | FM4: F | FN4: F | FO4: B | FP4: B- | FT4: =RIGHT(LEFT((formula_text(FT7)),4),2) -> 
A5: Cell | B5: =RIGHT((formula_text(B7)),4) -> !E11 | C5: =RIGHT((formula_text(C7)),4) -> !E12 | D5: =RIGHT((formula_text(D7)),4) -> !E13 | E5: !E14 | F5: !E15 | H5: !E18 | I5: !E19 | J5: !E20 | K5: !E21 | L5: !E22 | M5: !E23 | N5: !E25 | O5: !E26 | P5: =GIA | Q5: !E29 | R5: !E30 | S5: !E31 | T5: !I11 | U5: !I12 | V5: !I13 | W5: !I14 | Y5: !I15 | Z5: !I16 | AA5: !I17 | AB5: !I18 | AC5: !I20 | AD5: !I20 | AE5: !I21 | AF5: !I22 | AG5: !I23 | AH5: !I25 | AI5: !I26 | AK5: !I29 | AL5: !I30 | AM5: !I31 | AN5: !E36 | AO5: !I36 | AP5: !E38 | AQ5: !G33 | AR5: !E37 | AS5: !E38 | AV5: !E39 | AW5: !E40 | AX5: !I37 | AY5: !I38 | AZ5: !E42 | BA5: !I42 | BB5: !E32 | BC5: =RIGHT((formula_text(BC7)),4) ->  | BD5: !E14 | BE5: !F14 | BF5: !G14 | BG5: !E13 | BH5: !F13 | BI5: !G13 | BJ5: !H13 | BK5: !J13 | BL5: !L13 | BM5: !P13 | BN5: !E15 | BO5: !F15 | BP5: !G15 | BQ5: !E14 | BR5: !F14 | BS5: =RIGHT((formula_text(BS7)),4) -> !G14 | BT5: !H14 | BU5: !J14 | BV5: !L14 | BW5: !P14 | BX5: !E16 | BY5: !F16 | BZ5: !G16 | CA5: !E15 | CB5: !F15 | CC5: !G15 | CD5: !H15 | CE5: !J15 | CF5: !L15 | CG5: !P15 | CH5: !E17 | CI5: !F17 | CJ5: !G17 | CK5: !E16 | CL5: !F16 | CM5: !G16 | CN5: !H16 | CO5: !J16 | CP5: !L16 | CQ5: !P16 | CR5: =RIGHT((formula_text(CR7)),4) ->  | CS5: =RIGHT((formula_text(CS7)),4) ->  | DC5: =RIGHT((formula_text(DC7)),4) ->  | DE5: =RIGHT((formula_text(DE7)),4) ->  | DF5: =RIGHT((formula_text(DF7)),4) ->  | DH5: !M47 | DI5: !M48 | DJ5: !M49 | DN5: !E71 | DT5: !H69 | DW5: !C82 | DX5: !D82 | DY5: !E82 | DZ5: !D88 | EA5: !D89 | EB5: !D90 | EC5: !D91 | ED5: !D92 | EE5: !D93 | EF5: !E88 | EG5: !E89 | EH5: !E90 | EI5: !F88 | EJ5: !F89 | EK5: !F90 | EL5: =RIGHT((formula_text(EL7)),4) -> !D58 | EM5: !D59 | EN5: !D60 | EO5: !D61 | EP5: =RIGHT((formula_text(EP7)),4) -> !F58 | EQ5: !F59 | ER5: !F60 | ES5: !F61 | ET5: !F45 | EU5: !F46 | EV5: !D49 | EW5: !F48 | EX5: !F49 | EY5: !D52 | EZ5: !F40 | FA5: !F41 | FB5: !D44 | FC5: !H55 | FD5: !H56 | FE5: !E59 | FF5: !G71 | FG5: !G72 | FH5: !E75 | FI5: =RIGHT((formula_text(FI7)),4) -> !F88 | FJ5: !F89 | FK5: !D92 | FL5: !F82 | FM5: !F83 | FN5: !D86 | FO5: !E40 | FP5: !I34 | FT5: =RIGHT((formula_text(FT7)),4) -> 
A6: Category name | B6: ='A - General Information'!D11 -> Name of building | C6: ='A - General Information'!D12 -> Number of storeys above ground | D6: ='A - General Information'!D13 -> Number of storeys below ground | E6: ='A - General Information'!D14 -> Building Address | F6: ='A - General Information'!D15 -> City | G6: ='A - General Information'!D16 -> Postcode | H6: ='A - General Information'!D18 -> Landlord's Name | I6: ='A - General Information'!D19 -> Street | J6: ='A - General Information'!D20 -> Town / City | K6: ='A - General Information'!D21 -> Postcode | L6: ='A - General Information'!D22 -> Landlord's Telephone | M6: ='A - General Information'!D23 -> Landlord's Email | N6: ='A - General Information'!D25 -> Year Building Completed | O6: ='A - General Information'!D26 -> Building Location | P6: ='A - General Information'!D28 -> Gross Internal Area (GIA) | Q6: ='A - General Information'!D29 -> GIA Units | R6: ='A - General Information'!D30 -> Source of GIA Data | S6: ='A - General Information'!D31 -> Description of data source | T6: ='A - General Information'!H11 -> Date Completed | U6: ='A - General Information'!H12 -> Issue date | V6: ='A - General Information'!H13 -> Assessor Name | W6: ='A - General Information'!H14 -> Assessor's employer | X6: ='A - General Information'!I14 -> 0 | Y6: ='A - General Information'!H15 -> Assessor Number | Z6: ='A - General Information'!H16 -> Assessor's Telephone | AA6: ='A - General Information'!H17 -> Assessor's Email | AB6: ='A - General Information'!H18 -> Accreditation Scheme | AC6: ='A - General Information'!H20 -> Managing agent | AD6: ='A - General Information'!H21 -> Managing agent representative | AE6: ='A - General Information'!H21 -> Managing agent representative | AF6: ='A - General Information'!H22 -> Contact email | AG6: ='A - General Information'!H23 -> Contact telephone | AH6: ='A - General Information'!H25 -> Last year's LER rating (decimal stars) | AI6: ='A - General Information'!H26 -> LER rating two years ago (decimal stars) | AJ6: ='A - General Information'!H28 -> Net Lettable Area (NLA) | AK6: ='A - General Information'!H29 -> NLA Units | AL6: ='A - General Information'!H30 -> Source of NLA Data | AM6: ='A - General Information'!H31 -> Description of data source | AN6: ='A - General Information'!D36 -> Year of Refurbishment | AO6: ='A - General Information'!H36 -> Year of Most Recent Fit out | AP6: ='A - General Information'!D38 -> Extra Notes on Building | AQ6: ='B- Landlord''s services '!E33 -> What energy is the landlord counterparty to in this building? | AR6: ='B- Landlord''s services '!D37 -> Landlord HVAC to Common Parts | AS6: ='B- Landlord''s services '!D38 -> Landlord HVAC to Tenant Demises | AV6: ='B- Landlord''s services '!D39 -> Tenant use of passed-through energy for HVAC | AW6: ='B- Landlord''s services '!D40 -> Tenant use of passed-through energy for HWS | AX6: ='B- Landlord''s services '!H37 -> Energy for Lifts & Escalators | AY6: ='B- Landlord''s services '!H38 -> Energy for external lighting | AZ6: ='B- Landlord''s services '!D42 -> Number of indoor car parking spaces | BA6: ='B- Landlord''s services '!H42 -> Number of outdoor car parking spaces | BB6: ='B1- Tenant energy supplies'!D32 -> Tenant supplement to landlords HVAC services | BC6: ='Pre-certificate'!C36 -> Percentage of landlord's utility data using estimated or pro-rated data (in kWhe) (landlord utility supplies): | BD6: Fuel1 | BE6: ='D - Separable Energy Uses'!$F$13 -> Energy for which landlord is counterparty (kWh) | BF6: ='D - Separable Energy Uses'!$G$13 -> Deductions: Separables (Annual kWh) | BG6: ='D - Separable Energy Uses'!$H$13 -> Landlord energy net of separables (Annual kWh) | BH6: ='E - Additions and subtractions'!$F$12 -> Landlord energy passed through to tenants (kWh/yr.) | BI6: ='E - Additions and subtractions'!$G$12 -> Tenant supplement (kWh/yr.) | BJ6: ='E - Additions and subtractions'!$H$12 -> Tenant's energy supplies (kWh/yr.) | BK6: ='E - Additions and subtractions'!$J$12 -> Additions to LER scope (tenant direct supplement, kWh/yr.) | BL6: ='E - Additions and subtractions'!$L$12 -> Total adjustment to landlord energy (kWh/yr.) | BM6: ='E - Additions and subtractions'!$P$12 -> Energy consumption used for calculation of LER (kWh/yr.) | BN6: Fuel2 | BO6: ='D - Separable Energy Uses'!$F$13 -> Energy for which landlord is counterparty (kWh) | BP6: ='D - Separable Energy Uses'!$G$13 -> Deductions: Separables (Annual kWh) | BQ6: ='D - Separable Energy Uses'!$H$13 -> Landlord energy net of separables (Annual kWh) | BR6: ='E - Additions and subtractions'!$F$12 -> Landlord energy passed through to tenants (kWh/yr.) | BS6: ='E - Additions and subtractions'!$G$12 -> Tenant supplement (kWh/yr.) | BT6: ='E - Additions and subtractions'!$H$12 -> Tenant's energy supplies (kWh/yr.) | BU6: ='E - Additions and subtractions'!$J$12 -> Additions to LER scope (tenant direct supplement, kWh/yr.) | BV6: ='E - Additions and subtractions'!$L$12 -> Total adjustment to landlord energy (kWh/yr.) | BW6: ='E - Additions and subtractions'!$P$12 -> Energy consumption used for calculation of LER (kWh/yr.) | BX6: Fuel3 | BY6: ='D - Separable Energy Uses'!$F$13 -> Energy for which landlord is counterparty (kWh) | BZ6: ='D - Separable Energy Uses'!$G$13 -> Deductions: Separables (Annual kWh) | CA6: ='D - Separable Energy Uses'!$H$13 -> Landlord energy net of separables (Annual kWh) | CB6: ='E - Additions and subtractions'!$F$12 -> Landlord energy passed through to tenants (kWh/yr.) | CC6: ='E - Additions and subtractions'!$G$12 -> Tenant supplement (kWh/yr.) | CD6: ='E - Additions and subtractions'!$H$12 -> Tenant's energy supplies (kWh/yr.) | CE6: ='E - Additions and subtractions'!$J$12 -> Additions to LER scope (tenant direct supplement, kWh/yr.) | CF6: ='E - Additions and subtractions'!$L$12 -> Total adjustment to landlord energy (kWh/yr.) | CG6: ='E - Additions and subtractions'!$P$12 -> Energy consumption used for calculation of LER (kWh/yr.) | CH6: Fuel4 | CI6: ='D - Separable Energy Uses'!$F$13 -> Energy for which landlord is counterparty (kWh) | CJ6: ='D - Separable Energy Uses'!$G$13 -> Deductions: Separables (Annual kWh) | CK6: ='D - Separable Energy Uses'!$H$13 -> Landlord energy net of separables (Annual kWh) | CL6: ='E - Additions and subtractions'!$F$12 -> Landlord energy passed through to tenants (kWh/yr.) | CM6: ='E - Additions and subtractions'!$G$12 -> Tenant supplement (kWh/yr.) | CN6: ='E - Additions and subtractions'!$H$12 -> Tenant's energy supplies (kWh/yr.) | CO6: ='E - Additions and subtractions'!$J$12 -> Additions to LER scope (tenant direct supplement, kWh/yr.) | CP6: ='E - Additions and subtractions'!$L$12 -> Total adjustment to landlord energy (kWh/yr.) | CQ6: ='E - Additions and subtractions'!$P$12 -> Energy consumption used for calculation of LER (kWh/yr.) | CS6: ='E - Additions and subtractions'!AP159 -> DHW - Hand basins in WC's only | CT6: ='E - Additions and subtractions'!AP161 -> DHW - Hand basins and showers | CU6: ='E - Additions and subtractions'!AP163 -> DHW - Hand basins and kitchenettes | CV6: ='E - Additions and subtractions'!AP165 -> DHW - Hand basins, kitchenettes & showers | CW6: ='E - Additions and subtractions'!AP167 -> DHW - Catering | CX6: ='E - Additions and subtractions'!AP169 -> DHW - Catering & WC's | CY6: ='E - Additions and subtractions'!AP171 -> DHW - Catering, WC's & showers | CZ6: ='E - Additions and subtractions'!AP173 -> Fan coil units (no reheat) | DA6: ='E - Additions and subtractions'!AP175 -> Fan coil units with terminal reheat | DB6: ='E - Additions and subtractions'!AP177 -> Perimeter heating (Electric) | DC6: ='E - Additions and subtractions'!AP179 -> Perimeter heating (Gas) | DD6: ='E - Additions and subtractions'!AP181 -> On floor AHU's | DE6: ='F - Functional spaces'!G12 -> Select main heating fuel for benchmarking purposes | DF6: ='Pre-certificate'!L45 -> Exported Electricity | DG6: ='Pre-certificate'!L46 -> Exported Heat | DH6: ='Pre-certificate'!L47 -> <Select> | DI6: ='Pre-certificate'!L48 -> <Select> | DJ6: ='Pre-certificate'!L49 -> <Select> | DK6: ='Pre-certificate'!C68 -> Rated Area for LER (NLA(o)) | DL6: ='Pre-certificate'!C69 -> Average hours of service per week | DM6: ='Pre-certificate'!C70 -> Void Factor | DN6: ='Pre-certificate'!C71 -> Standard benchmark | DO6: ='Pre-certificate'!C72 -> Void area and hours of use adjustment | DP6: ='Pre-certificate'!C73 -> Heating DD adjustment | DQ6: ='Pre-certificate'!C74 -> Cooling DD adjustment | DR6: ='Pre-certificate'!C75 -> Adjusted benchmark | DS6: ='Pre-certificate'!G68 -> NLA | DT6: ='Pre-certificate'!G69 -> GIA | DU6: ='Pre-certificate'!G70 -> Common parts | DV6: ='Pre-certificate'!G71 -> Separable areas | DW6: ='Pre-certificate'!C81 -> This Year | DX6: ='Pre-certificate'!D81 -> Last year | DY6: ='Pre-certificate'!E81 -> 2 years ago | DZ6: ='Pre-certificate'!$C$88 &DZ2 -> Electricity*kWh | EA6: ='Pre-certificate'!$C$89&EA2 -> Heat FuelskWh | EB6: ='Pre-certificate'!$C$90&EB2 -> Heat*kWh | EC6: ='Pre-certificate'!$C$91&EC2 -> On-site RES electricitykWh | ED6: ='Pre-certificate'!$C$92&ED2 -> On-site RES heatkWh | EE6: ='Pre-certificate'!$C$93&EE2 -> On-site RES FuelkWh | EF6: ='Pre-certificate'!$C$88 &EF2 -> Electricity*kWhe | EG6: ='Pre-certificate'!$C$89&EG2 -> Heat FuelskWhe | EH6: ='Pre-certificate'!$C$90&EH2 -> Heat*kWhe | EI6: ='Pre-certificate'!$C$88 &EI2 -> Electricity*kWhe/m2 | EJ6: ='Pre-certificate'!$C$89&EJ2 -> Heat FuelskWhe/m2 | EK6: ='Pre-certificate'!$C$90&EK2 -> Heat*kWhe/m2 | EL6: ='Pre-certificate'!C58 -> Electricity* | EM6: ='Pre-certificate'!C59 -> Heat Fuels | EN6: ='Pre-certificate'!C60 -> Heat* | EO6: ='Pre-certificate'!C61 -> Total | EP6: ='Pre-certificate'!C58 -> Electricity* | EQ6: ='Pre-certificate'!C59 -> Heat Fuels | ER6: ='Pre-certificate'!C60 -> Heat* | ES6: ='Pre-certificate'!C61 -> Total | ET6: ='A - General Information'!D45 -> Were the data entry fields clearly defined? | EU6: ='A - General Information'!D46 -> Was the required data readily available? | EV6: ='A - General Information'!D48 -> Please provide any further comments or suggestions in the space below. (300 characters max) | EW6: ='B- Landlord''s services '!D48 -> Were the data entry fields clearly defined? | EX6: ='B- Landlord''s services '!D49 -> Was the required data readily available? | EY6: ='B- Landlord''s services '!D51 -> Please provide any further comments or suggestions in the space below. (300 characters max) | EZ6: ='B1- Tenant energy supplies'!D40 -> Were the data entry fields clearly defined? | FA6: ='B1- Tenant energy supplies'!D41 -> Was the required data readily available? | FB6: ='B1- Tenant energy supplies'!D43 -> Please provide any further comments or suggestions in the space below. (300 characters max) | FC6: ='C - Additional Energy Data'!E55 -> Were the data entry fields clearly defined? | FD6: ='C - Additional Energy Data'!E56 -> Was the required data readily available? | FE6: ='C - Additional Energy Data'!E58 -> Please provide any further comments or suggestions in the space below. (300 characters max) | FF6: ='D - Separable Energy Uses'!E71 -> Were the data entry fields clearly defined? | FG6: ='D - Separable Energy Uses'!E72 -> Was the required data readily available? | FH6: ='D - Separable Energy Uses'!E74 -> Please provide any further comments or suggestions in the space below. (300 characters max) | FI6: ='E - Additions and subtractions'!D88 -> Were the data entry fields clearly defined? | FJ6: ='E - Additions and subtractions'!D89 -> Was the required data readily available? | FK6: ='E - Additions and subtractions'!D91 -> Please provide any further comments or suggestions in the space below. (300 characters max) | FL6: ='F - Functional spaces'!D82 -> Were the data entry fields clearly defined? | FM6: ='F - Functional spaces'!D83 -> Was the required data readily available? | FN6: ='F - Functional spaces'!D85 -> Please provide any further comments or suggestions in the space below. (300 characters max) | FO6: ='B- Landlord''s services '!D40 -> Tenant use of passed-through energy for HWS | FP6: ='B- Landlord''s services '!E34 -> Does this building have landlord's services energy metering?
A7: value | B7: ='A - General Information'!E11 -> 0 | C7: ='A - General Information'!E12 -> 0 | D7: ='A - General Information'!E13 -> 0 | E7: ='A - General Information'!E14 -> 0 | F7: ='A - General Information'!E15 -> 0 | G7: ='A - General Information'!E16 -> 0 | H7: ='A - General Information'!E18 -> 0 | I7: ='A - General Information'!E19 -> 0 | J7: ='A - General Information'!E20 -> 0 | K7: ='A - General Information'!E21 -> 0 | L7: ='A - General Information'!E22 -> 0 | M7: ='A - General Information'!E23 -> 0 | N7: ='A - General Information'!E25 -> 0 | O7: ='A - General Information'!E26 -> 0 | P7: =GIA -> 0 | Q7: ='A - General Information'!E29 -> m2 | R7: ='A - General Information'!E30 -> 0 | S7: ='A - General Information'!E31 -> 0 | T7: ='A - General Information'!I11 -> 0 | U7: ='A - General Information'!I12 -> 0 | V7: ='A - General Information'!I13 -> 0 | W7: ='A - General Information'!I14 -> 0 | Y7: ='A - General Information'!I15 -> 0 | Z7: ='A - General Information'!I16 -> 0 | AA7: ='A - General Information'!I17 -> 0 | AB7: ='A - General Information'!I18 -> 0 | AC7: ='A - General Information'!I20 -> 0 | AD7: ='A - General Information'!I20 -> 0 | AE7: ='A - General Information'!I21 -> 0 | AF7: ='A - General Information'!I22 -> 0 | AG7: ='A - General Information'!I23 -> 0 | AH7: ='A - General Information'!I25 -> 0 | AI7: ='A - General Information'!I26 -> 0 | AJ7: =NLA -> 0 | AK7: ='A - General Information'!I29 -> m2 | AL7: ='A - General Information'!I30 -> 0 | AM7: ='A - General Information'!I31 -> 0 | AN7: ='A - General Information'!E36 -> 0 | AO7: ='A - General Information'!I36 -> 0 | AP7: ='A - General Information'!E38 -> 0 | AQ7: ='B- Landlord''s services '!G33 -> <Select> | AR7: ='B- Landlord''s services '!E37 -> <Select> | AS7: ='B- Landlord''s services '!E38 -> <Select> | AV7: ='B- Landlord''s services '!E39 -> <Select> | AW7: ='B- Landlord''s services '!E40 -> <Select> | AX7: ='B- Landlord''s services '!I37 -> <Select> | AY7: ='B- Landlord''s services '!I38 -> <Select> | AZ7: ='B- Landlord''s services '!E42 -> 0 | BA7: ='B- Landlord''s services '!I42 -> 0 | BB7: ='B1- Tenant energy supplies'!E32 -> <Select> | BC7: ='Pre-certificate'!G36 -> 0 | BD7: ='D - Separable Energy Uses'!E14 -> Not in Use | BE7: ='D - Separable Energy Uses'!F14 -> 0 | BF7: ='D - Separable Energy Uses'!G14 -> 0 | BG7: ='E - Additions and subtractions'!E13 -> 0 | BH7: ='E - Additions and subtractions'!F13 -> 0 | BI7: ='E - Additions and subtractions'!G13 -> 0 | BJ7: ='E - Additions and subtractions'!H13 -> 0 | BK7: ='E - Additions and subtractions'!J13 -> 0 | BL7: ='E - Additions and subtractions'!L13 -> 0 | BM7: ='E - Additions and subtractions'!P13 -> 0 | BN7: ='D - Separable Energy Uses'!E15 -> Not in Use | BO7: ='D - Separable Energy Uses'!F15 -> 0 | BP7: ='D - Separable Energy Uses'!G15 -> 0 | BQ7: ='E - Additions and subtractions'!E14 -> 0 | BR7: ='E - Additions and subtractions'!F14 -> 0 | BS7: ='E - Additions and subtractions'!G14 -> 0 | BT7: ='E - Additions and subtractions'!H14 -> 0 | BU7: ='E - Additions and subtractions'!J14 -> 0 | BV7: ='E - Additions and subtractions'!L14 -> 0 | BW7: ='E - Additions and subtractions'!P14 -> 0 | BX7: ='D - Separable Energy Uses'!E16 -> Not in Use | BY7: ='D - Separable Energy Uses'!F16 -> 0 | BZ7: ='D - Separable Energy Uses'!G16 -> 0 | CA7: ='E - Additions and subtractions'!E15 -> 0 | CB7: ='E - Additions and subtractions'!F15 -> 0 | CC7: ='E - Additions and subtractions'!G15 -> 0 | CD7: ='E - Additions and subtractions'!H15 -> 0 | CE7: ='E - Additions and subtractions'!J15 -> 0 | CF7: ='E - Additions and subtractions'!L15 -> 0 | CG7: ='E - Additions and subtractions'!P15 -> 0 | CH7: ='D - Separable Energy Uses'!E17 -> Not in Use | CI7: ='D - Separable Energy Uses'!F17 -> 0 | CJ7: ='D - Separable Energy Uses'!G17 -> 0 | CK7: ='E - Additions and subtractions'!E16 -> 0 | CL7: ='E - Additions and subtractions'!F16 -> 0 | CM7: ='E - Additions and subtractions'!G16 -> 0 | CN7: ='E - Additions and subtractions'!H16 -> 0 | CO7: ='E - Additions and subtractions'!J16 -> 0 | CP7: ='E - Additions and subtractions'!L16 -> 0 | CQ7: ='E - Additions and subtractions'!P16 -> 0 | CS7: ='E - Additions and subtractions'!AQ159 -> 0 | CT7: ='E - Additions and subtractions'!AQ161 -> 0 | CU7: ='E - Additions and subtractions'!AQ163 -> 0 | CV7: ='E - Additions and subtractions'!AQ165 -> 0 | CW7: ='E - Additions and subtractions'!AQ167 -> 0 | CX7: ='E - Additions and subtractions'!AQ169 -> 0 | CY7: ='E - Additions and subtractions'!AQ171 -> 0 | CZ7: ='E - Additions and subtractions'!AQ173 -> 0 | DA7: ='E - Additions and subtractions'!AQ175 -> 0 | DB7: ='E - Additions and subtractions'!AQ177 -> 0 | DC7: ='E - Additions and subtractions'!AQ179 -> 0 | DD7: ='E - Additions and subtractions'!AQ181 -> 0 | DE7: ='F - Functional spaces'!H12 -> 0 | DF7: ='Pre-certificate'!M45 -> 0 | DG7: ='Pre-certificate'!M46 -> 0 | DH7: ='Pre-certificate'!M47 ->  | DI7: ='Pre-certificate'!M48 ->  | DJ7: ='Pre-certificate'!M49 ->  | DK7: ='Pre-certificate'!E68 ->  | DL7: ='Pre-certificate'!E69 ->  | DM7: ='Pre-certificate'!E70 ->  | DN7: ='Pre-certificate'!E71 -> 105 | DO7: ='Pre-certificate'!E72 ->  | DP7: ='Pre-certificate'!E73 ->  | DQ7: ='Pre-certificate'!E74 ->  | DR7: ='Pre-certificate'!E75 ->  | DS7: ='Pre-certificate'!H68 -> 0 | DT7: ='Pre-certificate'!H69 -> not known | DU7: ='Pre-certificate'!H70 -> not known | DV7: ='Pre-certificate'!H71 -> 0 | DW7: ='Pre-certificate'!C82 ->  | DX7: ='Pre-certificate'!D82 -> 0 | DY7: ='Pre-certificate'!E82 -> 0 | DZ7: ='Pre-certificate'!D88 -> 0 | EA7: ='Pre-certificate'!D89 -> 0 | EB7: ='Pre-certificate'!D90 -> 0 | EC7: ='Pre-certificate'!D91 -> 0 | ED7: ='Pre-certificate'!D92 -> 0 | EE7: ='Pre-certificate'!D93 -> 0 | EF7: ='Pre-certificate'!E88 -> 0 | EG7: ='Pre-certificate'!E89 -> 0 | EH7: ='Pre-certificate'!E90 -> 0 | EI7: ='Pre-certificate'!F88 ->  | EJ7: ='Pre-certificate'!F89 ->  | EK7: ='Pre-certificate'!F90 ->  | EL7: ='Pre-certificate'!D58 -> 0 | EM7: ='Pre-certificate'!D59 -> 0 | EN7: ='Pre-certificate'!D60 -> 0 | EO7: ='Pre-certificate'!D61 -> 0 | EP7: ='Pre-certificate'!F58 -> 0 | EQ7: ='Pre-certificate'!F59 -> 0 | ER7: ='Pre-certificate'!F60 -> 0 | ES7: ='Pre-certificate'!F61 -> 0 | ET7: ='A - General Information'!F45 -> <Select> | EU7: ='A - General Information'!F46 -> <Select> | EV7: ='A - General Information'!D49 -> 0 | EW7: ='B- Landlord''s services '!F48 -> <Select> | EX7: ='B- Landlord''s services '!F49 -> <Select> | EY7: ='B- Landlord''s services '!D52 -> 0 | EZ7: ='B1- Tenant energy supplies'!F40 -> <Select> | FA7: ='B1- Tenant energy supplies'!F41 -> <Select> | FB7: ='B1- Tenant energy supplies'!D44 -> 0 | FC7: ='C - Additional Energy Data'!H55 -> <Select> | FD7: ='C - Additional Energy Data'!H56 -> <Select> | FE7: ='C - Additional Energy Data'!E59 -> 0 | FF7: ='D - Separable Energy Uses'!G71 -> <Select> | FG7: ='D - Separable Energy Uses'!G72 -> <Select> | FH7: ='D - Separable Energy Uses'!E75 -> 0 | FI7: ='E - Additions and subtractions'!F88 -> <Select> | FJ7: ='E - Additions and subtractions'!F89 -> <Select> | FK7: ='E - Additions and subtractions'!D92 -> 0 | FL7: ='F - Functional spaces'!F82 -> <Select> | FM7: ='F - Functional spaces'!F83 -> <Select> | FN7: ='F - Functional spaces'!D86 -> 0 | FO7: ='B- Landlord''s services '!E40 -> <Select> | FP7: ='B- Landlord''s services '!I34 -> 0
A14: ADD FEEDBACK BY SHEET ON THE END

Sheet Energy calcs (hidden)
B3: Calculation of NDPR + Star Rating
B5: NDPR | C5: =(ActualkWhem2/AdjBenchMark) -> 
B6: Decimal star rating (DSR) | C6: =IF((C5)>2, 0,7-(3.5*C5)) -> 
B11: Energy data, separables etc
B14: =COLUMN(B14)-1 -> 1 | C14: =COLUMN(C14)-1 -> 2 | D14: 3 | E14: 4 | F14: 5 | G14: 6 | H14: 7 | I14: 8 | J14: 9 | K14: 10 | L14: 11 | M14: 12 | N14: 13 | O14: =COLUMN(O14)-1 -> 14 | P14: =COLUMN(P14)-1 -> 15 | Q14: 16 | R14: 17 | S14: 18 | T14: 19 | U14: 20 | V14: 21 | W14: 22 | X14: 23 | Y14: 24 | Z14: 25 | AA14: 26
C16: STAGE 1 | M16: STAGE 2
L17: on/off | M17: Separables
C18: Supply | D18: kWhe factor | E18: Metered | I18: Carbon | J18: Carbon dioxide emissions | M18: Total | N18: 2 | O18: 3 | P18: Adjustments for sub-meters | Q18: Separables &sub-metered deductions | V18: Delivered minus separables
C19: reference | E19: Energy | I19: Factor | L19: Desc | Q19: Total | R19: Energy | S19: Total kWhe | T19: Carbon dioxide emissions | X19: Energy | Y19: Energy | Z19: Carbon dioxide emissions
E20: kWh | F20: kWhe | G20: kWh/m2 | H20: kWhe/m2 | I20: kgCO2/kWh | J20: (kg CO2) | K20: (kg CO2/m2) | M20: kWh | N20: kWh | O20: kWh | P20: kWh | Q20: kWh | R20: kWh/m2 rated area | T20: (kg CO2) | U20: (kg CO2/m2) | V20: kWh | W20: kWhe | X20: kWhe/m2 rated area | Y20: kWh/m2 rated area | Z20: (kg CO2) | AA20: (kg CO2/m2)
B21: ='B- Landlord''s services '!E11 -> Mains Electricity | D21: =VLOOKUP(B21,FuelsTable,2,FALSE) -> 1 | E21: =SUMIF('B- Landlord''s services '!$E$11:$I$11,'Energy calcs'!$B21,'B- Landlord''s services '!$E$19:$I$19)+SUMIF('C - Additional Energy Data'!$G$12:$K$12,'Energy calcs'!$B21,'C - Additional Energy Data'!$G$20:$K$20) -> 0 | F21: =E21*D21 -> 0 | G21: =E21/NLA ->  | I21: =IF(ISERROR(VLOOKUP(B21,CarbFactInUse,5,FALSE)),VLOOKUP(B21,Lookups!$J$97:$L$117,3,FALSE),VLOOKUP(B21,CarbFactInUse,5,FALSE)) -> 0.55 | J21: =I21*E21 -> 0 | K21: =J21/NLA ->  | M21: =IF(ISERROR(VLOOKUP(B21,SepTotals,2,FALSE)),0,VLOOKUP(B21,SepTotals,2,FALSE)) -> 0 | N21: =SUMIF('D - Separable Energy Uses'!$K$64,'Energy calcs'!$B21,'D - Separable Energy Uses'!$K$65)+SUMIF('D - Separable Energy Uses'!$K$66,'Energy calcs'!$B21,'D - Separable Energy Uses'!$K$67)+SUMIF('D - Separable Energy Uses'!$K$68,'Energy calcs'!$B21,'D - Separable Energy Uses'!$K$69) | P21: =SUMIF('E - Additions and subtractions'!$D$13:$D$20,B21,'E - Additions and subtractions'!$L$13:$M$20) -> 0 | Q21: =-M21+P21 -> 0 | S21: =Q21*D21 -> 0 | T21: =I21*Q21 -> 0 | V21: =Q21+E21 -> 0 | W21: =V21*D21 -> 0 | X21: =(V21*D21)/RatedArea ->  | Y21: =V21/RatedArea ->  | Z21: =V21*I21 -> 0 | AA21: =Z21/RatedArea -> 
B22: =Lookups!J98 -> District Electricity | D22: =VLOOKUP(B22,FuelsTable,2,FALSE) -> 1 | E22: =SUMIF('B- Landlord''s services '!$E$11:$I$11,'Energy calcs'!$B22,'B- Landlord''s services '!$E$19:$I$19)+SUMIF('C - Additional Energy Data'!$G$12:$K$12,'Energy calcs'!$B22,'C - Additional Energy Data'!$G$20:$K$20) -> 0 | F22: =E22*D22 -> 0 | I22: =IF(ISERROR(VLOOKUP(B22,CarbFactInUse,5,FALSE)),VLOOKUP(B22,Lookups!$J$97:$L$117,3,FALSE),VLOOKUP(B22,CarbFactInUse,5,FALSE)) -> 0.55 | J22: =I22*E22 -> 0 | K22: =J22/NLA ->  | M22: =IF(ISERROR(VLOOKUP(B22,SepTotals,2,FALSE)),0,VLOOKUP(B22,SepTotals,2,FALSE)) -> 0 | P22: =SUMIF('E - Additions and subtractions'!$D$13:$D$20,B22,'E - Additions and subtractions'!$L$13:$M$20) -> 0 | Q22: =-M22+P22 -> 0 | S22: =Q22*D22 -> 0 | T22: =I22*Q22 -> 0 | V22: =Q22+E22 -> 0 | W22: =V22*D22 -> 0 | X22: =(V22*D22)/RatedArea ->  | Y22: =V22/RatedArea ->  | Z22: =V22*I22 -> 0 | AA22: =Z22/RatedArea -> 
B23: =Lookups!J99 -> Exported Electricity | D23: =VLOOKUP(B23,FuelsTable,2,FALSE) -> 1 | E23: =-SUMIF('B- Landlord''s services '!$E$11:$I$11,'Energy calcs'!$B23,'B- Landlord''s services '!$E$19:$I$19)+-SUMIF('C - Additional Energy Data'!$G$12:$K$12,'Energy calcs'!$B23,'C - Additional Energy Data'!$G$20:$K$20) -> 0 | F23: =E23*D23 -> 0 | I23: =IF(ISERROR(VLOOKUP(B23,CarbFactInUse,5,FALSE)),VLOOKUP(B23,Lookups!$J$97:$L$117,3,FALSE),VLOOKUP(B23,CarbFactInUse,5,FALSE)) -> -0.55 | J23: =-I23*E23 -> 0 | K23: =J23/NLA ->  | M23: =IF(ISERROR(VLOOKUP(B23,SepTotals,2,FALSE)),0,VLOOKUP(B23,SepTotals,2,FALSE)) -> 0 | P23: =SUMIF('E - Additions and subtractions'!$D$13:$D$20,B23,'E - Additions and subtractions'!$L$13:$M$20) -> 0 | Q23: 0 | S23: =Q23*D23 -> 0 | T23: =I23*Q23 -> 0 | V23: 0 | W23: =V23*D23 -> 0 | X23: =(V23*D23)/RatedArea ->  | Y23: =V23/RatedArea ->  | Z23: =V23*I23 -> 0 | AA23: =Z23/RatedArea -> 
B24: Estimated additions | D24: 1 | I24: =I21 -> 0.55 | P24: ='E - Additions and subtractions'!N13 -> 0 | Q24: =-M24+P24 -> 0 | S24: =Q24*D24 -> 0 | V24: =Q24+E24 -> 0 | W24: =V24*D24 -> 0 | X24: =(V24*D24)/RatedArea ->  | Y24: =V24/RatedArea ->  | Z24: =V24*I24 -> 0 | AA24: =Z24/RatedArea -> 
B25: Electricity from off site (exc renewables and CHP) | E25: =SUM(E21:E24) -> 0 | F25: =SUM(F21:F24) -> 0 | G25: =SUM(G21:G23) ->  | H25: =SUM(H21:H23) ->  | I25: =J25/E25 ->  | J25: =SUM(J21:J24) -> 0 | K25: =J25/NLA ->  | L25: Total kWh | M25: =SUM(M21:M24) -> 0 | N25: =SUM(N21:N24) -> 0 | O25: =SUM(O21:O24) -> 0 | P25: =SUM(P21:P24) -> 0 | Q25: =SUM(Q21:Q24) -> 0 | R25: =SUM(R21:R24) -> 0 | S25: =SUM(S21:S24) -> 0 | T25: =SUM(T21:T24) -> 0 | U25: =SUM(U21:U24) -> 0 | V25: 0 | W25: 0 | Z25: 0 | AA25: =SUM(AA21:AA24) -> 
I28: 13
I29: 7
B30: Natural Gas | C30: F | D30: =VLOOKUP(B30,FuelsTable,2,FALSE) -> 0.4 | E30: =SUMIF('B- Landlord''s services '!$E$11:$I$11,'Energy calcs'!$B30,'B- Landlord''s services '!$E$19:$I$19)+SUMIF('C - Additional Energy Data'!$G$12:$K$12,'Energy calcs'!$B30,'C - Additional Energy Data'!$G$20:$K$20) -> 0 | F30: =E30*D30 -> 0 | G30: =E30/NLA ->  | H30: =F30/NLA ->  | I30: =IF(ISERROR(VLOOKUP(B30,CarbFactInUse,5,FALSE)),VLOOKUP(B30,Lookups!$J$97:$L$117,3,FALSE),VLOOKUP(B30,CarbFactInUse,5,FALSE)) -> 0.194 | J30: =I30*E30 -> 0 | K30: =J30/NLA ->  | M30: =IF(ISERROR(VLOOKUP(B30,SepTotals,2,FALSE)),0,VLOOKUP(B30,SepTotals,2,FALSE)) -> 0 | P30: =SUMIF('E - Additions and subtractions'!$D$13:$D$20,B30,'E - Additions and subtractions'!$L$13:$M$20) -> 0 | Q30: =-M30+P30 -> 0 | S30: =Q30*D30 -> 0 | T30: =I30*Q30 -> 0 | V30: =Q30+E30 -> 0 | W30: =V30*D30 -> 0 | X30: =(V30*D30)/RatedArea ->  | Y30: =V30/RatedArea ->  | Z30: =V30*I30 -> 0 | AA30: =Z30/RatedArea -> 
B31: Oil | C31: F | D31: 0.4 | E31: =SUMIF('B- Landlord''s services '!$E$11:$I$11,'Energy calcs'!$B31,'B- Landlord''s services '!$E$19:$I$19)+SUMIF('C - Additional Energy Data'!$G$12:$K$12,'Energy calcs'!$B31,'C - Additional Energy Data'!$G$20:$K$20) -> 0 | F31: 0 | I31: =IF(ISERROR(VLOOKUP(B31,CarbFactInUse,5,FALSE)),VLOOKUP(B31,Lookups!$J$97:$L$117,3,FALSE),VLOOKUP(B31,CarbFactInUse,5,FALSE)) -> 0.265 | J31: 0 | M31: 0 | P31: =SUMIF('E - Additions and subtractions'!$D$13:$D$20,B31,'E - Additions and subtractions'!$L$13:$M$20) -> 0 | Q31: 0 | S31: 0 | T31: 0 | V31: =Q31+E31 -> 0 | W31: =V31*D31 -> 0 | Z31: 0
B32: LPG | C32: F | D32: 0.4 | E32: =SUMIF('B- Landlord''s services '!$E$11:$I$11,'Energy calcs'!$B32,'B- Landlord''s services '!$E$19:$I$19)+SUMIF('C - Additional Energy Data'!$G$12:$K$12,'Energy calcs'!$B32,'C - Additional Energy Data'!$G$20:$K$20) -> 0 | F32: 0 | I32: =IF(ISERROR(VLOOKUP(B32,CarbFactInUse,5,FALSE)),VLOOKUP(B32,Lookups!$J$97:$L$117,3,FALSE),VLOOKUP(B32,CarbFactInUse,5,FALSE)) -> 0.234 | J32: 0 | M32: 0 | P32: =SUMIF('E - Additions and subtractions'!$D$13:$D$20,B32,'E - Additions and subtractions'!$L$13:$M$20) -> 0 | Q32: 0 | S32: 0 | T32: 0 | V32: 0 | W32: 0 | Z32: 0
B33: Coal | C33: F | D33: 0.4 | E33: =SUMIF('B- Landlord''s services '!$E$11:$I$11,'Energy calcs'!$B33,'B- Landlord''s services '!$E$19:$I$19)+SUMIF('C - Additional Energy Data'!$G$12:$K$12,'Energy calcs'!$B33,'C - Additional Energy Data'!$G$20:$K$20) -> 0 | F33: 0 | I33: =IF(ISERROR(VLOOKUP(B33,CarbFactInUse,5,FALSE)),VLOOKUP(B33,Lookups!$J$97:$L$117,3,FALSE),VLOOKUP(B33,CarbFactInUse,5,FALSE)) -> 0.291 | J33: 0 | M33: 0 | P33: =SUMIF('E - Additions and subtractions'!$D$13:$D$20,B33,'E - Additions and subtractions'!$L$13:$M$20) -> 0 | Q33: 0 | S33: 0 | T33: 0 | V33: 0 | W33: 0 | Z33: 0
B34: Biomass | C34: F | D34: 0.4 | E34: =SUMIF('B- Landlord''s services '!$E$11:$I$11,'Energy calcs'!$B34,'B- Landlord''s services '!$E$19:$I$19)+SUMIF('C - Additional Energy Data'!$G$12:$K$12,'Energy calcs'!$B34,'C - Additional Energy Data'!$G$20:$K$20) -> 0 | F34: 0 | I34: =IF(ISERROR(VLOOKUP(B34,CarbFactInUse,5,FALSE)),VLOOKUP(B34,Lookups!$J$97:$L$117,3,FALSE),VLOOKUP(B34,CarbFactInUse,5,FALSE)) -> 0.025 | J34: 0 | M34: 0 | P34: =SUMIF('E - Additions and subtractions'!$D$13:$D$20,B34,'E - Additions and subtractions'!$L$13:$M$20) -> 0 | Q34: 0 | S34: 0 | T34: 0 | V34: 0 | W34: 0 | Z34: 0
B35: Biogas | C35: F | D35: 0.4 | E35: =SUMIF('B- Landlord''s services '!$E$11:$I$11,'Energy calcs'!$B35,'B- Landlord''s services '!$E$19:$I$19)+SUMIF('C - Additional Energy Data'!$G$12:$K$12,'Energy calcs'!$B35,'C - Additional Energy Data'!$G$20:$K$20) -> 0 | F35: 0 | I35: =IF(ISERROR(VLOOKUP(B35,CarbFactInUse,5,FALSE)),VLOOKUP(B35,Lookups!$J$97:$L$117,3,FALSE),VLOOKUP(B35,CarbFactInUse,5,FALSE)) -> 0.025 | J35: 0 | M35: 0 | P35: =SUMIF('E - Additions and subtractions'!$D$13:$D$20,B35,'E - Additions and subtractions'!$L$13:$M$20) -> 0 | Q35: 0 | S35: 0 | T35: 0 | V35: 0 | W35: 0 | Z35: 0
B36: Anthracite | C36: F | D36: 0.4 | E36: =SUMIF('B- Landlord''s services '!$E$11:$I$11,'Energy calcs'!$B36,'B- Landlord''s services '!$E$19:$I$19)+SUMIF('C - Additional Energy Data'!$G$12:$K$12,'Energy calcs'!$B36,'C - Additional Energy Data'!$G$20:$K$20) -> 0 | F36: 0 | I36: =IF(ISERROR(VLOOKUP(B36,CarbFactInUse,5,FALSE)),VLOOKUP(B36,Lookups!$J$97:$L$117,3,FALSE),VLOOKUP(B36,CarbFactInUse,5,FALSE)) -> 0.317 | J36: 0 | M36: 0 | P36: =SUMIF('E - Additions and subtractions'!$D$13:$D$20,B36,'E - Additions and subtractions'!$L$13:$M$20) -> 0 | Q36: 0 | S36: 0 | T36: 0 | V36: 0 | W36: 0 | Z36: 0
B37: Smokeless Fuel | C37: F | D37: 0.4 | E37: =SUMIF('B- Landlord''s services '!$E$11:$I$11,'Energy calcs'!$B37,'B- Landlord''s services '!$E$19:$I$19)+SUMIF('C - Additional Energy Data'!$G$12:$K$12,'Energy calcs'!$B37,'C - Additional Energy Data'!$G$20:$K$20) -> 0 | F37: 0 | I37: =IF(ISERROR(VLOOKUP(B37,CarbFactInUse,5,FALSE)),VLOOKUP(B37,Lookups!$J$97:$L$117,3,FALSE),VLOOKUP(B37,CarbFactInUse,5,FALSE)) -> 0.392 | J37: 0 | M37: 0 | P37: =SUMIF('E - Additions and subtractions'!$D$13:$D$20,B37,'E - Additions and subtractions'!$L$13:$M$20) -> 0 | Q37: 0 | S37: 0 | T37: 0 | V37: 0 | W37: 0 | Z37: 0
B38: District Heating | C38: T | D38: 0.5 | E38: =SUMIF('B- Landlord''s services '!$E$11:$I$11,'Energy calcs'!$B38,'B- Landlord''s services '!$E$19:$I$19)+SUMIF('C - Additional Energy Data'!$G$12:$K$12,'Energy calcs'!$B38,'C - Additional Energy Data'!$G$20:$K$20) -> 0 | F38: 0 | I38: =IF(ISERROR(VLOOKUP(B38,CarbFactInUse,5,FALSE)),VLOOKUP(B38,Lookups!$J$97:$L$117,3,FALSE),VLOOKUP(B38,CarbFactInUse,5,FALSE)) -> 0.2425 | J38: 0 | M38: 0 | P38: =SUMIF('E - Additions and subtractions'!$D$13:$D$20,B38,'E - Additions and subtractions'!$L$13:$M$20) -> 0 | Q38: 0 | S38: 0 | T38: 0 | V38: 0 | W38: 0 | Z38: 0
B39: District Cooling | C39: T | D39: 0.5 | E39: =SUMIF('B- Landlord''s services '!$E$11:$I$11,'Energy calcs'!$B39,'B- Landlord''s services '!$E$19:$I$19)+SUMIF('C - Additional Energy Data'!$G$12:$K$12,'Energy calcs'!$B39,'C - Additional Energy Data'!$G$20:$K$20) -> 0 | F39: 0 | I39: =IF(ISERROR(VLOOKUP(B39,CarbFactInUse,5,FALSE)),VLOOKUP(B39,Lookups!$J$97:$L$117,3,FALSE),VLOOKUP(B39,CarbFactInUse,5,FALSE)) -> 0.2425 | J39: 0 | M39: 0 | P39: =SUMIF('E - Additions and subtractions'!$D$13:$D$20,B39,'E - Additions and subtractions'!$L$13:$M$20) -> 0 | Q39: 0 | S39: 0 | T39: 0 | V39: 0 | W39: 0 | Z39: 0
B40: Waste Heat | C40: T | D40: 0.5 | E40: =SUMIF('B- Landlord''s services '!$E$11:$I$11,'Energy calcs'!$B40,'B- Landlord''s services '!$E$19:$I$19)+SUMIF('C - Additional Energy Data'!$G$12:$K$12,'Energy calcs'!$B40,'C - Additional Energy Data'!$G$20:$K$20) -> 0 | F40: 0 | I40: =IF(ISERROR(VLOOKUP(B40,CarbFactInUse,5,FALSE)),VLOOKUP(B40,Lookups!$J$97:$L$117,3,FALSE),VLOOKUP(B40,CarbFactInUse,5,FALSE)) -> 0.2425 | J40: 0 | M40: 0 | P40: =SUMIF('E - Additions and subtractions'!$D$13:$D$20,B40,'E - Additions and subtractions'!$L$13:$M$20) -> 0 | Q40: 0 | S40: 0 | T40: 0 | V40: 0 | W40: 0 | Z40: 0
B41: Exported Heat | C41: T | D41: 0.5 | E41: =-SUMIF('B- Landlord''s services '!$E$11:$I$11,'Energy calcs'!$B41,'B- Landlord''s services '!$E$19:$I$19)+-SUMIF('C - Additional Energy Data'!$G$12:$K$12,'Energy calcs'!$B41,'C - Additional Energy Data'!$G$20:$K$20) -> 0 | F41: =E41*D41 -> 0 | G41: =E41/NLA ->  | H41: =F41/NLA ->  | I41: =IF(ISERROR(VLOOKUP(B41,CarbFactInUse,5,FALSE)),VLOOKUP(B41,Lookups!$J$97:$L$117,3,FALSE),VLOOKUP(B41,CarbFactInUse,5,FALSE)) -> 0.2425 | J41: =I41*E41 -> 0 | K41: =J41/NLA ->  | M41: 0 | P41: =SUMIF('E - Additions and subtractions'!$D$13:$D$20,B41,'E - Additions and subtractions'!$L$13:$M$20) -> 0 | Q41: 0 | S41: 0 | T41: 0 | V41: 0 | W41: 0 | Z41: 0
B42: Other fuel | C42: F | D42: =VLOOKUP(B42,FuelsTable,2,FALSE) -> 0.4 | E42: =SUMIF('B- Landlord''s services '!$E$11:$I$11,'Energy calcs'!$B42,'B- Landlord''s services '!$E$19:$I$19)+SUMIF('C - Additional Energy Data'!$G$12:$K$12,'Energy calcs'!$B42,'C - Additional Energy Data'!$G$20:$K$20) -> 0 | F42: =E42*D42 -> 0 | G42: =E42/NLA ->  | H42: =F42/NLA ->  | I42: =IF(ISERROR(VLOOKUP(B42,CarbFactInUse,5,FALSE)),VLOOKUP(B42,Lookups!$J$97:$L$117,3,FALSE),VLOOKUP(B42,CarbFactInUse,5,FALSE)) -> 0.194 | J42: =I42*E42 -> 0 | K42: =J42/NLA ->  | M42: =IF(ISERROR(VLOOKUP(B42,SepTotals,2,FALSE)),0,VLOOKUP(B42,SepTotals,2,FALSE)) -> 0 | P42: =SUMIF('E - Additions and subtractions'!$D$13:$D$20,B42,'E - Additions and subtractions'!$L$13:$M$20) -> 0 | Q42: =-M42+P42 -> 0 | S42: =Q42*D42 -> 0 | T42: =I42*Q42 -> 0 | V42: =Q42+E42 -> 0 | W42: =V42*D42 -> 0 | X42: =(V42*D42)/RatedArea ->  | Y42: =V42/RatedArea ->  | Z42: =V42*I42 -> 0 | AA42: =Z42/RatedArea -> 
B43: Other thermal | C43: T | D43: 0.5 | E43: =SUMIF('B- Landlord''s services '!$E$11:$I$11,'Energy calcs'!$B43,'B- Landlord''s services '!$E$19:$I$19)+SUMIF('C - Additional Energy Data'!$G$12:$K$12,'Energy calcs'!$B43,'C - Additional Energy Data'!$G$20:$K$20) -> 0 | F43: 0 | I43: =IF(ISERROR(VLOOKUP(B43,CarbFactInUse,5,FALSE)),VLOOKUP(B43,Lookups!$J$97:$L$117,3,FALSE),VLOOKUP(B43,CarbFactInUse,5,FALSE)) -> 0.2425 | J43: 0 | M43: 0 | P43: =SUMIF('E - Additions and subtractions'!$D$13:$D$20,B43,'E - Additions and subtractions'!$L$13:$M$20) -> 0 | Q43: 0 | S43: 0 | T43: 0 | V43: 0 | W43: 0 | Z43: 0
B44: Fuel/thermal energy supplies | E44: =SUM(E30:E43) -> 0 | F44: =SUM(F30:F43) -> 0 | G44: =E44/NLA ->  | H44: =F44/NLA ->  | I44: =J44/E44 ->  | J44: =SUM(J30:J43) -> 0 | K44: =J44/RatedArea ->  | Q44: =SUM(Q30:Q43) -> 0 | R44: =SUM(R30:R43) -> 0 | S44: =SUM(S30:S43) -> 0 | T44: =SUM(T30:T43) -> 0 | V44: =SUM(V30:V43) -> 0 | W44: =SUM(W30:W43) -> 0 | X44: =(W44)/RatedArea ->  | Z44: =SUM(Z30:Z43) -> 0 | AA44: =Z44/RatedArea -> 
B46: TOTALS | E46: =E44+E25 -> 0 | F46: =F44+F25 -> 0 | H46: =H44+H25 ->  | J46: 0 | M46: =M44+M25 -> 0 | N46: 0 | O46: 0 | Q46: 0 | R46: 0 | S46: =S44+S25 -> 0 | T46: 0 | U46: 0 | V46: 0 | W46: 0 | Z46: 0 | AA46: =AA44+AA25 -> 
B47: Total Fuels | C47: F | E47: =SUMIF($C$30:$C$43,$C$47,E$30:E$43) -> 0 | F47: =SUMIF($C$30:$C$43,$C$47,F$30:F$43) -> 0 | G47: =SUMIF($C$30:$C$43,$C$47,G$30:G$43) ->  | H47: =SUMIF($C$30:$C$43,$C$47,H$30:H$43) ->  | J47: =SUMIF($C$30:$C$43,$C$47,J$30:J$43) -> 0 | M47: =SUMIF($C$30:$C$43,$C$47,M$30:M$43) -> 0 | N47: =SUMIF($C$30:$C$43,$C$47,N$30:N$43) -> 0 | O47: 0 | P47: 0 | Q47: 0 | S47: 0 | V47: =SUMIF($C$30:$C$43,$C$47,V$30:V$43) -> 0 | W47: =SUMIF($C$30:$C$43,$C$47,W$30:W$43) -> 0 | X47: =SUMIF($C$30:$C$43,$C$47,X$30:X$43) ->  | Z47: =SUMIF($C$30:$C$43,$C$47,Z$30:Z$43) -> 0
B48: Total heat | C48: T | E48: =SUMIF($C$30:$C$43,$C$48,E$30:E$43) -> 0 | F48: =SUMIF($C$30:$C$43,$C$48,F$30:F$43) -> 0 | G48: =SUMIF($C$30:$C$43,$C$48,G$30:G$43) ->  | H48: =SUMIF($C$30:$C$43,$C$48,H$30:H$43) ->  | J48: =SUMIF($C$30:$C$43,$C$48,J$30:J$43) -> 0 | M48: =SUMIF($C$30:$C$43,$C$48,M$30:M$43) -> 0 | N48: =SUMIF($C$30:$C$43,$C$48,N$30:N$43) -> 0 | O48: 0 | P48: 0 | Q48: 0 | S48: 0 | V48: =SUMIF($C$30:$C$43,$C$48,V$30:V$43) -> 0 | W48: =SUMIF($C$30:$C$43,$C$48,W$30:W$43) -> 0 | X48: =SUMIF($C$30:$C$43,$C$48,X$30:X$43) ->  | Z48: =SUMIF($C$30:$C$43,$C$48,Z$30:Z$43) -> 0
C52: Supply | D52: kWhe factor | E52: Metered | I52: Carbon | J52: Carbon dioxide emissions | M52: 1 | N52: 2 | O52: 3 | P52: Tenant non HVAC | Q52: Separables &sub-metered deductions | V52: Delivered minus separables
C53: reference | E53: Energy | I53: Factor | L53: Desc | M53: ='D - Separable Energy Uses'!G120 -> 0 | N53: ='D - Separable Energy Uses'!I120 -> 0 | O53: ='D - Separable Energy Uses'!K120 -> 0 | P53: Sub-meters | Q53: Total | R53: Energy | S53: Total kWhe | T53: Carbon dioxide emissions | X53: Energy | Y53: Energy | Z53: Carbon dioxide emissions
E54: kWh | F54: kWhe | G54: kWh/m2 | H54: kWhe/m2 | I54: kgCO2/kWh | J54: (kg CO2) | K54: (kg CO2/m2) | M54: kWh | N54: kWh | O54: kWh | P54: kWh | Q54: kWh | R54: kWh/m2 rated area | T54: (kg CO2) | U54: (kg CO2/m2) | V54: kWh | W54: kWhe | X54: kWhe/m2 rated area | Y54: kWh/m2 rated area | Z54: (kg CO2) | AA54: (kg CO2/m2)
B55: =Lookups!S112 -> Photovoltaics | C55: E | D55: =IF(ISNA(VLOOKUP(B55,RenTable,2,FALSE)),0,VLOOKUP(B55,RenTable,2,FALSE)) -> 1 | E55: =SUMIF('C - Additional Energy Data'!$G$35:$K$35,'Energy calcs'!$B55,'C - Additional Energy Data'!$G$41:$K$41) -> 0 | F55: =E55*D55 -> 0 | G55: =E55/NLA ->  | H55: =F55/NLA ->  | I55: =IF(ISNUMBER(VLOOKUP(B55,Lookups!$Q$18:$AB$37,Lookups!#REF!,FALSE)),VLOOKUP(B55,Lookups!$Q$18:$AB$37,Lookups!#REF!,FALSE),VLOOKUP('Energy calcs'!B55,Lookups!$J$97:$L$118,3,FALSE)) ->  | J55: =I55*E55 ->  | K55: =J55/NLA ->  | M55: =SUMIF('D - Separable Energy Uses'!$G$92,'Energy calcs'!$B55,'D - Separable Energy Uses'!$G$93)+SUMIF('D - Separable Energy Uses'!$G$94,'Energy calcs'!$B55,'D - Separable Energy Uses'!$G$95)+SUMIF('D - Separable Energy Uses'!$G$96,'Energy calcs'!$B55,'D - Separable Energy Uses'!$G$97) -> 0 | N55: =SUMIF('D - Separable Energy Uses'!$I$92,'Energy calcs'!$B55,'D - Separable Energy Uses'!$I$93)+SUMIF('D - Separable Energy Uses'!$I$94,'Energy calcs'!$B55,'D - Separable Energy Uses'!$I$95)+SUMIF('D - Separable Energy Uses'!$I$96,'Energy calcs'!$B55,'D - Separable Energy Uses'!$I$97) -> 0 | O55: =SUMIF('D - Separable Energy Uses'!$K$92,'Energy calcs'!$B55,'D - Separable Energy Uses'!$K$93)+SUMIF('D - Separable Energy Uses'!$K$94,'Energy calcs'!$B55,'D - Separable Energy Uses'!$K$95)+SUMIF('D - Separable Energy Uses'!$K$96,'Energy calcs'!$B55,'D - Separable Energy Uses'!$K$97) -> 0 | P55: =SUMIF('E - Additions and subtractions'!$AQ$124:$AQ$139,B55,'E - Additions and subtractions'!$AR$124:$AR$139) -> 0 | Q55: =SUM(M55:P55) -> 0 | S55: =Q55*D55 -> 0 | T55: =I55*Q55 ->  | V55: =IF(S55<E55,E55-Q55,0) -> 0 | W55: =V55*D55 -> 0 | X55: =(V55*D55)/RatedArea ->  | Y55: =V55/RatedArea ->  | Z55: =V55*I55 ->  | AA55: =Z55/RatedArea -> 
B56: =Lookups!S113 -> Wind Turbine | C56: E | D56: 1 | E56: =SUMIF('C - Additional Energy Data'!$G$35:$K$35,'Energy calcs'!$B56,'C - Additional Energy Data'!$G$41:$K$41) -> 0 | F56: 0 | G56: =E56/NLA ->  | H56: =F56/NLA ->  | I56: =IF(ISNUMBER(VLOOKUP(B56,Lookups!$Q$18:$AB$37,Lookups!#REF!,FALSE)),VLOOKUP(B56,Lookups!$Q$18:$AB$37,Lookups!#REF!,FALSE),VLOOKUP('Energy calcs'!B56,Lookups!$J$97:$L$118,3,FALSE)) ->  | J56: =I56*E56 ->  | K56: =J56/NLA ->  | M56: =SUMIF('D - Separable Energy Uses'!$G$92,'Energy calcs'!$B56,'D - Separable Energy Uses'!$G$93)+SUMIF('D - Separable Energy Uses'!$G$94,'Energy calcs'!$B56,'D - Separable Energy Uses'!$G$95)+SUMIF('D - Separable Energy Uses'!$G$96,'Energy calcs'!$B56,'D - Separable Energy Uses'!$G$97) -> 0 | N56: =SUMIF('D - Separable Energy Uses'!$I$92,'Energy calcs'!$B56,'D - Separable Energy Uses'!$I$93)+SUMIF('D - Separable Energy Uses'!$I$94,'Energy calcs'!$B56,'D - Separable Energy Uses'!$I$95)+SUMIF('D - Separable Energy Uses'!$I$96,'Energy calcs'!$B56,'D - Separable Energy Uses'!$I$97) -> 0 | O56: =SUMIF('D - Separable Energy Uses'!$K$92,'Energy calcs'!$B56,'D - Separable Energy Uses'!$K$93)+SUMIF('D - Separable Energy Uses'!$K$94,'Energy calcs'!$B56,'D - Separable Energy Uses'!$K$95)+SUMIF('D - Separable Energy Uses'!$K$96,'Energy calcs'!$B56,'D - Separable Energy Uses'!$K$97) -> 0 | P56: =SUMIF('E - Additions and subtractions'!$AQ$124:$AQ$139,B56,'E - Additions and subtractions'!$AR$124:$AR$139) -> 0 | Q56: =SUM(M56:P56) -> 0 | S56: =Q56*D56 -> 0 | T56: =I56*Q56 ->  | V56: =IF(S56<E56,E56-Q56,0) -> 0 | W56: =V56*D56 -> 0 | X56: =(V56*D56)/RatedArea ->  | Y56: =V56/RatedArea ->  | Z56: =V56*I56 ->  | AA56: =Z56/RatedArea -> 
B57: =Lookups!S114 -> Hydroelectric | C57: E | D57: 1 | E57: =SUMIF('C - Additional Energy Data'!$G$35:$K$35,'Energy calcs'!$B57,'C - Additional Energy Data'!$G$41:$K$41) -> 0 | F57: 0 | I57: =IF(ISNUMBER(VLOOKUP(B57,Lookups!$Q$18:$AB$37,Lookups!#REF!,FALSE)),VLOOKUP(B57,Lookups!$Q$18:$AB$37,Lookups!#REF!,FALSE),VLOOKUP('Energy calcs'!B57,Lookups!$J$97:$L$118,3,FALSE)) ->  | M57: =SUMIF('D - Separable Energy Uses'!$G$92,'Energy calcs'!$B57,'D - Separable Energy Uses'!$G$93)+SUMIF('D - Separable Energy Uses'!$G$94,'Energy calcs'!$B57,'D - Separable Energy Uses'!$G$95)+SUMIF('D - Separable Energy Uses'!$G$96,'Energy calcs'!$B57,'D - Separable Energy Uses'!$G$97) -> 0 | N57: =SUMIF('D - Separable Energy Uses'!$I$92,'Energy calcs'!$B57,'D - Separable Energy Uses'!$I$93)+SUMIF('D - Separable Energy Uses'!$I$94,'Energy calcs'!$B57,'D - Separable Energy Uses'!$I$95)+SUMIF('D - Separable Energy Uses'!$I$96,'Energy calcs'!$B57,'D - Separable Energy Uses'!$I$97) -> 0 | O57: =SUMIF('D - Separable Energy Uses'!$K$92,'Energy calcs'!$B57,'D - Separable Energy Uses'!$K$93)+SUMIF('D - Separable Energy Uses'!$K$94,'Energy calcs'!$B57,'D - Separable Energy Uses'!$K$95)+SUMIF('D - Separable Energy Uses'!$K$96,'Energy calcs'!$B57,'D - Separable Energy Uses'!$K$97) -> 0 | P57: =SUMIF('E - Additions and subtractions'!$AQ$124:$AQ$139,B57,'E - Additions and subtractions'!$AR$124:$AR$139) -> 0 | Q57: 0 | S57: 0 | V57: 0 | W57: 0
B58: =Lookups!S115 -> Solar Thermal | C58: H | D58: 0.5 | E58: =SUMIF('C - Additional Energy Data'!$G$35:$K$35,'Energy calcs'!$B58,'C - Additional Energy Data'!$G$41:$K$41) -> 0 | F58: 0 | I58: =IF(ISNUMBER(VLOOKUP(B58,Lookups!$Q$18:$AB$37,Lookups!#REF!,FALSE)),VLOOKUP(B58,Lookups!$Q$18:$AB$37,Lookups!#REF!,FALSE),VLOOKUP('Energy calcs'!B58,Lookups!$J$97:$L$118,3,FALSE)) ->  | M58: =SUMIF('D - Separable Energy Uses'!$G$92,'Energy calcs'!$B58,'D - Separable Energy Uses'!$G$93)+SUMIF('D - Separable Energy Uses'!$G$94,'Energy calcs'!$B58,'D - Separable Energy Uses'!$G$95)+SUMIF('D - Separable Energy Uses'!$G$96,'Energy calcs'!$B58,'D - Separable Energy Uses'!$G$97) -> 0 | N58: =SUMIF('D - Separable Energy Uses'!$I$92,'Energy calcs'!$B58,'D - Separable Energy Uses'!$I$93)+SUMIF('D - Separable Energy Uses'!$I$94,'Energy calcs'!$B58,'D - Separable Energy Uses'!$I$95)+SUMIF('D - Separable Energy Uses'!$I$96,'Energy calcs'!$B58,'D - Separable Energy Uses'!$I$97) -> 0 | O58: =SUMIF('D - Separable Energy Uses'!$K$92,'Energy calcs'!$B58,'D - Separable Energy Uses'!$K$93)+SUMIF('D - Separable Energy Uses'!$K$94,'Energy calcs'!$B58,'D - Separable Energy Uses'!$K$95)+SUMIF('D - Separable Energy Uses'!$K$96,'Energy calcs'!$B58,'D - Separable Energy Uses'!$K$97) -> 0 | P58: =SUMIF('E - Additions and subtractions'!$AQ$124:$AQ$139,B58,'E - Additions and subtractions'!$AR$124:$AR$139) -> 0 | Q58: 0 | S58: 0 | V58: 0 | W58: 0
B59: =Lookups!S116 -> Site-produced Biofuels | C59: F | D59: 0.4 | E59: =SUMIF('C - Additional Energy Data'!$G$35:$K$35,'Energy calcs'!$B59,'C - Additional Energy Data'!$G$41:$K$41) -> 0 | F59: 0 | I59: =IF(ISNUMBER(VLOOKUP(B59,Lookups!$Q$18:$AB$37,Lookups!#REF!,FALSE)),VLOOKUP(B59,Lookups!$Q$18:$AB$37,Lookups!#REF!,FALSE),VLOOKUP('Energy calcs'!B59,Lookups!$J$97:$L$118,3,FALSE)) ->  | M59: =SUMIF('D - Separable Energy Uses'!$G$92,'Energy calcs'!$B59,'D - Separable Energy Uses'!$G$93)+SUMIF('D - Separable Energy Uses'!$G$94,'Energy calcs'!$B59,'D - Separable Energy Uses'!$G$95)+SUMIF('D - Separable Energy Uses'!$G$96,'Energy calcs'!$B59,'D - Separable Energy Uses'!$G$97) -> 0 | N59: =SUMIF('D - Separable Energy Uses'!$I$92,'Energy calcs'!$B59,'D - Separable Energy Uses'!$I$93)+SUMIF('D - Separable Energy Uses'!$I$94,'Energy calcs'!$B59,'D - Separable Energy Uses'!$I$95)+SUMIF('D - Separable Energy Uses'!$I$96,'Energy calcs'!$B59,'D - Separable Energy Uses'!$I$97) -> 0 | O59: =SUMIF('D - Separable Energy Uses'!$K$92,'Energy calcs'!$B59,'D - Separable Energy Uses'!$K$93)+SUMIF('D - Separable Energy Uses'!$K$94,'Energy calcs'!$B59,'D - Separable Energy Uses'!$K$95)+SUMIF('D - Separable Energy Uses'!$K$96,'Energy calcs'!$B59,'D - Separable Energy Uses'!$K$97) -> 0 | P59: =SUMIF('E - Additions and subtractions'!$AQ$124:$AQ$139,B59,'E - Additions and subtractions'!$AR$124:$AR$139) -> 0 | Q59: 0 | S59: 0 | V59: 0 | W59: 0
B60: =Lookups!S117 -> Other | D60: 0 | E60: =SUMIF('C - Additional Energy Data'!$G$35:$K$35,'Energy calcs'!$B60,'C - Additional Energy Data'!$G$41:$K$41) -> 0 | F60: 0 | I60: =IF(ISNUMBER(VLOOKUP(B60,Lookups!$Q$18:$AB$37,Lookups!#REF!,FALSE)),VLOOKUP(B60,Lookups!$Q$18:$AB$37,Lookups!#REF!,FALSE),VLOOKUP('Energy calcs'!B60,Lookups!$J$97:$L$118,3,FALSE)) ->  | M60: =SUMIF('D - Separable Energy Uses'!$G$92,'Energy calcs'!$B60,'D - Separable Energy Uses'!$G$93)+SUMIF('D - Separable Energy Uses'!$G$94,'Energy calcs'!$B60,'D - Separable Energy Uses'!$G$95)+SUMIF('D - Separable Energy Uses'!$G$96,'Energy calcs'!$B60,'D - Separable Energy Uses'!$G$97) -> 0 | N60: =SUMIF('D - Separable Energy Uses'!$I$92,'Energy calcs'!$B60,'D - Separable Energy Uses'!$I$93)+SUMIF('D - Separable Energy Uses'!$I$94,'Energy calcs'!$B60,'D - Separable Energy Uses'!$I$95)+SUMIF('D - Separable Energy Uses'!$I$96,'Energy calcs'!$B60,'D - Separable Energy Uses'!$I$97) -> 0 | O60: =SUMIF('D - Separable Energy Uses'!$K$92,'Energy calcs'!$B60,'D - Separable Energy Uses'!$K$93)+SUMIF('D - Separable Energy Uses'!$K$94,'Energy calcs'!$B60,'D - Separable Energy Uses'!$K$95)+SUMIF('D - Separable Energy Uses'!$K$96,'Energy calcs'!$B60,'D - Separable Energy Uses'!$K$97) -> 0 | P60: =SUMIF('E - Additions and subtractions'!$AQ$124:$AQ$139,B60,'E - Additions and subtractions'!$AR$124:$AR$139) -> 0 | Q60: 0 | S60: 0 | V60: 0 | W60: 0
B61: =Lookups!S118 -> 0 | D61: 0 | E61: =SUMIF('C - Additional Energy Data'!$G$35:$K$35,'Energy calcs'!$B61,'C - Additional Energy Data'!$G$41:$K$41) -> 0 | F61: 0 | I61: =IF(ISNUMBER(VLOOKUP(B61,Lookups!$Q$18:$AB$37,Lookups!#REF!,FALSE)),VLOOKUP(B61,Lookups!$Q$18:$AB$37,Lookups!#REF!,FALSE),VLOOKUP('Energy calcs'!B61,Lookups!$J$97:$L$118,3,FALSE)) ->  | M61: =SUMIF('D - Separable Energy Uses'!$G$92,'Energy calcs'!$B61,'D - Separable Energy Uses'!$G$93)+SUMIF('D - Separable Energy Uses'!$G$94,'Energy calcs'!$B61,'D - Separable Energy Uses'!$G$95)+SUMIF('D - Separable Energy Uses'!$G$96,'Energy calcs'!$B61,'D - Separable Energy Uses'!$G$97) -> 0 | N61: =SUMIF('D - Separable Energy Uses'!$I$92,'Energy calcs'!$B61,'D - Separable Energy Uses'!$I$93)+SUMIF('D - Separable Energy Uses'!$I$94,'Energy calcs'!$B61,'D - Separable Energy Uses'!$I$95)+SUMIF('D - Separable Energy Uses'!$I$96,'Energy calcs'!$B61,'D - Separable Energy Uses'!$I$97) -> 0 | O61: =SUMIF('D - Separable Energy Uses'!$K$92,'Energy calcs'!$B61,'D - Separable Energy Uses'!$K$93)+SUMIF('D - Separable Energy Uses'!$K$94,'Energy calcs'!$B61,'D - Separable Energy Uses'!$K$95)+SUMIF('D - Separable Energy Uses'!$K$96,'Energy calcs'!$B61,'D - Separable Energy Uses'!$K$97) -> 0 | P61: =SUMIF('E - Additions and subtractions'!$AQ$124:$AQ$139,B61,'E - Additions and subtractions'!$AR$124:$AR$139) -> 0 | Q61: 0 | S61: 0 | V61: 0 | W61: 0
B62: TOTALS | D62: 0 | E62: =SUM(E55:E61) -> 0 | F62: =SUM(F55:F61) -> 0 | V62: =SUM(V55:V61) -> 0 | W62: =SUM(W55:W61) -> 0 | X62: =W62/RatedArea ->  | Y62: =V62/RatedArea -> 
B63: Total Elec | C63: E | E63: =SUMIF($C$55:$C$61,$C63,E$55:E$61) -> 0 | F63: =SUMIF($C$55:$C$61,$C63,F$55:F$61) -> 0 | G63: =SUMIF($C$55:$C$61,$C63,G$55:G$61) ->  | H63: =SUMIF($C$55:$C$61,$C63,H$55:H$61) ->  | V63: =SUMIF($C$55:$C$61,$C63,V$55:V$61) -> 0 | W63: 0 | X63: =W63/RatedArea ->  | Y63: =V63/RatedArea -> 
B64: Total Fuels | C64: F | E64: =SUMIF($C$55:$C$61,$C64,E$55:E$61) -> 0 | F64: 0 | V64: 0 | W64: 0 | X64: =W64/RatedArea ->  | Y64: =V64/RatedArea -> 
B65: Total heat | C65: H | E65: 0 | F65: 0 | V65: 0 | W65: 0
B69: =COLUMN(B69)-1 -> 1 | C69: =COLUMN(C69)-1 -> 2 | D69: 3 | E69: 4 | F69: 5 | G69: 6 | H69: 7 | I69: 8 | J69: 9 | K69: 10
C71: STAGE 1
C73: Supply | D73: kWhe factor | E73: Metered | I73: Carbon | J73: Carbon dioxide emissions
C74: reference | E74: Energy | I74: Factor
E75: kWh | F75: kWhe | G75: kWh/m2 | H75: kWhe/m2 | I75: kgCO2/kWh | J75: (kg CO2) | K75: (kg CO2/m2)
B76: =B21 -> Mains Electricity | D76: =VLOOKUP(B76,FuelsTable,2,FALSE) -> 1 | E76: =SUMIF('B1- Tenant energy supplies'!$E$11:$I$11,'Energy calcs'!$B76,'B1- Tenant energy supplies'!$E$19:$I$19) -> 0 | F76: =E76*D76 -> 0 | G76: =E76/NLA ->  | H76: =F76/NLA ->  | I76: =IF(ISERROR(VLOOKUP(B76,CarbFactInUse,5,FALSE)),VLOOKUP(B76,Lookups!$J$97:$L$110,3,FALSE),VLOOKUP(B76,CarbFactInUse,5,FALSE)) -> 0.55 | J76: =I76*E76 -> 0 | K76: =J76/NLA -> 
B77: =B22 -> District Electricity | D77: =VLOOKUP(B77,FuelsTable,2,FALSE) -> 1 | E77: =SUMIF('B1- Tenant energy supplies'!$E$11:$I$11,'Energy calcs'!$B77,'B1- Tenant energy supplies'!$E$19:$I$19) -> 0 | F77: =E77*D77 -> 0 | G77: =E77/NLA ->  | H77: =F77/NLA ->  | I77: =IF(ISERROR(VLOOKUP(B77,CarbFactInUse,5,FALSE)),VLOOKUP(B77,Lookups!$J$97:$L$110,3,FALSE),VLOOKUP(B77,CarbFactInUse,5,FALSE)) -> 0.55 | J77: =I77*E77 -> 0 | K77: =J77/NLA -> 
B78: =B23 -> Exported Electricity
B79: Electricity from off site (exc renewables and CHP) | E79: =SUM(E76:E77) -> 0 | F79: =SUM(F76:F77) -> 0 | G79: =E79/NLA ->  | H79: =F79/NLA ->  | I79: =J79/E79 ->  | J79: =SUM(J76:J77) -> 0 | K79: =J79/NLA -> 
I82: 13
I83: 7
B84: Natural Gas | C84: F | D84: =VLOOKUP(B84,FuelsTable,2,FALSE) -> 0.4 | E84: =SUMIF('B1- Tenant energy supplies'!$E$11:$I$11,'Energy calcs'!$B84,'B1- Tenant energy supplies'!$E$19:$I$19) -> 0 | F84: =E84*D84 -> 0 | G84: =E84/NLA ->  | H84: =F84/NLA ->  | I84: =IF(ISERROR(VLOOKUP(B84,CarbFactInUse,5,FALSE)),VLOOKUP(B84,Lookups!$J$97:$L$110,3,FALSE),VLOOKUP(B84,CarbFactInUse,5,FALSE)) -> 0.194 | J84: =I84*E84 -> 0 | K84: =J84/NLA -> 
B85: Oil | C85: F | D85: 0.4 | E85: =SUMIF('B1- Tenant energy supplies'!$E$11:$I$11,'Energy calcs'!$B85,'B1- Tenant energy supplies'!$E$19:$I$19) -> 0 | F85: 0 | I85: =IF(ISERROR(VLOOKUP(B85,CarbFactInUse,5,FALSE)),VLOOKUP(B85,Lookups!$J$97:$L$110,3,FALSE),VLOOKUP(B85,CarbFactInUse,5,FALSE)) -> 0.265 | J85: 0
B86: LPG | C86: F | D86: 0.4 | E86: =SUMIF('B1- Tenant energy supplies'!$E$11:$I$11,'Energy calcs'!$B86,'B1- Tenant energy supplies'!$E$19:$I$19) -> 0 | F86: 0 | I86: =IF(ISERROR(VLOOKUP(B86,CarbFactInUse,5,FALSE)),VLOOKUP(B86,Lookups!$J$97:$L$110,3,FALSE),VLOOKUP(B86,CarbFactInUse,5,FALSE)) -> 0.234 | J86: 0
B87: Coal | C87: F | D87: 0.4 | E87: =SUMIF('B1- Tenant energy supplies'!$E$11:$I$11,'Energy calcs'!$B87,'B1- Tenant energy supplies'!$E$19:$I$19) -> 0 | F87: 0 | I87: =IF(ISERROR(VLOOKUP(B87,CarbFactInUse,5,FALSE)),VLOOKUP(B87,Lookups!$J$97:$L$110,3,FALSE),VLOOKUP(B87,CarbFactInUse,5,FALSE)) -> 0.291 | J87: 0
B88: Biomass | C88: F | D88: 0.4 | E88: =SUMIF('B1- Tenant energy supplies'!$E$11:$I$11,'Energy calcs'!$B88,'B1- Tenant energy supplies'!$E$19:$I$19) -> 0 | F88: 0 | I88: =IF(ISERROR(VLOOKUP(B88,CarbFactInUse,5,FALSE)),VLOOKUP(B88,Lookups!$J$97:$L$110,3,FALSE),VLOOKUP(B88,CarbFactInUse,5,FALSE)) -> 0.025 | J88: 0
B89: Biogas | C89: F | D89: 0.4 | E89: =SUMIF('B1- Tenant energy supplies'!$E$11:$I$11,'Energy calcs'!$B89,'B1- Tenant energy supplies'!$E$19:$I$19) -> 0 | F89: 0 | I89: =IF(ISERROR(VLOOKUP(B89,CarbFactInUse,5,FALSE)),VLOOKUP(B89,Lookups!$J$97:$L$110,3,FALSE),VLOOKUP(B89,CarbFactInUse,5,FALSE)) -> 0.025 | J89: 0
B90: Anthracite | C90: F | D90: 0.4 | E90: =SUMIF('B1- Tenant energy supplies'!$E$11:$I$11,'Energy calcs'!$B90,'B1- Tenant energy supplies'!$E$19:$I$19) -> 0 | F90: 0 | I90: =IF(ISERROR(VLOOKUP(B90,CarbFactInUse,5,FALSE)),VLOOKUP(B90,Lookups!$J$97:$L$110,3,FALSE),VLOOKUP(B90,CarbFactInUse,5,FALSE)) -> 0.317 | J90: 0
B91: Smokeless Fuel | C91: F | D91: 0.4 | E91: =SUMIF('B1- Tenant energy supplies'!$E$11:$I$11,'Energy calcs'!$B91,'B1- Tenant energy supplies'!$E$19:$I$19) -> 0 | F91: 0 | I91: =IF(ISERROR(VLOOKUP(B91,CarbFactInUse,5,FALSE)),VLOOKUP(B91,Lookups!$J$97:$L$110,3,FALSE),VLOOKUP(B91,CarbFactInUse,5,FALSE)) -> 0.392 | J91: 0
B92: District Heating | C92: T | D92: 0.5 | E92: =SUMIF('B1- Tenant energy supplies'!$E$11:$I$11,'Energy calcs'!$B92,'B1- Tenant energy supplies'!$E$19:$I$19) -> 0 | F92: 0 | I92: =IF(ISERROR(VLOOKUP(B92,CarbFactInUse,5,FALSE)),VLOOKUP(B92,Lookups!$J$97:$L$110,3,FALSE),VLOOKUP(B92,CarbFactInUse,5,FALSE)) -> 0.2425 | J92: 0
B93: District Cooling | C93: T | D93: 0.5 | E93: =SUMIF('B1- Tenant energy supplies'!$E$11:$I$11,'Energy calcs'!$B93,'B1- Tenant energy supplies'!$E$19:$I$19) -> 0 | F93: 0 | I93: =IF(ISERROR(VLOOKUP(B93,CarbFactInUse,5,FALSE)),VLOOKUP(B93,Lookups!$J$97:$L$110,3,FALSE),VLOOKUP(B93,CarbFactInUse,5,FALSE)) -> 0.2425 | J93: 0
B94: Waste Heat | C94: T | D94: 0.5 | E94: =SUMIF('B1- Tenant energy supplies'!$E$11:$I$11,'Energy calcs'!$B94,'B1- Tenant energy supplies'!$E$19:$I$19) -> 0 | F94: 0 | I94: =IF(ISERROR(VLOOKUP(B94,CarbFactInUse,5,FALSE)),VLOOKUP(B94,Lookups!$J$97:$L$110,3,FALSE),VLOOKUP(B94,CarbFactInUse,5,FALSE)) -> 0.2425 | J94: 0
B95: Other fuel | C95: T | D95: 0.4 | E95: =SUMIF('B1- Tenant energy supplies'!$E$11:$I$11,'Energy calcs'!$B95,'B1- Tenant energy supplies'!$E$19:$I$19) -> 0 | F95: 0 | I95: =IF(ISERROR(VLOOKUP(B95,CarbFactInUse,5,FALSE)),VLOOKUP(B95,Lookups!$J$97:$L$117,3,FALSE),VLOOKUP(B95,CarbFactInUse,5,FALSE)) -> 0.194 | J95: 0
B96: Other thermal | C96: T | D96: =VLOOKUP(B96,FuelsTable,2,FALSE) -> 0.5 | E96: =SUMIF('B1- Tenant energy supplies'!$E$11:$I$11,'Energy calcs'!$B96,'B1- Tenant energy supplies'!$E$19:$I$19) -> 0 | F96: =E96*D96 -> 0 | G96: =E96/NLA ->  | H96: =F96/NLA ->  | I96: =IF(ISERROR(VLOOKUP(B96,CarbFactInUse,5,FALSE)),VLOOKUP(B96,Lookups!$J$97:$L$117,3,FALSE),VLOOKUP(B96,CarbFactInUse,5,FALSE)) -> 0.2425 | J96: =I96*E96 -> 0 | K96: =J96/NLA -> 
B97: Fuel/thermal energy supplies | E97: =SUM(E84:E96) -> 0 | F97: =SUM(F84:F96) -> 0 | G97: =E97/NLA ->  | H97: =F97/NLA ->  | I97: =J97/E97 ->  | J97: =SUM(J84:J96) -> 0 | K97: =J97/NLA -> 
B99: TOTALS | E99: =E97+E79 -> 0 | F99: 0 | J99: 0
B100: Total Fuels | C100: F | E100: =SUMIF($C$30:$C$43,$C$47,E$30:E$43) -> 0 | F100: =SUMIF($C$30:$C$43,$C$47,F$30:F$43) -> 0 | G100: =SUMIF($C$30:$C$43,$C$47,G$30:G$43) ->  | H100: =SUMIF($C$30:$C$43,$C$47,H$30:H$43) -> 
B101: Total heat | C101: T | E101: =SUMIF($C$30:$C$43,$C$48,E$30:E$43) -> 0 | F101: =SUMIF($C$30:$C$43,$C$48,F$30:F$43) -> 0 | G101: =SUMIF($C$30:$C$43,$C$48,G$30:G$43) ->  | H101: =SUMIF($C$30:$C$43,$C$48,H$30:H$43) -> 

Sheet Benchmarks (hidden)
D3: Summary of benchmark adjustment process
D5: Standard benchmark | E5: 105
D6: Hours of use / void area adjustment | E6: =W51 -> 
D7: Heating DD adjustment | E7: =F104 -> 
D8: Cooling DD adjustment | E8: =BB99 -> 
D9: Adjusted benchmark | E9: =SUM(E5:E8) -> 
Z15: Separables
Z16: No. | AA16: Area | AB16: Name
D17: BMh adj(gas) constant 1 | E17: 51.75 | H17: GIA | I17: =GIA -> 0 | Z17: 1 | AA17: =IF(ISERROR(SUMIF('D - Separable Energy Uses'!$E$33:$E$42,Benchmarks!Z17,'D - Separable Energy Uses'!$G$33:$G$42)/COUNTIF('D - Separable Energy Uses'!$E$33:$E$42,Benchmarks!Z17)),"",SUMIF('D - Separable Energy Uses'!$E$33:$E$42,Benchmarks!Z17,'D - Separable Energy Uses'!$G$33:$G$42)/COUNTIF('D - Separable Energy Uses'!$E$33:$E$42,Benchmarks!Z17)) ->  | AB17: =IF(ISERROR(VLOOKUP(Z17,SepTable,2,FALSE)),"",VLOOKUP(Z17,SepTable,2,FALSE)) -> 
D18: BMh adj(gas) constant 2 | E18: 0.2063 | H18: NLA (Tot) | I18: =NLA -> 0 | Z18: 2 | AA18: =IF(ISERROR(SUMIF('D - Separable Energy Uses'!$E$33:$E$42,Benchmarks!Z18,'D - Separable Energy Uses'!$G$33:$G$42)/COUNTIF('D - Separable Energy Uses'!$E$33:$E$42,Benchmarks!Z18)),"",SUMIF('D - Separable Energy Uses'!$E$33:$E$42,Benchmarks!Z18,'D - Separable Energy Uses'!$G$33:$G$42)/COUNTIF('D - Separable Energy Uses'!$E$33:$E$42,Benchmarks!Z18)) -> 
D19: BMh adj(elec) constant 1 | E19: 29.953 | H19: Separable 1 | I19: =AA27 -> 0 | Z19: 3 | AA19: =IF(ISERROR(SUMIF('D - Separable Energy Uses'!$E$33:$E$42,Benchmarks!Z19,'D - Separable Energy Uses'!$G$33:$G$42)/COUNTIF('D - Separable Energy Uses'!$E$33:$E$42,Benchmarks!Z19)),"",SUMIF('D - Separable Energy Uses'!$E$33:$E$42,Benchmarks!Z19,'D - Separable Energy Uses'!$G$33:$G$42)/COUNTIF('D - Separable Energy Uses'!$E$33:$E$42,Benchmarks!Z19)) -> 
D20: BMh adj(elec) constant 2 | E20: 0.3762 | Z20: 4 | AA20: =IF(ISERROR(SUMIF('D - Separable Energy Uses'!$E$33:$E$42,Benchmarks!Z20,'D - Separable Energy Uses'!$G$33:$G$42)/COUNTIF('D - Separable Energy Uses'!$E$33:$E$42,Benchmarks!Z20)),"",SUMIF('D - Separable Energy Uses'!$E$33:$E$42,Benchmarks!Z20,'D - Separable Energy Uses'!$G$33:$G$42)/COUNTIF('D - Separable Energy Uses'!$E$33:$E$42,Benchmarks!Z20)) -> 
D21: Fuels kWhe | E21: 0.4 | Z21: 5 | AA21: =IF(ISERROR(SUMIF('D - Separable Energy Uses'!$E$33:$E$42,Benchmarks!Z21,'D - Separable Energy Uses'!$G$33:$G$42)/COUNTIF('D - Separable Energy Uses'!$E$33:$E$42,Benchmarks!Z21)),"",SUMIF('D - Separable Energy Uses'!$E$33:$E$42,Benchmarks!Z21,'D - Separable Energy Uses'!$G$33:$G$42)/COUNTIF('D - Separable Energy Uses'!$E$33:$E$42,Benchmarks!Z21)) -> 
H22: Net NLA post separables | I22: =I18-SUM(I19:I21) -> 0 | Z22: 6 | AA22: =IF(ISERROR(SUMIF('D - Separable Energy Uses'!$E$33:$E$42,Benchmarks!Z22,'D - Separable Energy Uses'!$G$33:$G$42)/COUNTIF('D - Separable Energy Uses'!$E$33:$E$42,Benchmarks!Z22)),"",SUMIF('D - Separable Energy Uses'!$E$33:$E$42,Benchmarks!Z22,'D - Separable Energy Uses'!$G$33:$G$42)/COUNTIF('D - Separable Energy Uses'!$E$33:$E$42,Benchmarks!Z22)) -> 
D23: Benchmark allowance | E23: 105 | H23: Rated area NLA (o) | I23: =(I18-SUM(I19:I21))*(1-L51) ->  | Z23: 7 | AA23: =IF(ISERROR(SUMIF('D - Separable Energy Uses'!$E$33:$E$42,Benchmarks!Z23,'D - Separable Energy Uses'!$G$33:$G$42)/COUNTIF('D - Separable Energy Uses'!$E$33:$E$42,Benchmarks!Z23)),"",SUMIF('D - Separable Energy Uses'!$E$33:$E$42,Benchmarks!Z23,'D - Separable Energy Uses'!$G$33:$G$42)/COUNTIF('D - Separable Energy Uses'!$E$33:$E$42,Benchmarks!Z23)) -> 
D24: Wks/Year | E24: 52 | Z24: 8 | AA24: =IF(ISERROR(SUMIF('D - Separable Energy Uses'!$E$33:$E$42,Benchmarks!Z24,'D - Separable Energy Uses'!$G$33:$G$42)/COUNTIF('D - Separable Energy Uses'!$E$33:$E$42,Benchmarks!Z24)),"",SUMIF('D - Separable Energy Uses'!$E$33:$E$42,Benchmarks!Z24,'D - Separable Energy Uses'!$G$33:$G$42)/COUNTIF('D - Separable Energy Uses'!$E$33:$E$42,Benchmarks!Z24)) -> 
Z25: 9 | AA25: =IF(ISERROR(SUMIF('D - Separable Energy Uses'!$E$33:$E$42,Benchmarks!Z25,'D - Separable Energy Uses'!$G$33:$G$42)/COUNTIF('D - Separable Energy Uses'!$E$33:$E$42,Benchmarks!Z25)),"",SUMIF('D - Separable Energy Uses'!$E$33:$E$42,Benchmarks!Z25,'D - Separable Energy Uses'!$G$33:$G$42)/COUNTIF('D - Separable Energy Uses'!$E$33:$E$42,Benchmarks!Z25)) -> 
F26: Atot | K26: Wv | L26: VWA | M26: Wa=Wyr-Wv | N26: hATot,yr | O26: hAv,Tot,yr | P26: Average occupied hours per occupied week | Q26: Calc of average hours per week across NLA | R26: BMh adj(gas) | S26: BMh adj(elec) | T26: BMh adj(Tot) | U26: kWhe allowed (gas) | V26: kWhe allowed (elec) | W26: kWhe allowed | Z26: 10
F27: NLA area | K27: void | L27: Void-weighted | M27: Occupied | Z27: Total | AA27: =SUM(AA17:AA26) -> 0
D28: ='F - Functional spaces'!D27 -> No. | E28: ='F - Functional spaces'!E27 -> Name | F28: m2 | H28: NLA? | I28: ='F - Functional spaces'!H27 -> hrs./week | J28: ='F - Functional spaces'!I27 -> hrs./annum | K28: weeks in yr | L28: area m2 | M28: weeks/year
D29: ='F - Functional spaces'!D28 -> 1 | E29: ='F - Functional spaces'!E28 -> 0 | F29: ='F - Functional spaces'!F28 -> 0 | I29: ='F - Functional spaces'!H28 -> 0 | J29: ='F - Functional spaces'!I28 -> 0 | K29: ='F - Functional spaces'!J28 -> 0 | L29: =F29*($E$24-K29)/$E$24 -> 0 | M29: =$E$24-K29 -> 52 | N29: =F29*((I29*$E$24)+J29) -> 0 | O29: =K29*I29*F29 -> 0 | P29: =IF(ISERROR((M29*I29+J29)/M29),"0",(M29*I29+J29)/M29) -> 0 | Q29: =P29*F29 -> 0 | R29: =(M29*($E$17+$E$18*P29))/$E$24 -> 51.75 | S29: =(M29*($E$19+$E$20*P29))/$E$24 -> 29.953 | T29: =SUM(R29:S29) -> 81.703 | U29: =R29*F29 -> 0 | V29: =S29*F29 -> 0 | W29: =T29*F29 -> 0 | BT29: LANDLORD'S ENERGY RATING CALCS
D30: ='F - Functional spaces'!D29 -> 2 | E30: ='F - Functional spaces'!E29 -> 0 | F30: ='F - Functional spaces'!F29 -> 0 | I30: ='F - Functional spaces'!H29 -> 0 | J30: ='F - Functional spaces'!I29 -> 0 | K30: ='F - Functional spaces'!J29 -> 0 | L30: 0 | M30: 52 | N30: =F30*((I30*$E$24)+J30) -> 0 | O30: =K30*I30*F30 -> 0 | P30: =IF(ISERROR((M30*I30+J30)/M30),"0",(M30*I30+J30)/M30) -> 0 | Q30: =P30*F30 -> 0 | R30: =(M30*($E$17+$E$18*P30))/$E$24 -> 51.75 | S30: 29.953 | T30: =SUM(R30:S30) -> 81.703 | U30: =R30*F30 -> 0 | V30: =S30*F30 -> 0 | W30: =T30*F30 -> 0 | BT30: SOURCE: Verco Outline Spec Draft 24Jul12
D31: ='F - Functional spaces'!D30 -> 3 | E31: ='F - Functional spaces'!E30 -> 0 | F31: ='F - Functional spaces'!F30 -> 0 | I31: ='F - Functional spaces'!H30 -> 0 | J31: ='F - Functional spaces'!I30 -> 0 | K31: ='F - Functional spaces'!J30 -> 0 | L31: 0 | M31: 52 | N31: 0 | O31: 0 | P31: 0 | Q31: 0 | R31: 51.75 | S31: 29.953 | T31: 81.703 | U31: 0 | V31: 0 | W31: 0
D32: ='F - Functional spaces'!D31 -> 4 | E32: ='F - Functional spaces'!E31 -> 0 | F32: ='F - Functional spaces'!F31 -> 0 | I32: ='F - Functional spaces'!H31 -> 0 | J32: ='F - Functional spaces'!I31 -> 0 | K32: ='F - Functional spaces'!J31 -> 0 | L32: 0 | M32: 52 | N32: 0 | O32: 0 | P32: 0 | Q32: 0 | R32: 51.75 | S32: 29.953 | T32: 81.703 | U32: 0 | V32: 0 | W32: 0 | BT32: OCCUPIED AREA CALCULATION | BY32: RATED HOURS CALCULATION
D33: ='F - Functional spaces'!D32 -> 5 | E33: ='F - Functional spaces'!E32 -> 0 | F33: ='F - Functional spaces'!F32 -> 0 | I33: ='F - Functional spaces'!H32 -> 0 | J33: ='F - Functional spaces'!I32 -> 0 | K33: ='F - Functional spaces'!J32 -> 0 | L33: 0 | M33: 52 | N33: 0 | O33: 0 | P33: 0 | Q33: 0 | R33: 51.75 | S33: 29.953 | T33: 81.703 | U33: 0 | V33: 0 | W33: 0 | BU33: Atot | BV33: Wv | BW33: VWA | BY33: Wa=Wyr-Wv | BZ33: ha | CA33: Cha=Wa*ha | CB33: he,a
D34: ='F - Functional spaces'!D33 -> 6 | E34: ='F - Functional spaces'!E33 -> 0 | F34: ='F - Functional spaces'!F33 -> 0 | I34: ='F - Functional spaces'!H33 -> 0 | J34: ='F - Functional spaces'!I33 -> 0 | K34: ='F - Functional spaces'!J33 -> 0 | L34: 0 | M34: 52 | N34: 0 | O34: 0 | P34: 0 | Q34: 0 | R34: 51.75 | S34: 29.953 | T34: 81.703 | U34: 0 | V34: 0 | W34: 0 | BU34: NLA area | BV34: void | BW34: Void-weighted | BY34: Occupied | BZ34: Contracted | CA34: Contracted | CB34: Extra hours
D35: ='F - Functional spaces'!D34 -> 7 | E35: ='F - Functional spaces'!E34 -> 0 | F35: ='F - Functional spaces'!F34 -> 0 | I35: ='F - Functional spaces'!H34 -> 0 | J35: ='F - Functional spaces'!I34 -> 0 | K35: ='F - Functional spaces'!J34 -> 0 | L35: 0 | M35: 52 | N35: 0 | O35: 0 | P35: 0 | Q35: 0 | R35: 51.75 | S35: 29.953 | T35: 81.703 | U35: 0 | V35: 0 | W35: 0 | BT35: AREA | BU35: m2 | BV35: weeks in yr | BW35: area m2 | BY35: weeks/year | BZ35: hours/week | CA35: hrs/yr | CB35: in the year
D36: ='F - Functional spaces'!D35 -> 8 | E36: ='F - Functional spaces'!E35 -> 0 | F36: ='F - Functional spaces'!F35 -> 0 | I36: ='F - Functional spaces'!H35 -> 0 | J36: ='F - Functional spaces'!I35 -> 0 | K36: ='F - Functional spaces'!J35 -> 0 | L36: 0 | M36: 52 | N36: 0 | O36: 0 | P36: 0 | Q36: 0 | R36: 51.75 | S36: 29.953 | T36: 81.703 | U36: 0 | V36: 0 | W36: 0 | BT36: Area 1 | BU36: 200 | BV36: 10 | BW36: =BU36*($BV$41-BV36)/$BV$41 -> 161.5384615 | BY36: =$F$36-BV36 -> -10 | BZ36: 40 | CB36: 200
D37: ='F - Functional spaces'!D36 -> 9 | E37: ='F - Functional spaces'!E36 -> 0 | F37: ='F - Functional spaces'!F36 -> 0 | I37: ='F - Functional spaces'!H36 -> 0 | J37: ='F - Functional spaces'!I36 -> 0 | K37: ='F - Functional spaces'!J36 -> 0 | L37: 0 | M37: 52 | N37: 0 | O37: 0 | P37: 0 | Q37: 0 | R37: 51.75 | S37: 29.953 | T37: 81.703 | U37: 0 | V37: 0 | W37: 0 | BT37: Area 2 | BW37: =BU37*($BV$41-BV37)/$BV$41 -> 0 | BY37: =$F$36-BV37 -> 0
D38: ='F - Functional spaces'!D37 -> 10 | E38: ='F - Functional spaces'!E37 -> 0 | F38: ='F - Functional spaces'!F37 -> 0 | I38: ='F - Functional spaces'!H37 -> 0 | J38: ='F - Functional spaces'!I37 -> 0 | K38: ='F - Functional spaces'!J37 -> 0 | L38: 0 | M38: 52 | N38: 0 | O38: 0 | P38: 0 | Q38: 0 | R38: 51.75 | S38: 29.953 | T38: 81.703 | U38: 0 | V38: 0 | W38: 0 | BT38: Area 3 | BW38: =BU38*($BV$41-BV38)/$BV$41 -> 0 | BY38: =$F$36-BV38 -> 0
D39: ='F - Functional spaces'!D38 -> 11 | E39: ='F - Functional spaces'!E38 -> 0 | F39: ='F - Functional spaces'!F38 -> 0 | I39: ='F - Functional spaces'!H38 -> 0 | J39: ='F - Functional spaces'!I38 -> 0 | K39: ='F - Functional spaces'!J38 -> 0 | L39: 0 | M39: 52 | N39: 0 | O39: 0 | P39: 0 | Q39: 0 | R39: 51.75 | S39: 29.953 | T39: 81.703 | U39: 0 | V39: 0 | W39: 0 | BT39: Area 4 | BW39: =BU39*($BV$41-BV39)/$BV$41 -> 0 | BY39: =$F$36-BV39 -> 0
D40: ='F - Functional spaces'!D39 -> 12 | E40: ='F - Functional spaces'!E39 -> 0 | F40: ='F - Functional spaces'!F39 -> 0 | I40: ='F - Functional spaces'!H39 -> 0 | J40: ='F - Functional spaces'!I39 -> 0 | K40: ='F - Functional spaces'!J39 -> 0 | L40: 0 | M40: 52 | N40: 0 | O40: 0 | P40: 0 | Q40: 0 | R40: 51.75 | S40: 29.953 | T40: 81.703 | U40: 0 | V40: 0 | W40: 0 | BT40: TOTALS | BU40: =SUM(BU36:BU39) -> 200 | BV40: NLA(o) > | BW40: =SUM(BW36:BW39) -> 161.5384615
D41: ='F - Functional spaces'!D40 -> 13 | E41: ='F - Functional spaces'!E40 -> 0 | F41: ='F - Functional spaces'!F40 -> 0 | I41: ='F - Functional spaces'!H40 -> 0 | J41: ='F - Functional spaces'!I40 -> 0 | K41: ='F - Functional spaces'!J40 -> 0 | L41: 0 | M41: 52 | N41: 0 | O41: 0 | P41: 0 | Q41: 0 | R41: 51.75 | S41: 29.953 | T41: 81.703 | U41: 0 | V41: 0 | W41: 0 | BU41: Wyr total weeks in year > | BV41: 52
D42: ='F - Functional spaces'!D41 -> 14 | E42: ='F - Functional spaces'!E41 -> 0 | F42: ='F - Functional spaces'!F41 -> 0 | I42: ='F - Functional spaces'!H41 -> 0 | J42: ='F - Functional spaces'!I41 -> 0 | K42: ='F - Functional spaces'!J41 -> 0 | L42: 0 | M42: 52 | N42: 0 | O42: 0 | P42: 0 | Q42: 0 | R42: 51.75 | S42: 29.953 | T42: 81.703 | U42: 0 | V42: 0 | W42: 0 | BV42: Void factor Fv = 1-VWA/Atot > | BW42: =1-BW40/BU40 -> 0.1923076923
D43: ='F - Functional spaces'!D42 -> 15 | E43: ='F - Functional spaces'!E42 -> 0 | F43: ='F - Functional spaces'!F42 -> 0 | I43: ='F - Functional spaces'!H42 -> 0 | J43: ='F - Functional spaces'!I42 -> 0 | K43: ='F - Functional spaces'!J42 -> 0 | L43: 0 | M43: 52 | N43: 0 | O43: 0 | P43: 0 | Q43: 0 | R43: 51.75 | S43: 29.953 | T43: 81.703 | U43: 0 | V43: 0 | W43: 0
D44: ='F - Functional spaces'!D43 -> 16 | E44: ='F - Functional spaces'!E43 -> 0 | F44: ='F - Functional spaces'!F43 -> 0 | I44: ='F - Functional spaces'!H43 -> 0 | J44: ='F - Functional spaces'!I43 -> 0 | K44: ='F - Functional spaces'!J43 -> 0 | L44: 0 | M44: 52 | N44: 0 | O44: 0 | P44: 0 | Q44: 0 | R44: 51.75 | S44: 29.953 | T44: 81.703 | U44: 0 | V44: 0 | W44: 0
D45: ='F - Functional spaces'!D44 -> 17 | E45: ='F - Functional spaces'!E44 -> 0 | F45: ='F - Functional spaces'!F44 -> 0 | I45: ='F - Functional spaces'!H44 -> 0 | J45: ='F - Functional spaces'!I44 -> 0 | K45: ='F - Functional spaces'!J44 -> 0 | L45: 0 | M45: 52 | N45: 0 | O45: 0 | P45: 0 | Q45: 0 | R45: 51.75 | S45: 29.953 | T45: 81.703 | U45: 0 | V45: 0 | W45: 0
D46: ='F - Functional spaces'!D45 -> 18 | E46: ='F - Functional spaces'!E45 -> 0 | F46: ='F - Functional spaces'!F45 -> 0 | I46: ='F - Functional spaces'!H45 -> 0 | J46: ='F - Functional spaces'!I45 -> 0 | K46: ='F - Functional spaces'!J45 -> 0 | L46: 0 | M46: 52 | N46: 0 | O46: 0 | P46: 0 | Q46: 0 | R46: 51.75 | S46: 29.953 | T46: 81.703 | U46: 0 | V46: 0 | W46: 0
D47: ='F - Functional spaces'!D46 -> 19 | E47: ='F - Functional spaces'!E46 -> 0 | F47: ='F - Functional spaces'!F46 -> 0 | I47: ='F - Functional spaces'!H46 -> 0 | J47: ='F - Functional spaces'!I46 -> 0 | K47: ='F - Functional spaces'!J46 -> 0 | L47: 0 | M47: 52 | N47: 0 | O47: 0 | P47: 0 | Q47: 0 | R47: 51.75 | S47: 29.953 | T47: 81.703 | U47: 0 | V47: 0 | W47: 0
D48: ='F - Functional spaces'!D47 -> 20 | E48: ='F - Functional spaces'!E47 -> 0 | F48: ='F - Functional spaces'!F47 -> 0 | I48: ='F - Functional spaces'!H47 -> 0 | J48: ='F - Functional spaces'!I47 -> 0 | K48: ='F - Functional spaces'!J47 -> 0 | L48: 0 | M48: 52 | N48: 0 | O48: 0 | P48: =(M48*I48+J48)/M48 -> 0 | Q48: =P48*F48 -> 0 | R48: 51.75 | S48: 29.953 | T48: 81.703 | U48: 0 | V48: 0 | W48: 0
K49: VWA | L49: =SUM((L29:L48)) -> 0 | Q49: =SUM(Q29:Q48)/SUM(F29:F48) ->  | U49: =SUM(U$29:U$48) -> 0 | V49: =SUM(V$29:V$48) -> 0 | W49: =SUM(W$29:W$48) -> 0
E50: Tenant | F50: NLA | K50: NLA | L50: =SUM(F29:F48) -> 0 | T50: Adjusted benchmark | U50: =U49/NetNLA ->  | V50: =V49/NetNLA ->  | W50: =W49/NetNLA -> 
E51: Public | F51: NLA | K51: Fv | L51: =1-(L49/L50) ->  | T51: Change to standard | W51: =W50-E23 -> 
E52: Landlord office | F52: NLA?
E53: Common parts | F53: not NLA
E54: Plant? | F54: not NLA
D60: Main heating fuel | E60: ='F - Functional spaces'!H12 -> 0
D61: Elec or Heat? | E61: =IF(OR(E60=Lookups!J97,E60=Lookups!J98),"Elec","Heat") -> Heat
D62: Lookup row start | E62: 4
D63: Lookup row end | E63: 5
E64: Sheet B | F64: Sheet C | G64: dates
D65: Start Date | E65: =HLOOKUP($E$60,FuelsInput1,$E$62,FALSE) ->  | F65: =HLOOKUP($E$60,FuelsInput2,$E$62,FALSE) ->  | G65: =IF(ISNA(IF(ISNA(E65),F65,E65)),"",(IF(ISNA(E65),F65,E65))) -> 
D66: End Date | E66: =HLOOKUP($E$60,FuelsInput1,$E$63,FALSE) ->  | F66: =HLOOKUP($E$60,FuelsInput2,$E$63,FALSE) ->  | G66: =IF(ISNA(IF(ISNA(E66),F66,E66)),"",(IF(ISNA(E66),F66,E66))) -> 
D68: If MHF is electricity
D70: Days | E70: =G66-G65 -> 
D71: 1/2 the difference from 365 | E71: =ROUND((E70-365)/2,0) -> 
D72: Start date | E72: =G65+E71 -> 
D73: End date | E73: =E72+365 -> 
D75: IF MHF is non electricity
H76: lowest
D77: Date | E77: Month | F77: Day of month | G77: Last day in month | H77: Days from end of month | I77: Lower (close to start, close to end
D78: Start date | E78: =MONTH(G65) ->  | F78: =DAY(G65) ->  | G78: =DAY(EOMONTH(G65,E78)) ->  | H78: =G78-F78 ->  | I78: =MIN(F78,H78) ->  | J78: Start Date
D79: End date | E79: =MONTH(G66) ->  | F79: =DAY(G66) ->  | G79: =DAY(EOMONTH(G66,E79)) ->  | H79: =G79-F79 ->  | I79: =MIN(F79,H79) ->  | J79: End Date
H80: Which to use? | I80: =MIN(I78,I79) ->  | J80: =VLOOKUP(I80,I78:J79,2,FALSE) -> 
D81: Start date | E81: =IF(J80=D81,G65,G66-365) -> 
D82: End date | E82: =IF(J80=D82,G66,G65+365) -> 
D84: Dates used
D86: Start date | E86: =IF($E$61="Elec",E72,E81) -> 
D87: End date | E87: =IF($E$61="Elec",E73,E82) -> 
CU92: Postcode checker data
D94: Proportion of gas benchmark adjusted to DD | E94: 0.55 | BA94: Base temperature for cooling degree days | BB94: 15.5
D95: Base degree days | E95: 2021 | F95: http://www.vesma.com/ddd/std-year.htm | BA95: Base cooling degree days | BB95: =HLOOKUP(BB94,BE97:BG98,2) -> 196.84 | BC95: http://www.vesma.com/ddd/std-year.htm
D96: Degree days (this assessment) | E96: =E113 ->  | BA96: Degree days (this assessment) | BB96: =BB106 ->  | CU96: 1 | CV96: London (Thames Valley)
BA97: Cooling DD constant | BB97: =0.0187/BF100 -> 0.07169871977 | BD97: Base | BE97: 10.5 | BF97: 15.5 | BG97: 18.5 | CU97: 2 | CV97: South Eastern
BA98: BMh adj(Tot) | BB98: =F103 ->  | BD98: Average dd | BE98: 1100 | BF98: =CT288 -> 196.84 | BG98: =CT409 ->  | CU98: 3 | CV98: Southern
E99: Start | F99: Adjusted | BA99: Adjustment for Cooling DD | BB99: =(BB96-BB95)*BB97 ->  | CU99: 4 | CV99: South Western
D100: BMh adj(gas) | E100: =U50 ->  | F100: =(E100*E94*(E113/E95))+(E100*(1-E94)) ->  | BA100: BMadj | BB100: =BB98+BB99 ->  | BD100: Ratio for DD constant | BF100: =CT289 -> 0.260813583 | CU100: 5 | CV100: Severn Valley
D101: BMh adj(elec) | E101: =V50 ->  | F101: =E101 ->  | CU101: 6 | CV101: Midlands
D102: BMh adj(Tot) | E102: =SUM(E100:E101) ->  | BA102: Start date: | BB102: =E72 ->  | CU102: 7 | CV102: West Pennines
D103: BMadj HDD | F103: =SUM(F100:F101) ->  | BA103: End Date: | BB103: =E73 ->  | BC103: 1st character | BD103: 2nd character | CU103: 8 | CV103: North Western
D104: Change | F104: =F103-E102 ->  | BA104: Postcode | BB104: =E111 -> 0 | BC104: =IF(ISERROR(LEFT(BB104,1)*1),"L","N") -> N | BD104: =IF(ISERROR(RIGHT(LEFT(BB104,2),1)*1),"L","N") -> N | CU104: 9 | CV104: Borders
BA105: Region | BB105: =IF(ISERROR(BC105),10,BC105) -> 10 | BC105: =IF(AND(BC104="L",BD104="L"),VLOOKUP(LEFT(BB104,2),$CV$119:$CW$225,2,FALSE),VLOOKUP(LEFT(BB104,1),$CV$119:$CW$225,2,FALSE)) ->  | BD105: =IF(ISERROR(BC105),"Error - postcode not found","") -> Error - postcode not found | CU105: 10 | CV105: North Eastern
BA106: Degree days: | BB106: =VLOOKUP(BB103,$BA$120:$BV$4503,$BB$105+5,FALSE)-VLOOKUP($BB$102,$BA$120:$BV$4503,$BB$105+5,FALSE) ->  | CU106: 11 | CV106: East Pennines
CU107: 12 | CV107: East Anglia
CU108: 13 | CV108: West Scotland
D109: Start date: | E109: =E86 ->  | CU109: 14 | CV109: East Scotland
D110: End Date: | E110: =E87 ->  | F110: 1st character | G110: 2nd character | CU110: 15 | CV110: North East Scotland
D111: Postcode | E111: ='A - General Information'!E16 -> 0 | F111: =IF(ISERROR(LEFT(E111,1)*1),"L","N") -> N | G111: =IF(ISERROR(RIGHT(LEFT(E111,2),1)*1),"L","N") -> N | CU111: 16 | CV111: Wales
D112: Region | E112: =IF(ISERROR(F112),10,F112) -> 10 | F112: =IF(AND(F111="L",G111="L"),VLOOKUP(LEFT(E111,2),$CV$119:$CW$225,2,FALSE),VLOOKUP(LEFT(E111,1),$CV$119:$CW$225,2,FALSE)) ->  | G112: =IF(ISERROR(F112),"Error - postcode not found","") -> Error - postcode not found | CU112: 17 | CV112: Northern Ireland
D113: Degree days: | E113: =VLOOKUP(E110,$D$120:$AA$4503,$E$112+5,FALSE)-VLOOKUP($E$109,$D$120:$AA$4503,$E$112+5,FALSE) ->  | CU113: 18 | CV113: North West Scotland
D116: LOOKUP TABLE FOR HEATING DEGREE DAYS | AC116: HEATING DEGREE DAY DATA BY REGION Source DEC CIP file Oct 2012 | BA116: LOOKUP TABLE FOR COOLING DEGREE DAYS | BX116: COOLING DEGREE DAY DATA TO BASE TEMP 10.5
I118: region | AG118: region | BF118: region | CB118: region | CV118: Postcode | CW118: Region
D119: Date | E119: Month | F119: Year | H119: Cumulative days | I119: 1 | J119: 2 | K119: 3 | L119: 4 | M119: 5 | N119: 6 | P119: 7 | Q119: 8 | R119: 9 | S119: 10 | T119: 11 | U119: 12 | W119: 13 | X119: 14 | Y119: 15 | Z119: 16 | AA119: 17 | AC119: Year | AD119: Month | AE119: No. Days | AG119: 1 | AH119: 2 | AI119: 3 | AJ119: 4 | AK119: 5 | AL119: 6 | AM119: 7 | AN119: 8 | AO119: 9 | AP119: 10 | AQ119: 11 | AR119: 12 | AS119: 13 | AT119: 14 | AU119: 15 | AV119: 16 | AW119: 17 | BA119: Date | BB119: Month | BC119: Year | BE119: Cumulative days | BF119: 1 | BG119: 2 | BH119: 3 | BI119: 4 | BJ119: 5 | BK119: 6 | BL119: 7 | BM119: 8 | BN119: 9 | BO119: 10 | BP119: 11 | BQ119: 12 | BR119: 13 | BS119: 14 | BT119: 15 | BU119: 16 | BV119: 17 | BX119: Year | BY119: Month | BZ119: No. Days | CB119: 1 | CC119: 2 | CD119: 3 | CE119: 4 | CF119: 5 | CG119: 6 | CH119: 7 | CI119: 8 | CJ119: 9 | CK119: 10 | CL119: 11 | CM119: 12 | CN119: 13 | CO119: 14 | CP119: 15 | CQ119: 16 | CR119: 17 | CS119: 18 | CW119: 1
D120: 2007-01-01 | E120: =MONTH(D120) -> 1 | F120: =YEAR(D120) -> 2007 | G120: =E120&F120 -> 12007 | H120: 1 | I120: =SUMIF($AF$268:$AF$411,$G120,AG$268:AG$411) -> 7.761290323 | J120: 8.487096774 | K120: 8.032258065 | L120: 7.287096774 | M120: 8.119354839 | N120: 8.509677419 | P120: =SUMIF($AF$268:$AF$411,$G120,AM$268:AM$411) -> 9.012903226 | Q120: 8.858064516 | R120: 8.983870968 | S120: 9.016129032 | T120: 8.706451613 | U120: 8.967741935 | W120: =SUMIF($AF$268:$AF$411,$G120,AS$268:AS$411) -> 0 | X120: =SUMIF($AF$268:$AF$411,$G120,AT$268:AT$411) -> 0 | Y120: =SUMIF($AF$268:$AF$411,$G120,AU$268:AU$411) -> 0 | Z120: =SUMIF($AF$268:$AF$411,$G120,AV$268:AV$411) -> 8.022580645 | AA120: =SUMIF($AF$268:$AF$411,$G120,AW$268:AW$411) -> 9.529032258 | AC120: 2007 | AD120: 1 | AE120: 31 | AF120: =AD120&AC120 -> 12007 | AG120: 240.6 | AH120: 263.1 | AI120: 249 | AJ120: 225.9 | AK120: 251.7 | AL120: 263.8 | AM120: 279.4 | AN120: 274.6 | AO120: 278.5 | AP120: 279.5 | AQ120: 269.9 | AR120: 278 | AV120: 248.7 | AW120: 295.4 | BA120: 2007-01-01 | BB120: =MONTH(BA120) -> 1 | BC120: =YEAR(BA120) -> 2007 | BD120: =BB120&BC120 -> 12007 | BE120: 1 | BF120: =SUMIF($AF$268:$AF$411,$G120,CB$441:CB$522) -> 0 | BG120: 0 | BH120: 0 | BI120: 0 | BJ120: 0 | BK120: 0 | BL120: 0 | BM120: 0 | BN120: 0 | BO120: 0 | BP120: 0 | BQ120: 0 | BR120: 0 | BS120: 0 | BT120: 0 | BU120: 0 | BV120: 0 | BX120: 2007 | BY120: 1 | BZ120: 31 | CA120: =BY120&BX120 -> 12007 | CV120: B | CW120: 6 | CX120: =VLOOKUP(CW120,$CU$96:$CV$113,2) -> Midlands
D121: 2007-01-02 | E121: =MONTH(D121) -> 1 | F121: =YEAR(D121) -> 2007 | G121: =E121&F121 -> 12007 | H121: 2 | I121: =SUMIF($AF$268:$AF$411,$G121,AG$268:AG$411)+I120 -> 15.52258065 | J121: =SUMIF($AF$268:$AF$411,$G121,AH$268:AH$411)+J120 -> 16.97419355 | K121: =SUMIF($AF$268:$AF$411,$G121,AI$268:AI$411)+K120 -> 16.06451613 | L121: =SUMIF($AF$268:$AF$411,$G121,AJ$268:AJ$411)+L120 -> 14.57419355 | M121: =SUMIF($AF$268:$AF$411,$G121,AK$268:AK$411)+M120 -> 16.23870968 | N121: =SUMIF($AF$268:$AF$411,$G121,AL$268:AL$411)+N120 -> 17.01935484 | P121: =SUMIF($AF$268:$AF$411,$G121,AM$268:AM$411)+P120 -> 18.02580645 | Q121: =SUMIF($AF$268:$AF$411,$G121,AN$268:AN$411)+Q120 -> 17.71612903 | R121: =SUMIF($AF$268:$AF$411,$G121,AO$268:AO$411)+R120 -> 17.96774194 | S121: =SUMIF($AF$268:$AF$411,$G121,AP$268:AP$411)+S120 -> 18.03225806 | T121: =SUMIF($AF$268:$AF$411,$G121,AQ$268:AQ$411)+T120 -> 17.41290323 | U121: =SUMIF($AF$268:$AF$411,$G121,AR$268:AR$411)+U120 -> 17.93548387 | W121: =SUMIF($AF$268:$AF$411,$G121,AS$268:AS$411)+W120 -> 0 | X121: =SUMIF($AF$268:$AF$411,$G121,AT$268:AT$411)+X120 -> 0 | Y121: =SUMIF($AF$268:$AF$411,$G121,AU$268:AU$411)+Y120 -> 0 | Z121: =SUMIF($AF$268:$AF$411,$G121,AV$268:AV$411)+Z120 -> 16.04516129 | AA121: =SUMIF($AF$268:$AF$411,$G121,AW$268:AW$411)+AA120 -> 19.05806452 | AC121: 2007 | AD121: 2 | AE121: 28 | AF121: 22007 | AG121: 241.1 | AH121: 256.4 | AI121: 239.2 | AJ121: 202.8 | AK121: 250.7 | AL121: 273.2 | AM121: 274.6 | AN121: 281.6 | AO121: 276.1 | AP121: 291.1 | AQ121: 272.2 | AR121: 280.4 | AV121: 255.8 | AW121: 291.5 | BA121: 2007-01-02 | BB121: =MONTH(BA121) -> 1 | BC121: =YEAR(BA121) -> 2007 | BD121: =BB121&BC121 -> 12007 | BE121: 2 | BF121: =SUMIF($AF$268:$AF$411,$G121,CB$441:CB$522)+BF120 -> 0 | BG121: =SUMIF($AF$268:$AF$411,$G121,CC$441:CC$522)+BG120 -> 0 | BH121: =SUMIF($AF$268:$AF$411,$G121,CD$441:CD$522)+BH120 -> 0 | BI121: =SUMIF($AF$268:$AF$411,$G121,CE$441:CE$522)+BI120 -> 0 | BJ121: =SUMIF($AF$268:$AF$411,$G121,CF$441:CF$522)+BJ120 -> 0 | BK121: =SUMIF($AF$268:$AF$411,$G121,CG$441:CG$522)+BK120 -> 0 | BL121: =SUMIF($AF$268:$AF$411,$G121,CH$441:CH$522)+BL120 -> 0 | BM121: =SUMIF($AF$268:$AF$411,$G121,CI$441:CI$522)+BM120 -> 0 | BN121: =SUMIF($AF$268:$AF$411,$G121,CJ$441:CJ$522)+BN120 -> 0 | BO121: =SUMIF($AF$268:$AF$411,$G121,CK$441:CK$522)+BO120 -> 0 | BP121: =SUMIF($AF$268:$AF$411,$G121,CL$441:CL$522)+BP120 -> 0 | BQ121: =SUMIF($AF$268:$AF$411,$G121,CM$441:CM$522)+BQ120 -> 0 | BR121: =SUMIF($AF$268:$AF$411,$G121,CN$441:CN$522)+BR120 -> 0 | BS121: =SUMIF($AF$268:$AF$411,$G121,CO$441:CO$522)+BS120 -> 0 | BT121: =SUMIF($AF$268:$AF$411,$G121,CP$441:CP$522)+BT120 -> 0 | BU121: =SUMIF($AF$268:$AF$411,$G121,CQ$441:CQ$522)+BU120 -> 0 | BV121: =SUMIF($AF$268:$AF$411,$G121,CR$441:CR$522)+BV120 -> 0 | BX121: 2007 | BY121: 2 | BZ121: 28 | CA121: 22007 | CV121: BA | CW121: 5 | CX121: =VLOOKUP(CW121,$CU$96:$CV$113,2) -> Severn Valley
D122: 2007-01-03 | E122: 1 | F122: 2007 | G122: 12007 | H122: 3 | I122: 23.28387097 | J122: 25.46129032 | K122: 24.09677419 | L122: 21.86129032 | M122: 24.35806452 | N122: 25.52903226 | P122: 27.03870968 | Q122: 26.57419355 | R122: 26.9516129 | S122: 27.0483871 | T122: 26.11935484 | U122: 26.90322581 | W122: 0 | X122: 0 | Y122: 0 | Z122: 24.06774194 | AA122: 28.58709677 | AC122: 2007 | AD122: 3 | AE122: 31 | AF122: 32007 | AG122: 220.6 | AH122: 247.7 | AI122: 243.6 | AJ122: 220.9 | AK122: 242.9 | AL122: 261.2 | AM122: 273.5 | AN122: 260.3 | AO122: 280.5 | AP122: 271.7 | AQ122: 265.6 | AR122: 257.6 | AV122: 265.8 | AW122: 285.1 | BA122: 2007-01-03 | BB122: 1 | BC122: 2007 | BD122: 12007 | BE122: 3 | BF122: 0 | BG122: 0 | BH122: 0 | BI122: 0 | BJ122: 0 | BK122: 0 | BL122: 0 | BM122: 0 | BN122: 0 | BO122: 0 | BP122: 0 | BQ122: 0 | BR122: 0 | BS122: 0 | BT122: 0 | BU122: 0 | BV122: 0 | BX122: 2007 | BY122: 3 | BZ122: 31 | CA122: 32007 | CV122: BB | CW122: 7 | CX122: West Pennines
D123: 2007-01-04 | E123: 1 | F123: 2007 | G123: 12007 | H123: 4 | I123: 31.04516129 | J123: 33.9483871 | K123: 32.12903226 | L123: 29.1483871 | M123: 32.47741935 | N123: 34.03870968 | P123: 36.0516129 | Q123: 35.43225806 | R123: 35.93548387 | S123: 36.06451613 | T123: 34.82580645 | U123: 35.87096774 | W123: 0 | X123: 0 | Y123: 0 | Z123: 32.09032258 | AA123: 38.11612903 | AC123: 2007 | AD123: 4 | AE123: 30 | AF123: 42007 | AG123: 96.9 | AH123: 131.4 | AI123: 132.1 | AJ123: 113.7 | AK123: 112.5 | AL123: 146.4 | AM123: 155.1 | AN123: 150 | AO123: 164.9 | AP123: 161.3 | AQ123: 137.5 | AR123: 143 | AV123: 153.4 | AW123: 149.3 | BA123: 2007-01-04 | BB123: 1 | BC123: 2007 | BD123: 12007 | BE123: 4 | BF123: 0 | BG123: 0 | BH123: 0 | BI123: 0 | BJ123: 0 | BK123: 0 | BL123: 0 | BM123: 0 | BN123: 0 | BO123: 0 | BP123: 0 | BQ123: 0 | BR123: 0 | BS123: 0 | BT123: 0 | BU123: 0 | BV123: 0 | BX123: 2007 | BY123: 4 | BZ123: 30 | CA123: 42007 | CV123: BD | CW123: 10 | CX123: North Eastern
D124: 2007-01-05 | E124: 1 | F124: 2007 | G124: 12007 | H124: 5 | I124: 38.80645161 | J124: 42.43548387 | K124: 40.16129032 | L124: 36.43548387 | M124: 40.59677419 | N124: 42.5483871 | P124: 45.06451613 | Q124: 44.29032258 | R124: 44.91935484 | S124: 45.08064516 | T124: 43.53225806 | U124: 44.83870968 | W124: 0 | X124: 0 | Y124: 0 | Z124: 40.11290323 | AA124: 47.64516129 | AC124: 2007 | AD124: 5 | AE124: 31 | AF124: 52007 | AG124: 82.7 | AH124: 108.6 | AI124: 97.9 | AJ124: 93.7 | AK124: 97.9 | AL124: 127 | AM124: 135.1 | AN124: 133.2 | AO124: 164.7 | AP124: 133.9 | AQ124: 127.1 | AR124: 122.2 | AV124: 132.3 | AW124: 145.3 | BA124: 2007-01-05 | BB124: 1 | BC124: 2007 | BD124: 12007 | BE124: 5 | BF124: 0 | BG124: 0 | BH124: 0 | BI124: 0 | BJ124: 0 | BK124: 0 | BL124: 0 | BM124: 0 | BN124: 0 | BO124: 0 | BP124: 0 | BQ124: 0 | BR124: 0 | BS124: 0 | BT124: 0 | BU124: 0 | BV124: 0 | BX124: 2007 | BY124: 5 | BZ124: 31 | CA124: 52007 | CV124: BH | CW124: 3 | CX124: Southern
D125: 2007-01-06 | E125: 1 | F125: 2007 | G125: 12007 | H125: 6 | I125: 46.56774194 | J125: 50.92258065 | K125: 48.19354839 | L125: 43.72258065 | M125: 48.71612903 | N125: 51.05806452 | P125: 54.07741935 | Q125: 53.1483871 | R125: 53.90322581 | S125: 54.09677419 | T125: 52.23870968 | U125: 53.80645161 | W125: 0 | X125: 0 | Y125: 0 | Z125: 48.13548387 | AA125: 57.17419355 | AC125: 2007 | AD125: 6 | AE125: 30 | AF125: 62007 | AG125: 26 | AH125: 43.5 | AI125: 33.3 | AJ125: 35 | AK125: 30 | AL125: 46.3 | AM125: 50.4 | AN125: 55.7 | AO125: 104.8 | AP125: 67.3 | AQ125: 49.8 | AR125: 49.2 | AV125: 53.4 | AW125: 73.9 | BA125: 2007-01-06 | BB125: 1 | BC125: 2007 | BD125: 12007 | BE125: 6 | BF125: 0 | BG125: 0 | BH125: 0 | BI125: 0 | BJ125: 0 | BK125: 0 | BL125: 0 | BM125: 0 | BN125: 0 | BO125: 0 | BP125: 0 | BQ125: 0 | BR125: 0 | BS125: 0 | BT125: 0 | BU125: 0 | BV125: 0 | BX125: 2007 | BY125: 6 | BZ125: 30 | CA125: 62007 | CV125: BL | CW125: 7 | CX125: West Pennines
D126: 2007-01-07 | E126: 1 | F126: 2007 | G126: 12007 | H126: 7 | I126: 54.32903226 | J126: 59.40967742 | K126: 56.22580645 | L126: 51.00967742 | M126: 56.83548387 | N126: 59.56774194 | P126: 63.09032258 | Q126: 62.00645161 | R126: 62.88709677 | S126: 63.11290323 | T126: 60.94516129 | U126: 62.77419355 | W126: 0 | X126: 0 | Y126: 0 | Z126: 56.15806452 | AA126: 66.70322581 | AC126: 2007 | AD126: 7 | AE126: 31 | AF126: 72007 | AG126: 19.7 | AH126: 35.4 | AI126: 37 | AJ126: 33.2 | AK126: 31.8 | AL126: 41.4 | AM126: 49.7 | AN126: 43 | AO126: 57.5 | AP126: 44.6 | AQ126: 32.8 | AR126: 34.2 | AV126: 50.3 | AW126: 52.7 | BA126: 2007-01-07 | BB126: 1 | BC126: 2007 | BD126: 12007 | BE126: 7 | BF126: 0 | BG126: 0 | BH126: 0 | BI126: 0 | BJ126: 0 | BK126: 0 | BL126: 0 | BM126: 0 | BN126: 0 | BO126: 0 | BP126: 0 | BQ126: 0 | BR126: 0 | BS126: 0 | BT126: 0 | BU126: 0 | BV126: 0 | BX126: 2007 | BY126: 7 | BZ126: 31 | CA126: 72007 | CV126: BN | CW126: 2 | CX126: South Eastern
D127: 2007-01-08 | E127: 1 | F127: 2007 | G127: 12007 | H127: 8 | I127: 62.09032258 | J127: 67.89677419 | K127: 64.25806452 | L127: 58.29677419 | M127: 64.95483871 | N127: 68.07741935 | P127: 72.10322581 | Q127: 70.86451613 | R127: 71.87096774 | S127: 72.12903226 | T127: 69.6516129 | U127: 71.74193548 | W127: 0 | X127: 0 | Y127: 0 | Z127: 64.18064516 | AA127: 76.23225806 | AC127: 2007 | AD127: 8 | AE127: 31 | AF127: 82007 | AG127: 21.9 | AH127: 43.7 | AI127: 45 | AJ127: 33.1 | AK127: 28 | AL127: 43.4 | AM127: 54 | AN127: 49.9 | AO127: 63.7 | AP127: 51.4 | AQ127: 34.7 | AR127: 42.5 | AV127: 41.9 | AW127: 45.5 | BA127: 2007-01-08 | BB127: 1 | BC127: 2007 | BD127: 12007 | BE127: 8 | BF127: 0 | BG127: 0 | BH127: 0 | BI127: 0 | BJ127: 0 | BK127: 0 | BL127: 0 | BM127: 0 | BN127: 0 | BO127: 0 | BP127: 0 | BQ127: 0 | BR127: 0 | BS127: 0 | BT127: 0 | BU127: 0 | BV127: 0 | BX127: 2007 | BY127: 8 | BZ127: 31 | CA127: 82007 | CV127: BR | CW127: 1 | CX127: London (Thames Valley)
D128: 2007-01-09 | E128: 1 | F128: 2007 | G128: 12007 | H128: 9 | I128: 69.8516129 | J128: 76.38387097 | K128: 72.29032258 | L128: 65.58387097 | M128: 73.07419355 | N128: 76.58709677 | P128: 81.11612903 | Q128: 79.72258065 | R128: 80.85483871 | S128: 81.14516129 | T128: 78.35806452 | U128: 80.70967742 | W128: 0 | X128: 0 | Y128: 0 | Z128: 72.20322581 | AA128: 85.76129032 | AC128: 2007 | AD128: 9 | AE128: 30 | AF128: 92007 | AG128: 46 | AH128: 70.6 | AI128: 77.7 | AJ128: 55.2 | AK128: 55.3 | AL128: 75.3 | AM128: 88.6 | AN128: 92.8 | AO128: 88.7 | AP128: 87.3 | AQ128: 65.6 | AR128: 66.6 | AV128: 60.1 | AW128: 87.7 | BA128: 2007-01-09 | BB128: 1 | BC128: 2007 | BD128: 12007 | BE128: 9 | BF128: 0 | BG128: 0 | BH128: 0 | BI128: 0 | BJ128: 0 | BK128: 0 | BL128: 0 | BM128: 0 | BN128: 0 | BO128: 0 | BP128: 0 | BQ128: 0 | BR128: 0 | BS128: 0 | BT128: 0 | BU128: 0 | BV128: 0 | BX128: 2007 | BY128: 9 | BZ128: 30 | CA128: 92007 | CV128: BS | CW128: 5 | CX128: Severn Valley
D129: 2007-01-10 | E129: 1 | F129: 2007 | G129: 12007 | H129: 10 | I129: 77.61290323 | J129: 84.87096774 | K129: 80.32258065 | L129: 72.87096774 | M129: 81.19354839 | N129: 85.09677419 | P129: 90.12903226 | Q129: 88.58064516 | R129: 89.83870968 | S129: 90.16129032 | T129: 87.06451613 | U129: 89.67741935 | W129: 0 | X129: 0 | Y129: 0 | Z129: 80.22580645 | AA129: 95.29032258 | AC129: 2007 | AD129: 10 | AE129: 31 | AF129: 102007 | AG129: 118 | AH129: 155.6 | AI129: 145.6 | AJ129: 98.1 | AK129: 123 | AL129: 146.3 | AM129: 152.4 | AN129: 147.7 | AO129: 163.2 | AP129: 171.4 | AQ129: 137.6 | AR129: 154.2 | AV129: 122.8 | AW129: 126.9 | BA129: 2007-01-10 | BB129: 1 | BC129: 2007 | BD129: 12007 | BE129: 10 | BF129: 0 | BG129: 0 | BH129: 0 | BI129: 0 | BJ129: 0 | BK129: 0 | BL129: 0 | BM129: 0 | BN129: 0 | BO129: 0 | BP129: 0 | BQ129: 0 | BR129: 0 | BS129: 0 | BT129: 0 | BU129: 0 | BV129: 0 | BX129: 2007 | BY129: 10 | BZ129: 31 | CA129: 102007 | CW129: 17 | CX129: Northern Ireland
D130: 2007-01-11 | E130: 1 | F130: 2007 | G130: 12007 | H130: 11 | I130: 85.37419355 | J130: 93.35806452 | K130: 88.35483871 | L130: 80.15806452 | M130: 89.31290323 | N130: 93.60645161 | P130: 99.14193548 | Q130: 97.43870968 | R130: 98.82258065 | S130: 99.17741935 | T130: 95.77096774 | U130: 98.64516129 | W130: 0 | X130: 0 | Y130: 0 | Z130: 88.2483871 | AA130: 104.8193548 | AC130: 2007 | AD130: 11 | AE130: 30 | AF130: 112007 | AG130: 226.3 | AH130: 247.1 | AI130: 246.1 | AJ130: 196.4 | AK130: 224.9 | AL130: 252.5 | AM130: 257.7 | AN130: 236 | AO130: 228.4 | AP130: 246.9 | AQ130: 247 | AR130: 271.7 | AV130: 202.2 | AW130: 219.8 | BA130: 2007-01-11 | BB130: 1 | BC130: 2007 | BD130: 12007 | BE130: 11 | BF130: 0 | BG130: 0 | BH130: 0 | BI130: 0 | BJ130: 0 | BK130: 0 | BL130: 0 | BM130: 0 | BN130: 0 | BO130: 0 | BP130: 0 | BQ130: 0 | BR130: 0 | BS130: 0 | BT130: 0 | BU130: 0 | BV130: 0 | BX130: 2007 | BY130: 11 | BZ130: 30 | CA130: 112007 | CV130: CA | CW130: 8 | CX130: North Western
D131: 2007-01-12 | E131: 1 | F131: 2007 | G131: 12007 | H131: 12 | I131: 93.13548387 | J131: 101.8451613 | K131: 96.38709677 | L131: 87.44516129 | M131: 97.43225806 | N131: 102.116129 | P131: 108.1548387 | Q131: 106.2967742 | R131: 107.8064516 | S131: 108.1935484 | T131: 104.4774194 | U131: 107.6129032 | W131: 0 | X131: 0 | Y131: 0 | Z131: 96.27096774 | AA131: 114.3483871 | AC131: 2007 | AD131: 12 | AE131: 31 | AF131: 122007 | AG131: 295.8 | AH131: 255.8 | AI131: 310.3 | AJ131: 246 | AK131: 313 | AL131: 330.6 | AM131: 340.3 | AN131: 334 | AO131: 344.6 | AP131: 350.6 | AQ131: 332 | AR131: 338.1 | AV131: 291.7 | AW131: 297.6 | BA131: 2007-01-12 | BB131: 1 | BC131: 2007 | BD131: 12007 | BE131: 12 | BF131: 0 | BG131: 0 | BH131: 0 | BI131: 0 | BJ131: 0 | BK131: 0 | BL131: 0 | BM131: 0 | BN131: 0 | BO131: 0 | BP131: 0 | BQ131: 0 | BR131: 0 | BS131: 0 | BT131: 0 | BU131: 0 | BV131: 0 | BX131: 2007 | BY131: 12 | BZ131: 31 | CA131: 122007 | CV131: CB | CW131: 12 | CX131: East Anglia
D132: 2007-01-13 | E132: 1 | F132: 2007 | G132: 12007 | H132: 13 | I132: 100.8967742 | J132: 110.3322581 | K132: 104.4193548 | L132: 94.73225806 | M132: 105.5516129 | N132: 110.6258065 | P132: 117.1677419 | Q132: 115.1548387 | R132: 116.7903226 | S132: 117.2096774 | T132: 113.183871 | U132: 116.5806452 | W132: 0 | X132: 0 | Y132: 0 | Z132: 104.2935484 | AA132: 123.8774194 | AC132: 2008 | AD132: 1 | AE132: 31 | AF132: 12008 | AG132: 246.7 | AH132: 278.2 | AI132: 267.4 | AJ132: 238.5 | AK132: 255.5 | AL132: 277.7 | AM132: 293.8 | AN132: 294.1 | AO132: 305.8 | AP132: 293.5 | AQ132: 280.8 | AR132: 284.5 | AV132: 262.7 | AW132: 320 | BA132: 2007-01-13 | BB132: 1 | BC132: 2007 | BD132: 12007 | BE132: 13 | BF132: 0 | BG132: 0 | BH132: 0 | BI132: 0 | BJ132: 0 | BK132: 0 | BL132: 0 | BM132: 0 | BN132: 0 | BO132: 0 | BP132: 0 | BQ132: 0 | BR132: 0 | BS132: 0 | BT132: 0 | BU132: 0 | BV132: 0 | BX132: 2008 | BY132: 1 | BZ132: 31 | CA132: 12008 | CB132: 6.7 | CC132: 4.6 | CD132: 4.7 | CE132: 5.9 | CF132: 3.1 | CG132: 4 | CH132: 2 | CI132: 0.6 | CJ132: 2.1 | CK132: 2 | CL132: 2.4 | CM132: 6 | CN132: 0.4 | CO132: 0.3 | CP132: 0.6 | CQ132: 7.4 | CS132: 0 | CT132: =SUM(CB132:CS132)/COUNT(CB132:CS132) -> 3.105882353 | CV132: CF | CW132: 5 | CX132: Severn Valley
D133: 2007-01-14 | E133: 1 | F133: 2007 | G133: 12007 | H133: 14 | I133: 108.6580645 | J133: 118.8193548 | K133: 112.4516129 | L133: 102.0193548 | M133: 113.6709677 | N133: 119.1354839 | P133: 126.1806452 | Q133: 124.0129032 | R133: 125.7741935 | S133: 126.2258065 | T133: 121.8903226 | U133: 125.5483871 | W133: 0 | X133: 0 | Y133: 0 | Z133: 112.316129 | AA133: 133.4064516 | AC133: 2008 | AD133: 2 | AE133: 29 | AF133: 22008 | AG133: 261.3 | AH133: 296 | AI133: 299.6 | AJ133: 245.2 | AK133: 284.4 | AL133: 303.7 | AM133: 303 | AN133: 276.5 | AO133: 289.6 | AP133: 323.9 | AQ133: 301 | AR133: 313.2 | AV133: 264.7 | AW133: 288.1 | BA133: 2007-01-14 | BB133: 1 | BC133: 2007 | BD133: 12007 | BE133: 14 | BF133: 0 | BG133: 0 | BH133: 0 | BI133: 0 | BJ133: 0 | BK133: 0 | BL133: 0 | BM133: 0 | BN133: 0 | BO133: 0 | BP133: 0 | BQ133: 0 | BR133: 0 | BS133: 0 | BT133: 0 | BU133: 0 | BV133: 0 | BX133: 2008 | BY133: 2 | BZ133: 29 | CA133: 22008 | CB133: 3.8 | CC133: 2.7 | CD133: 2 | CE133: 2.6 | CF133: 1.5 | CG133: 2.5 | CH133: 3.3 | CI133: 1.6 | CJ133: 3.4 | CK133: 2.3 | CL133: 2.4 | CM133: 4.8 | CN133: 0.8 | CO133: 1 | CP133: 2.4 | CQ133: 2.9 | CS133: 0.7 | CT133: 2.394117647 | CV133: CH | CW133: 7 | CX133: West Pennines
D134: 2007-01-15 | E134: 1 | F134: 2007 | G134: 12007 | H134: 15 | I134: 116.4193548 | J134: 127.3064516 | K134: 120.483871 | L134: 109.3064516 | M134: 121.7903226 | N134: 127.6451613 | P134: 135.1935484 | Q134: 132.8709677 | R134: 134.7580645 | S134: 135.2419355 | T134: 130.5967742 | U134: 134.516129 | W134: 0 | X134: 0 | Y134: 0 | Z134: 120.3387097 | AA134: 142.9354839 | AC134: 2008 | AD134: 3 | AE134: 31 | AF134: 32008 | AG134: 259.5 | AH134: 274.6 | AI134: 267.9 | AJ134: 227.7 | AK134: 263.8 | AL134: 289.5 | AM134: 313.7 | AN134: 296.9 | AO134: 306.3 | AP134: 297.9 | AQ134: 299 | AR134: 298.6 | AV134: 278.2 | AW134: 304.2 | BA134: 2007-01-15 | BB134: 1 | BC134: 2007 | BD134: 12007 | BE134: 15 | BF134: 0 | BG134: 0 | BH134: 0 | BI134: 0 | BJ134: 0 | BK134: 0 | BL134: 0 | BM134: 0 | BN134: 0 | BO134: 0 | BP134: 0 | BQ134: 0 | BR134: 0 | BS134: 0 | BT134: 0 | BU134: 0 | BV134: 0 | BX134: 2008 | BY134: 3 | BZ134: 31 | CA134: 32008 | CB134: 4.8 | CC134: 4.6 | CD134: 3.3 | CE134: 3.4 | CF134: 1.8 | CG134: 2.7 | CH134: 1.3 | CI134: 0.5 | CJ134: 1.3 | CK134: 2.1 | CL134: 1.9 | CM134: 5.3 | CN134: 0.3 | CO134: 0.7 | CP134: 1.6 | CQ134: 1.7 | CS134: 0.1 | CT134: 2.2 | CV134: CM | CW134: 12 | CX134: East Anglia
D135: 2007-01-16 | E135: 1 | F135: 2007 | G135: 12007 | H135: 16 | I135: 124.1806452 | J135: 135.7935484 | K135: 128.516129 | L135: 116.5935484 | M135: 129.9096774 | N135: 136.1548387 | P135: 144.2064516 | Q135: 141.7290323 | R135: 143.7419355 | S135: 144.2580645 | T135: 139.3032258 | U135: 143.483871 | W135: 0 | X135: 0 | Y135: 0 | Z135: 128.3612903 | AA135: 152.4645161 | AC135: 2008 | AD135: 4 | AE135: 30 | AF135: 42008 | AG135: 187.6 | AH135: 212.9 | AI135: 211.3 | AJ135: 202.4 | AK135: 208.7 | AL135: 225.5 | AM135: 231.4 | AN135: 232.1 | AO135: 259.3 | AP135: 246.3 | AQ135: 230.6 | AR135: 225.6 | AV135: 232.6 | AW135: 221.6 | BA135: 2007-01-16 | BB135: 1 | BC135: 2007 | BD135: 12007 | BE135: 16 | BF135: 0 | BG135: 0 | BH135: 0 | BI135: 0 | BJ135: 0 | BK135: 0 | BL135: 0 | BM135: 0 | BN135: 0 | BO135: 0 | BP135: 0 | BQ135: 0 | BR135: 0 | BS135: 0 | BT135: 0 | BU135: 0 | BV135: 0 | BX135: 2008 | BY135: 4 | BZ135: 30 | CA135: 42008 | CB135: 28.7 | CC135: 26.1 | CD135: 27.5 | CE135: 18.2 | CF135: 17.7 | CG135: 20.5 | CH135: 15.9 | CI135: 10.4 | CJ135: 10.6 | CK135: 17.3 | CL135: 17.3 | CM135: 26.9 | CN135: 6.3 | CO135: 7.5 | CP135: 8.4 | CQ135: 16.7 | CS135: 8.2 | CT135: 16.71764706 | CV135: CO | CW135: 12 | CX135: East Anglia
D136: 2007-01-17 | E136: 1 | F136: 2007 | G136: 12007 | H136: 17 | I136: 131.9419355 | J136: 144.2806452 | K136: 136.5483871 | L136: 123.8806452 | M136: 138.0290323 | N136: 144.6645161 | P136: 153.2193548 | Q136: 150.5870968 | R136: 152.7258065 | S136: 153.2741935 | T136: 148.0096774 | U136: 152.4516129 | W136: 0 | X136: 0 | Y136: 0 | Z136: 136.383871 | AA136: 161.9935484 | AC136: 2008 | AD136: 5 | AE136: 31 | AF136: 52008 | AG136: 64.7 | AH136: 84.9 | AI136: 76.8 | AJ136: 66.3 | AK136: 79.6 | AL136: 101.1 | AM136: 92 | AN136: 101.4 | AO136: 157.6 | AP136: 131.5 | AQ136: 99.8 | AR136: 92.6 | AV136: 95.9 | AW136: 99.5 | BA136: 2007-01-17 | BB136: 1 | BC136: 2007 | BD136: 12007 | BE136: 17 | BF136: 0 | BG136: 0 | BH136: 0 | BI136: 0 | BJ136: 0 | BK136: 0 | BL136: 0 | BM136: 0 | BN136: 0 | BO136: 0 | BP136: 0 | BQ136: 0 | BR136: 0 | BS136: 0 | BT136: 0 | BU136: 0 | BV136: 0 | BX136: 2008 | BY136: 5 | BZ136: 31 | CA136: 52008 | CB136: 132.9 | CC136: 141.4 | CD136: 154.8 | CE136: 119.7 | CF136: 120.1 | CG136: 116.8 | CH136: 125.8 | CI136: 108.4 | CJ136: 40.1 | CK136: 88.6 | CL136: 99 | CM136: 119 | CN136: 68.6 | CO136: 65.3 | CP136: 44.1 | CQ136: 123.8 | CS136: 79.2 | CT136: 102.8 | CV136: CR | CW136: 1 | CX136: London (Thames Valley)
D137: 2007-01-18 | E137: 1 | F137: 2007 | G137: 12007 | H137: 18 | I137: 139.7032258 | J137: 152.7677419 | K137: 144.5806452 | L137: 131.1677419 | M137: 146.1483871 | N137: 153.1741935 | P137: 162.2322581 | Q137: 159.4451613 | R137: 161.7096774 | S137: 162.2903226 | T137: 156.716129 | U137: 161.4193548 | W137: 0 | X137: 0 | Y137: 0 | Z137: 144.4064516 | AA137: 171.5225806 | AC137: 2008 | AD137: 6 | AE137: 30 | AF137: 62008 | AG137: 32 | AH137: 56.9 | AI137: 62.4 | AJ137: 62.8 | AK137: 44.9 | AL137: 68.3 | AM137: 80.9 | AN137: 71.9 | AO137: 87 | AP137: 77.3 | AQ137: 57 | AR137: 61.3 | AV137: 82.4 | AW137: 84 | BA137: 2007-01-18 | BB137: 1 | BC137: 2007 | BD137: 12007 | BE137: 18 | BF137: 0 | BG137: 0 | BH137: 0 | BI137: 0 | BJ137: 0 | BK137: 0 | BL137: 0 | BM137: 0 | BN137: 0 | BO137: 0 | BP137: 0 | BQ137: 0 | BR137: 0 | BS137: 0 | BT137: 0 | BU137: 0 | BV137: 0 | BX137: 2008 | BY137: 6 | BZ137: 30 | CA137: 62008 | CB137: 163.7 | CC137: 168.2 | CD137: 170.9 | CE137: 137.5 | CF137: 136.9 | CG137: 139.9 | CH137: 126.7 | CI137: 112.7 | CJ137: 94.8 | CK137: 124.7 | CL137: 129.5 | CM137: 157.1 | CN137: 81.9 | CO137: 90.8 | CP137: 79.9 | CQ137: 123.6 | CS137: 65 | CT137: 123.7529412 | CV137: CT | CW137: 2 | CX137: South Eastern
D138: 2007-01-19 | E138: 1 | F138: 2007 | G138: 12007 | H138: 19 | I138: 147.4645161 | J138: 161.2548387 | K138: 152.6129032 | L138: 138.4548387 | M138: 154.2677419 | N138: 161.683871 | P138: 171.2451613 | Q138: 168.3032258 | R138: 170.6935484 | S138: 171.3064516 | T138: 165.4225806 | U138: 170.3870968 | W138: 0 | X138: 0 | Y138: 0 | Z138: 152.4290323 | AA138: 181.0516129 | AC138: 2008 | AD138: 7 | AE138: 31 | AF138: 72008 | AG138: 17.5 | AH138: 34.5 | AI138: 34.4 | AJ138: 30.8 | AK138: 20.8 | AL138: 34.8 | AM138: 39.4 | AN138: 33.2 | AO138: 49.5 | AP138: 40.7 | AQ138: 29.8 | AR138: 33.3 | AV138: 38.8 | AW138: 42.3 | BA138: 2007-01-19 | BB138: 1 | BC138: 2007 | BD138: 12007 | BE138: 19 | BF138: 0 | BG138: 0 | BH138: 0 | BI138: 0 | BJ138: 0 | BK138: 0 | BL138: 0 | BM138: 0 | BN138: 0 | BO138: 0 | BP138: 0 | BQ138: 0 | BR138: 0 | BS138: 0 | BT138: 0 | BU138: 0 | BV138: 0 | BX138: 2008 | BY138: 7 | BZ138: 31 | CA138: 72008 | CB138: 221.6 | CC138: 227 | CD138: 216 | CE138: 177.4 | CF138: 183.7 | CG138: 194.4 | CH138: 188.1 | CI138: 178.7 | CJ138: 144.3 | CK138: 189.5 | CL138: 191.1 | CM138: 229.2 | CN138: 149.3 | CO138: 153.6 | CP138: 136.1 | CQ138: 181.3 | CS138: 135 | CT138: 182.1352941 | CV138: CV | CW138: 6 | CX138: Midlands
D139: 2007-01-20 | E139: 1 | F139: 2007 | G139: 12007 | H139: 20 | I139: 155.2258065 | J139: 169.7419355 | K139: 160.6451613 | L139: 145.7419355 | M139: 162.3870968 | N139: 170.1935484 | P139: 180.2580645 | Q139: 177.1612903 | R139: 179.6774194 | S139: 180.3225806 | T139: 174.1290323 | U139: 179.3548387 | W139: 0 | X139: 0 | Y139: 0 | Z139: 160.4516129 | AA139: 190.5806452 | AC139: 2008 | AD139: 8 | AE139: 31 | AF139: 82008 | AG139: 11.9 | AH139: 23 | AI139: 22.1 | AJ139: 19.2 | AK139: 17.6 | AL139: 26.7 | AM139: 28 | AN139: 23.7 | AO139: 37 | AP139: 31 | AQ139: 18 | AR139: 21.5 | AV139: 29.6 | AW139: 35.2 | BA139: 2007-01-20 | BB139: 1 | BC139: 2007 | BD139: 12007 | BE139: 20 | BF139: 0 | BG139: 0 | BH139: 0 | BI139: 0 | BJ139: 0 | BK139: 0 | BL139: 0 | BM139: 0 | BN139: 0 | BO139: 0 | BP139: 0 | BQ139: 0 | BR139: 0 | BS139: 0 | BT139: 0 | BU139: 0 | BV139: 0 | BX139: 2008 | BY139: 8 | BZ139: 31 | CA139: 82008 | CB139: 200.3 | CC139: 208.6 | CD139: 199.1 | CE139: 173.4 | CF139: 174.9 | CG139: 181.1 | CH139: 177.1 | CI139: 166.3 | CJ139: 150.2 | CK139: 172.3 | CL139: 186.1 | CM139: 214.7 | CN139: 129.1 | CO139: 133.5 | CP139: 125.8 | CQ139: 173.3 | CS139: 121.9 | CT139: 169.8647059 | CV139: CW | CW139: 7 | CX139: West Pennines
D140: 2007-01-21 | E140: 1 | F140: 2007 | G140: 12007 | H140: 21 | I140: 162.9870968 | J140: 178.2290323 | K140: 168.6774194 | L140: 153.0290323 | M140: 170.5064516 | N140: 178.7032258 | P140: 189.2709677 | Q140: 186.0193548 | R140: 188.6612903 | S140: 189.3387097 | T140: 182.8354839 | U140: 188.3225806 | W140: 0 | X140: 0 | Y140: 0 | Z140: 168.4741935 | AA140: 200.1096774 | AC140: 2008 | AD140: 9 | AE140: 30 | AF140: 92008 | AG140: 45.5 | AH140: 83.7 | AI140: 71.8 | AJ140: 59.3 | AK140: 62.2 | AL140: 76.7 | AM140: 87 | AN140: 88.4 | AO140: 82.4 | AP140: 79.3 | AQ140: 64.1 | AR140: 77.3 | AV140: 79.5 | AW140: 85 | BA140: 2007-01-21 | BB140: 1 | BC140: 2007 | BD140: 12007 | BE140: 21 | BF140: 0 | BG140: 0 | BH140: 0 | BI140: 0 | BJ140: 0 | BK140: 0 | BL140: 0 | BM140: 0 | BN140: 0 | BO140: 0 | BP140: 0 | BQ140: 0 | BR140: 0 | BS140: 0 | BT140: 0 | BU140: 0 | BV140: 0 | BX140: 2008 | BY140: 9 | BZ140: 30 | CA140: 92008 | CB140: 104.6 | CC140: 113.9 | CD140: 113.6 | CE140: 106.9 | CF140: 102.9 | CG140: 91.9 | CH140: 95.5 | CI140: 83.6 | CJ140: 81.7 | CK140: 91.9 | CL140: 94.4 | CM140: 110 | CN140: 60.7 | CO140: 67.1 | CP140: 69.8 | CQ140: 97.1 | CS140: 66.4 | CT140: 91.29411765 | CV140: DA | CW140: 1 | CX140: London (Thames Valley)
D141: 2007-01-22 | E141: 1 | F141: 2007 | G141: 12007 | H141: 22 | I141: 170.7483871 | J141: 186.716129 | K141: 176.7096774 | L141: 160.316129 | M141: 178.6258065 | N141: 187.2129032 | P141: 198.283871 | Q141: 194.8774194 | R141: 197.6451613 | S141: 198.3548387 | T141: 191.5419355 | U141: 197.2903226 | W141: 0 | X141: 0 | Y141: 0 | Z141: 176.4967742 | AA141: 209.6387097 | AC141: 2008 | AD141: 10 | AE141: 31 | AF141: 102008 | AG141: 150.3 | AH141: 183.4 | AI141: 162.8 | AJ141: 142.8 | AK141: 159.3 | AL141: 182.9 | AM141: 194.8 | AN141: 186 | AO141: 192.5 | AP141: 200.2 | AQ141: 172.1 | AR141: 192.4 | AV141: 160.2 | AW141: 205 | BA141: 2007-01-22 | BB141: 1 | BC141: 2007 | BD141: 12007 | BE141: 22 | BF141: 0 | BG141: 0 | BH141: 0 | BI141: 0 | BJ141: 0 | BK141: 0 | BL141: 0 | BM141: 0 | BN141: 0 | BO141: 0 | BP141: 0 | BQ141: 0 | BR141: 0 | BS141: 0 | BT141: 0 | BU141: 0 | BV141: 0 | BX141: 2008 | BY141: 10 | BZ141: 31 | CA141: 102008 | CB141: 48.4 | CC141: 55.2 | CD141: 53.6 | CE141: 52.9 | CF141: 47 | CG141: 38.8 | CH141: 35.8 | CI141: 25 | CJ141: 30.8 | CK141: 33.4 | CL141: 37.9 | CM141: 45.4 | CN141: 15.2 | CO141: 15.5 | CP141: 16.8 | CQ141: 39.1 | CS141: 13.4 | CT141: 35.54117647 | CV141: DE | CW141: 6 | CX141: Midlands
D142: 2007-01-23 | E142: 1 | F142: 2007 | G142: 12007 | H142: 23 | I142: 178.5096774 | J142: 195.2032258 | K142: 184.7419355 | L142: 167.6032258 | M142: 186.7451613 | N142: 195.7225806 | P142: 207.2967742 | Q142: 203.7354839 | R142: 206.6290323 | S142: 207.3709677 | T142: 200.2483871 | U142: 206.2580645 | W142: 0 | X142: 0 | Y142: 0 | Z142: 184.5193548 | AA142: 219.1677419 | AC142: 2008 | AD142: 11 | AE142: 30 | AF142: 112008 | AG142: 227.8 | AH142: 241.7 | AI142: 223.5 | AJ142: 203.4 | AK142: 231.4 | AL142: 257.4 | AM142: 269.1 | AN142: 265.5 | AO142: 266.2 | AP142: 274.2 | AQ142: 258.7 | AR142: 264.3 | AV142: 225 | AW142: 267.8 | BA142: 2007-01-23 | BB142: 1 | BC142: 2007 | BD142: 12007 | BE142: 23 | BF142: 0 | BG142: 0 | BH142: 0 | BI142: 0 | BJ142: 0 | BK142: 0 | BL142: 0 | BM142: 0 | BN142: 0 | BO142: 0 | BP142: 0 | BQ142: 0 | BR142: 0 | BS142: 0 | BT142: 0 | BU142: 0 | BV142: 0 | BX142: 2008 | BY142: 11 | BZ142: 30 | CA142: 112008 | CB142: 6 | CC142: 10 | CD142: 8.4 | CE142: 12.1 | CF142: 6 | CG142: 3.2 | CH142: 3.1 | CI142: 2.2 | CJ142: 4.6 | CK142: 3.9 | CL142: 2.9 | CM142: 5.8 | CN142: 2.3 | CO142: 2.5 | CP142: 3.3 | CQ142: 8.4 | CS142: 2.7 | CT142: 5.141176471 | CV142: DG | CW142: 8 | CX142: North Western
D143: 2007-01-24 | E143: 1 | F143: 2007 | G143: 12007 | H143: 24 | I143: 186.2709677 | J143: 203.6903226 | K143: 192.7741935 | L143: 174.8903226 | M143: 194.8645161 | N143: 204.2322581 | P143: 216.3096774 | Q143: 212.5935484 | R143: 215.6129032 | S143: 216.3870968 | T143: 208.9548387 | U143: 215.2258065 | W143: 0 | X143: 0 | Y143: 0 | Z143: 192.5419355 | AA143: 228.6967742 | AC143: 2008 | AD143: 12 | AE143: 31 | AF143: 122008 | AG143: 341.5 | AH143: 374 | AI143: 354.3 | AJ143: 302 | AK143: 358.3 | AL143: 366.4 | AM143: 399.3 | AN143: 374.9 | AO143: 337.9 | AP143: 392.7 | AQ143: 375.2 | AR143: 386.2 | AV143: 318.3 | AW143: 350.2 | BA143: 2007-01-24 | BB143: 1 | BC143: 2007 | BD143: 12007 | BE143: 24 | BF143: 0 | BG143: 0 | BH143: 0 | BI143: 0 | BJ143: 0 | BK143: 0 | BL143: 0 | BM143: 0 | BN143: 0 | BO143: 0 | BP143: 0 | BQ143: 0 | BR143: 0 | BS143: 0 | BT143: 0 | BU143: 0 | BV143: 0 | BX143: 2008 | BY143: 12 | BZ143: 31 | CA143: 122008 | CB143: 1.6 | CC143: 1 | CD143: 0.5 | CE143: 1.1 | CF143: 0.2 | CG143: 0.8 | CH143: 0.5 | CI143: 0 | CJ143: 1 | CK143: 0.6 | CL143: 0.5 | CM143: 0.6 | CN143: 0.1 | CO143: 0.1 | CP143: 0.3 | CQ143: 0.6 | CS143: 0.1 | CT143: 0.5647058824 | CV143: DH | CW143: 10 | CX143: North Eastern
D144: 2007-01-25 | E144: 1 | F144: 2007 | G144: 12007 | H144: 25 | I144: 194.0322581 | J144: 212.1774194 | K144: 200.8064516 | L144: 182.1774194 | M144: 202.983871 | N144: 212.7419355 | P144: 225.3225806 | Q144: 221.4516129 | R144: 224.5967742 | S144: 225.4032258 | T144: 217.6612903 | U144: 224.1935484 | W144: 0 | X144: 0 | Y144: 0 | Z144: 200.5645161 | AA144: 238.2258065 | AC144: 2009 | AD144: 1 | AE144: 31 | AF144: 12009 | AG144: 371.3 | AH144: 406.1 | AI144: 363.9 | AJ144: 320.8 | AK144: 363.1 | AL144: 391.3 | AM144: 390 | AN144: 356.3 | AO144: 368.8 | AP144: 387.6 | AQ144: 384.2 | AR144: 403 | AV144: 349.1 | AW144: 361.5 | BA144: 2007-01-25 | BB144: 1 | BC144: 2007 | BD144: 12007 | BE144: 25 | BF144: 0 | BG144: 0 | BH144: 0 | BI144: 0 | BJ144: 0 | BK144: 0 | BL144: 0 | BM144: 0 | BN144: 0 | BO144: 0 | BP144: 0 | BQ144: 0 | BR144: 0 | BS144: 0 | BT144: 0 | BU144: 0 | BV144: 0 | BX144: 2009 | BY144: 1 | BZ144: 31 | CA144: 12009 | CB144: 0 | CC144: 0 | CD144: 0 | CE144: 0 | CF144: 0 | CG144: 0 | CH144: 0 | CI144: 0 | CJ144: 0.1 | CK144: 0 | CL144: 0 | CM144: 0 | CN144: 0 | CO144: 0 | CP144: 0.4 | CQ144: 0 | CS144: 0.3 | CT144: 0.04705882353 | CV144: DL | CW144: 10 | CX144: North Eastern
D145: 2007-01-26 | E145: 1 | F145: 2007 | G145: 12007 | H145: 26 | I145: 201.7935484 | J145: 220.6645161 | K145: 208.8387097 | L145: 189.4645161 | M145: 211.1032258 | N145: 221.2516129 | P145: 234.3354839 | Q145: 230.3096774 | R145: 233.5806452 | S145: 234.4193548 | T145: 226.3677419 | U145: 233.1612903 | W145: 0 | X145: 0 | Y145: 0 | Z145: 208.5870968 | AA145: 247.7548387 | AC145: 2009 | AD145: 2 | AE145: 28 | AF145: 22009 | AG145: 295 | AH145: 309.2 | AI145: 298.4 | AJ145: 280.3 | AK145: 308.2 | AL145: 316.7 | AM145: 324 | AN145: 313 | AO145: 295.6 | AP145: 314.1 | AQ145: 323.5 | AR145: 319 | AV145: 305 | AW145: 294.6 | BA145: 2007-01-26 | BB145: 1 | BC145: 2007 | BD145: 12007 | BE145: 26 | BF145: 0 | BG145: 0 | BH145: 0 | BI145: 0 | BJ145: 0 | BK145: 0 | BL145: 0 | BM145: 0 | BN145: 0 | BO145: 0 | BP145: 0 | BQ145: 0 | BR145: 0 | BS145: 0 | BT145: 0 | BU145: 0 | BV145: 0 | BX145: 2009 | BY145: 2 | BZ145: 28 | CA145: 22009 | CB145: 1.3 | CC145: 1 | CD145: 0.6 | CE145: 0.1 | CF145: 0.3 | CG145: 0.3 | CH145: 0 | CI145: 0 | CJ145: 1.1 | CK145: 0.9 | CL145: 0.3 | CM145: 1.1 | CN145: 0.4 | CO145: 0.9 | CP145: 1.2 | CQ145: 0 | CS145: 0.1 | CT145: 0.5647058824 | CV145: DN | CW145: 11 | CX145: East Pennines
D146: 2007-01-27 | E146: 1 | F146: 2007 | G146: 12007 | H146: 27 | I146: 209.5548387 | J146: 229.1516129 | K146: 216.8709677 | L146: 196.7516129 | M146: 219.2225806 | N146: 229.7612903 | P146: 243.3483871 | Q146: 239.1677419 | R146: 242.5645161 | S146: 243.4354839 | T146: 235.0741935 | U146: 242.1290323 | W146: 0 | X146: 0 | Y146: 0 | Z146: 216.6096774 | AA146: 257.283871 | AC146: 2009 | AD146: 3 | AE146: 31 | AF146: 32009 | AG146: 229.2 | AH146: 258.6 | AI146: 268.3 | AJ146: 234.7 | AK146: 250.1 | AL146: 258.7 | AM146: 286.9 | AN146: 251 | AO146: 271.1 | AP146: 263.5 | AQ146: 259.8 | AR146: 278.7 | AV146: 265.4 | AW146: 275.3 | BA146: 2007-01-27 | BB146: 1 | BC146: 2007 | BD146: 12007 | BE146: 27 | BF146: 0 | BG146: 0 | BH146: 0 | BI146: 0 | BJ146: 0 | BK146: 0 | BL146: 0 | BM146: 0 | BN146: 0 | BO146: 0 | BP146: 0 | BQ146: 0 | BR146: 0 | BS146: 0 | BT146: 0 | BU146: 0 | BV146: 0 | BX146: 2009 | BY146: 3 | BZ146: 31 | CA146: 32009 | CB146: 14.1 | CC146: 10.1 | CD146: 10.9 | CE146: 9.1 | CF146: 10.4 | CG146: 8.3 | CH146: 5.6 | CI146: 2.7 | CJ146: 8.3 | CK146: 9 | CL146: 7.9 | CM146: 9.7 | CN146: 3.7 | CO146: 5 | CP146: 6.7 | CQ146: 3.2 | CS146: 2.8 | CT146: 7.5 | CV146: DT | CW146: 3 | CX146: Southern
D147: 2007-01-28 | E147: 1 | F147: 2007 | G147: 12007 | H147: 28 | I147: 217.316129 | J147: 237.6387097 | K147: 224.9032258 | L147: 204.0387097 | M147: 227.3419355 | N147: 238.2709677 | P147: 252.3612903 | Q147: 248.0258065 | R147: 251.5483871 | S147: 252.4516129 | T147: 243.7806452 | U147: 251.0967742 | W147: 0 | X147: 0 | Y147: 0 | Z147: 224.6322581 | AA147: 266.8129032 | AC147: 2009 | AD147: 4 | AE147: 30 | AF147: 42009 | AG147: 128.5 | AH147: 159.5 | AI147: 160.7 | AJ147: 172.8 | AK147: 147 | AL147: 170.1 | AM147: 171.4 | AN147: 178 | AO147: 219.2 | AP147: 195.2 | AQ147: 171.3 | AR147: 152 | AV147: 194.1 | AW147: 190.4 | BA147: 2007-01-28 | BB147: 1 | BC147: 2007 | BD147: 12007 | BE147: 28 | BF147: 0 | BG147: 0 | BH147: 0 | BI147: 0 | BJ147: 0 | BK147: 0 | BL147: 0 | BM147: 0 | BN147: 0 | BO147: 0 | BP147: 0 | BQ147: 0 | BR147: 0 | BS147: 0 | BT147: 0 | BU147: 0 | BV147: 0 | BX147: 2009 | BY147: 4 | BZ147: 30 | CA147: 42009 | CB147: 56.9 | CC147: 52.7 | CD147: 42.5 | CE147: 29 | CF147: 38.3 | CG147: 42.2 | CH147: 44.1 | CI147: 31.9 | CJ147: 30.9 | CK147: 41.9 | CL147: 41.4 | CM147: 50.3 | CN147: 20.8 | CO147: 22.5 | CP147: 12.4 | CQ147: 28.5 | CS147: 16.6 | CT147: 35.46470588 | CV147: DY | CW147: 6 | CX147: Midlands
D148: 2007-01-29 | E148: 1 | F148: 2007 | G148: 12007 | H148: 29 | I148: 225.0774194 | J148: 246.1258065 | K148: 232.9354839 | L148: 211.3258065 | M148: 235.4612903 | N148: 246.7806452 | P148: 261.3741935 | Q148: 256.883871 | R148: 260.5322581 | S148: 261.4677419 | T148: 252.4870968 | U148: 260.0645161 | W148: 0 | X148: 0 | Y148: 0 | Z148: 232.6548387 | AA148: 276.3419355 | AC148: 2009 | AD148: 5 | AE148: 31 | AF148: 52009 | AG148: 77 | AH148: 111.7 | AI148: 107.8 | AJ148: 119.1 | AK148: 107.5 | AL148: 120.3 | AM148: 128.9 | AN148: 135.3 | AO148: 146.9 | AP148: 136.1 | AQ148: 113.4 | AR148: 99.8 | AV148: 142.8 | AW148: 138.7 | BA148: 2007-01-29 | BB148: 1 | BC148: 2007 | BD148: 12007 | BE148: 29 | BF148: 0 | BG148: 0 | BH148: 0 | BI148: 0 | BJ148: 0 | BK148: 0 | BL148: 0 | BM148: 0 | BN148: 0 | BO148: 0 | BP148: 0 | BQ148: 0 | BR148: 0 | BS148: 0 | BT148: 0 | BU148: 0 | BV148: 0 | BX148: 2009 | BY148: 5 | BZ148: 31 | CA148: 52009 | CB148: 111.6 | CC148: 106.6 | CD148: 100.5 | CE148: 80.9 | CF148: 85.4 | CG148: 85.2 | CH148: 75.6 | CI148: 67.9 | CJ148: 74.9 | CK148: 78.6 | CL148: 76.7 | CM148: 105.8 | CN148: 55.2 | CO148: 56.7 | CP148: 43.9 | CQ148: 74.6 | CS148: 45.4 | CT148: 77.97058824 | CV148: E | CW148: 1 | CX148: London (Thames Valley)
D149: 2007-01-30 | E149: 1 | F149: 2007 | G149: 12007 | H149: 30 | I149: 232.8387097 | J149: 254.6129032 | K149: 240.9677419 | L149: 218.6129032 | M149: 243.5806452 | N149: 255.2903226 | P149: 270.3870968 | Q149: 265.7419355 | R149: 269.516129 | S149: 270.483871 | T149: 261.1935484 | U149: 269.0322581 | W149: 0 | X149: 0 | Y149: 0 | Z149: 240.6774194 | AA149: 285.8709677 | AC149: 2009 | AD149: 6 | AE149: 30 | AF149: 62009 | AG149: 36.3 | AH149: 62.2 | AI149: 53.4 | AJ149: 48.5 | AK149: 42 | AL149: 69.9 | AM149: 76.3 | AN149: 77.4 | AO149: 84.5 | AP149: 81.5 | AQ149: 64.6 | AR149: 59 | AV149: 65.7 | AW149: 73.7 | BA149: 2007-01-30 | BB149: 1 | BC149: 2007 | BD149: 12007 | BE149: 30 | BF149: 0 | BG149: 0 | BH149: 0 | BI149: 0 | BJ149: 0 | BK149: 0 | BL149: 0 | BM149: 0 | BN149: 0 | BO149: 0 | BP149: 0 | BQ149: 0 | BR149: 0 | BS149: 0 | BT149: 0 | BU149: 0 | BV149: 0 | BX149: 2009 | BY149: 6 | BZ149: 30 | CA149: 62009 | CB149: 183 | CC149: 184.7 | CD149: 187.7 | CE149: 165.1 | CF149: 174.7 | CG149: 162.4 | CH149: 164.5 | CI149: 152.2 | CJ149: 114.7 | CK149: 139.7 | CL149: 148.6 | CM149: 161.4 | CN149: 115.2 | CO149: 112.1 | CP149: 84.1 | CQ149: 153.3 | CS149: 92.4 | CT149: 146.8117647 | CV149: EC | CW149: 1 | CX149: London (Thames Valley)
D150: 2007-01-31 | E150: 1 | F150: 2007 | G150: 12007 | H150: 31 | I150: 240.6 | J150: 263.1 | K150: 249 | L150: 225.9 | M150: 251.7 | N150: 263.8 | P150: 279.4 | Q150: 274.6 | R150: 278.5 | S150: 279.5 | T150: 269.9 | U150: 278 | W150: 0 | X150: 0 | Y150: 0 | Z150: 248.7 | AA150: 295.4 | AC150: 2009 | AD150: 7 | AE150: 31 | AF150: 72009 | AG150: 15.8 | AH150: 27.6 | AI150: 17.2 | AJ150: 17.2 | AK150: 19.1 | AL150: 35.2 | AM150: 36.2 | AN150: 34 | AO150: 38.2 | AP150: 41.5 | AQ150: 25.4 | AR150: 28.4 | AV150: 36 | AW150: 36.2 | BA150: 2007-01-31 | BB150: 1 | BC150: 2007 | BD150: 12007 | BE150: 31 | BF150: 0 | BG150: 0 | BH150: 0 | BI150: 0 | BJ150: 0 | BK150: 0 | BL150: 0 | BM150: 0 | BN150: 0 | BO150: 0 | BP150: 0 | BQ150: 0 | BR150: 0 | BS150: 0 | BT150: 0 | BU150: 0 | BV150: 0 | BX150: 2009 | BY150: 7 | BZ150: 31 | CA150: 72009 | CB150: 214.3 | CC150: 223.9 | CD150: 198.8 | CE150: 175.1 | CF150: 183.2 | CG150: 177.9 | CH150: 178.6 | CI150: 173.8 | CJ150: 164.9 | CK150: 177.4 | CL150: 178.2 | CM150: 216.9 | CN150: 150.9 | CO150: 157.5 | CP150: 155.1 | CQ150: 159.4 | CS150: 134.9 | CT150: 177.6941176 | CV150: EN | CW150: 1 | CX150: London (Thames Valley)
D151: 2007-02-01 | E151: 2 | F151: 2007 | G151: 22007 | H151: 32 | I151: 249.2107143 | J151: 272.2571429 | K151: 257.5428571 | L151: 233.1428571 | M151: 260.6535714 | N151: 273.5571429 | P151: 289.2071429 | Q151: 284.6571429 | R151: 288.3607143 | S151: 289.8964286 | T151: 279.6214286 | U151: 288.0142857 | W151: 0 | X151: 0 | Y151: 0 | Z151: 257.8357143 | AA151: 305.8107143 | AC151: 2009 | AD151: 8 | AE151: 31 | AF151: 82009 | AG151: 12.4 | AH151: 33.6 | AI151: 30.7 | AJ151: 19.4 | AK151: 18.1 | AL151: 30.4 | AM151: 34.9 | AN151: 28.9 | AO151: 32.4 | AP151: 31.7 | AQ151: 24 | AR151: 22.6 | AV151: 32.8 | AW151: 40.3 | BA151: 2007-02-01 | BB151: 2 | BC151: 2007 | BD151: 22007 | BE151: 32 | BF151: 0 | BG151: 0 | BH151: 0 | BI151: 0 | BJ151: 0 | BK151: 0 | BL151: 0 | BM151: 0 | BN151: 0 | BO151: 0 | BP151: 0 | BQ151: 0 | BR151: 0 | BS151: 0 | BT151: 0 | BU151: 0 | BV151: 0 | BX151: 2009 | BY151: 8 | BZ151: 31 | CA151: 82009 | CB151: 233 | CC151: 248.7 | CD151: 211 | CE151: 190.6 | CF151: 197 | CG151: 196.1 | CH151: 194.8 | CI151: 173 | CJ151: 183.6 | CK151: 195.7 | CL151: 202.7 | CM151: 247.3 | CN151: 140.3 | CO151: 147 | CP151: 140.5 | CQ151: 170.9 | CS151: 121.3 | CT151: 187.8529412 | CV151: EX | CW151: 4 | CX151: South Western
D152: 2007-02-02 | E152: 2 | F152: 2007 | G152: 22007 | H152: 33 | I152: 257.8214286 | J152: 281.4142857 | K152: 266.0857143 | L152: 240.3857143 | M152: 269.6071429 | N152: 283.3142857 | P152: 299.0142857 | Q152: 294.7142857 | R152: 298.2214286 | S152: 300.2928571 | T152: 289.3428571 | U152: 298.0285714 | W152: 0 | X152: 0 | Y152: 0 | Z152: 266.9714286 | AA152: 316.2214286 | AC152: 2009 | AD152: 9 | AE152: 30 | AF152: =AD152&AC152 -> 92009 | AG152: 34.8 | AH152: 55 | AI152: 63.4 | AJ152: 45.3 | AK152: 47.2 | AL152: 65.6 | AM152: 77.5 | AN152: 72.4 | AO152: 71.8 | AP152: 72.9 | AQ152: 51.6 | AR152: 60 | AV152: 67.9 | AW152: 79.1 | BA152: 2007-02-02 | BB152: 2 | BC152: 2007 | BD152: 22007 | BE152: 33 | BF152: 0 | BG152: 0 | BH152: 0 | BI152: 0 | BJ152: 0 | BK152: 0 | BL152: 0 | BM152: 0 | BN152: 0 | BO152: 0 | BP152: 0 | BQ152: 0 | BR152: 0 | BS152: 0 | BT152: 0 | BU152: 0 | BV152: 0 | BX152: 2009 | BY152: 9 | BZ152: 30 | CA152: =BY152&BX152 -> 92009 | CB152: 143.1 | CC152: 162.3 | CD152: 143 | CE152: 127.2 | CF152: 125.8 | CG152: 117 | CH152: 109.4 | CI152: 94.5 | CJ152: 98.5 | CK152: 108.9 | CL152: 112.7 | CM152: 147.2 | CN152: 78.4 | CO152: 80.5 | CP152: 82.7 | CQ152: 114.2 | CS152: 71.1 | CT152: 112.7352941 | CV152: FY | CW152: 7 | CX152: West Pennines
D153: 2007-02-03 | E153: 2 | F153: 2007 | G153: 22007 | H153: 34 | I153: 266.4321429 | J153: 290.5714286 | K153: 274.6285714 | L153: 247.6285714 | M153: 278.5607143 | N153: 293.0714286 | P153: 308.8214286 | Q153: 304.7714286 | R153: 308.0821429 | S153: 310.6892857 | T153: 299.0642857 | U153: 308.0428571 | W153: 0 | X153: 0 | Y153: 0 | Z153: 276.1071429 | AA153: 326.6321429 | AC153: 2009 | AD153: 10 | AE153: 31 | AF153: 102009 | AG153: 95.4 | AH153: 129.8 | AI153: 109.6 | AJ153: 79.8 | AK153: 106.6 | AL153: 125.9 | AM153: 146.9 | AN153: 141.3 | AO153: 147 | AP153: 151.7 | AQ153: 131.8 | AR153: 124.4 | AV153: 111.7 | AW153: 127.8 | BA153: 2007-02-03 | BB153: 2 | BC153: 2007 | BD153: 22007 | BE153: 34 | BF153: 0 | BG153: 0 | BH153: 0 | BI153: 0 | BJ153: 0 | BK153: 0 | BL153: 0 | BM153: 0 | BN153: 0 | BO153: 0 | BP153: 0 | BQ153: 0 | BR153: 0 | BS153: 0 | BT153: 0 | BU153: 0 | BV153: 0 | BX153: 2009 | BY153: 10 | BZ153: 31 | CA153: 102009 | CB153: 64 | CC153: 77.9 | CD153: 78.3 | CE153: 81.5 | CF153: 70.3 | CG153: 53.7 | CH153: 54.6 | CI153: 41.3 | CJ153: 39.4 | CK153: 46.1 | CL153: 44.9 | CM153: 55.6 | CN153: 30 | CO153: 29.6 | CP153: 19.4 | CQ153: 72.1 | CS153: 19.7 | CT153: 51.67058824 | CV153: GL | CW153: 5 | CX153: Severn Valley
D154: 2007-02-04 | E154: 2 | F154: 2007 | G154: 22007 | H154: 35 | I154: 275.0428571 | J154: 299.7285714 | K154: 283.1714286 | L154: 254.8714286 | M154: 287.5142857 | N154: 302.8285714 | P154: 318.6285714 | Q154: 314.8285714 | R154: 317.9428571 | S154: 321.0857143 | T154: 308.7857143 | U154: 318.0571429 | W154: 0 | X154: 0 | Y154: 0 | Z154: 285.2428571 | AA154: 337.0428571 | AC154: 2009 | AD154: 11 | AE154: 30 | AF154: 112009 | AG154: 167.3 | AH154: 199.5 | AI154: 169.3 | AJ154: 149 | AK154: 186.2 | AL154: 209 | AM154: 233.6 | AN154: 232.2 | AO154: 236.6 | AP154: 241.1 | AQ154: 218.2 | AR154: 206.6 | AV154: 200.4 | AW154: 245.6 | BA154: 2007-02-04 | BB154: 2 | BC154: 2007 | BD154: 22007 | BE154: 35 | BF154: 0 | BG154: 0 | BH154: 0 | BI154: 0 | BJ154: 0 | BK154: 0 | BL154: 0 | BM154: 0 | BN154: 0 | BO154: 0 | BP154: 0 | BQ154: 0 | BR154: 0 | BS154: 0 | BT154: 0 | BU154: 0 | BV154: 0 | BX154: 2009 | BY154: 11 | BZ154: 30 | CA154: 112009 | CB154: 20.8 | CC154: 31.5 | CD154: 25 | CE154: 22.1 | CF154: 16.3 | CG154: 10.3 | CH154: 8.2 | CI154: 5 | CJ154: 8 | CK154: 8.1 | CL154: 8.2 | CM154: 17.4 | CN154: 3.7 | CO154: 3.2 | CP154: 2.7 | CQ154: 13.6 | CS154: 0.2 | CT154: 12.01764706 | CV154: GU | CW154: 1 | CX154: London (Thames Valley)
D155: 2007-02-05 | E155: 2 | F155: 2007 | G155: 22007 | H155: 36 | I155: 283.6535714 | J155: 308.8857143 | K155: 291.7142857 | L155: 262.1142857 | M155: 296.4678571 | N155: 312.5857143 | P155: 328.4357143 | Q155: 324.8857143 | R155: 327.8035714 | S155: 331.4821429 | T155: 318.5071429 | U155: 328.0714286 | W155: 0 | X155: 0 | Y155: 0 | Z155: 294.3785714 | AA155: 347.4535714 | AC155: 2009 | AD155: 12 | AE155: 31 | AF155: 122009 | AG155: 351.8 | AH155: 382.6 | AI155: 366.1 | AJ155: 303.9 | AK155: 371.7 | AL155: 393 | AM155: 403.1 | AN155: 414.9 | AO155: 376.9 | AP155: 425.8 | AQ155: 388.5 | AR155: 392.9 | AV155: 336.5 | AW155: 389.5 | BA155: 2007-02-05 | BB155: 2 | BC155: 2007 | BD155: 22007 | BE155: 36 | BF155: 0 | BG155: 0 | BH155: 0 | BI155: 0 | BJ155: 0 | BK155: 0 | BL155: 0 | BM155: 0 | BN155: 0 | BO155: 0 | BP155: 0 | BQ155: 0 | BR155: 0 | BS155: 0 | BT155: 0 | BU155: 0 | BV155: 0 | BX155: 2009 | BY155: 12 | BZ155: 31 | CA155: 122009 | CB155: 0.9 | CC155: 3 | CD155: 1.7 | CE155: 1.7 | CF155: 0.8 | CG155: 0.3 | CH155: 0 | CI155: 0 | CJ155: 0 | CK155: 0.1 | CL155: 0.1 | CM155: 0.4 | CN155: 0 | CO155: 0 | CP155: 0 | CQ155: 1.1 | CS155: 0 | CT155: 0.5941176471 | CV155: HA | CW155: 1 | CX155: London (Thames Valley)
D156: 2007-02-06 | E156: 2 | F156: 2007 | G156: 22007 | H156: 37 | I156: 292.2642857 | J156: 318.0428571 | K156: 300.2571429 | L156: 269.3571429 | M156: 305.4214286 | N156: 322.3428571 | P156: 338.2428571 | Q156: 334.9428571 | R156: 337.6642857 | S156: 341.8785714 | T156: 328.2285714 | U156: 338.0857143 | W156: 0 | X156: 0 | Y156: 0 | Z156: 303.5142857 | AA156: 357.8642857 | AC156: 2010 | AD156: 1 | AE156: 31 | AF156: 12010 | AG156: 416.1 | AH156: 442.8 | AI156: 423.3 | AJ156: 372.6 | AK156: 428 | AL156: 445.3 | AM156: 460.9 | AN156: 454.2 | AO156: 407.9 | AP156: 461.8 | AQ156: 438.9 | AR156: 453.5 | AV156: 385.4 | AW156: 418.3 | BA156: 2007-02-06 | BB156: 2 | BC156: 2007 | BD156: 22007 | BE156: 37 | BF156: 0 | BG156: 0 | BH156: 0 | BI156: 0 | BJ156: 0 | BK156: 0 | BL156: 0 | BM156: 0 | BN156: 0 | BO156: 0 | BP156: 0 | BQ156: 0 | BR156: 0 | BS156: 0 | BT156: 0 | BU156: 0 | BV156: 0 | BX156: 2010 | BY156: 1 | BZ156: 31 | CA156: 12010 | CB156: 0 | CC156: 3 | CD156: 0 | CE156: 0 | CF156: 0 | CG156: 0 | CH156: 0 | CI156: 0 | CJ156: 0 | CK156: 0 | CL156: 0 | CM156: 0 | CN156: 0 | CO156: 0 | CP156: 0 | CQ156: 0 | CS156: 0 | CT156: =SUM(CB156:CS156)/COUNT(CB156:CS156) -> 0.1764705882 | CV156: HD | CW156: 11 | CX156: East Pennines
D157: 2007-02-07 | E157: 2 | F157: 2007 | G157: 22007 | H157: 38 | I157: 300.875 | J157: 327.2 | K157: 308.8 | L157: 276.6 | M157: 314.375 | N157: 332.1 | P157: 348.05 | Q157: 345 | R157: 347.525 | S157: 352.275 | T157: 337.95 | U157: 348.1 | W157: 0 | X157: 0 | Y157: 0 | Z157: 312.65 | AA157: 368.275 | AC157: 2010 | AD157: 2 | AE157: 28 | AF157: 22010 | AG157: 313.7 | AH157: 338.7 | AI157: 320.6 | AJ157: 289.7 | AK157: 325.1 | AL157: 352 | AM157: 379.9 | AN157: 383.7 | AO157: 359.9 | AP157: 381.3 | AQ157: 373.5 | AR157: 369.1 | AV157: 331.4 | AW157: 370.1 | BA157: 2007-02-07 | BB157: 2 | BC157: 2007 | BD157: 22007 | BE157: 38 | BF157: 0 | BG157: 0 | BH157: 0 | BI157: 0 | BJ157: 0 | BK157: 0 | BL157: 0 | BM157: 0 | BN157: 0 | BO157: 0 | BP157: 0 | BQ157: 0 | BR157: 0 | BS157: 0 | BT157: 0 | BU157: 0 | BV157: 0 | BX157: 2010 | BY157: 2 | BZ157: 28 | CA157: 22010 | CB157: 0 | CC157: 0 | CD157: 0 | CE157: 0 | CF157: 0 | CG157: 0 | CH157: 0 | CI157: 0 | CJ157: 0 | CK157: 0 | CL157: 0 | CM157: 0 | CN157: 0 | CO157: 0 | CP157: 0 | CQ157: 0 | CS157: 0 | CT157: =SUM(CB157:CS157)/COUNT(CB157:CS157) -> 0 | CV157: HG | CW157: 10 | CX157: North Eastern
D158: 2007-02-08 | E158: 2 | F158: 2007 | G158: 22007 | H158: 39 | I158: 309.4857143 | J158: 336.3571429 | K158: 317.3428571 | L158: 283.8428571 | M158: 323.3285714 | N158: 341.8571429 | P158: 357.8571429 | Q158: 355.0571429 | R158: 357.3857143 | S158: 362.6714286 | T158: 347.6714286 | U158: 358.1142857 | W158: 0 | X158: 0 | Y158: 0 | Z158: 321.7857143 | AA158: 378.6857143 | AC158: 2010 | AD158: 3 | AE158: 31 | AF158: 32010 | AG158: 255.1 | AH158: 282.7 | AI158: 287.1 | AJ158: 276.6 | AK158: 273.6 | AL158: 290.6 | AM158: 294.3 | AN158: 306.2 | AO158: 293.5 | AP158: 304.8 | AQ158: 285.6 | AR158: 285.5 | AV158: 298 | AW158: 313 | BA158: 2007-02-08 | BB158: 2 | BC158: 2007 | BD158: 22007 | BE158: 39 | BF158: 0 | BG158: 0 | BH158: 0 | BI158: 0 | BJ158: 0 | BK158: 0 | BL158: 0 | BM158: 0 | BN158: 0 | BO158: 0 | BP158: 0 | BQ158: 0 | BR158: 0 | BS158: 0 | BT158: 0 | BU158: 0 | BV158: 0 | BX158: 2010 | BY158: 3 | BZ158: 31 | CA158: 32010 | CB158: 11.4 | CC158: 0 | CD158: 3 | CE158: 2.4 | CF158: 3.6 | CG158: 6.4 | CH158: 5 | CI158: 2.4 | CJ158: 4.9 | CK158: 6.1 | CL158: 7.1 | CM158: 12.5 | CN158: 0.7 | CO158: 1 | CP158: 2 | CQ158: 2.7 | CS158: 0.6 | CT158: 4.223529412 | CV158: HP | CW158: 1 | CX158: London (Thames Valley)
D159: 2007-02-09 | E159: 2 | F159: 2007 | G159: 22007 | H159: 40 | I159: 318.0964286 | J159: 345.5142857 | K159: 325.8857143 | L159: 291.0857143 | M159: 332.2821429 | N159: 351.6142857 | P159: 367.6642857 | Q159: 365.1142857 | R159: 367.2464286 | S159: 373.0678571 | T159: 357.3928571 | U159: 368.1285714 | W159: 0 | X159: 0 | Y159: 0 | Z159: 330.9214286 | AA159: 389.0964286 | AC159: 2010 | AD159: 4 | AE159: 30 | AF159: 42010 | AG159: 159.6 | AH159: 191.7 | AI159: 208.2 | AJ159: 183.2 | AK159: 175.1 | AL159: 200.4 | AM159: 216.4 | AN159: 200.8 | AO159: 221.2 | AP159: 212.2 | AQ159: 192.1 | AR159: 194.1 | AV159: 212.4 | AW159: 210.6 | BA159: 2007-02-09 | BB159: 2 | BC159: 2007 | BD159: 22007 | BE159: 40 | BF159: 0 | BG159: 0 | BH159: 0 | BI159: 0 | BJ159: 0 | BK159: 0 | BL159: 0 | BM159: 0 | BN159: 0 | BO159: 0 | BP159: 0 | BQ159: 0 | BR159: 0 | BS159: 0 | BT159: 0 | BU159: 0 | BV159: 0 | BX159: 2010 | BY159: 4 | BZ159: 30 | CA159: 42010 | CB159: 51 | CC159: 7.7 | CD159: 39.8 | CE159: 33.9 | CF159: 39.4 | CG159: 43.8 | CH159: 36.9 | CI159: 22.5 | CJ159: 31.4 | CK159: 37.1 | CL159: 38.5 | CM159: 41.9 | CN159: 17.6 | CO159: 19.3 | CP159: 15.9 | CQ159: 28.6 | CS159: 10.8 | CT159: 30.35882353 | CV159: HR | CW159: 6 | CX159: Midlands
D160: 2007-02-10 | E160: 2 | F160: 2007 | G160: 22007 | H160: 41 | I160: 326.7071429 | J160: 354.6714286 | K160: 334.4285714 | L160: 298.3285714 | M160: 341.2357143 | N160: 361.3714286 | P160: 377.4714286 | Q160: 375.1714286 | R160: 377.1071429 | S160: 383.4642857 | T160: 367.1142857 | U160: 378.1428571 | W160: 0 | X160: 0 | Y160: 0 | Z160: 340.0571429 | AA160: 399.5071429 | AC160: 2010 | AD160: 5 | AE160: 31 | AF160: 52010 | AG160: 127.8 | AH160: 168 | AI160: 151.1 | AJ160: 134.7 | AK160: 126.6 | AL160: 161.1 | AM160: 176 | AN160: 174.8 | AO160: 191.9 | AP160: 185.8 | AQ160: 157.4 | AR160: 152.8 | AV160: 167.6 | AW160: 164.5 | BA160: 2007-02-10 | BB160: 2 | BC160: 2007 | BD160: 22007 | BE160: 41 | BF160: 0 | BG160: 0 | BH160: 0 | BI160: 0 | BJ160: 0 | BK160: 0 | BL160: 0 | BM160: 0 | BN160: 0 | BO160: 0 | BP160: 0 | BQ160: 0 | BR160: 0 | BS160: 0 | BT160: 0 | BU160: 0 | BV160: 0 | BX160: 2010 | BY160: 5 | BZ160: 31 | CA160: 52010 | CB160: 90.5 | CC160: 45.3 | CD160: 83.4 | CE160: 75.4 | CF160: 84.6 | CG160: 82.5 | CH160: 71.1 | CI160: 52.7 | CJ160: 56.7 | CK160: 69.7 | CL160: 75.7 | CM160: 73.4 | CN160: 52.9 | CO160: 56 | CP160: 36.7 | CQ160: 63.3 | CS160: 33 | CT160: 64.87647059 | CV160: HU | CW160: 11 | CX160: East Pennines
D161: 2007-02-11 | E161: 2 | F161: 2007 | G161: 22007 | H161: 42 | I161: 335.3178571 | J161: 363.8285714 | K161: 342.9714286 | L161: 305.5714286 | M161: 350.1892857 | N161: 371.1285714 | P161: 387.2785714 | Q161: 385.2285714 | R161: 386.9678571 | S161: 393.8607143 | T161: 376.8357143 | U161: 388.1571429 | W161: 0 | X161: 0 | Y161: 0 | Z161: 349.1928571 | AA161: 409.9178571 | AC161: 2010 | AD161: 6 | AE161: 30 | AF161: 62010 | AG161: 31.4 | AH161: 59.8 | AI161: 59.1 | AJ161: 40.4 | AK161: 36.1 | AL161: 59.9 | AM161: 61.3 | AN161: 56.1 | AO161: 80.3 | AP161: 69.2 | AQ161: 55.2 | AR161: 57 | AV161: 62.4 | AW161: 53.7 | BA161: 2007-02-11 | BB161: 2 | BC161: 2007 | BD161: 22007 | BE161: 42 | BF161: 0 | BG161: 0 | BH161: 0 | BI161: 0 | BJ161: 0 | BK161: 0 | BL161: 0 | BM161: 0 | BN161: 0 | BO161: 0 | BP161: 0 | BQ161: 0 | BR161: 0 | BS161: 0 | BT161: 0 | BU161: 0 | BV161: 0 | BX161: 2010 | BY161: 6 | BZ161: 30 | CA161: 62010 | CB161: 201.8 | CC161: 76.7 | CD161: 193.2 | CE161: 173.5 | CF161: 175.6 | CG161: 179.5 | CH161: 173.4 | CI161: 147 | CJ161: 130.2 | CK161: 161.6 | CL161: 170.2 | CM161: 175.8 | CN161: 133 | CO161: 134.7 | CP161: 96.2 | CQ161: 149.4 | CS161: 88.8 | CT161: 150.6235294 | CV161: HX | CW161: 11 | CX161: East Pennines
D162: 2007-02-12 | E162: 2 | F162: 2007 | G162: 22007 | H162: 43 | I162: 343.9285714 | J162: 372.9857143 | K162: 351.5142857 | L162: 312.8142857 | M162: 359.1428571 | N162: 380.8857143 | P162: 397.0857143 | Q162: 395.2857143 | R162: 396.8285714 | S162: 404.2571429 | T162: 386.5571429 | U162: 398.1714286 | W162: 0 | X162: 0 | Y162: 0 | Z162: 358.3285714 | AA162: 420.3285714 | AC162: 2010 | AD162: 7 | AE162: 31 | AF162: 72010 | AG162: 8.2 | AH162: 23.9 | AI162: 15.5 | AJ162: 64.6 | AK162: 13.1 | AL162: 22.3 | AM162: 25.7 | AN162: 30.8 | AO162: 37.4 | AP162: 35.9 | AQ162: 15.7 | AR162: 14.8 | AV162: 27.9 | AW162: 33.8 | BA162: 2007-02-12 | BB162: 2 | BC162: 2007 | BD162: 22007 | BE162: 43 | BF162: 0 | BG162: 0 | BH162: 0 | BI162: 0 | BJ162: 0 | BK162: 0 | BL162: 0 | BM162: 0 | BN162: 0 | BO162: 0 | BP162: 0 | BQ162: 0 | BR162: 0 | BS162: 0 | BT162: 0 | BU162: 0 | BV162: 0 | BX162: 2010 | BY162: 7 | BZ162: 31 | CA162: 72010 | CB162: 268.5 | CC162: 192.4 | CD162: 245.6 | CE162: 211.6 | CF162: 216.6 | CG162: 219.1 | CH162: 193.2 | CI162: 161 | CJ162: 191.1 | CK162: 204.4 | CL162: 213.5 | CM162: 273.1 | CN162: 132.4 | CO162: 140 | CP162: 132.8 | CQ162: 159.3 | CS162: 111.2 | CT162: 192.1058824 | CV162: IG | CW162: 1 | CX162: London (Thames Valley)
D163: 2007-02-13 | E163: 2 | F163: 2007 | G163: 22007 | H163: 44 | I163: 352.5392857 | J163: 382.1428571 | K163: 360.0571429 | L163: 320.0571429 | M163: 368.0964286 | N163: 390.6428571 | P163: 406.8928571 | Q163: 405.3428571 | R163: 406.6892857 | S163: 414.6535714 | T163: 396.2785714 | U163: 408.1857143 | W163: 0 | X163: 0 | Y163: 0 | Z163: 367.4642857 | AA163: 430.7392857 | AC163: 2010 | AD163: 8 | AE163: 31 | AF163: 82010 | AG163: 21.8 | AH163: 39.7 | AI163: 42.1 | AJ163: 28.8 | AK163: 30.2 | AL163: 45 | AM163: 60.8 | AN163: 52.7 | AO163: 62.1 | AP163: 62.1 | AQ163: 38.2 | AR163: 35.5 | AV163: 41.3 | AW163: 64 | BA163: 2007-02-13 | BB163: 2 | BC163: 2007 | BD163: 22007 | BE163: 44 | BF163: 0 | BG163: 0 | BH163: 0 | BI163: 0 | BJ163: 0 | BK163: 0 | BL163: 0 | BM163: 0 | BN163: 0 | BO163: 0 | BP163: 0 | BQ163: 0 | BR163: 0 | BS163: 0 | BT163: 0 | BU163: 0 | BV163: 0 | BX163: 2010 | BY163: 8 | BZ163: 31 | CA163: 82010 | CB163: 187.2 | CC163: 276.1 | CD163: 184.6 | CE163: 174.2 | CF163: 168.9 | CG163: 162.2 | CH163: 155 | CI163: 135 | CJ163: 132.2 | CK163: 152.1 | CL163: 154.7 | CM163: 189.9 | CN163: 109.2 | CO163: 115.2 | CP163: 100.8 | CQ163: 137.9 | CS163: 92.9 | CT163: 154.5941176 | CV163: IP | CW163: 12 | CX163: East Anglia
D164: 2007-02-14 | E164: 2 | F164: 2007 | G164: 22007 | H164: 45 | I164: 361.15 | J164: 391.3 | K164: 368.6 | L164: 327.3 | M164: 377.05 | N164: 400.4 | P164: 416.7 | Q164: 415.4 | R164: 416.55 | S164: 425.05 | T164: 406 | U164: 418.2 | W164: 0 | X164: 0 | Y164: 0 | Z164: 376.6 | AA164: 441.15 | AC164: 2010 | AD164: 9 | AE164: 30 | AF164: 92010 | AG164: 49.7 | AH164: 81.4 | AI164: 79.6 | AJ164: 56 | AK164: 56 | AL164: 77.7 | AM164: 87.1 | AN164: 72.4 | AO164: 74.5 | AP164: 74.4 | AQ164: 64.8 | AR164: 69.1 | AV164: 56.8 | AW164: 72.6 | BA164: 2007-02-14 | BB164: 2 | BC164: 2007 | BD164: 22007 | BE164: 45 | BF164: 0 | BG164: 0 | BH164: 0 | BI164: 0 | BJ164: 0 | BK164: 0 | BL164: 0 | BM164: 0 | BN164: 0 | BO164: 0 | BP164: 0 | BQ164: 0 | BR164: 0 | BS164: 0 | BT164: 0 | BU164: 0 | BV164: 0 | BX164: 2010 | BY164: 9 | BZ164: 30 | CA164: 92010 | CB164: 125.1 | CC164: 203.7 | CD164: 129.1 | CE164: 125.1 | CF164: 124.3 | CG164: 111.5 | CH164: 122.3 | CI164: 110.2 | CJ164: 103.4 | CK164: 109.9 | CL164: 109.1 | CM164: 126.6 | CN164: 80.7 | CO164: 80 | CP164: 60.3 | CQ164: 111.1 | CS164: 58.5 | CT164: 111.2294118 | CV164: KT | CW164: 1 | CX164: London (Thames Valley)
D165: 2007-02-15 | E165: 2 | F165: 2007 | G165: 22007 | H165: 46 | I165: 369.7607143 | J165: 400.4571429 | K165: 377.1428571 | L165: 334.5428571 | M165: 386.0035714 | N165: 410.1571429 | P165: 426.5071429 | Q165: 425.4571429 | R165: 426.4107143 | S165: 435.4464286 | T165: 415.7214286 | U165: 428.2142857 | W165: 0 | X165: 0 | Y165: 0 | Z165: 385.7357143 | AA165: 451.5607143 | AC165: 2010 | AD165: 10 | AE165: 31 | AF165: 102010 | AG165: 129.9 | AH165: 151.8 | AI165: 145.3 | AJ165: 119.2 | AK165: 144.3 | AL165: 166.8 | AM165: 191.3 | AN165: 176.4 | AO165: 172.9 | AP165: 181.1 | AQ165: 162.3 | AR165: 145.6 | AV165: 142.6 | AW165: 185 | BA165: 2007-02-15 | BB165: 2 | BC165: 2007 | BD165: 22007 | BE165: 46 | BF165: 0 | BG165: 0 | BH165: 0 | BI165: 0 | BJ165: 0 | BK165: 0 | BL165: 0 | BM165: 0 | BN165: 0 | BO165: 0 | BP165: 0 | BQ165: 0 | BR165: 0 | BS165: 0 | BT165: 0 | BU165: 0 | BV165: 0 | BX165: 2010 | BY165: 10 | BZ165: 31 | CA165: 102010 | CB165: 55 | CC165: 135.4 | CD165: 65.6 | CE165: 64.6 | CF165: 56.5 | CG165: 42.5 | CH165: 44.6 | CI165: 38 | CJ165: 31.8 | CK165: 33.6 | CL165: 34.8 | CM165: 54.6 | CN165: 20.7 | CO165: 20.8 | CP165: 19.1 | CQ165: 45.2 | CS165: 18.4 | CT165: 45.95294118 | CV165: L | CW165: 7 | CX165: West Pennines
D166: 2007-02-16 | E166: 2 | F166: 2007 | G166: 22007 | H166: 47 | I166: 378.3714286 | J166: 409.6142857 | K166: 385.6857143 | L166: 341.7857143 | M166: 394.9571429 | N166: 419.9142857 | P166: 436.3142857 | Q166: 435.5142857 | R166: 436.2714286 | S166: 445.8428571 | T166: 425.4428571 | U166: 438.2285714 | W166: 0 | X166: 0 | Y166: 0 | Z166: 394.8714286 | AA166: 461.9714286 | AC166: 2010 | AD166: 11 | AE166: 30 | AF166: 112010 | AG166: 271.8 | AH166: 298.8 | AI166: 274.5 | AJ166: 245.8 | AK166: 286.1 | AL166: 315.8 | AM166: 333.8 | AN166: 323.8 | AO166: 301.3 | AP166: 329.3 | AQ166: 310.6 | AR166: 307.1 | AV166: 272.1 | AW166: 334.6 | BA166: 2007-02-16 | BB166: 2 | BC166: 2007 | BD166: 22007 | BE166: 47 | BF166: 0 | BG166: 0 | BH166: 0 | BI166: 0 | BJ166: 0 | BK166: 0 | BL166: 0 | BM166: 0 | BN166: 0 | BO166: 0 | BP166: 0 | BQ166: 0 | BR166: 0 | BS166: 0 | BT166: 0 | BU166: 0 | BV166: 0 | BX166: 2010 | BY166: 11 | BZ166: 30 | CA166: 112010 | CB166: 16.5 | CC166: 68.3 | CD166: 19.1 | CE166: 19.7 | CF166: 15.1 | CG166: 11.7 | CH166: 8.3 | CI166: 4 | CJ166: 3.5 | CK166: 5.7 | CL166: 7.6 | CM166: 14.7 | CN166: 0.4 | CO166: 0.1 | CP166: 0.1 | CQ166: 11.4 | CS166: 0 | CT166: 12.12941176 | CV166: LA | CW166: 8 | CX166: North Western
D167: 2007-02-17 | E167: 2 | F167: 2007 | G167: 22007 | H167: 48 | I167: 386.9821429 | J167: 418.7714286 | K167: 394.2285714 | L167: 349.0285714 | M167: 403.9107143 | N167: 429.6714286 | P167: 446.1214286 | Q167: 445.5714286 | R167: 446.1321429 | S167: 456.2392857 | T167: 435.1642857 | U167: 448.2428571 | W167: 0 | X167: 0 | Y167: 0 | Z167: 404.0071429 | AA167: 472.3821429 | AC167: 2010 | AD167: 12 | AE167: 31 | AF167: 122010 | AG167: 446.3 | AH167: 477.7 | AI167: 472.2 | AJ167: 405.1 | AK167: 471.3 | AL167: 506.9 | AM167: 529.1 | AN167: 549.7 | AO167: 458.3 | AP167: 545.4 | AQ167: 500.8 | AR167: 490.9 | AV167: 410.3 | AW167: 498.1 | BA167: 2007-02-17 | BB167: 2 | BC167: 2007 | BD167: 22007 | BE167: 48 | BF167: 0 | BG167: 0 | BH167: 0 | BI167: 0 | BJ167: 0 | BK167: 0 | BL167: 0 | BM167: 0 | BN167: 0 | BO167: 0 | BP167: 0 | BQ167: 0 | BR167: 0 | BS167: 0 | BT167: 0 | BU167: 0 | BV167: 0 | BX167: 2010 | BY167: 12 | BZ167: 31 | CA167: 122010 | CB167: 0 | CC167: 19.2 | CD167: 0 | CE167: 0 | CF167: 0 | CG167: 0 | CH167: 0 | CI167: 0 | CJ167: 0 | CK167: 0 | CL167: 0 | CM167: 0 | CN167: 0 | CO167: 0 | CP167: 0 | CQ167: 0 | CS167: 0 | CT167: 1.129411765 | CV167: LD | CW167: 16 | CX167: Wales
D168: 2007-02-18 | E168: 2 | F168: 2007 | G168: 22007 | H168: 49 | I168: 395.5928571 | J168: 427.9285714 | K168: 402.7714286 | L168: 356.2714286 | M168: 412.8642857 | N168: 439.4285714 | P168: 455.9285714 | Q168: 455.6285714 | R168: 455.9928571 | S168: 466.6357143 | T168: 444.8857143 | U168: 458.2571429 | W168: 0 | X168: 0 | Y168: 0 | Z168: 413.1428571 | AA168: 482.7928571 | AC168: 2011 | AD168: 1 | AE168: 31 | AF168: 12011 | AG168: 322.6 | AH168: 350.8 | AI168: 332.7 | AJ168: 309.1 | AK168: 346.2 | AL168: 366.8 | AM168: 381.3 | AN168: 386.5 | AO168: 353.3 | AP168: 387.7 | AQ168: 366.7 | AR168: 359.6 | AV168: 345 | AW168: 393.8 | BA168: 2007-02-18 | BB168: 2 | BC168: 2007 | BD168: 22007 | BE168: 49 | BF168: 0 | BG168: 0 | BH168: 0 | BI168: 0 | BJ168: 0 | BK168: 0 | BL168: 0 | BM168: 0 | BN168: 0 | BO168: 0 | BP168: 0 | BQ168: 0 | BR168: 0 | BS168: 0 | BT168: 0 | BU168: 0 | BV168: 0 | BX168: 2011 | BY168: 1 | BZ168: 31 | CA168: 12011 | CB168: 3.2 | CC168: 0 | CD168: 0.6 | CE168: 3.5 | CF168: 1.6 | CG168: 0 | CH168: 0 | CI168: 0.2 | CJ168: 1.8 | CK168: 1.3 | CL168: 1.1 | CM168: 2.2 | CN168: 0.3 | CO168: 0.1 | CP168: 0 | CQ168: 0.7 | CS168: 0 | CT168: 0.9764705882 | CV168: LE | CW168: 6 | CX168: Midlands
D169: 2007-02-19 | E169: 2 | F169: 2007 | G169: 22007 | H169: 50 | I169: 404.2035714 | J169: 437.0857143 | K169: 411.3142857 | L169: 363.5142857 | M169: 421.8178571 | N169: 449.1857143 | P169: 465.7357143 | Q169: 465.6857143 | R169: 465.8535714 | S169: 477.0321429 | T169: 454.6071429 | U169: 468.2714286 | W169: 0 | X169: 0 | Y169: 0 | Z169: 422.2785714 | AA169: 493.2035714 | AC169: 2011 | AD169: 2 | AE169: 28 | AF169: 22011 | AG169: 225.7 | AH169: 260.5 | AI169: 244.2 | AJ169: 211.9 | AK169: 229.3 | AL169: 247.2 | AM169: 255 | AN169: 262.5 | AO169: 274.5 | AP169: 271.5 | AQ169: 260 | AR169: 260.4 | AV169: 238.4 | AW169: 261.8 | BA169: 2007-02-19 | BB169: 2 | BC169: 2007 | BD169: 22007 | BE169: 50 | BF169: 0 | BG169: 0 | BH169: 0 | BI169: 0 | BJ169: 0 | BK169: 0 | BL169: 0 | BM169: 0 | BN169: 0 | BO169: 0 | BP169: 0 | BQ169: 0 | BR169: 0 | BS169: 0 | BT169: 0 | BU169: 0 | BV169: 0 | BX169: 2011 | BY169: 2 | BZ169: 28 | CA169: 22011 | CB169: 3.5 | CC169: 0.8 | CD169: 1.1 | CE169: 2.8 | CF169: 1 | CG169: 1.2 | CH169: 0.9 | CI169: 0.2 | CJ169: 2.7 | CK169: 2.4 | CL169: 2.7 | CM169: 5 | CN169: 0.7 | CO169: 0.7 | CP169: 0.8 | CQ169: 2.3 | CS169: 0.2 | CT169: 1.705882353 | CV169: LL | CW169: 16 | CX169: Wales
D170: 2007-02-20 | E170: 2 | F170: 2007 | G170: 22007 | H170: 51 | I170: 412.8142857 | J170: 446.2428571 | K170: 419.8571429 | L170: 370.7571429 | M170: 430.7714286 | N170: 458.9428571 | P170: 475.5428571 | Q170: 475.7428571 | R170: 475.7142857 | S170: 487.4285714 | T170: 464.3285714 | U170: 478.2857143 | W170: 0 | X170: 0 | Y170: 0 | Z170: 431.4142857 | AA170: 503.6142857 | AC170: 2011 | AD170: 3 | AE170: 31 | AF170: 32011 | AG170: 234.5 | AH170: 274.2 | AI170: 264.3 | AJ170: 220.9 | AK170: 245.5 | AL170: 266.8 | AM170: 280.7 | AN170: 299.4 | AO170: 284.3 | AP170: 294 | AQ170: 269.9 | AR170: 276.6 | AV170: 275.8 | AW170: 286.2 | BA170: 2007-02-20 | BB170: 2 | BC170: 2007 | BD170: 22007 | BE170: 51 | BF170: 0 | BG170: 0 | BH170: 0 | BI170: 0 | BJ170: 0 | BK170: 0 | BL170: 0 | BM170: 0 | BN170: 0 | BO170: 0 | BP170: 0 | BQ170: 0 | BR170: 0 | BS170: 0 | BT170: 0 | BU170: 0 | BV170: 0 | BX170: 2011 | BY170: 3 | BZ170: 31 | CA170: 32011 | CB170: 18 | CC170: 1.5 | CD170: 16.8 | CE170: 15.6 | CF170: 16.6 | CG170: 3.2 | CH170: 2.3 | CI170: 4.8 | CJ170: 11.2 | CK170: 11.9 | CL170: 14.4 | CM170: 14.6 | CN170: 4.6 | CO170: 5 | CP170: 4.1 | CQ170: 10.5 | CS170: 0.9 | CT170: 9.176470588 | CV170: LN | CW170: 11 | CX170: East Pennines
D171: 2007-02-21 | E171: 2 | F171: 2007 | G171: 22007 | H171: 52 | I171: 421.425 | J171: 455.4 | K171: 428.4 | L171: 378 | M171: 439.725 | N171: 468.7 | P171: 485.35 | Q171: 485.8 | R171: 485.575 | S171: 497.825 | T171: 474.05 | U171: 488.3 | W171: 0 | X171: 0 | Y171: 0 | Z171: 440.55 | AA171: 514.025 | AC171: 2011 | AD171: 4 | AE171: 30 | AF171: 42011 | AG171: 83.5 | AH171: 120.4 | AI171: 130.8 | AJ171: 100.9 | AK171: 103.4 | AL171: 129 | AM171: 141 | AN171: 136 | AO171: 161.4 | AP171: 153.5 | AQ171: 122 | AR171: 127.6 | AV171: 136 | AW171: 137.3 | BA171: 2007-02-21 | BB171: 2 | BC171: 2007 | BD171: 22007 | BE171: 52 | BF171: 0 | BG171: 0 | BH171: 0 | BI171: 0 | BJ171: 0 | BK171: 0 | BL171: 0 | BM171: 0 | BN171: 0 | BO171: 0 | BP171: 0 | BQ171: 0 | BR171: 0 | BS171: 0 | BT171: 0 | BU171: 0 | BV171: 0 | BX171: 2011 | BY171: 4 | BZ171: 30 | CA171: 42011 | CB171: 100 | CC171: 13.7 | CD171: 96.1 | CE171: 76.2 | CF171: 88 | CG171: 15.7 | CH171: 13.2 | CI171: 60.6 | CJ171: 52.4 | CK171: 72.4 | CL171: 75.6 | CM171: 86.4 | CN171: 41.3 | CO171: 40.9 | CP171: 31.7 | CQ171: 68.7 | CS171: 19.3 | CT171: 56.01176471 | CV171: LS | CW171: 11 | CX171: East Pennines
D172: 2007-02-22 | E172: 2 | F172: 2007 | G172: 22007 | H172: 53 | I172: 430.0357143 | J172: 464.5571429 | K172: 436.9428571 | L172: 385.2428571 | M172: 448.6785714 | N172: 478.4571429 | P172: 495.1571429 | Q172: 495.8571429 | R172: 495.4357143 | S172: 508.2214286 | T172: 483.7714286 | U172: 498.3142857 | W172: 0 | X172: 0 | Y172: 0 | Z172: 449.6857143 | AA172: 524.4357143 | AC172: 2011 | AD172: 5 | AE172: 31 | AF172: 52011 | AG172: 71.3 | AH172: 111.5 | AI172: 106.7 | AJ172: 96.1 | AK172: 91.1 | AL172: 110.9 | AM172: 119.1 | AN172: 123.3 | AO172: 132.7 | AP172: 123.2 | AQ172: 106.6 | AR172: 98.6 | AV172: 117.9 | AW172: 132.5 | BA172: 2007-02-22 | BB172: 2 | BC172: 2007 | BD172: 22007 | BE172: 53 | BF172: 0 | BG172: 0 | BH172: 0 | BI172: 0 | BJ172: 0 | BK172: 0 | BL172: 0 | BM172: 0 | BN172: 0 | BO172: 0 | BP172: 0 | BQ172: 0 | BR172: 0 | BS172: 0 | BT172: 0 | BU172: 0 | BV172: 0 | BX172: 2011 | BY172: 5 | BZ172: 31 | CA172: 52011 | CB172: 112 | CC172: 100.2 | CD172: 104.1 | CE172: 78 | CF172: 87.4 | CG172: 82.3 | CH172: 79.5 | CI172: 56.7 | CJ172: 70.9 | CK172: 84.9 | CL172: 82 | CM172: 118.1 | CN172: 38.9 | CO172: 41.7 | CP172: 35.9 | CQ172: 70.9 | CS172: 23.4 | CT172: 74.52352941 | CV172: LU | CW172: 1 | CX172: London (Thames Valley)
D173: 2007-02-23 | E173: 2 | F173: 2007 | G173: 22007 | H173: 54 | I173: 438.6464286 | J173: 473.7142857 | K173: 445.4857143 | L173: 392.4857143 | M173: 457.6321429 | N173: 488.2142857 | P173: 504.9642857 | Q173: 505.9142857 | R173: 505.2964286 | S173: 518.6178571 | T173: 493.4928571 | U173: 508.3285714 | W173: 0 | X173: 0 | Y173: 0 | Z173: 458.8214286 | AA173: 534.8464286 | AC173: 2011 | AD173: 6 | AE173: 30 | AF173: 62011 | AG173: 48.3 | AH173: 69.2 | AI173: 70.4 | AJ173: 60.3 | AK173: 64.3 | AL173: 74.5 | AM173: 92.4 | AN173: 85.3 | AO173: 93.4 | AP173: 84.2 | AQ173: 64.8 | AR173: 60.6 | AV173: 88.5 | AW173: 99.4 | BA173: 2007-02-23 | BB173: 2 | BC173: 2007 | BD173: 22007 | BE173: 54 | BF173: 0 | BG173: 0 | BH173: 0 | BI173: 0 | BJ173: 0 | BK173: 0 | BL173: 0 | BM173: 0 | BN173: 0 | BO173: 0 | BP173: 0 | BQ173: 0 | BR173: 0 | BS173: 0 | BT173: 0 | BU173: 0 | BV173: 0 | BX173: 2011 | BY173: 6 | BZ173: 30 | CA173: 62011 | CB173: 151.3 | CC173: 118.6 | CD173: 143.6 | CE173: 126.3 | CF173: 129 | CG173: 86 | CH173: 78.2 | CI173: 102 | CJ173: 110.5 | CK173: 131.9 | CL173: 138.5 | CM173: 158.4 | CN173: 74.1 | CO173: 77.8 | CP173: 69.1 | CQ173: 112.4 | CS173: 50.2 | CT173: 109.2882353 | CV173: M | CW173: 7 | CX173: West Pennines
D174: 2007-02-24 | E174: 2 | F174: 2007 | G174: 22007 | H174: 55 | I174: 447.2571429 | J174: 482.8714286 | K174: 454.0285714 | L174: 399.7285714 | M174: 466.5857143 | N174: 497.9714286 | P174: 514.7714286 | Q174: 515.9714286 | R174: 515.1571429 | S174: 529.0142857 | T174: 503.2142857 | U174: 518.3428571 | W174: 0 | X174: 0 | Y174: 0 | Z174: 467.9571429 | AA174: 545.2571429 | AC174: 2011 | AD174: 7 | AE174: 31 | AF174: 72011 | AG174: 24.4 | AH174: 43.2 | AI174: 46.4 | AJ174: 32.2 | AK174: 32 | AL174: 47.8 | AM174: 60.4 | AN174: 52.3 | AO174: 62.3 | AP174: 60.6 | AQ174: 39.8 | AR174: 42 | AV174: 52 | AW174: 61.5 | BA174: 2007-02-24 | BB174: 2 | BC174: 2007 | BD174: 22007 | BE174: 55 | BF174: 0 | BG174: 0 | BH174: 0 | BI174: 0 | BJ174: 0 | BK174: 0 | BL174: 0 | BM174: 0 | BN174: 0 | BO174: 0 | BP174: 0 | BQ174: 0 | BR174: 0 | BS174: 0 | BT174: 0 | BU174: 0 | BV174: 0 | BX174: 2011 | BY174: 7 | BZ174: 31 | CA174: 72011 | CB174: 187.8 | CC174: 160.3 | CD174: 184.3 | CE174: 176 | CF174: 173.2 | CG174: 132.2 | CH174: 127.8 | CI174: 150.8 | CJ174: 133.2 | CK174: 157.3 | CL174: 169.9 | CM174: 173.2 | CN174: 139.2 | CO174: 130.1 | CP174: 100.8 | CQ174: 152.8 | CS174: 89.8 | CT174: 149.3352941 | CV174: ME | CW174: 2 | CX174: South Eastern
D175: 2007-02-25 | E175: 2 | F175: 2007 | G175: 22007 | H175: 56 | I175: 455.8678571 | J175: 492.0285714 | K175: 462.5714286 | L175: 406.9714286 | M175: 475.5392857 | N175: 507.7285714 | P175: 524.5785714 | Q175: 526.0285714 | R175: 525.0178571 | S175: 539.4107143 | T175: 512.9357143 | U175: 528.3571429 | W175: 0 | X175: 0 | Y175: 0 | Z175: 477.0928571 | AA175: 555.6678571 | AC175: 2011 | AD175: 8 | AE175: 31 | AF175: 82011 | AG175: 20.5 | AH175: 36.7 | AI175: 38.7 | AJ175: 33.2 | AK175: 33.6 | AL175: 41.3 | AM175: 55.5 | AN175: 55.9 | AO175: 58.8 | AP175: 61.7 | AQ175: 37.5 | AR175: 40 | AV175: 46.7 | AW175: 58.6 | BA175: 2007-02-25 | BB175: 2 | BC175: 2007 | BD175: 22007 | BE175: 56 | BF175: 0 | BG175: 0 | BH175: 0 | BI175: 0 | BJ175: 0 | BK175: 0 | BL175: 0 | BM175: 0 | BN175: 0 | BO175: 0 | BP175: 0 | BQ175: 0 | BR175: 0 | BS175: 0 | BT175: 0 | BU175: 0 | BV175: 0 | BX175: 2011 | BY175: 8 | BZ175: 31 | CA175: 82011 | CB175: 189.8 | CC175: 194.2 | CD175: 183.4 | CE175: 158.8 | CF175: 160.9 | CG175: 172.1 | CH175: 172.6 | CI175: 127.3 | CJ175: 133.7 | CK175: 155.1 | CL175: 163.9 | CM175: 194.2 | CN175: 99.7 | CO175: 103.3 | CP175: 91.3 | CQ175: 139.5 | CS175: 76.3 | CT175: 148.0058824 | CV175: MK | CW175: 1 | CX175: London (Thames Valley)
D176: 2007-02-26 | E176: 2 | F176: 2007 | G176: 22007 | H176: 57 | I176: 464.4785714 | J176: 501.1857143 | K176: 471.1142857 | L176: 414.2142857 | M176: 484.4928571 | N176: 517.4857143 | P176: 534.3857143 | Q176: 536.0857143 | R176: 534.8785714 | S176: 549.8071429 | T176: 522.6571429 | U176: 538.3714286 | W176: 0 | X176: 0 | Y176: 0 | Z176: 486.2285714 | AA176: 566.0785714 | AC176: 2011 | AD176: 9 | AE176: 30 | AF176: 92011 | AG176: 29.7 | AH176: 48.3 | AI176: 44 | AJ176: 26.3 | AK176: 37.4 | AL176: 45.9 | AM176: 57.2 | AN176: 61.4 | AO176: 64.5 | AP176: 64.2 | AQ176: 41.3 | AR176: 42.7 | AV176: 51.8 | AW176: 65.7 | BA176: 2007-02-26 | BB176: 2 | BC176: 2007 | BD176: 22007 | BE176: 57 | BF176: 0 | BG176: 0 | BH176: 0 | BI176: 0 | BJ176: 0 | BK176: 0 | BL176: 0 | BM176: 0 | BN176: 0 | BO176: 0 | BP176: 0 | BQ176: 0 | BR176: 0 | BS176: 0 | BT176: 0 | BU176: 0 | BV176: 0 | BX176: 2011 | BY176: 9 | BZ176: 30 | CA176: 92011 | CB176: 160.6 | CC176: 206 | CD176: 160.2 | CE176: 149.5 | CF176: 144.9 | CG176: 169.4 | CH176: 157.4 | CI176: 115 | CJ176: 116.8 | CK176: 130.5 | CL176: 140.8 | CM176: 167.8 | CN176: 80.4 | CO176: 86.8 | CP176: 81.8 | CQ176: 126.1 | CS176: 68.1 | CT176: 133.0647059 | CV176: N | CW176: 1 | CX176: London (Thames Valley)
D177: 2007-02-27 | E177: 2 | F177: 2007 | G177: 22007 | H177: 58 | I177: 473.0892857 | J177: 510.3428571 | K177: 479.6571429 | L177: 421.4571429 | M177: 493.4464286 | N177: 527.2428571 | P177: 544.1928571 | Q177: 546.1428571 | R177: 544.7392857 | S177: 560.2035714 | T177: 532.3785714 | U177: 548.3857143 | W177: 0 | X177: 0 | Y177: 0 | Z177: 495.3642857 | AA177: 576.4892857 | AC177: 2011 | AD177: 10 | AE177: 31 | AF177: 102011 | AG177: 80.4 | AH177: 110.2 | AI177: 98.2 | AJ177: 78.7 | AK177: 89.2 | AL177: 111.3 | AM177: 125 | AN177: 113.4 | AO177: 140.6 | AP177: 133.8 | AQ177: 115.3 | AR177: 105.7 | AV177: 99.2 | AW177: 133.3 | BA177: 2007-02-27 | BB177: 2 | BC177: 2007 | BD177: 22007 | BE177: 58 | BF177: 0 | BG177: 0 | BH177: 0 | BI177: 0 | BJ177: 0 | BK177: 0 | BL177: 0 | BM177: 0 | BN177: 0 | BO177: 0 | BP177: 0 | BQ177: 0 | BR177: 0 | BS177: 0 | BT177: 0 | BU177: 0 | BV177: 0 | BX177: 2011 | BY177: 10 | BZ177: 31 | CA177: 102011 | CB177: 104.6 | CC177: 172.7 | CD177: 108.3 | CE177: 100.7 | CF177: 94.2 | CG177: 143.7 | CH177: 144.4 | CI177: 63.8 | CJ177: 61 | CK177: 67.7 | CL177: 76.5 | CM177: 104.7 | CN177: 39.3 | CO177: 39.8 | CP177: 32.5 | CQ177: 86.9 | CS177: 26.8 | CT177: 86.32941176 | CV177: NE | CW177: 9 | CX177: Borders
D178: 2007-02-28 | E178: 2 | F178: 2007 | G178: 22007 | H178: 59 | I178: 481.7 | J178: 519.5 | K178: 488.2 | L178: 428.7 | M178: 502.4 | N178: 537 | P178: 554 | Q178: 556.2 | R178: 554.6 | S178: 570.6 | T178: 542.1 | U178: 558.4 | W178: 0 | X178: 0 | Y178: 0 | Z178: 504.5 | AA178: 586.9 | AC178: 2011 | AD178: 11 | AE178: 30 | AF178: 112011 | AG178: 153.7 | AH178: 175.4 | AI178: 147.9 | AJ178: 109.4 | AK178: 157 | AL178: 194.3 | AM178: 192.4 | AN178: 171.8 | AO178: 194.8 | AP178: 210.9 | AQ178: 200.6 | AR178: 174.9 | AV178: 153.2 | AW178: 189.9 | BA178: 2007-02-28 | BB178: 2 | BC178: 2007 | BD178: 22007 | BE178: 59 | BF178: 0 | BG178: 0 | BH178: 0 | BI178: 0 | BJ178: 0 | BK178: 0 | BL178: 0 | BM178: 0 | BN178: 0 | BO178: 0 | BP178: 0 | BQ178: 0 | BR178: 0 | BS178: 0 | BT178: 0 | BU178: 0 | BV178: 0 | BX178: 2011 | BY178: 11 | BZ178: 30 | CA178: 112011 | CB178: 25 | CC178: 109.7 | CD178: 37.6 | CE178: 45.2 | CF178: 26.3 | CG178: 93.9 | CH178: 87.9 | CI178: 18.6 | CJ178: 17.5 | CK178: 16.1 | CL178: 14 | CM178: 24.3 | CN178: 10 | CO178: 9.7 | CP178: 11.1 | CQ178: 24.1 | CS178: 9.5 | CT178: 34.14705882 | CV178: NG | CW178: 11 | CX178: East Pennines
D179: 2007-03-01 | E179: 3 | F179: 2007 | G179: 32007 | H179: 60 | I179: 488.816129 | J179: 527.4903226 | K179: 496.0580645 | L179: 435.8258065 | M179: 510.2354839 | N179: 545.4258065 | P179: 562.8225806 | Q179: 564.5967742 | R179: 563.6483871 | S179: 579.3645161 | T179: 550.6677419 | U179: 566.7096774 | W179: 0 | X179: 0 | Y179: 0 | Z179: 513.0741935 | AA179: 596.0967742 | AC179: 2011 | AD179: 12 | AE179: 31 | AF179: 122011 | AG179: 271.4 | AH179: 291.4 | AI179: 262.6 | AJ179: 229.4 | AK179: 268.4 | AL179: 303.7 | AM179: 312.5 | AN179: 317.1 | AO179: 324.8 | AP179: 323.5 | AQ179: 311.4 | AR179: 325.4 | AV179: 250.4 | AW179: 319.4 | BA179: 2007-03-01 | BB179: 3 | BC179: 2007 | BD179: 32007 | BE179: 60 | BF179: 0.05806451613 | BG179: 0.05483870968 | BH179: 0.01935483871 | BI179: 0.006451612903 | BJ179: 0 | BK179: 0.003225806452 | BL179: 0 | BM179: 0 | BN179: 0 | BO179: 0 | BP179: 0.003225806452 | BQ179: 0.03548387097 | BR179: 0 | BS179: 0 | BT179: 0 | BU179: 0 | BV179: 0 | BX179: 2011 | BY179: 12 | BZ179: 31 | CA179: 122011 | CB179: 3.4 | CC179: 30.3 | CD179: 4.2 | CE179: 5.6 | CF179: 1.8 | CG179: 17.3 | CH179: 23.7 | CI179: 1.6 | CJ179: 4.5 | CK179: 3.5 | CL179: 2.9 | CM179: 2.4 | CN179: 2.8 | CO179: 2.7 | CP179: 3.1 | CQ179: 5.1 | CS179: 1.4 | CT179: 6.841176471 | CV179: NN | CW179: 6 | CX179: Midlands
D180: 2007-03-02 | E180: 3 | F180: 2007 | G180: 32007 | H180: 61 | I180: 495.9322581 | J180: 535.4806452 | K180: 503.916129 | L180: 442.9516129 | M180: 518.0709677 | N180: 553.8516129 | P180: 571.6451613 | Q180: 572.9935484 | R180: 572.6967742 | S180: 588.1290323 | T180: 559.2354839 | U180: 575.0193548 | W180: 0 | X180: 0 | Y180: 0 | Z180: 521.6483871 | AA180: 605.2935484 | AC180: 2012 | AD180: 1 | AE180: 31 | AF180: =AD180&AC180 -> 12012 | AG180: 276.5 | AH180: 300.2 | AI180: 284.4 | AJ180: 245.7 | AK180: 288.6 | AL180: 319.8 | AM180: 326.1 | AN180: 326.8 | AO180: 325.3 | AP180: 346.3 | AQ180: 322.7 | AR180: 322.7 | AV180: 274.1 | AW180: 303.7 | BA180: 2007-03-02 | BB180: 3 | BC180: 2007 | BD180: 32007 | BE180: 61 | BF180: 0.1161290323 | BG180: 0.1096774194 | BH180: 0.03870967742 | BI180: 0.01290322581 | BJ180: 0 | BK180: 0.006451612903 | BL180: 0 | BM180: 0 | BN180: 0 | BO180: 0 | BP180: 0.006451612903 | BQ180: 0.07096774194 | BR180: 0 | BS180: 0 | BT180: 0 | BU180: 0 | BV180: 0 | BX180: 2012 | BY180: 1 | BZ180: 31 | CA180: =BY180&BX180 -> 12012 | CB180: 1.8 | CC180: 4 | CD180: 2.6 | CE180: 3.1 | CF180: 0.5 | CG180: 2.2 | CH180: 0.2 | CI180: 0 | CJ180: 0.4 | CK180: 0.1 | CL180: 0.2 | CM180: 0.8 | CN180: 0 | CO180: 0 | CP180: 0.1 | CQ180: 0.5 | CS180: 0 | CT180: 0.9705882353 | CV180: NP | CW180: 5 | CX180: Severn Valley
D181: 2007-03-03 | E181: 3 | F181: 2007 | G181: 32007 | H181: 62 | I181: 503.0483871 | J181: 543.4709677 | K181: 511.7741935 | L181: 450.0774194 | M181: 525.9064516 | N181: 562.2774194 | P181: 580.4677419 | Q181: 581.3903226 | R181: 581.7451613 | S181: 596.8935484 | T181: 567.8032258 | U181: 583.3290323 | W181: 0 | X181: 0 | Y181: 0 | Z181: 530.2225806 | AA181: 614.4903226 | AC181: 2012 | AD181: 2 | AE181: 29 | AF181: 22012 | AG181: 317.8 | AH181: 342.2 | AI181: 320.3 | AJ181: 278.7 | AK181: 316.3 | AL181: 340.2 | AM181: 336.3 | AN181: 306.5 | AO181: 287.2 | AP181: 337.5 | AQ181: 336.7 | AR181: 357.7 | AV181: 302.1 | AW181: 264.9 | BA181: 2007-03-03 | BB181: 3 | BC181: 2007 | BD181: 32007 | BE181: 62 | BF181: 0.1741935484 | BG181: 0.164516129 | BH181: 0.05806451613 | BI181: 0.01935483871 | BJ181: 0 | BK181: 0.009677419355 | BL181: 0 | BM181: 0 | BN181: 0 | BO181: 0 | BP181: 0.009677419355 | BQ181: 0.1064516129 | BR181: 0 | BS181: 0 | BT181: 0 | BU181: 0 | BV181: 0 | BX181: 2012 | BY181: 2 | BZ181: 29 | CA181: 22012 | CB181: 4.8 | CC181: 2.3 | CD181: 3.5 | CE181: 2.1 | CF181: 0.9 | CG181: 0.3 | CH181: 3 | CI181: 0.3 | CJ181: 6.7 | CK181: 4.1 | CL181: 3.4 | CM181: 6 | CN181: 1.7 | CO181: 3.1 | CP181: 5.5 | CQ181: 2.6 | CS181: 1.5 | CT181: 3.047058824 | CV181: NR | CW181: 12 | CX181: East Anglia
D182: 2007-03-04 | E182: 3 | F182: 2007 | G182: 32007 | H182: 63 | I182: 510.1645161 | J182: 551.4612903 | K182: 519.6322581 | L182: 457.2032258 | M182: 533.7419355 | N182: 570.7032258 | P182: 589.2903226 | Q182: 589.7870968 | R182: 590.7935484 | S182: 605.6580645 | T182: 576.3709677 | U182: 591.6387097 | W182: 0 | X182: 0 | Y182: 0 | Z182: 538.7967742 | AA182: 623.6870968 | AC182: 2012 | AD182: 3 | AE182: 31 | AF182: 32012 | AG182: 194.7 | AH182: 228.6 | AI182: 232.5 | AJ182: 186.7 | AK182: 208.1 | AL182: 237.6 | AM182: 230.7 | AN182: 216.5 | AO182: 236.9 | AP182: 241.7 | AQ182: 231.4 | AR182: 247 | AV182: 214.2 | AW182: 218.4 | BA182: 2007-03-04 | BB182: 3 | BC182: 2007 | BD182: 32007 | BE182: 63 | BF182: 0.2322580645 | BG182: 0.2193548387 | BH182: 0.07741935484 | BI182: 0.02580645161 | BJ182: 0 | BK182: 0.01290322581 | BL182: 0 | BM182: 0 | BN182: 0 | BO182: 0 | BP182: 0.01290322581 | BQ182: 0.1419354839 | BR182: 0 | BS182: 0 | BT182: 0 | BU182: 0 | BV182: 0 | BX182: 2012 | BY182: 3 | BZ182: 31 | CA182: 32012 | CB182: 30.5 | CC182: 4.8 | CD182: 32.9 | CE182: 23.5 | CF182: 27.2 | CG182: 3.1 | CH182: 27.1 | CI182: 20.2 | CJ182: 26.3 | CK182: 29.9 | CL182: 24.4 | CM182: 22.9 | CN182: 16.8 | CO182: 21.2 | CP182: 22.6 | CQ182: 23.3 | CS182: 9.3 | CT182: 21.52941176 | CV182: NW | CW182: 1 | CX182: London (Thames Valley)
D183: 2007-03-05 | E183: 3 | F183: 2007 | G183: 32007 | H183: 64 | I183: 517.2806452 | J183: 559.4516129 | K183: 527.4903226 | L183: 464.3290323 | M183: 541.5774194 | N183: 579.1290323 | P183: 598.1129032 | Q183: 598.183871 | R183: 599.8419355 | S183: 614.4225806 | T183: 584.9387097 | U183: 599.9483871 | W183: 0 | X183: 0 | Y183: 0 | Z183: 547.3709677 | AA183: 632.883871 | AC183: 2012 | AD183: 4 | AE183: 30 | AF183: 42012 | AG183: 194.1 | AH183: 225.5 | AI183: 232 | AJ183: 206.2 | AK183: 180.8 | AL183: 255.6 | AM183: 256.3 | AN183: 253.4 | AO183: 257.7 | AP183: 266.8 | AQ183: 243.2 | AR183: 233.7 | AV183: 249.6 | AW183: 257.6 | BA183: 2007-03-05 | BB183: 3 | BC183: 2007 | BD183: 32007 | BE183: 64 | BF183: 0.2903225806 | BG183: 0.2741935484 | BH183: 0.09677419355 | BI183: 0.03225806452 | BJ183: 0 | BK183: 0.01612903226 | BL183: 0 | BM183: 0 | BN183: 0 | BO183: 0 | BP183: 0.01612903226 | BQ183: 0.1774193548 | BR183: 0 | BS183: 0 | BT183: 0 | BU183: 0 | BV183: 0 | BX183: 2012 | BY183: 4 | BZ183: 30 | CA183: 42012 | CB183: 12.2 | CC183: 26.8 | CD183: 11.9 | CE183: 7 | CF183: 6.2 | CG183: 25.5 | CH183: 6.2 | CI183: 2.3 | CJ183: 2.2 | CK183: 4 | CL183: 4.9 | CM183: 9.2 | CN183: 1.6 | CO183: 1.6 | CP183: 0.5 | CQ183: 4.9 | CS183: 0 | CT183: 7.470588235 | CV183: OL | CW183: 7 | CX183: West Pennines
D184: 2007-03-06 | E184: 3 | F184: 2007 | G184: 32007 | H184: 65 | I184: 524.3967742 | J184: 567.4419355 | K184: 535.3483871 | L184: 471.4548387 | M184: 549.4129032 | N184: 587.5548387 | P184: 606.9354839 | Q184: 606.5806452 | R184: 608.8903226 | S184: 623.1870968 | T184: 593.5064516 | U184: 608.2580645 | W184: 0 | X184: 0 | Y184: 0 | Z184: 555.9451613 | AA184: 642.0806452 | AC184: 2012 | AD184: 5 | AE184: 31 | AF184: 52012 | AG184: 98.9 | AH184: 121 | AI184: 123.3 | AJ184: 110.6 | AK184: 115.8 | AL184: 144.8 | AM184: 149.6 | AN184: 164.8 | AO184: 191.2 | AP184: 171.8 | AQ184: 141.7 | AR184: 134 | AV184: 147.3 | AW184: 164.2 | BA184: 2007-03-06 | BB184: 3 | BC184: 2007 | BD184: 32007 | BE184: 65 | BF184: 0.3483870968 | BG184: 0.3290322581 | BH184: 0.1161290323 | BI184: 0.03870967742 | BJ184: 0 | BK184: 0.01935483871 | BL184: 0 | BM184: 0 | BN184: 0 | BO184: 0 | BP184: 0.01935483871 | BQ184: 0.2129032258 | BR184: 0 | BS184: 0 | BT184: 0 | BU184: 0 | BV184: 0 | BX184: 2012 | BY184: 5 | BZ184: 31 | CA184: 52012 | CB184: 110.9 | CC184: 16.1 | CD184: 115.5 | CE184: 85.8 | CF184: 95.7 | CG184: 5.6 | CH184: 88.4 | CI184: 69.5 | CJ184: 41.3 | CK184: 71.7 | CL184: 87.1 | CM184: 93.6 | CN184: 54.2 | CO184: 45.8 | CP184: 39.8 | CQ184: 77.5 | CS184: 32.7 | CT184: 66.54117647 | CV184: OX | CW184: 1 | CX184: London (Thames Valley)
D185: 2007-03-07 | E185: =MONTH(D185) -> 3 | F185: =YEAR(D185) -> 2007 | G185: =E185&F185 -> 32007 | H185: 66 | I185: =SUMIF($AF$268:$AF$411,$G185,AG$268:AG$411)+I184 -> 531.5129032 | J185: =SUMIF($AF$268:$AF$411,$G185,AH$268:AH$411)+J184 -> 575.4322581 | K185: =SUMIF($AF$268:$AF$411,$G185,AI$268:AI$411)+K184 -> 543.2064516 | L185: =SUMIF($AF$268:$AF$411,$G185,AJ$268:AJ$411)+L184 -> 478.5806452 | M185: =SUMIF($AF$268:$AF$411,$G185,AK$268:AK$411)+M184 -> 557.2483871 | N185: =SUMIF($AF$268:$AF$411,$G185,AL$268:AL$411)+N184 -> 595.9806452 | P185: =SUMIF($AF$268:$AF$411,$G185,AM$268:AM$411)+P184 -> 615.7580645 | Q185: =SUMIF($AF$268:$AF$411,$G185,AN$268:AN$411)+Q184 -> 614.9774194 | R185: =SUMIF($AF$268:$AF$411,$G185,AO$268:AO$411)+R184 -> 617.9387097 | S185: =SUMIF($AF$268:$AF$411,$G185,AP$268:AP$411)+S184 -> 631.9516129 | T185: =SUMIF($AF$268:$AF$411,$G185,AQ$268:AQ$411)+T184 -> 602.0741935 | U185: =SUMIF($AF$268:$AF$411,$G185,AR$268:AR$411)+U184 -> 616.5677419 | W185: =SUMIF($AF$268:$AF$411,$G185,AS$268:AS$411)+W184 -> 0 | X185: =SUMIF($AF$268:$AF$411,$G185,AT$268:AT$411)+X184 -> 0 | Y185: =SUMIF($AF$268:$AF$411,$G185,AU$268:AU$411)+Y184 -> 0 | Z185: =SUMIF($AF$268:$AF$411,$G185,AV$268:AV$411)+Z184 -> 564.5193548 | AA185: =SUMIF($AF$268:$AF$411,$G185,AW$268:AW$411)+AA184 -> 651.2774194 | AC185: 2012 | AD185: 6 | AE185: 30 | AF185: 62012 | AG185: 46.3 | AH185: 64 | AI185: 53.3 | AJ185: 56.9 | AK185: 54.3 | AL185: 79.7 | AM185: 72.2 | AN185: 90.5 | AO185: 114.9 | AP185: 87.8 | AQ185: 75.1 | AR185: 70.5 | AV185: 79.3 | AW185: 98.6 | BA185: 2007-03-07 | BB185: =MONTH(BA185) -> 3 | BC185: =YEAR(BA185) -> 2007 | BD185: =BB185&BC185 -> 32007 | BE185: 66 | BF185: =SUMIF($AF$268:$AF$411,$G185,CB$441:CB$522)+BF184 -> 0.4064516129 | BG185: =SUMIF($AF$268:$AF$411,$G185,CC$441:CC$522)+BG184 -> 0.3838709677 | BH185: =SUMIF($AF$268:$AF$411,$G185,CD$441:CD$522)+BH184 -> 0.135483871 | BI185: =SUMIF($AF$268:$AF$411,$G185,CE$441:CE$522)+BI184 -> 0.04516129032 | BJ185: =SUMIF($AF$268:$AF$411,$G185,CF$441:CF$522)+BJ184 -> 0 | BK185: =SUMIF($AF$268:$AF$411,$G185,CG$441:CG$522)+BK184 -> 0.02258064516 | BL185: =SUMIF($AF$268:$AF$411,$G185,CH$441:CH$522)+BL184 -> 0 | BM185: =SUMIF($AF$268:$AF$411,$G185,CI$441:CI$522)+BM184 -> 0 | BN185: =SUMIF($AF$268:$AF$411,$G185,CJ$441:CJ$522)+BN184 -> 0 | BO185: =SUMIF($AF$268:$AF$411,$G185,CK$441:CK$522)+BO184 -> 0 | BP185: =SUMIF($AF$268:$AF$411,$G185,CL$441:CL$522)+BP184 -> 0.02258064516 | BQ185: =SUMIF($AF$268:$AF$411,$G185,CM$441:CM$522)+BQ184 -> 0.2483870968 | BR185: =SUMIF($AF$268:$AF$411,$G185,CN$441:CN$522)+BR184 -> 0 | BS185: =SUMIF($AF$268:$AF$411,$G185,CO$441:CO$522)+BS184 -> 0 | BT185: =SUMIF($AF$268:$AF$411,$G185,CP$441:CP$522)+BT184 -> 0 | BU185: =SUMIF($AF$268:$AF$411,$G185,CQ$441:CQ$522)+BU184 -> 0 | BV185: =SUMIF($AF$268:$AF$411,$G185,CR$441:CR$522)+BV184 -> 0 | BX185: 2012 | BY185: 6 | BZ185: 30 | CA185: 62012 | CB185: 128.8 | CC185: 117.7 | CD185: 124.6 | CE185: 101.5 | CF185: 109.8 | CG185: 95.1 | CH185: 102.1 | CI185: 82.4 | CJ185: 82.6 | CK185: 93.5 | CL185: 100.3 | CM185: 129.9 | CN185: 64.3 | CO185: 57.3 | CP185: 37 | CQ185: 95.9 | CS185: 30.4 | CT185: 91.36470588 | CV185: PE | CW185: 12 | CX185: =VLOOKUP(CW185,$CU$96:$CV$113,2) -> East Anglia
D186: 2007-03-08 | E186: 3 | F186: 2007 | G186: 32007 | H186: 67 | I186: 538.6290323 | J186: 583.4225806 | K186: 551.0645161 | L186: 485.7064516 | M186: 565.083871 | N186: 604.4064516 | P186: 624.5806452 | Q186: 623.3741935 | R186: 626.9870968 | S186: 640.716129 | T186: 610.6419355 | U186: 624.8774194 | W186: 0 | X186: 0 | Y186: 0 | Z186: 573.0935484 | AA186: 660.4741935 | AC186: 2012 | AD186: 7 | AE186: 31 | AF186: 72012 | AG186: 20.6 | AH186: 40.1 | AI186: 38.8 | AJ186: 33.8 | AK186: 33.6 | AL186: 47 | AM186: 44 | AN186: 46.1 | AO186: 65 | AP186: 52.7 | AQ186: 37.5 | AR186: 39.6 | AV186: 55.4 | AW186: 61.1 | BA186: 2007-03-08 | BB186: 3 | BC186: 2007 | BD186: 32007 | BE186: 67 | BF186: 0.464516129 | BG186: 0.4387096774 | BH186: 0.1548387097 | BI186: 0.05161290323 | BJ186: 0 | BK186: 0.02580645161 | BL186: 0 | BM186: 0 | BN186: 0 | BO186: 0 | BP186: 0.02580645161 | BQ186: 0.2838709677 | BR186: 0 | BS186: 0 | BT186: 0 | BU186: 0 | BV186: 0 | BX186: 2012 | BY186: 7 | BZ186: 31 | CA186: 72012 | CB186: 190.5 | CC186: 141.7 | CD186: 179.8 | CE186: 157.2 | CF186: 164.8 | CG186: 105.7 | CH186: 161.6 | CI186: 141.2 | CJ186: 145.8 | CK186: 150.9 | CL186: 164.2 | CM186: 185.2 | CN186: 105.6 | CO186: 105.4 | CP186: 90.4 | CQ186: 140.6 | CS186: 64.4 | CT186: 140.8823529 | CV186: PL | CW186: 4 | CX186: South Western
D187: 2007-03-09 | E187: 3 | F187: 2007 | G187: 32007 | H187: 68 | I187: 545.7451613 | J187: 591.4129032 | K187: 558.9225806 | L187: 492.8322581 | M187: 572.9193548 | N187: 612.8322581 | P187: 633.4032258 | Q187: 631.7709677 | R187: 636.0354839 | S187: 649.4806452 | T187: 619.2096774 | U187: 633.1870968 | W187: 0 | X187: 0 | Y187: 0 | Z187: 581.6677419 | AA187: 669.6709677 | AC187: 2012 | AD187: 8 | AE187: 31 | AF187: 82012 | AG187: 14.5 | AH187: 27.9 | AI187: 23.1 | AJ187: 13.2 | AK187: 17.9 | AL187: 33.2 | AM187: 31 | AN187: 36.1 | AO187: 45.9 | AP187: 42.1 | AQ187: 29.2 | AR187: 23.5 | AV187: 24.8 | AW187: 30.3 | BA187: 2007-03-09 | BB187: 3 | BC187: 2007 | BD187: 32007 | BE187: 68 | BF187: 0.5225806452 | BG187: 0.4935483871 | BH187: 0.1741935484 | BI187: 0.05806451613 | BJ187: 0 | BK187: 0.02903225806 | BL187: 0 | BM187: 0 | BN187: 0 | BO187: 0 | BP187: 0.02903225806 | BQ187: 0.3193548387 | BR187: 0 | BS187: 0 | BT187: 0 | BU187: 0 | BV187: 0 | BX187: 2012 | BY187: 8 | BZ187: 31 | CA187: 82012 | CB187: 229.5 | CC187: 197.9 | CD187: 221.3 | CE187: 190.9 | CF187: 200.4 | CG187: 166.4 | CH187: 188.7 | CI187: 167.8 | CJ187: 172.7 | CK187: 173.9 | CL187: 189.6 | CM187: 228.3 | CN187: 139.4 | CO187: 137.8 | CP187: 128 | CQ187: 174.1 | CS187: 98.7 | CT187: 176.7882353 | CV187: PO | CW187: 3 | CX187: Southern
D188: 2007-03-10 | E188: 3 | F188: 2007 | G188: 32007 | H188: 69 | I188: 552.8612903 | J188: 599.4032258 | K188: 566.7806452 | L188: 499.9580645 | M188: 580.7548387 | N188: 621.2580645 | P188: 642.2258065 | Q188: 640.1677419 | R188: 645.083871 | S188: 658.2451613 | T188: 627.7774194 | U188: 641.4967742 | W188: 0 | X188: 0 | Y188: 0 | Z188: 590.2419355 | AA188: 678.8677419 | AC188: 2012 | AD188: 9 | AE188: 30 | AF188: 92012 | AG188: 60 | AH188: 94.4 | AI188: 88.4 | AJ188: 63.3 | AK188: 77 | AL188: 107.4 | AM188: 106.3 | AN188: 96.1 | AO188: 96.6 | AP188: 111 | AQ188: 92.1 | AR188: 88 | AV188: 86.9 | AW188: 103.1 | BA188: 2007-03-10 | BB188: 3 | BC188: 2007 | BD188: 32007 | BE188: 69 | BF188: 0.5806451613 | BG188: 0.5483870968 | BH188: 0.1935483871 | BI188: 0.06451612903 | BJ188: 0 | BK188: 0.03225806452 | BL188: 0 | BM188: 0 | BN188: 0 | BO188: 0 | BP188: 0.03225806452 | BQ188: 0.3548387097 | BR188: 0 | BS188: 0 | BT188: 0 | BU188: 0 | BV188: 0 | BX188: 2012 | BY188: 9 | BZ188: 30 | CA188: 92012 | CB188: 116.1 | CC188: 238.1 | CD188: 116.4 | CE188: 103.3 | CF188: 99.3 | CG188: 191 | CH188: 85.9 | CI188: 76.1 | CJ188: 91.5 | CK188: 87.6 | CL188: 92 | CM188: 114.7 | CN188: 57.1 | CO188: 64.5 | CP188: 70.7 | CQ188: 79.7 | CS188: 40.9 | CT188: 101.4647059 | CV188: PR | CW188: 7 | CX188: West Pennines
D189: 2007-03-11 | E189: 3 | F189: 2007 | G189: 32007 | H189: 70 | I189: 559.9774194 | J189: 607.3935484 | K189: 574.6387097 | L189: 507.083871 | M189: 588.5903226 | N189: 629.683871 | P189: 651.0483871 | Q189: 648.5645161 | R189: 654.1322581 | S189: 667.0096774 | T189: 636.3451613 | U189: 649.8064516 | W189: 0 | X189: 0 | Y189: 0 | Z189: 598.816129 | AA189: 688.0645161 | AC189: 2012 | AD189: 10 | AE189: 31 | AF189: 102012 | AG189: 139.5 | AH189: 162.3 | AI189: 140.5 | AJ189: 119.3 | AK189: 162.7 | AL189: 202.1 | AM189: 195.1 | AN189: 218.4 | AO189: 218.5 | AP189: 224.5 | AQ189: 195.4 | AR189: 179.3 | AV189: 156.6 | AW189: 214.7 | BA189: 2007-03-11 | BB189: 3 | BC189: 2007 | BD189: 32007 | BE189: 70 | BF189: 0.6387096774 | BG189: 0.6032258065 | BH189: 0.2129032258 | BI189: 0.07096774194 | BJ189: 0 | BK189: 0.03548387097 | BL189: 0 | BM189: 0 | BN189: 0 | BO189: 0 | BP189: 0.03548387097 | BQ189: 0.3903225806 | BR189: 0 | BS189: 0 | BT189: 0 | BU189: 0 | BV189: 0 | BX189: 2012 | BY189: 10 | BZ189: 31 | CA189: 102012 | CB189: 37.1 | CC189: 124.8 | CD189: 52.5 | CE189: 45.7 | CF189: 35.2 | CG189: 92.1 | CH189: 21.9 | CI189: 16.4 | CJ189: 18.2 | CK189: 12.5 | CL189: 17.2 | CM189: 37.4 | CN189: 4.1 | CO189: 5.4 | CP189: 5.4 | CQ189: 21.2 | CS189: 2.4 | CT189: 32.32352941 | CV189: RG | CW189: 1 | CX189: London (Thames Valley)
D190: 2007-03-12 | E190: 3 | F190: 2007 | G190: 32007 | H190: 71 | I190: 567.0935484 | J190: 615.383871 | K190: 582.4967742 | L190: 514.2096774 | M190: 596.4258065 | N190: 638.1096774 | P190: 659.8709677 | Q190: 656.9612903 | R190: 663.1806452 | S190: 675.7741935 | T190: 644.9129032 | U190: 658.116129 | W190: 0 | X190: 0 | Y190: 0 | Z190: 607.3903226 | AA190: 697.2612903 | AC190: 2012 | AD190: 11 | AE190: 30 | AF190: 112012 | AG190: 233.6 | AH190: 259.4 | AI190: 230.6 | AJ190: 212.9 | AK190: 253.7 | AL190: 285 | AM190: 274.5 | AN190: 266.8 | AO190: 271.4 | AP190: 288.5 | AQ190: 272.2 | AR190: 274.9 | AV190: 248.9 | AW190: 288.6 | BA190: 2007-03-12 | BB190: 3 | BC190: 2007 | BD190: 32007 | BE190: 71 | BF190: 0.6967741935 | BG190: 0.6580645161 | BH190: 0.2322580645 | BI190: 0.07741935484 | BJ190: 0 | BK190: 0.03870967742 | BL190: 0 | BM190: 0 | BN190: 0 | BO190: 0 | BP190: 0.03870967742 | BQ190: 0.4258064516 | BR190: 0 | BS190: 0 | BT190: 0 | BU190: 0 | BV190: 0 | BX190: 2012 | BY190: 11 | BZ190: 30 | CA190: 112012 | CB190: 2.9 | CC190: 50.9 | CD190: 5.9 | CE190: 6.5 | CF190: 4.5 | CG190: 22.6 | CH190: 4 | CI190: 2.8 | CJ190: 7.5 | CK190: 2.6 | CL190: 3.1 | CM190: 3.2 | CN190: 2.7 | CO190: 1.8 | CP190: 2.3 | CQ190: 4.1 | CS190: 0.4 | CT190: 7.517647059 | CV190: RH | CW190: 2 | CX190: South Eastern
D191: 2007-03-13 | E191: 3 | F191: 2007 | G191: 32007 | H191: 72 | I191: 574.2096774 | J191: 623.3741935 | K191: 590.3548387 | L191: 521.3354839 | M191: 604.2612903 | N191: 646.5354839 | P191: 668.6935484 | Q191: 665.3580645 | R191: 672.2290323 | S191: 684.5387097 | T191: 653.4806452 | U191: 666.4258065 | W191: 0 | X191: 0 | Y191: 0 | Z191: 615.9645161 | AA191: 706.4580645 | AC191: 2012 | AD191: 12 | AE191: 31 | AF191: =AD191&AC191 -> 122012 | AG191: 301.5 | AH191: 324.5 | AI191: 295.4 | AJ191: 253.8 | AK191: 301.5 | AL191: 347 | AM191: 347 | AN191: 349.3 | AO191: 341.3 | AP191: 364.2 | AQ191: 350.6 | AR191: 345.2 | AV191: 284.8 | AW191: 342.4 | BA191: 2007-03-13 | BB191: 3 | BC191: 2007 | BD191: 32007 | BE191: 72 | BF191: 0.7548387097 | BG191: 0.7129032258 | BH191: 0.2516129032 | BI191: 0.08387096774 | BJ191: 0 | BK191: 0.04193548387 | BL191: 0 | BM191: 0 | BN191: 0 | BO191: 0 | BP191: 0.04193548387 | BQ191: 0.4612903226 | BR191: 0 | BS191: 0 | BT191: 0 | BU191: 0 | BV191: 0 | BX191: 2012 | BY191: 12 | BZ191: 31 | CA191: 122012 | CB191: 0 | CC191: 3.8 | CD191: 0 | CE191: 0 | CF191: 0 | CG191: 3.6 | CH191: 0 | CI191: 0 | CJ191: 0 | CK191: 0 | CL191: 0 | CM191: 0 | CN191: 0 | CO191: 0 | CP191: 0 | CQ191: 0 | CS191: 0 | CT191: 0.4352941176 | CV191: RM | CW191: 1 | CX191: London (Thames Valley)
D192: 2007-03-14 | E192: 3 | F192: 2007 | G192: 32007 | H192: 73 | I192: 581.3258065 | J192: 631.3645161 | K192: 598.2129032 | L192: 528.4612903 | M192: 612.0967742 | N192: 654.9612903 | P192: 677.516129 | Q192: 673.7548387 | R192: 681.2774194 | S192: 693.3032258 | T192: 662.0483871 | U192: 674.7354839 | W192: 0 | X192: 0 | Y192: 0 | Z192: 624.5387097 | AA192: 715.6548387 | AC192: 2013 | AD192: 1 | AE192: 31 | AF192: 12013 | AG192: 348.6 | AH192: 367.4 | AI192: 325.6 | AJ192: 285.3 | AK192: 342.3 | AL192: 384 | AM192: 371 | AN192: 351.2 | AO192: 349.2 | AP192: 381.2 | AQ192: 389 | AR192: 416.8 | AV192: 324.9 | AW192: 335.2 | BA192: 2007-03-14 | BB192: 3 | BC192: 2007 | BD192: 32007 | BE192: 73 | BF192: 0.8129032258 | BG192: 0.7677419355 | BH192: 0.2709677419 | BI192: 0.09032258065 | BJ192: 0 | BK192: 0.04516129032 | BL192: 0 | BM192: 0 | BN192: 0 | BO192: 0 | BP192: 0.04516129032 | BQ192: 0.4967741935 | BR192: 0 | BS192: 0 | BT192: 0 | BU192: 0 | BV192: 0 | BX192: 2013 | BY192: 1 | BZ192: 31 | CA192: 12013 | CV192: S | CW192: 11 | CX192: East Pennines
D193: 2007-03-15 | E193: 3 | F193: 2007 | G193: 32007 | H193: 74 | I193: 588.4419355 | J193: 639.3548387 | K193: 606.0709677 | L193: 535.5870968 | M193: 619.9322581 | N193: 663.3870968 | P193: 686.3387097 | Q193: 682.1516129 | R193: 690.3258065 | S193: 702.0677419 | T193: 670.616129 | U193: 683.0451613 | W193: 0 | X193: 0 | Y193: 0 | Z193: 633.1129032 | AA193: 724.8516129 | AC193: 2013 | AD193: 2 | AE193: 29 | AF193: 22013 | AG193: 324.7 | AH193: 347.9 | AI193: 325.5 | AJ193: 282 | AK193: 234.6 | AL193: 358.2 | AM193: 349 | AN193: 332.5 | AO193: 326.3 | AP193: 351.9 | AQ193: 353.2 | AR193: 353.2 | AV193: 313.3 | AW193: 317.3 | BA193: 2007-03-15 | BB193: 3 | BC193: 2007 | BD193: 32007 | BE193: 74 | BF193: 0.8709677419 | BG193: 0.8225806452 | BH193: 0.2903225806 | BI193: 0.09677419355 | BJ193: 0 | BK193: 0.04838709677 | BL193: 0 | BM193: 0 | BN193: 0 | BO193: 0 | BP193: 0.04838709677 | BQ193: 0.5322580645 | BR193: 0 | BS193: 0 | BT193: 0 | BU193: 0 | BV193: 0 | BX193: 2013 | BY193: 2 | BZ193: 29 | CA193: 22013 | CV193: SA | CW193: 16 | CX193: Wales
D194: 2007-03-16 | E194: 3 | F194: 2007 | G194: 32007 | H194: 75 | I194: 595.5580645 | J194: 647.3451613 | K194: 613.9290323 | L194: 542.7129032 | M194: 627.7677419 | N194: 671.8129032 | P194: 695.1612903 | Q194: 690.5483871 | R194: 699.3741935 | S194: 710.8322581 | T194: 679.183871 | U194: 691.3548387 | W194: 0 | X194: 0 | Y194: 0 | Z194: 641.6870968 | AA194: 734.0483871 | AC194: 2013 | AD194: 3 | AE194: 31 | AF194: 32013 | AG194: 356.1 | AH194: 375.9 | AI194: 359.2 | AJ194: 320.5 | AK194: 358.3 | AL194: 411.9 | AM194: 401 | AN194: 403.7 | AO194: 395.2 | AP194: 408.4 | AQ194: 408 | AR194: 389.2 | AV194: 365 | AW194: 383.6 | BA194: 2007-03-16 | BB194: 3 | BC194: 2007 | BD194: 32007 | BE194: 75 | BF194: 0.9290322581 | BG194: 0.8774193548 | BH194: 0.3096774194 | BI194: 0.1032258065 | BJ194: 0 | BK194: 0.05161290323 | BL194: 0 | BM194: 0 | BN194: 0 | BO194: 0 | BP194: 0.05161290323 | BQ194: 0.5677419355 | BR194: 0 | BS194: 0 | BT194: 0 | BU194: 0 | BV194: 0 | BX194: 2013 | BY194: 3 | BZ194: 31 | CA194: 32013 | CV194: SE | CW194: 1 | CX194: London (Thames Valley)
D195: 2007-03-17 | E195: 3 | F195: 2007 | G195: 32007 | H195: 76 | I195: 602.6741935 | J195: 655.3354839 | K195: 621.7870968 | L195: 549.8387097 | M195: 635.6032258 | N195: 680.2387097 | P195: 703.983871 | Q195: 698.9451613 | R195: 708.4225806 | S195: 719.5967742 | T195: 687.7516129 | U195: 699.6645161 | W195: 0 | X195: 0 | Y195: 0 | Z195: 650.2612903 | AA195: 743.2451613 | AC195: 2013 | AD195: 4 | AE195: 30 | AF195: 42013 | AG195: 201.3 | AH195: 233.2 | AI195: 241.5 | AJ195: 223.6 | AK195: 211.8 | AL195: 244.2 | AM195: 244 | AN195: 253.9 | AO195: 253 | AP195: 256.8 | AQ195: 234.1 | AR195: 237.4 | AV195: 245.9 | AW195: 252.7 | BA195: 2007-03-17 | BB195: 3 | BC195: 2007 | BD195: 32007 | BE195: 76 | BF195: 0.9870967742 | BG195: 0.9322580645 | BH195: 0.3290322581 | BI195: 0.1096774194 | BJ195: 0 | BK195: 0.05483870968 | BL195: 0 | BM195: 0 | BN195: 0 | BO195: 0 | BP195: 0.05483870968 | BQ195: 0.6032258065 | BR195: 0 | BS195: 0 | BT195: 0 | BU195: 0 | BV195: 0 | BX195: 2013 | BY195: 4 | BZ195: 30 | CA195: 42013 | CV195: SG | CW195: 1 | CX195: London (Thames Valley)
D196: 2007-03-18 | E196: 3 | F196: 2007 | G196: 32007 | H196: 77 | I196: 609.7903226 | J196: 663.3258065 | K196: 629.6451613 | L196: 556.9645161 | M196: 643.4387097 | N196: 688.6645161 | P196: 712.8064516 | Q196: 707.3419355 | R196: 717.4709677 | S196: 728.3612903 | T196: 696.3193548 | U196: 707.9741935 | W196: 0 | X196: 0 | Y196: 0 | Z196: 658.8354839 | AA196: 752.4419355 | AC196: 2013 | AD196: 5 | AE196: 31 | AF196: 52013 | AG196: 121.9 | AH196: 156.4 | AI196: 143.6 | AJ196: 152.7 | AK196: 146.8 | AL196: 170.6 | AM196: 163.3 | AN196: 164.4 | AO196: 186.6 | AP196: 160.2 | AQ196: 152.7 | AR196: 165 | AV196: 191.1 | AW196: 169.3 | BA196: 2007-03-18 | BB196: 3 | BC196: 2007 | BD196: 32007 | BE196: 77 | BF196: 1.04516129 | BG196: 0.9870967742 | BH196: 0.3483870968 | BI196: 0.1161290323 | BJ196: 0 | BK196: 0.05806451613 | BL196: 0 | BM196: 0 | BN196: 0 | BO196: 0 | BP196: 0.05806451613 | BQ196: 0.6387096774 | BR196: 0 | BS196: 0 | BT196: 0 | BU196: 0 | BV196: 0 | BX196: 2013 | BY196: 5 | BZ196: 31 | CA196: =BY196&BX196 -> 52013 | CV196: SK | CW196: 7 | CX196: West Pennines
